Workbook

Sheet Report - ALL (DASHBOARD)
A1: Dashboard | B1: Select Parameter: | F1: Select Statistic: | I1: Select Seasonal Period: | W1: 10
W2: 19
W3: 12
L4: Notes | W4: FALSE
L5: - year type sorting is done by calendar year
L6: - year type sorting is provided for historical 40-30-30 index
B12: =CONCATENATE('Report Data'!$P$7," / seasonal statistics (",$W$1,"-",$W$2,"-",$W$3,"-",IF(NOT($W$4),1,2),"a):") -> Sacramento River Below Clear Creek Temperature / seasonal statistics (10-19-12-1a):
C16: ='Report Data'!P6 -> September
C17: ='Report Data'!P7 -> Sacramento River Below Clear Creek Temperature
C18: ='Report Data'!P9 -> (BLW CLEAR CREEK/TEMP)
C19: ='Report Data'!P8 -> Dry and Critically Dry Years (40-30-30, 2035CT) Averages
C20: ='Report Data'!P11 -> TEMPERATURE (deg F) | F20: =CONCATENATE("Difference from ",'Report Data'!R13) -> Difference from NAA 032822 2035CT
C24: ='Report Data'!O14 -> NAA 011221 | E24: ='Report Data'!P14 -> 53.93533198
C25: ='Report Data'!O15 -> NAA 032822 2035CT | E25: ='Report Data'!P15 -> 54.9397316 | F25: ='Report Data'!R15 -> 0
C26: ='Report Data'!O16 -> ALT3 020121 | E26: ='Report Data'!P16 -> 53.71328456 | G26: ='Report Data'!R16 -> 0
C27: ='Report Data'!O17 -> ALT3BR 032321 | E27: ='Report Data'!P17 -> 53.69916255 | G27: ='Report Data'!R17 -> 0
C28: ='Report Data'!O18 -> ALT3A 032922 2035CT | E28: ='Report Data'!P18 -> 54.3555205 | F28: ='Report Data'!R18 -> -0.5842110952
C29: ='Report Data'!O19 -> ALT3B 032922 2035CT | E29: ='Report Data'!P19 -> 54.4674806 | F29: ='Report Data'!R19 -> -0.472251002
B59: =CONCATENATE('Report Data'!$P$7," / monthly statistics (",$W$1,"-",$W$2,"-",$W$3,"-",IF(NOT($W$4),1,2),"b):") -> Sacramento River Below Clear Creek Temperature / monthly statistics (10-19-12-1b):
B87: =CONCATENATE('Report Data'!$P$7," / time series (",$W$1,"-",$W$2,"-",$W$3,"-",IF(NOT($W$4),1,2),"c):") -> Sacramento River Below Clear Creek Temperature / time series (10-19-12-1c):

Sheet Chart - Prob Exc

Sheet Chart - Pattern

Sheet Report Data
A2: Information, Tables and Calculations for Reports
A4: Table of Selected Values for Monthly Chart: | O4: Trend Evaluation:
A6: Title: | B6: ='Compile Data'!$B$5 -> Sacramento River Below Clear Creek Temperature | O6: Title: | P6: =INDEX(Other!$B$9:$B$31,'Report - ALL (DASHBOARD)'!$W$3) -> September
B7: =INDEX(Other!$C$9:$C$33,'Report - ALL (DASHBOARD)'!$W$2) -> Dry and Critically Dry Years (40-30-30, 2035CT) | P7: ='Compile Data'!$B$5 -> Sacramento River Below Clear Creek Temperature
B8: =CONCATENATE("(",'Compile Data'!$B$6,"/",'Compile Data'!$B$7,")") -> (BLW CLEAR CREEK/TEMP) | P8: =CONCATENATE(INDEX(Other!$C$9:$C$33,'Report - ALL (DASHBOARD)'!$W$2)," ",IF('Report - ALL (DASHBOARD)'!$W$2>4,IF(AND('Compile Data'!$B$10="TAF",'Compile Data'!$B$8="PER-AVER"),"Totals","Averages"),"")) -> Dry and Critically Dry Years (40-30-30, 2035CT) Averages
P9: =CONCATENATE("(",'Compile Data'!$B$6,"/",'Compile Data'!$B$7,")") -> (BLW CLEAR CREEK/TEMP)
A11: Y-axis: | B11: =IF('Compile Data'!$B$10="CFS","Flow (CFS)",IF('Compile Data'!$B$10="TAF","Volume (TAF)",IF('Compile Data'!$B$10="KM","POSITION (KM)",IF(OR('Compile Data'!$B$10="DEGF",'Compile Data'!$B$10="DEG-F"),"TEMPERATURE (deg F)","")))) -> TEMPERATURE (deg F) | P11: =IF('Compile Data'!$B$10="CFS","Flow (CFS)",IF('Compile Data'!$B$10="TAF","Volume (TAF)",IF('Compile Data'!$B$10="KM","POSITION (KM)",IF(OR('Compile Data'!$B$10="DEGF",'Compile Data'!$B$10="DEG-F"),"TEMPERATURE (deg F)","")))) -> TEMPERATURE (deg F)
Q12: Diff from | R12: Diff from
B13: OCT | C13: NOV | D13: DEC | E13: JAN | F13: FEB | G13: MAR | H13: APR | I13: MAY | J13: JUN | K13: JUL | L13: AUG | M13: SEP | P13: Value | Q13: =$O$14 -> NAA 011221 | R13: =O15 -> NAA 032822 2035CT
A14: ='Compile Data'!$B$1 -> NAA 011221 | B14: =INDEX('Compile Data'!J$95:J$120,'Report - ALL (DASHBOARD)'!$W$2) -> 53.9285806 | C14: =INDEX('Compile Data'!K$95:K$120,'Report - ALL (DASHBOARD)'!$W$2) -> 54.02168922 | D14: =INDEX('Compile Data'!L$95:L$120,'Report - ALL (DASHBOARD)'!$W$2) -> 50.90008138 | E14: =INDEX('Compile Data'!M$95:M$120,'Report - ALL (DASHBOARD)'!$W$2) -> 48.042954 | F14: =INDEX('Compile Data'!N$95:N$120,'Report - ALL (DASHBOARD)'!$W$2) -> 47.78233693 | G14: =INDEX('Compile Data'!O$95:O$120,'Report - ALL (DASHBOARD)'!$W$2) -> 49.60286878 | H14: =INDEX('Compile Data'!P$95:P$120,'Report - ALL (DASHBOARD)'!$W$2) -> 52.99759356 | I14: =INDEX('Compile Data'!Q$95:Q$120,'Report - ALL (DASHBOARD)'!$W$2) -> 53.38891118 | J14: =INDEX('Compile Data'!R$95:R$120,'Report - ALL (DASHBOARD)'!$W$2) -> 53.07634544 | K14: =INDEX('Compile Data'!S$95:S$120,'Report - ALL (DASHBOARD)'!$W$2) -> 52.09838715 | L14: =INDEX('Compile Data'!T$95:T$120,'Report - ALL (DASHBOARD)'!$W$2) -> 52.78086535 | M14: =INDEX('Compile Data'!U$95:U$120,'Report - ALL (DASHBOARD)'!$W$2) -> 53.93533198 | O14: ='Compile Data'!$B$1 -> NAA 011221 | P14: =INDEX('Compile Data'!$J$95:$AE$120,'Report - ALL (DASHBOARD)'!$W$2,'Report - ALL (DASHBOARD)'!$W$3) -> 53.93533198
A15: ='Compile Data'!$C$1 -> NAA 032822 2035CT | B15: =INDEX('Compile Data'!AH$95:AH$120,'Report - ALL (DASHBOARD)'!$W$2) -> 54.93774147 | C15: =INDEX('Compile Data'!AI$95:AI$120,'Report - ALL (DASHBOARD)'!$W$2) -> 54.84854482 | D15: =INDEX('Compile Data'!AJ$95:AJ$120,'Report - ALL (DASHBOARD)'!$W$2) -> 52.35007413 | E15: =INDEX('Compile Data'!AK$95:AK$120,'Report - ALL (DASHBOARD)'!$W$2) -> 49.33719953 | F15: =INDEX('Compile Data'!AL$95:AL$120,'Report - ALL (DASHBOARD)'!$W$2) -> 49.04461263 | G15: =INDEX('Compile Data'!AM$95:AM$120,'Report - ALL (DASHBOARD)'!$W$2) -> 50.79756343 | H15: =INDEX('Compile Data'!AN$95:AN$120,'Report - ALL (DASHBOARD)'!$W$2) -> 54.12887383 | I15: =INDEX('Compile Data'!AO$95:AO$120,'Report - ALL (DASHBOARD)'!$W$2) -> 54.19295642 | J15: =INDEX('Compile Data'!AP$95:AP$120,'Report - ALL (DASHBOARD)'!$W$2) -> 53.97712542 | K15: =INDEX('Compile Data'!AQ$95:AQ$120,'Report - ALL (DASHBOARD)'!$W$2) -> 53.86132406 | L15: =INDEX('Compile Data'!AR$95:AR$120,'Report - ALL (DASHBOARD)'!$W$2) -> 53.51319478 | M15: =INDEX('Compile Data'!AS$95:AS$120,'Report - ALL (DASHBOARD)'!$W$2) -> 54.9397316 | O15: ='Compile Data'!$C$1 -> NAA 032822 2035CT | P15: =INDEX('Compile Data'!$AH$95:$BC$120,'Report - ALL (DASHBOARD)'!$W$2,'Report - ALL (DASHBOARD)'!$W$3) -> 54.9397316 | Q15: =$P15-$P$14 -> 1.004399618
A16: ='Compile Data'!$D$1 -> ALT3 020121 | B16: =INDEX('Compile Data'!BF$95:BF$120,'Report - ALL (DASHBOARD)'!$W$2) -> 53.8167745 | C16: =INDEX('Compile Data'!BG$95:BG$120,'Report - ALL (DASHBOARD)'!$W$2) -> 54.00984357 | D16: =INDEX('Compile Data'!BH$95:BH$120,'Report - ALL (DASHBOARD)'!$W$2) -> 50.94831429 | E16: =INDEX('Compile Data'!BI$95:BI$120,'Report - ALL (DASHBOARD)'!$W$2) -> 48.04000498 | F16: =INDEX('Compile Data'!BJ$95:BJ$120,'Report - ALL (DASHBOARD)'!$W$2) -> 47.77960841 | G16: =INDEX('Compile Data'!BK$95:BK$120,'Report - ALL (DASHBOARD)'!$W$2) -> 49.58655281 | H16: =INDEX('Compile Data'!BL$95:BL$120,'Report - ALL (DASHBOARD)'!$W$2) -> 53.10585073 | I16: =INDEX('Compile Data'!BM$95:BM$120,'Report - ALL (DASHBOARD)'!$W$2) -> 53.46845792 | J16: =INDEX('Compile Data'!BN$95:BN$120,'Report - ALL (DASHBOARD)'!$W$2) -> 53.05932986 | K16: =INDEX('Compile Data'!BO$95:BO$120,'Report - ALL (DASHBOARD)'!$W$2) -> 52.07485619 | L16: =INDEX('Compile Data'!BP$95:BP$120,'Report - ALL (DASHBOARD)'!$W$2) -> 52.66281827 | M16: =INDEX('Compile Data'!BQ$95:BQ$120,'Report - ALL (DASHBOARD)'!$W$2) -> 53.71328456 | O16: ='Compile Data'!$D$1 -> ALT3 020121 | P16: =INDEX('Compile Data'!$BF$95:$CA$120,'Report - ALL (DASHBOARD)'!$W$2,'Report - ALL (DASHBOARD)'!$W$3) -> 53.71328456 | Q16: =$P16-$P$14 -> -0.2220474243
A17: ='Compile Data'!$E$1 -> ALT3BR 032321 | B17: =INDEX('Compile Data'!CD$95:CD$120,'Report - ALL (DASHBOARD)'!$W$2) -> 53.63207397 | C17: =INDEX('Compile Data'!CE$95:CE$120,'Report - ALL (DASHBOARD)'!$W$2) -> 53.9656395 | D17: =INDEX('Compile Data'!CF$95:CF$120,'Report - ALL (DASHBOARD)'!$W$2) -> 50.95084788 | E17: =INDEX('Compile Data'!CG$95:CG$120,'Report - ALL (DASHBOARD)'!$W$2) -> 48.04393705 | F17: =INDEX('Compile Data'!CH$95:CH$120,'Report - ALL (DASHBOARD)'!$W$2) -> 47.8083669 | G17: =INDEX('Compile Data'!CI$95:CI$120,'Report - ALL (DASHBOARD)'!$W$2) -> 49.60385806 | H17: =INDEX('Compile Data'!CJ$95:CJ$120,'Report - ALL (DASHBOARD)'!$W$2) -> 53.06755536 | I17: =INDEX('Compile Data'!CK$95:CK$120,'Report - ALL (DASHBOARD)'!$W$2) -> 53.31079407 | J17: =INDEX('Compile Data'!CL$95:CL$120,'Report - ALL (DASHBOARD)'!$W$2) -> 53.01972237 | K17: =INDEX('Compile Data'!CM$95:CM$120,'Report - ALL (DASHBOARD)'!$W$2) -> 52.13023313 | L17: =INDEX('Compile Data'!CN$95:CN$120,'Report - ALL (DASHBOARD)'!$W$2) -> 52.68608615 | M17: =INDEX('Compile Data'!CO$95:CO$120,'Report - ALL (DASHBOARD)'!$W$2) -> 53.69916255 | O17: ='Compile Data'!$E$1 -> ALT3BR 032321 | P17: =INDEX('Compile Data'!$CD$95:$CY$120,'Report - ALL (DASHBOARD)'!$W$2,'Report - ALL (DASHBOARD)'!$W$3) -> 53.69916255 | Q17: -0.2361694336
A18: ='Compile Data'!$F$1 -> ALT3A 032922 2035CT | B18: =INDEX('Compile Data'!DB$95:DB$120,'Report - ALL (DASHBOARD)'!$W$2) -> 54.41897062 | C18: =INDEX('Compile Data'!DC$95:DC$120,'Report - ALL (DASHBOARD)'!$W$2) -> 54.7347683 | D18: =INDEX('Compile Data'!DD$95:DD$120,'Report - ALL (DASHBOARD)'!$W$2) -> 52.38219147 | E18: =INDEX('Compile Data'!DE$95:DE$120,'Report - ALL (DASHBOARD)'!$W$2) -> 49.36537514 | F18: =INDEX('Compile Data'!DF$95:DF$120,'Report - ALL (DASHBOARD)'!$W$2) -> 49.1875323 | G18: =INDEX('Compile Data'!DG$95:DG$120,'Report - ALL (DASHBOARD)'!$W$2) -> 50.76692111 | H18: =INDEX('Compile Data'!DH$95:DH$120,'Report - ALL (DASHBOARD)'!$W$2) -> 54.17951024 | I18: =INDEX('Compile Data'!DI$95:DI$120,'Report - ALL (DASHBOARD)'!$W$2) -> 54.2742836 | J18: =INDEX('Compile Data'!DJ$95:DJ$120,'Report - ALL (DASHBOARD)'!$W$2) -> 53.99688899 | K18: =INDEX('Compile Data'!DK$95:DK$120,'Report - ALL (DASHBOARD)'!$W$2) -> 53.93065211 | L18: =INDEX('Compile Data'!DL$95:DL$120,'Report - ALL (DASHBOARD)'!$W$2) -> 53.30300598 | M18: =INDEX('Compile Data'!DM$95:DM$120,'Report - ALL (DASHBOARD)'!$W$2) -> 54.3555205 | O18: ='Compile Data'!$F$1 -> ALT3A 032922 2035CT | P18: =INDEX('Compile Data'!$DB$95:$DW$120,'Report - ALL (DASHBOARD)'!$W$2,'Report - ALL (DASHBOARD)'!$W$3) -> 54.3555205 | Q18: 0.4201885223 | R18: =P18-$P$15 -> -0.5842110952
A19: ='Compile Data'!$G$1 -> ALT3B 032922 2035CT | B19: =INDEX('Compile Data'!DZ$95:DZ$120,'Report - ALL (DASHBOARD)'!$W$2) -> 54.63093961 | C19: =INDEX('Compile Data'!EA$95:EA$120,'Report - ALL (DASHBOARD)'!$W$2) -> 54.75461489 | D19: =INDEX('Compile Data'!EB$95:EB$120,'Report - ALL (DASHBOARD)'!$W$2) -> 52.38197759 | E19: =INDEX('Compile Data'!EC$95:EC$120,'Report - ALL (DASHBOARD)'!$W$2) -> 49.35582453 | F19: =INDEX('Compile Data'!ED$95:ED$120,'Report - ALL (DASHBOARD)'!$W$2) -> 49.13331706 | G19: =INDEX('Compile Data'!EE$95:EE$120,'Report - ALL (DASHBOARD)'!$W$2) -> 50.77591273 | H19: =INDEX('Compile Data'!EF$95:EF$120,'Report - ALL (DASHBOARD)'!$W$2) -> 54.18111941 | I19: =INDEX('Compile Data'!EG$95:EG$120,'Report - ALL (DASHBOARD)'!$W$2) -> 54.33496793 | J19: =INDEX('Compile Data'!EH$95:EH$120,'Report - ALL (DASHBOARD)'!$W$2) -> 54.00435829 | K19: =INDEX('Compile Data'!EI$95:EI$120,'Report - ALL (DASHBOARD)'!$W$2) -> 53.93993467 | L19: =INDEX('Compile Data'!EJ$95:EJ$120,'Report - ALL (DASHBOARD)'!$W$2) -> 53.28323987 | M19: =INDEX('Compile Data'!EK$95:EK$120,'Report - ALL (DASHBOARD)'!$W$2) -> 54.4674806 | O19: ='Compile Data'!$G$1 -> ALT3B 032922 2035CT | P19: =INDEX('Compile Data'!$DZ$95:$EU$120,'Report - ALL (DASHBOARD)'!$W$2,'Report - ALL (DASHBOARD)'!$W$3) -> 54.4674806 | Q19: =$P19-$P$14 -> 0.5321486155 | R19: =P19-$P$15 -> -0.472251002
A22: Annuals Plot: | O22: Exceedence Plot:
A24: Title: | B24: =INDEX(Other!$B$9:$B$31,'Report - ALL (DASHBOARD)'!$W$3) -> September | O24: Title: | P24: =INDEX(Other!$B$9:$B$31,'Report - ALL (DASHBOARD)'!$W$3) -> September
B25: ='Compile Data'!$B$5 -> Sacramento River Below Clear Creek Temperature | P25: ='Compile Data'!$B$5 -> Sacramento River Below Clear Creek Temperature
B26: =IF('Compile Data'!$B$10="CFS","Flow (CFS)",IF('Compile Data'!$B$10="TAF","Volume (TAF)",IF('Compile Data'!$B$10="KM","POSITION (KM)",IF(OR('Compile Data'!$B$10="DEGF",'Compile Data'!$B$10="DEG-F"),"TEMPERATURE (deg F)","")))) -> TEMPERATURE (deg F) | P26: =IF('Compile Data'!$B$10="CFS","Flow (CFS)",IF('Compile Data'!$B$10="TAF","Volume (TAF)",IF('Compile Data'!$B$10="KM","POSITION (KM)",IF(OR('Compile Data'!$B$10="DEGF",'Compile Data'!$B$10="DEG-F"),"TEMPERATURE (deg F)","")))) -> TEMPERATURE (deg F)
B28: ='Compile Data'!$B$1 -> NAA 011221 | C28: ='Compile Data'!$C$1 -> NAA 032822 2035CT | D28: ='Compile Data'!$D$1 -> ALT3 020121 | E28: ='Compile Data'!$E$1 -> ALT3BR 032321 | F28: ='Compile Data'!$F$1 -> ALT3A 032922 2035CT | G28: ='Compile Data'!$G$1 -> ALT3B 032922 2035CT | Q28: ='Compile Data'!$B$1 -> NAA 011221 | R28: ='Compile Data'!$C$1 -> NAA 032822 2035CT | S28: ='Compile Data'!$D$1 -> ALT3 020121 | T28: ='Compile Data'!$E$1 -> ALT3BR 032321 | U28: ='Compile Data'!F1 -> ALT3A 032922 2035CT | V28: ='Compile Data'!G1 -> ALT3B 032922 2035CT
A29: 1922 | B29: =INDEX('Compile Data'!$J$12:$AE$93,$A29-1921,'Report - ALL (DASHBOARD)'!$W$3) -> 51.04671097 | C29: =INDEX('Compile Data'!$AH$12:$BC$93,$A29-1921,'Report - ALL (DASHBOARD)'!$W$3) -> 51.92146301 | D29: =INDEX('Compile Data'!$BF$12:$CA$93,$A29-1921,'Report - ALL (DASHBOARD)'!$W$3) -> 50.16563034 | E29: =INDEX('Compile Data'!$CD$12:$CY$93,$A29-1921,'Report - ALL (DASHBOARD)'!$W$3) -> 50.15712357 | F29: =INDEX('Compile Data'!$DB$12:$DW$93,$A29-1921,'Report - ALL (DASHBOARD)'!$W$3) -> 50.9850235 | G29: =INDEX('Compile Data'!$DZ$12:$EU$93,$A29-1921,'Report - ALL (DASHBOARD)'!$W$3) -> 50.98510742 | O29: 1 | P29: =(O29-1)/81 -> 0 | Q29: =INDEX('Compile Data'!$J$123:$AE$204,$O29,'Report - ALL (DASHBOARD)'!$W$3) -> 65.31702423 | R29: =INDEX('Compile Data'!$AH$123:$BC$204,$O29,'Report - ALL (DASHBOARD)'!$W$3) -> 63.52833557 | S29: =INDEX('Compile Data'!$BF$123:$CA$204,$O29,'Report - ALL (DASHBOARD)'!$W$3) -> 62.16758347 | T29: =INDEX('Compile Data'!$CD$123:$CY$204,$O29,'Report - ALL (DASHBOARD)'!$W$3) -> 62.18003845 | U29: =INDEX('Compile Data'!$DB$123:$DW$204,$O29,'Report - ALL (DASHBOARD)'!$W$3) -> 58.54919434 | V29: =INDEX('Compile Data'!$DZ$123:$EU$204,$O29,'Report - ALL (DASHBOARD)'!$W$3) -> 59.35928726
A30: =A29+1 -> 1923 | B30: =INDEX('Compile Data'!$J$12:$AE$93,$A30-1921,'Report - ALL (DASHBOARD)'!$W$3) -> 52.60756683 | C30: =INDEX('Compile Data'!$AH$12:$BC$93,$A30-1921,'Report - ALL (DASHBOARD)'!$W$3) -> 53.563591 | D30: =INDEX('Compile Data'!$BF$12:$CA$93,$A30-1921,'Report - ALL (DASHBOARD)'!$W$3) -> 52.32866669 | E30: =INDEX('Compile Data'!$CD$12:$CY$93,$A30-1921,'Report - ALL (DASHBOARD)'!$W$3) -> 52.1558075 | F30: =INDEX('Compile Data'!$DB$12:$DW$93,$A30-1921,'Report - ALL (DASHBOARD)'!$W$3) -> 53.12575531 | G30: =INDEX('Compile Data'!$DZ$12:$EU$93,$A30-1921,'Report - ALL (DASHBOARD)'!$W$3) -> 53.62162018 | O30: 2 | P30: 0.01234567901 | Q30: =INDEX('Compile Data'!$J$123:$AE$204,$O30,'Report - ALL (DASHBOARD)'!$W$3) -> 56.0083046 | R30: =INDEX('Compile Data'!$AH$123:$BC$204,$O30,'Report - ALL (DASHBOARD)'!$W$3) -> 62.12125778 | S30: =INDEX('Compile Data'!$BF$123:$CA$204,$O30,'Report - ALL (DASHBOARD)'!$W$3) -> 55.85803223 | T30: =INDEX('Compile Data'!$CD$123:$CY$204,$O30,'Report - ALL (DASHBOARD)'!$W$3) -> 55.88502884 | U30: =INDEX('Compile Data'!$DB$123:$DW$204,$O30,'Report - ALL (DASHBOARD)'!$W$3) -> 57.75451279 | V30: =INDEX('Compile Data'!$DZ$123:$EU$204,$O30,'Report - ALL (DASHBOARD)'!$W$3) -> 58.23719406
A31: =A30+1 -> 1924 | B31: =INDEX('Compile Data'!$J$12:$AE$93,$A31-1921,'Report - ALL (DASHBOARD)'!$W$3) -> 55.4389267 | C31: =INDEX('Compile Data'!$AH$12:$BC$93,$A31-1921,'Report - ALL (DASHBOARD)'!$W$3) -> 56.61598206 | D31: =INDEX('Compile Data'!$BF$12:$CA$93,$A31-1921,'Report - ALL (DASHBOARD)'!$W$3) -> 55.1446228 | E31: =INDEX('Compile Data'!$CD$12:$CY$93,$A31-1921,'Report - ALL (DASHBOARD)'!$W$3) -> 54.91821671 | F31: =INDEX('Compile Data'!$DB$12:$DW$93,$A31-1921,'Report - ALL (DASHBOARD)'!$W$3) -> 55.76199722 | G31: =INDEX('Compile Data'!$DZ$12:$EU$93,$A31-1921,'Report - ALL (DASHBOARD)'!$W$3) -> 56.07395935 | O31: 3 | P31: 0.02469135802 | Q31: =INDEX('Compile Data'!$J$123:$AE$204,$O31,'Report - ALL (DASHBOARD)'!$W$3) -> 55.68894196 | R31: =INDEX('Compile Data'!$AH$123:$BC$204,$O31,'Report - ALL (DASHBOARD)'!$W$3) -> 58.01482391 | S31: =INDEX('Compile Data'!$BF$123:$CA$204,$O31,'Report - ALL (DASHBOARD)'!$W$3) -> 55.42884827 | T31: =INDEX('Compile Data'!$CD$123:$CY$204,$O31,'Report - ALL (DASHBOARD)'!$W$3) -> 55.19777679 | U31: =INDEX('Compile Data'!$DB$123:$DW$204,$O31,'Report - ALL (DASHBOARD)'!$W$3) -> 56.47601318 | V31: =INDEX('Compile Data'!$DZ$123:$EU$204,$O31,'Report - ALL (DASHBOARD)'!$W$3) -> 56.49671555
A32: 1925 | B32: =INDEX('Compile Data'!$J$12:$AE$93,$A32-1921,'Report - ALL (DASHBOARD)'!$W$3) -> 51.08818436 | C32: =INDEX('Compile Data'!$AH$12:$BC$93,$A32-1921,'Report - ALL (DASHBOARD)'!$W$3) -> 51.47898865 | D32: =INDEX('Compile Data'!$BF$12:$CA$93,$A32-1921,'Report - ALL (DASHBOARD)'!$W$3) -> 51.13647461 | E32: =INDEX('Compile Data'!$CD$12:$CY$93,$A32-1921,'Report - ALL (DASHBOARD)'!$W$3) -> 51.14852905 | F32: =INDEX('Compile Data'!$DB$12:$DW$93,$A32-1921,'Report - ALL (DASHBOARD)'!$W$3) -> 51.52721024 | G32: =INDEX('Compile Data'!$DZ$12:$EU$93,$A32-1921,'Report - ALL (DASHBOARD)'!$W$3) -> 51.49823761 | O32: 4 | P32: 0.03703703704 | Q32: =INDEX('Compile Data'!$J$123:$AE$204,$O32,'Report - ALL (DASHBOARD)'!$W$3) -> 55.4389267 | R32: =INDEX('Compile Data'!$AH$123:$BC$204,$O32,'Report - ALL (DASHBOARD)'!$W$3) -> 56.61598206 | S32: =INDEX('Compile Data'!$BF$123:$CA$204,$O32,'Report - ALL (DASHBOARD)'!$W$3) -> 55.2407341 | T32: =INDEX('Compile Data'!$CD$123:$CY$204,$O32,'Report - ALL (DASHBOARD)'!$W$3) -> 55.02626038 | U32: =INDEX('Compile Data'!$DB$123:$DW$204,$O32,'Report - ALL (DASHBOARD)'!$W$3) -> 56.2161293 | V32: =INDEX('Compile Data'!$DZ$123:$EU$204,$O32,'Report - ALL (DASHBOARD)'!$W$3) -> 56.26832581
A33: 1926 | B33: =INDEX('Compile Data'!$J$12:$AE$93,$A33-1921,'Report - ALL (DASHBOARD)'!$W$3) -> 52.60937881 | C33: =INDEX('Compile Data'!$AH$12:$BC$93,$A33-1921,'Report - ALL (DASHBOARD)'!$W$3) -> 53.69098663 | D33: =INDEX('Compile Data'!$BF$12:$CA$93,$A33-1921,'Report - ALL (DASHBOARD)'!$W$3) -> 52.55150604 | E33: =INDEX('Compile Data'!$CD$12:$CY$93,$A33-1921,'Report - ALL (DASHBOARD)'!$W$3) -> 52.55936813 | F33: =INDEX('Compile Data'!$DB$12:$DW$93,$A33-1921,'Report - ALL (DASHBOARD)'!$W$3) -> 53.48620224 | G33: =INDEX('Compile Data'!$DZ$12:$EU$93,$A33-1921,'Report - ALL (DASHBOARD)'!$W$3) -> 53.73284149 | O33: 5 | P33: 0.04938271605 | Q33: =INDEX('Compile Data'!$J$123:$AE$204,$O33,'Report - ALL (DASHBOARD)'!$W$3) -> 54.91597366 | R33: =INDEX('Compile Data'!$AH$123:$BC$204,$O33,'Report - ALL (DASHBOARD)'!$W$3) -> 56.50163651 | S33: =INDEX('Compile Data'!$BF$123:$CA$204,$O33,'Report - ALL (DASHBOARD)'!$W$3) -> 55.1446228 | T33: =INDEX('Compile Data'!$CD$123:$CY$204,$O33,'Report - ALL (DASHBOARD)'!$W$3) -> 54.91821671 | U33: =INDEX('Compile Data'!$DB$123:$DW$204,$O33,'Report - ALL (DASHBOARD)'!$W$3) -> 55.76199722 | V33: =INDEX('Compile Data'!$DZ$123:$EU$204,$O33,'Report - ALL (DASHBOARD)'!$W$3) -> 56.07395935
A34: 1927 | B34: =INDEX('Compile Data'!$J$12:$AE$93,$A34-1921,'Report - ALL (DASHBOARD)'!$W$3) -> 50.05224228 | C34: =INDEX('Compile Data'!$AH$12:$BC$93,$A34-1921,'Report - ALL (DASHBOARD)'!$W$3) -> 50.40669632 | D34: =INDEX('Compile Data'!$BF$12:$CA$93,$A34-1921,'Report - ALL (DASHBOARD)'!$W$3) -> 50.024086 | E34: =INDEX('Compile Data'!$CD$12:$CY$93,$A34-1921,'Report - ALL (DASHBOARD)'!$W$3) -> 50.03415298 | F34: =INDEX('Compile Data'!$DB$12:$DW$93,$A34-1921,'Report - ALL (DASHBOARD)'!$W$3) -> 50.43830872 | G34: =INDEX('Compile Data'!$DZ$12:$EU$93,$A34-1921,'Report - ALL (DASHBOARD)'!$W$3) -> 50.47889709 | O34: 6 | P34: 0.06172839506 | Q34: =INDEX('Compile Data'!$J$123:$AE$204,$O34,'Report - ALL (DASHBOARD)'!$W$3) -> 54.91272736 | R34: =INDEX('Compile Data'!$AH$123:$BC$204,$O34,'Report - ALL (DASHBOARD)'!$W$3) -> 56.42705154 | S34: =INDEX('Compile Data'!$BF$123:$CA$204,$O34,'Report - ALL (DASHBOARD)'!$W$3) -> 54.80682373 | T34: =INDEX('Compile Data'!$CD$123:$CY$204,$O34,'Report - ALL (DASHBOARD)'!$W$3) -> 54.68080139 | U34: =INDEX('Compile Data'!$DB$123:$DW$204,$O34,'Report - ALL (DASHBOARD)'!$W$3) -> 55.76023102 | V34: =INDEX('Compile Data'!$DZ$123:$EU$204,$O34,'Report - ALL (DASHBOARD)'!$W$3) -> 55.74572372
A35: 1928 | B35: =INDEX('Compile Data'!$J$12:$AE$93,$A35-1921,'Report - ALL (DASHBOARD)'!$W$3) -> 50.37451553 | C35: =INDEX('Compile Data'!$AH$12:$BC$93,$A35-1921,'Report - ALL (DASHBOARD)'!$W$3) -> 52.05011749 | D35: =INDEX('Compile Data'!$BF$12:$CA$93,$A35-1921,'Report - ALL (DASHBOARD)'!$W$3) -> 50.05426788 | E35: =INDEX('Compile Data'!$CD$12:$CY$93,$A35-1921,'Report - ALL (DASHBOARD)'!$W$3) -> 49.96949768 | F35: =INDEX('Compile Data'!$DB$12:$DW$93,$A35-1921,'Report - ALL (DASHBOARD)'!$W$3) -> 51.59440613 | G35: =INDEX('Compile Data'!$DZ$12:$EU$93,$A35-1921,'Report - ALL (DASHBOARD)'!$W$3) -> 51.62786102 | O35: 7 | P35: 0.07407407407 | Q35: =INDEX('Compile Data'!$J$123:$AE$204,$O35,'Report - ALL (DASHBOARD)'!$W$3) -> 54.84569168 | R35: =INDEX('Compile Data'!$AH$123:$BC$204,$O35,'Report - ALL (DASHBOARD)'!$W$3) -> 55.74361801 | S35: =INDEX('Compile Data'!$BF$123:$CA$204,$O35,'Report - ALL (DASHBOARD)'!$W$3) -> 54.79410172 | T35: =INDEX('Compile Data'!$CD$123:$CY$204,$O35,'Report - ALL (DASHBOARD)'!$W$3) -> 54.6702652 | U35: =INDEX('Compile Data'!$DB$123:$DW$204,$O35,'Report - ALL (DASHBOARD)'!$W$3) -> 55.36207581 | V35: =INDEX('Compile Data'!$DZ$123:$EU$204,$O35,'Report - ALL (DASHBOARD)'!$W$3) -> 55.53705215
A36: 1929 | B36: =INDEX('Compile Data'!$J$12:$AE$93,$A36-1921,'Report - ALL (DASHBOARD)'!$W$3) -> 54.21083832 | C36: =INDEX('Compile Data'!$AH$12:$BC$93,$A36-1921,'Report - ALL (DASHBOARD)'!$W$3) -> 55.04211426 | D36: =INDEX('Compile Data'!$BF$12:$CA$93,$A36-1921,'Report - ALL (DASHBOARD)'!$W$3) -> 53.71918869 | E36: =INDEX('Compile Data'!$CD$12:$CY$93,$A36-1921,'Report - ALL (DASHBOARD)'!$W$3) -> 53.73774338 | F36: =INDEX('Compile Data'!$DB$12:$DW$93,$A36-1921,'Report - ALL (DASHBOARD)'!$W$3) -> 54.29270554 | G36: =INDEX('Compile Data'!$DZ$12:$EU$93,$A36-1921,'Report - ALL (DASHBOARD)'!$W$3) -> 54.31805038 | O36: 8 | P36: 0.08641975309 | Q36: =INDEX('Compile Data'!$J$123:$AE$204,$O36,'Report - ALL (DASHBOARD)'!$W$3) -> 54.68373871 | R36: =INDEX('Compile Data'!$AH$123:$BC$204,$O36,'Report - ALL (DASHBOARD)'!$W$3) -> 55.73537827 | S36: =INDEX('Compile Data'!$BF$123:$CA$204,$O36,'Report - ALL (DASHBOARD)'!$W$3) -> 54.67821884 | T36: =INDEX('Compile Data'!$CD$123:$CY$204,$O36,'Report - ALL (DASHBOARD)'!$W$3) -> 54.5957222 | U36: =INDEX('Compile Data'!$DB$123:$DW$204,$O36,'Report - ALL (DASHBOARD)'!$W$3) -> 55.28179932 | V36: =INDEX('Compile Data'!$DZ$123:$EU$204,$O36,'Report - ALL (DASHBOARD)'!$W$3) -> 55.3987236
A37: 1930 | B37: =INDEX('Compile Data'!$J$12:$AE$93,$A37-1921,'Report - ALL (DASHBOARD)'!$W$3) -> 52.85365677 | C37: =INDEX('Compile Data'!$AH$12:$BC$93,$A37-1921,'Report - ALL (DASHBOARD)'!$W$3) -> 54.17461777 | D37: =INDEX('Compile Data'!$BF$12:$CA$93,$A37-1921,'Report - ALL (DASHBOARD)'!$W$3) -> 53.022995 | E37: =INDEX('Compile Data'!$CD$12:$CY$93,$A37-1921,'Report - ALL (DASHBOARD)'!$W$3) -> 53.07000351 | F37: =INDEX('Compile Data'!$DB$12:$DW$93,$A37-1921,'Report - ALL (DASHBOARD)'!$W$3) -> 53.82074356 | G37: =INDEX('Compile Data'!$DZ$12:$EU$93,$A37-1921,'Report - ALL (DASHBOARD)'!$W$3) -> 53.85592651 | O37: 9 | P37: 0.0987654321 | Q37: =INDEX('Compile Data'!$J$123:$AE$204,$O37,'Report - ALL (DASHBOARD)'!$W$3) -> 54.43056107 | R37: =INDEX('Compile Data'!$AH$123:$BC$204,$O37,'Report - ALL (DASHBOARD)'!$W$3) -> 55.34955215 | S37: =INDEX('Compile Data'!$BF$123:$CA$204,$O37,'Report - ALL (DASHBOARD)'!$W$3) -> 54.6126976 | T37: =INDEX('Compile Data'!$CD$123:$CY$204,$O37,'Report - ALL (DASHBOARD)'!$W$3) -> 54.23544312 | U37: =INDEX('Compile Data'!$DB$123:$DW$204,$O37,'Report - ALL (DASHBOARD)'!$W$3) -> 55.20277023 | V37: =INDEX('Compile Data'!$DZ$123:$EU$204,$O37,'Report - ALL (DASHBOARD)'!$W$3) -> 55.32283401
A38: 1931 | B38: =INDEX('Compile Data'!$J$12:$AE$93,$A38-1921,'Report - ALL (DASHBOARD)'!$W$3) -> 54.91597366 | C38: =INDEX('Compile Data'!$AH$12:$BC$93,$A38-1921,'Report - ALL (DASHBOARD)'!$W$3) -> 62.12125778 | D38: =INDEX('Compile Data'!$BF$12:$CA$93,$A38-1921,'Report - ALL (DASHBOARD)'!$W$3) -> 54.6126976 | E38: =INDEX('Compile Data'!$CD$12:$CY$93,$A38-1921,'Report - ALL (DASHBOARD)'!$W$3) -> 54.23544312 | F38: =INDEX('Compile Data'!$DB$12:$DW$93,$A38-1921,'Report - ALL (DASHBOARD)'!$W$3) -> 57.75451279 | G38: =INDEX('Compile Data'!$DZ$12:$EU$93,$A38-1921,'Report - ALL (DASHBOARD)'!$W$3) -> 58.23719406 | O38: 10 | P38: 0.1111111111 | Q38: =INDEX('Compile Data'!$J$123:$AE$204,$O38,'Report - ALL (DASHBOARD)'!$W$3) -> 54.26488113 | R38: =INDEX('Compile Data'!$AH$123:$BC$204,$O38,'Report - ALL (DASHBOARD)'!$W$3) -> 55.12052155 | S38: =INDEX('Compile Data'!$BF$123:$CA$204,$O38,'Report - ALL (DASHBOARD)'!$W$3) -> 54.21175003 | T38: =INDEX('Compile Data'!$CD$123:$CY$204,$O38,'Report - ALL (DASHBOARD)'!$W$3) -> 54.20741653 | U38: =INDEX('Compile Data'!$DB$123:$DW$204,$O38,'Report - ALL (DASHBOARD)'!$W$3) -> 54.90950775 | V38: =INDEX('Compile Data'!$DZ$123:$EU$204,$O38,'Report - ALL (DASHBOARD)'!$W$3) -> 54.96606827
A39: 1932 | B39: =INDEX('Compile Data'!$J$12:$AE$93,$A39-1921,'Report - ALL (DASHBOARD)'!$W$3) -> 54.84569168 | C39: =INDEX('Compile Data'!$AH$12:$BC$93,$A39-1921,'Report - ALL (DASHBOARD)'!$W$3) -> 54.07782745 | D39: =INDEX('Compile Data'!$BF$12:$CA$93,$A39-1921,'Report - ALL (DASHBOARD)'!$W$3) -> 54.80682373 | E39: =INDEX('Compile Data'!$CD$12:$CY$93,$A39-1921,'Report - ALL (DASHBOARD)'!$W$3) -> 54.6702652 | F39: =INDEX('Compile Data'!$DB$12:$DW$93,$A39-1921,'Report - ALL (DASHBOARD)'!$W$3) -> 53.98401642 | G39: =INDEX('Compile Data'!$DZ$12:$EU$93,$A39-1921,'Report - ALL (DASHBOARD)'!$W$3) -> 54.36451721 | O39: 11 | P39: 0.1234567901 | Q39: =INDEX('Compile Data'!$J$123:$AE$204,$O39,'Report - ALL (DASHBOARD)'!$W$3) -> 54.21083832 | R39: =INDEX('Compile Data'!$AH$123:$BC$204,$O39,'Report - ALL (DASHBOARD)'!$W$3) -> 55.04211426 | S39: =INDEX('Compile Data'!$BF$123:$CA$204,$O39,'Report - ALL (DASHBOARD)'!$W$3) -> 54.15697861 | T39: =INDEX('Compile Data'!$CD$123:$CY$204,$O39,'Report - ALL (DASHBOARD)'!$W$3) -> 54.16012955 | U39: =INDEX('Compile Data'!$DB$123:$DW$204,$O39,'Report - ALL (DASHBOARD)'!$W$3) -> 54.69169617 | V39: =INDEX('Compile Data'!$DZ$123:$EU$204,$O39,'Report - ALL (DASHBOARD)'!$W$3) -> 54.69507217
A40: 1933 | B40: =INDEX('Compile Data'!$J$12:$AE$93,$A40-1921,'Report - ALL (DASHBOARD)'!$W$3) -> 54.43056107 | C40: =INDEX('Compile Data'!$AH$12:$BC$93,$A40-1921,'Report - ALL (DASHBOARD)'!$W$3) -> 55.73537827 | D40: =INDEX('Compile Data'!$BF$12:$CA$93,$A40-1921,'Report - ALL (DASHBOARD)'!$W$3) -> 54.79410172 | E40: =INDEX('Compile Data'!$CD$12:$CY$93,$A40-1921,'Report - ALL (DASHBOARD)'!$W$3) -> 55.02626038 | F40: =INDEX('Compile Data'!$DB$12:$DW$93,$A40-1921,'Report - ALL (DASHBOARD)'!$W$3) -> 54.44507599 | G40: =INDEX('Compile Data'!$DZ$12:$EU$93,$A40-1921,'Report - ALL (DASHBOARD)'!$W$3) -> 54.6085434 | O40: 12 | P40: 0.1358024691 | Q40: =INDEX('Compile Data'!$J$123:$AE$204,$O40,'Report - ALL (DASHBOARD)'!$W$3) -> 54.15291595 | R40: =INDEX('Compile Data'!$AH$123:$BC$204,$O40,'Report - ALL (DASHBOARD)'!$W$3) -> 54.99808121 | S40: =INDEX('Compile Data'!$BF$123:$CA$204,$O40,'Report - ALL (DASHBOARD)'!$W$3) -> 53.94807434 | T40: =INDEX('Compile Data'!$CD$123:$CY$204,$O40,'Report - ALL (DASHBOARD)'!$W$3) -> 54.05443573 | U40: =INDEX('Compile Data'!$DB$123:$DW$204,$O40,'Report - ALL (DASHBOARD)'!$W$3) -> 54.44507599 | V40: =INDEX('Compile Data'!$DZ$123:$EU$204,$O40,'Report - ALL (DASHBOARD)'!$W$3) -> 54.6085434
A41: 1934 | B41: =INDEX('Compile Data'!$J$12:$AE$93,$A41-1921,'Report - ALL (DASHBOARD)'!$W$3) -> 54.91272736 | C41: =INDEX('Compile Data'!$AH$12:$BC$93,$A41-1921,'Report - ALL (DASHBOARD)'!$W$3) -> 58.01482391 | D41: =INDEX('Compile Data'!$BF$12:$CA$93,$A41-1921,'Report - ALL (DASHBOARD)'!$W$3) -> 55.2407341 | E41: =INDEX('Compile Data'!$CD$12:$CY$93,$A41-1921,'Report - ALL (DASHBOARD)'!$W$3) -> 54.5957222 | F41: =INDEX('Compile Data'!$DB$12:$DW$93,$A41-1921,'Report - ALL (DASHBOARD)'!$W$3) -> 55.20277023 | G41: =INDEX('Compile Data'!$DZ$12:$EU$93,$A41-1921,'Report - ALL (DASHBOARD)'!$W$3) -> 55.3987236 | O41: 13 | P41: 0.1481481481 | Q41: =INDEX('Compile Data'!$J$123:$AE$204,$O41,'Report - ALL (DASHBOARD)'!$W$3) -> 54.09262466 | R41: =INDEX('Compile Data'!$AH$123:$BC$204,$O41,'Report - ALL (DASHBOARD)'!$W$3) -> 54.96362305 | S41: =INDEX('Compile Data'!$BF$123:$CA$204,$O41,'Report - ALL (DASHBOARD)'!$W$3) -> 53.71918869 | T41: =INDEX('Compile Data'!$CD$123:$CY$204,$O41,'Report - ALL (DASHBOARD)'!$W$3) -> 53.73774338 | U41: =INDEX('Compile Data'!$DB$123:$DW$204,$O41,'Report - ALL (DASHBOARD)'!$W$3) -> 54.29270554 | V41: =INDEX('Compile Data'!$DZ$123:$EU$204,$O41,'Report - ALL (DASHBOARD)'!$W$3) -> 54.36451721
A42: 1935 | B42: =INDEX('Compile Data'!$J$12:$AE$93,$A42-1921,'Report - ALL (DASHBOARD)'!$W$3) -> 53.38204956 | C42: =INDEX('Compile Data'!$AH$12:$BC$93,$A42-1921,'Report - ALL (DASHBOARD)'!$W$3) -> 53.69462204 | D42: =INDEX('Compile Data'!$BF$12:$CA$93,$A42-1921,'Report - ALL (DASHBOARD)'!$W$3) -> 53.33198547 | E42: =INDEX('Compile Data'!$CD$12:$CY$93,$A42-1921,'Report - ALL (DASHBOARD)'!$W$3) -> 53.40000153 | F42: =INDEX('Compile Data'!$DB$12:$DW$93,$A42-1921,'Report - ALL (DASHBOARD)'!$W$3) -> 53.25883484 | G42: =INDEX('Compile Data'!$DZ$12:$EU$93,$A42-1921,'Report - ALL (DASHBOARD)'!$W$3) -> 53.75610352 | O42: 14 | P42: 0.1604938272 | Q42: =INDEX('Compile Data'!$J$123:$AE$204,$O42,'Report - ALL (DASHBOARD)'!$W$3) -> 53.99173355 | R42: =INDEX('Compile Data'!$AH$123:$BC$204,$O42,'Report - ALL (DASHBOARD)'!$W$3) -> 54.67933273 | S42: =INDEX('Compile Data'!$BF$123:$CA$204,$O42,'Report - ALL (DASHBOARD)'!$W$3) -> 53.66935349 | T42: =INDEX('Compile Data'!$CD$123:$CY$204,$O42,'Report - ALL (DASHBOARD)'!$W$3) -> 53.64888763 | U42: =INDEX('Compile Data'!$DB$123:$DW$204,$O42,'Report - ALL (DASHBOARD)'!$W$3) -> 54.29164505 | V42: =INDEX('Compile Data'!$DZ$123:$EU$204,$O42,'Report - ALL (DASHBOARD)'!$W$3) -> 54.31805038
A43: 1936 | B43: =INDEX('Compile Data'!$J$12:$AE$93,$A43-1921,'Report - ALL (DASHBOARD)'!$W$3) -> 52.09086227 | C43: =INDEX('Compile Data'!$AH$12:$BC$93,$A43-1921,'Report - ALL (DASHBOARD)'!$W$3) -> 51.51083374 | D43: =INDEX('Compile Data'!$BF$12:$CA$93,$A43-1921,'Report - ALL (DASHBOARD)'!$W$3) -> 52.08003235 | E43: =INDEX('Compile Data'!$CD$12:$CY$93,$A43-1921,'Report - ALL (DASHBOARD)'!$W$3) -> 52.08397675 | F43: =INDEX('Compile Data'!$DB$12:$DW$93,$A43-1921,'Report - ALL (DASHBOARD)'!$W$3) -> 51.77555084 | G43: =INDEX('Compile Data'!$DZ$12:$EU$93,$A43-1921,'Report - ALL (DASHBOARD)'!$W$3) -> 51.71041107 | O43: 15 | P43: 0.1728395062 | Q43: =INDEX('Compile Data'!$J$123:$AE$204,$O43,'Report - ALL (DASHBOARD)'!$W$3) -> 53.89011002 | R43: =INDEX('Compile Data'!$AH$123:$BC$204,$O43,'Report - ALL (DASHBOARD)'!$W$3) -> 54.65264893 | S43: =INDEX('Compile Data'!$BF$123:$CA$204,$O43,'Report - ALL (DASHBOARD)'!$W$3) -> 53.58084106 | T43: =INDEX('Compile Data'!$CD$123:$CY$204,$O43,'Report - ALL (DASHBOARD)'!$W$3) -> 53.42854309 | U43: =INDEX('Compile Data'!$DB$123:$DW$204,$O43,'Report - ALL (DASHBOARD)'!$W$3) -> 54.10974884 | V43: =INDEX('Compile Data'!$DZ$123:$EU$204,$O43,'Report - ALL (DASHBOARD)'!$W$3) -> 54.30080795
A44: 1937 | B44: =INDEX('Compile Data'!$J$12:$AE$93,$A44-1921,'Report - ALL (DASHBOARD)'!$W$3) -> 51.86030197 | C44: =INDEX('Compile Data'!$AH$12:$BC$93,$A44-1921,'Report - ALL (DASHBOARD)'!$W$3) -> 52.80184174 | D44: =INDEX('Compile Data'!$BF$12:$CA$93,$A44-1921,'Report - ALL (DASHBOARD)'!$W$3) -> 51.79745483 | E44: =INDEX('Compile Data'!$CD$12:$CY$93,$A44-1921,'Report - ALL (DASHBOARD)'!$W$3) -> 51.80405045 | F44: =INDEX('Compile Data'!$DB$12:$DW$93,$A44-1921,'Report - ALL (DASHBOARD)'!$W$3) -> 52.38796616 | G44: =INDEX('Compile Data'!$DZ$12:$EU$93,$A44-1921,'Report - ALL (DASHBOARD)'!$W$3) -> 52.36960602 | O44: 16 | P44: 0.1851851852 | Q44: =INDEX('Compile Data'!$J$123:$AE$204,$O44,'Report - ALL (DASHBOARD)'!$W$3) -> 53.48656082 | R44: =INDEX('Compile Data'!$AH$123:$BC$204,$O44,'Report - ALL (DASHBOARD)'!$W$3) -> 54.22189331 | S44: =INDEX('Compile Data'!$BF$123:$CA$204,$O44,'Report - ALL (DASHBOARD)'!$W$3) -> 53.43098831 | T44: =INDEX('Compile Data'!$CD$123:$CY$204,$O44,'Report - ALL (DASHBOARD)'!$W$3) -> 53.40000153 | U44: =INDEX('Compile Data'!$DB$123:$DW$204,$O44,'Report - ALL (DASHBOARD)'!$W$3) -> 54.08521652 | V44: =INDEX('Compile Data'!$DZ$123:$EU$204,$O44,'Report - ALL (DASHBOARD)'!$W$3) -> 54.15075684
A45: 1938 | B45: =INDEX('Compile Data'!$J$12:$AE$93,$A45-1921,'Report - ALL (DASHBOARD)'!$W$3) -> 50.15649033 | C45: =INDEX('Compile Data'!$AH$12:$BC$93,$A45-1921,'Report - ALL (DASHBOARD)'!$W$3) -> 51.28556061 | D45: =INDEX('Compile Data'!$BF$12:$CA$93,$A45-1921,'Report - ALL (DASHBOARD)'!$W$3) -> 50.13928223 | E45: =INDEX('Compile Data'!$CD$12:$CY$93,$A45-1921,'Report - ALL (DASHBOARD)'!$W$3) -> 50.14468002 | F45: =INDEX('Compile Data'!$DB$12:$DW$93,$A45-1921,'Report - ALL (DASHBOARD)'!$W$3) -> 51.00125885 | G45: =INDEX('Compile Data'!$DZ$12:$EU$93,$A45-1921,'Report - ALL (DASHBOARD)'!$W$3) -> 51.02474976 | O45: 17 | P45: 0.1975308642 | Q45: =INDEX('Compile Data'!$J$123:$AE$204,$O45,'Report - ALL (DASHBOARD)'!$W$3) -> 53.38204956 | R45: =INDEX('Compile Data'!$AH$123:$BC$204,$O45,'Report - ALL (DASHBOARD)'!$W$3) -> 54.22164154 | S45: =INDEX('Compile Data'!$BF$123:$CA$204,$O45,'Report - ALL (DASHBOARD)'!$W$3) -> 53.33198547 | T45: =INDEX('Compile Data'!$CD$123:$CY$204,$O45,'Report - ALL (DASHBOARD)'!$W$3) -> 53.37161255 | U45: =INDEX('Compile Data'!$DB$123:$DW$204,$O45,'Report - ALL (DASHBOARD)'!$W$3) -> 53.98401642 | V45: =INDEX('Compile Data'!$DZ$123:$EU$204,$O45,'Report - ALL (DASHBOARD)'!$W$3) -> 54.09798431
A46: 1939 | B46: =INDEX('Compile Data'!$J$12:$AE$93,$A46-1921,'Report - ALL (DASHBOARD)'!$W$3) -> 53.23913574 | C46: =INDEX('Compile Data'!$AH$12:$BC$93,$A46-1921,'Report - ALL (DASHBOARD)'!$W$3) -> 53.826828 | D46: =INDEX('Compile Data'!$BF$12:$CA$93,$A46-1921,'Report - ALL (DASHBOARD)'!$W$3) -> 53.14807129 | E46: =INDEX('Compile Data'!$CD$12:$CY$93,$A46-1921,'Report - ALL (DASHBOARD)'!$W$3) -> 53.19334412 | F46: =INDEX('Compile Data'!$DB$12:$DW$93,$A46-1921,'Report - ALL (DASHBOARD)'!$W$3) -> 53.62769318 | G46: =INDEX('Compile Data'!$DZ$12:$EU$93,$A46-1921,'Report - ALL (DASHBOARD)'!$W$3) -> 53.70435333 | O46: 18 | P46: 0.2098765432 | Q46: =INDEX('Compile Data'!$J$123:$AE$204,$O46,'Report - ALL (DASHBOARD)'!$W$3) -> 53.35100937 | R46: =INDEX('Compile Data'!$AH$123:$BC$204,$O46,'Report - ALL (DASHBOARD)'!$W$3) -> 54.19439697 | S46: =INDEX('Compile Data'!$BF$123:$CA$204,$O46,'Report - ALL (DASHBOARD)'!$W$3) -> 53.15063477 | T46: =INDEX('Compile Data'!$CD$123:$CY$204,$O46,'Report - ALL (DASHBOARD)'!$W$3) -> 53.19334412 | U46: =INDEX('Compile Data'!$DB$123:$DW$204,$O46,'Report - ALL (DASHBOARD)'!$W$3) -> 53.92248154 | V46: =INDEX('Compile Data'!$DZ$123:$EU$204,$O46,'Report - ALL (DASHBOARD)'!$W$3) -> 54.07581329
A47: 1940 | B47: =INDEX('Compile Data'!$J$12:$AE$93,$A47-1921,'Report - ALL (DASHBOARD)'!$W$3) -> 50.3908577 | C47: =INDEX('Compile Data'!$AH$12:$BC$93,$A47-1921,'Report - ALL (DASHBOARD)'!$W$3) -> 52.14218521 | D47: =INDEX('Compile Data'!$BF$12:$CA$93,$A47-1921,'Report - ALL (DASHBOARD)'!$W$3) -> 50.25080109 | E47: =INDEX('Compile Data'!$CD$12:$CY$93,$A47-1921,'Report - ALL (DASHBOARD)'!$W$3) -> 50.17681503 | F47: =INDEX('Compile Data'!$DB$12:$DW$93,$A47-1921,'Report - ALL (DASHBOARD)'!$W$3) -> 51.62987518 | G47: =INDEX('Compile Data'!$DZ$12:$EU$93,$A47-1921,'Report - ALL (DASHBOARD)'!$W$3) -> 51.83583832 | O47: 19 | P47: 0.2222222222 | Q47: =INDEX('Compile Data'!$J$123:$AE$204,$O47,'Report - ALL (DASHBOARD)'!$W$3) -> 53.32525635 | R47: =INDEX('Compile Data'!$AH$123:$BC$204,$O47,'Report - ALL (DASHBOARD)'!$W$3) -> 54.17461777 | S47: =INDEX('Compile Data'!$BF$123:$CA$204,$O47,'Report - ALL (DASHBOARD)'!$W$3) -> 53.14807129 | T47: =INDEX('Compile Data'!$CD$123:$CY$204,$O47,'Report - ALL (DASHBOARD)'!$W$3) -> 53.1305809 | U47: =INDEX('Compile Data'!$DB$123:$DW$204,$O47,'Report - ALL (DASHBOARD)'!$W$3) -> 53.90985489 | V47: =INDEX('Compile Data'!$DZ$123:$EU$204,$O47,'Report - ALL (DASHBOARD)'!$W$3) -> 53.85592651
A48: 1941 | B48: =INDEX('Compile Data'!$J$12:$AE$93,$A48-1921,'Report - ALL (DASHBOARD)'!$W$3) -> 50.09543991 | C48: =INDEX('Compile Data'!$AH$12:$BC$93,$A48-1921,'Report - ALL (DASHBOARD)'!$W$3) -> 51.03804016 | D48: =INDEX('Compile Data'!$BF$12:$CA$93,$A48-1921,'Report - ALL (DASHBOARD)'!$W$3) -> 50.06525803 | E48: =INDEX('Compile Data'!$CD$12:$CY$93,$A48-1921,'Report - ALL (DASHBOARD)'!$W$3) -> 50.05495834 | F48: =INDEX('Compile Data'!$DB$12:$DW$93,$A48-1921,'Report - ALL (DASHBOARD)'!$W$3) -> 50.97653961 | G48: =INDEX('Compile Data'!$DZ$12:$EU$93,$A48-1921,'Report - ALL (DASHBOARD)'!$W$3) -> 50.96961975 | O48: 20 | P48: 0.2345679012 | Q48: =INDEX('Compile Data'!$J$123:$AE$204,$O48,'Report - ALL (DASHBOARD)'!$W$3) -> 53.23913574 | R48: =INDEX('Compile Data'!$AH$123:$BC$204,$O48,'Report - ALL (DASHBOARD)'!$W$3) -> 54.07782745 | S48: =INDEX('Compile Data'!$BF$123:$CA$204,$O48,'Report - ALL (DASHBOARD)'!$W$3) -> 53.022995 | T48: =INDEX('Compile Data'!$CD$123:$CY$204,$O48,'Report - ALL (DASHBOARD)'!$W$3) -> 53.07000351 | U48: =INDEX('Compile Data'!$DB$123:$DW$204,$O48,'Report - ALL (DASHBOARD)'!$W$3) -> 53.82074356 | V48: =INDEX('Compile Data'!$DZ$123:$EU$204,$O48,'Report - ALL (DASHBOARD)'!$W$3) -> 53.78660965
A49: 1942 | B49: =INDEX('Compile Data'!$J$12:$AE$93,$A49-1921,'Report - ALL (DASHBOARD)'!$W$3) -> 49.79504013 | C49: =INDEX('Compile Data'!$AH$12:$BC$93,$A49-1921,'Report - ALL (DASHBOARD)'!$W$3) -> 50.70679092 | D49: =INDEX('Compile Data'!$BF$12:$CA$93,$A49-1921,'Report - ALL (DASHBOARD)'!$W$3) -> 49.79946136 | E49: =INDEX('Compile Data'!$CD$12:$CY$93,$A49-1921,'Report - ALL (DASHBOARD)'!$W$3) -> 49.79614258 | F49: =INDEX('Compile Data'!$DB$12:$DW$93,$A49-1921,'Report - ALL (DASHBOARD)'!$W$3) -> 50.6052475 | G49: =INDEX('Compile Data'!$DZ$12:$EU$93,$A49-1921,'Report - ALL (DASHBOARD)'!$W$3) -> 50.58571625 | O49: 21 | P49: 0.2469135802 | Q49: =INDEX('Compile Data'!$J$123:$AE$204,$O49,'Report - ALL (DASHBOARD)'!$W$3) -> 53.03466415 | R49: =INDEX('Compile Data'!$AH$123:$BC$204,$O49,'Report - ALL (DASHBOARD)'!$W$3) -> 53.97821426 | S49: =INDEX('Compile Data'!$BF$123:$CA$204,$O49,'Report - ALL (DASHBOARD)'!$W$3) -> 52.98040009 | T49: =INDEX('Compile Data'!$CD$123:$CY$204,$O49,'Report - ALL (DASHBOARD)'!$W$3) -> 53.03200912 | U49: =INDEX('Compile Data'!$DB$123:$DW$204,$O49,'Report - ALL (DASHBOARD)'!$W$3) -> 53.76350021 | V49: =INDEX('Compile Data'!$DZ$123:$EU$204,$O49,'Report - ALL (DASHBOARD)'!$W$3) -> 53.76016998
A50: 1943 | B50: =INDEX('Compile Data'!$J$12:$AE$93,$A50-1921,'Report - ALL (DASHBOARD)'!$W$3) -> 50.34731674 | C50: =INDEX('Compile Data'!$AH$12:$BC$93,$A50-1921,'Report - ALL (DASHBOARD)'!$W$3) -> 50.42658234 | D50: =INDEX('Compile Data'!$BF$12:$CA$93,$A50-1921,'Report - ALL (DASHBOARD)'!$W$3) -> 50.35111618 | E50: =INDEX('Compile Data'!$CD$12:$CY$93,$A50-1921,'Report - ALL (DASHBOARD)'!$W$3) -> 50.34869766 | F50: =INDEX('Compile Data'!$DB$12:$DW$93,$A50-1921,'Report - ALL (DASHBOARD)'!$W$3) -> 50.51353455 | G50: =INDEX('Compile Data'!$DZ$12:$EU$93,$A50-1921,'Report - ALL (DASHBOARD)'!$W$3) -> 50.49804306 | O50: 22 | P50: 0.2592592593 | Q50: =INDEX('Compile Data'!$J$123:$AE$204,$O50,'Report - ALL (DASHBOARD)'!$W$3) -> 52.95948792 | R50: =INDEX('Compile Data'!$AH$123:$BC$204,$O50,'Report - ALL (DASHBOARD)'!$W$3) -> 53.9757843 | S50: =INDEX('Compile Data'!$BF$123:$CA$204,$O50,'Report - ALL (DASHBOARD)'!$W$3) -> 52.82455444 | T50: =INDEX('Compile Data'!$CD$123:$CY$204,$O50,'Report - ALL (DASHBOARD)'!$W$3) -> 53.00137711 | U50: =INDEX('Compile Data'!$DB$123:$DW$204,$O50,'Report - ALL (DASHBOARD)'!$W$3) -> 53.67620087 | V50: =INDEX('Compile Data'!$DZ$123:$EU$204,$O50,'Report - ALL (DASHBOARD)'!$W$3) -> 53.75610352
A51: 1944 | B51: =INDEX('Compile Data'!$J$12:$AE$93,$A51-1921,'Report - ALL (DASHBOARD)'!$W$3) -> 52.74274445 | C51: =INDEX('Compile Data'!$AH$12:$BC$93,$A51-1921,'Report - ALL (DASHBOARD)'!$W$3) -> 53.9757843 | D51: =INDEX('Compile Data'!$BF$12:$CA$93,$A51-1921,'Report - ALL (DASHBOARD)'!$W$3) -> 52.76067352 | E51: =INDEX('Compile Data'!$CD$12:$CY$93,$A51-1921,'Report - ALL (DASHBOARD)'!$W$3) -> 52.76528168 | F51: =INDEX('Compile Data'!$DB$12:$DW$93,$A51-1921,'Report - ALL (DASHBOARD)'!$W$3) -> 53.90985489 | G51: =INDEX('Compile Data'!$DZ$12:$EU$93,$A51-1921,'Report - ALL (DASHBOARD)'!$W$3) -> 53.71645355 | O51: 23 | P51: 0.2716049383 | Q51: =INDEX('Compile Data'!$J$123:$AE$204,$O51,'Report - ALL (DASHBOARD)'!$W$3) -> 52.92120361 | R51: =INDEX('Compile Data'!$AH$123:$BC$204,$O51,'Report - ALL (DASHBOARD)'!$W$3) -> 53.97024918 | S51: =INDEX('Compile Data'!$BF$123:$CA$204,$O51,'Report - ALL (DASHBOARD)'!$W$3) -> 52.80158997 | T51: =INDEX('Compile Data'!$CD$123:$CY$204,$O51,'Report - ALL (DASHBOARD)'!$W$3) -> 52.85452271 | U51: =INDEX('Compile Data'!$DB$123:$DW$204,$O51,'Report - ALL (DASHBOARD)'!$W$3) -> 53.62811279 | V51: =INDEX('Compile Data'!$DZ$123:$EU$204,$O51,'Report - ALL (DASHBOARD)'!$W$3) -> 53.73284149
A52: 1945 | B52: =INDEX('Compile Data'!$J$12:$AE$93,$A52-1921,'Report - ALL (DASHBOARD)'!$W$3) -> 51.83347321 | C52: =INDEX('Compile Data'!$AH$12:$BC$93,$A52-1921,'Report - ALL (DASHBOARD)'!$W$3) -> 52.36519623 | D52: =INDEX('Compile Data'!$BF$12:$CA$93,$A52-1921,'Report - ALL (DASHBOARD)'!$W$3) -> 51.6214447 | E52: =INDEX('Compile Data'!$CD$12:$CY$93,$A52-1921,'Report - ALL (DASHBOARD)'!$W$3) -> 51.26187897 | F52: =INDEX('Compile Data'!$DB$12:$DW$93,$A52-1921,'Report - ALL (DASHBOARD)'!$W$3) -> 52.38373566 | G52: =INDEX('Compile Data'!$DZ$12:$EU$93,$A52-1921,'Report - ALL (DASHBOARD)'!$W$3) -> 52.41885376 | O52: 24 | P52: 0.2839506173 | Q52: =INDEX('Compile Data'!$J$123:$AE$204,$O52,'Report - ALL (DASHBOARD)'!$W$3) -> 52.85365677 | R52: =INDEX('Compile Data'!$AH$123:$BC$204,$O52,'Report - ALL (DASHBOARD)'!$W$3) -> 53.826828 | S52: =INDEX('Compile Data'!$BF$123:$CA$204,$O52,'Report - ALL (DASHBOARD)'!$W$3) -> 52.76912689 | T52: =INDEX('Compile Data'!$CD$123:$CY$204,$O52,'Report - ALL (DASHBOARD)'!$W$3) -> 52.7875061 | U52: =INDEX('Compile Data'!$DB$123:$DW$204,$O52,'Report - ALL (DASHBOARD)'!$W$3) -> 53.62769318 | V52: =INDEX('Compile Data'!$DZ$123:$EU$204,$O52,'Report - ALL (DASHBOARD)'!$W$3) -> 53.71645355
A53: 1946 | B53: =INDEX('Compile Data'!$J$12:$AE$93,$A53-1921,'Report - ALL (DASHBOARD)'!$W$3) -> 51.79418182 | C53: =INDEX('Compile Data'!$AH$12:$BC$93,$A53-1921,'Report - ALL (DASHBOARD)'!$W$3) -> 51.30871582 | D53: =INDEX('Compile Data'!$BF$12:$CA$93,$A53-1921,'Report - ALL (DASHBOARD)'!$W$3) -> 51.81990433 | E53: =INDEX('Compile Data'!$CD$12:$CY$93,$A53-1921,'Report - ALL (DASHBOARD)'!$W$3) -> 51.8212738 | F53: =INDEX('Compile Data'!$DB$12:$DW$93,$A53-1921,'Report - ALL (DASHBOARD)'!$W$3) -> 51.51517487 | G53: =INDEX('Compile Data'!$DZ$12:$EU$93,$A53-1921,'Report - ALL (DASHBOARD)'!$W$3) -> 51.31487274 | O53: 25 | P53: 0.2962962963 | Q53: =INDEX('Compile Data'!$J$123:$AE$204,$O53,'Report - ALL (DASHBOARD)'!$W$3) -> 52.8417511 | R53: =INDEX('Compile Data'!$AH$123:$BC$204,$O53,'Report - ALL (DASHBOARD)'!$W$3) -> 53.69462204 | S53: =INDEX('Compile Data'!$BF$123:$CA$204,$O53,'Report - ALL (DASHBOARD)'!$W$3) -> 52.76067352 | T53: =INDEX('Compile Data'!$CD$123:$CY$204,$O53,'Report - ALL (DASHBOARD)'!$W$3) -> 52.77866364 | U53: =INDEX('Compile Data'!$DB$123:$DW$204,$O53,'Report - ALL (DASHBOARD)'!$W$3) -> 53.48620224 | V53: =INDEX('Compile Data'!$DZ$123:$EU$204,$O53,'Report - ALL (DASHBOARD)'!$W$3) -> 53.70435333
A54: 1947 | B54: =INDEX('Compile Data'!$J$12:$AE$93,$A54-1921,'Report - ALL (DASHBOARD)'!$W$3) -> 52.8417511 | C54: =INDEX('Compile Data'!$AH$12:$BC$93,$A54-1921,'Report - ALL (DASHBOARD)'!$W$3) -> 53.37516403 | D54: =INDEX('Compile Data'!$BF$12:$CA$93,$A54-1921,'Report - ALL (DASHBOARD)'!$W$3) -> 52.82455444 | E54: =INDEX('Compile Data'!$CD$12:$CY$93,$A54-1921,'Report - ALL (DASHBOARD)'!$W$3) -> 52.85452271 | F54: =INDEX('Compile Data'!$DB$12:$DW$93,$A54-1921,'Report - ALL (DASHBOARD)'!$W$3) -> 53.26255035 | G54: =INDEX('Compile Data'!$DZ$12:$EU$93,$A54-1921,'Report - ALL (DASHBOARD)'!$W$3) -> 53.34745789 | O54: 26 | P54: 0.3086419753 | Q54: =INDEX('Compile Data'!$J$123:$AE$204,$O54,'Report - ALL (DASHBOARD)'!$W$3) -> 52.78699493 | R54: =INDEX('Compile Data'!$AH$123:$BC$204,$O54,'Report - ALL (DASHBOARD)'!$W$3) -> 53.69098663 | S54: =INDEX('Compile Data'!$BF$123:$CA$204,$O54,'Report - ALL (DASHBOARD)'!$W$3) -> 52.66753387 | T54: =INDEX('Compile Data'!$CD$123:$CY$204,$O54,'Report - ALL (DASHBOARD)'!$W$3) -> 52.76528168 | U54: =INDEX('Compile Data'!$DB$123:$DW$204,$O54,'Report - ALL (DASHBOARD)'!$W$3) -> 53.42470932 | V54: =INDEX('Compile Data'!$DZ$123:$EU$204,$O54,'Report - ALL (DASHBOARD)'!$W$3) -> 53.62162018
A55: 1948 | B55: =INDEX('Compile Data'!$J$12:$AE$93,$A55-1921,'Report - ALL (DASHBOARD)'!$W$3) -> 50.74880981 | C55: =INDEX('Compile Data'!$AH$12:$BC$93,$A55-1921,'Report - ALL (DASHBOARD)'!$W$3) -> 51.91169357 | D55: =INDEX('Compile Data'!$BF$12:$CA$93,$A55-1921,'Report - ALL (DASHBOARD)'!$W$3) -> 50.40996933 | E55: =INDEX('Compile Data'!$CD$12:$CY$93,$A55-1921,'Report - ALL (DASHBOARD)'!$W$3) -> 50.39599228 | F55: =INDEX('Compile Data'!$DB$12:$DW$93,$A55-1921,'Report - ALL (DASHBOARD)'!$W$3) -> 52.70901871 | G55: =INDEX('Compile Data'!$DZ$12:$EU$93,$A55-1921,'Report - ALL (DASHBOARD)'!$W$3) -> 52.71813583 | O55: 27 | P55: 0.3209876543 | Q55: =INDEX('Compile Data'!$J$123:$AE$204,$O55,'Report - ALL (DASHBOARD)'!$W$3) -> 52.78435898 | R55: =INDEX('Compile Data'!$AH$123:$BC$204,$O55,'Report - ALL (DASHBOARD)'!$W$3) -> 53.563591 | S55: =INDEX('Compile Data'!$BF$123:$CA$204,$O55,'Report - ALL (DASHBOARD)'!$W$3) -> 52.55150604 | T55: =INDEX('Compile Data'!$CD$123:$CY$204,$O55,'Report - ALL (DASHBOARD)'!$W$3) -> 52.66504669 | U55: =INDEX('Compile Data'!$DB$123:$DW$204,$O55,'Report - ALL (DASHBOARD)'!$W$3) -> 53.30687714 | V55: =INDEX('Compile Data'!$DZ$123:$EU$204,$O55,'Report - ALL (DASHBOARD)'!$W$3) -> 53.49582291
A56: 1949 | B56: =INDEX('Compile Data'!$J$12:$AE$93,$A56-1921,'Report - ALL (DASHBOARD)'!$W$3) -> 51.99155426 | C56: =INDEX('Compile Data'!$AH$12:$BC$93,$A56-1921,'Report - ALL (DASHBOARD)'!$W$3) -> 52.42867279 | D56: =INDEX('Compile Data'!$BF$12:$CA$93,$A56-1921,'Report - ALL (DASHBOARD)'!$W$3) -> 52.01309586 | E56: =INDEX('Compile Data'!$CD$12:$CY$93,$A56-1921,'Report - ALL (DASHBOARD)'!$W$3) -> 52.0096283 | F56: =INDEX('Compile Data'!$DB$12:$DW$93,$A56-1921,'Report - ALL (DASHBOARD)'!$W$3) -> 52.46577454 | G56: =INDEX('Compile Data'!$DZ$12:$EU$93,$A56-1921,'Report - ALL (DASHBOARD)'!$W$3) -> 52.49255753 | O56: 28 | P56: 0.3333333333 | Q56: =INDEX('Compile Data'!$J$123:$AE$204,$O56,'Report - ALL (DASHBOARD)'!$W$3) -> 52.74786377 | R56: =INDEX('Compile Data'!$AH$123:$BC$204,$O56,'Report - ALL (DASHBOARD)'!$W$3) -> 53.5225029 | S56: =INDEX('Compile Data'!$BF$123:$CA$204,$O56,'Report - ALL (DASHBOARD)'!$W$3) -> 52.53428268 | T56: =INDEX('Compile Data'!$CD$123:$CY$204,$O56,'Report - ALL (DASHBOARD)'!$W$3) -> 52.55936813 | U56: =INDEX('Compile Data'!$DB$123:$DW$204,$O56,'Report - ALL (DASHBOARD)'!$W$3) -> 53.26255035 | V56: =INDEX('Compile Data'!$DZ$123:$EU$204,$O56,'Report - ALL (DASHBOARD)'!$W$3) -> 53.45572662
A57: 1950 | B57: =INDEX('Compile Data'!$J$12:$AE$93,$A57-1921,'Report - ALL (DASHBOARD)'!$W$3) -> 52.29706955 | C57: =INDEX('Compile Data'!$AH$12:$BC$93,$A57-1921,'Report - ALL (DASHBOARD)'!$W$3) -> 52.73778534 | D57: =INDEX('Compile Data'!$BF$12:$CA$93,$A57-1921,'Report - ALL (DASHBOARD)'!$W$3) -> 52.34736633 | E57: =INDEX('Compile Data'!$CD$12:$CY$93,$A57-1921,'Report - ALL (DASHBOARD)'!$W$3) -> 52.35584259 | F57: =INDEX('Compile Data'!$DB$12:$DW$93,$A57-1921,'Report - ALL (DASHBOARD)'!$W$3) -> 52.7748642 | G57: =INDEX('Compile Data'!$DZ$12:$EU$93,$A57-1921,'Report - ALL (DASHBOARD)'!$W$3) -> 52.78379059 | O57: 29 | P57: 0.3456790123 | Q57: =INDEX('Compile Data'!$J$123:$AE$204,$O57,'Report - ALL (DASHBOARD)'!$W$3) -> 52.74274445 | R57: =INDEX('Compile Data'!$AH$123:$BC$204,$O57,'Report - ALL (DASHBOARD)'!$W$3) -> 53.44794083 | S57: =INDEX('Compile Data'!$BF$123:$CA$204,$O57,'Report - ALL (DASHBOARD)'!$W$3) -> 52.53048706 | T57: =INDEX('Compile Data'!$CD$123:$CY$204,$O57,'Report - ALL (DASHBOARD)'!$W$3) -> 52.53683472 | U57: =INDEX('Compile Data'!$DB$123:$DW$204,$O57,'Report - ALL (DASHBOARD)'!$W$3) -> 53.25883484 | V57: =INDEX('Compile Data'!$DZ$123:$EU$204,$O57,'Report - ALL (DASHBOARD)'!$W$3) -> 53.39443207
A58: 1951 | B58: =INDEX('Compile Data'!$J$12:$AE$93,$A58-1921,'Report - ALL (DASHBOARD)'!$W$3) -> 50.68167496 | C58: =INDEX('Compile Data'!$AH$12:$BC$93,$A58-1921,'Report - ALL (DASHBOARD)'!$W$3) -> 50.73944473 | D58: =INDEX('Compile Data'!$BF$12:$CA$93,$A58-1921,'Report - ALL (DASHBOARD)'!$W$3) -> 50.701828 | E58: =INDEX('Compile Data'!$CD$12:$CY$93,$A58-1921,'Report - ALL (DASHBOARD)'!$W$3) -> 50.69851685 | F58: =INDEX('Compile Data'!$DB$12:$DW$93,$A58-1921,'Report - ALL (DASHBOARD)'!$W$3) -> 50.7441864 | G58: =INDEX('Compile Data'!$DZ$12:$EU$93,$A58-1921,'Report - ALL (DASHBOARD)'!$W$3) -> 50.74659729 | O58: 30 | P58: 0.3580246914 | Q58: =INDEX('Compile Data'!$J$123:$AE$204,$O58,'Report - ALL (DASHBOARD)'!$W$3) -> 52.60937881 | R58: =INDEX('Compile Data'!$AH$123:$BC$204,$O58,'Report - ALL (DASHBOARD)'!$W$3) -> 53.38478851 | S58: =INDEX('Compile Data'!$BF$123:$CA$204,$O58,'Report - ALL (DASHBOARD)'!$W$3) -> 52.38694382 | T58: =INDEX('Compile Data'!$CD$123:$CY$204,$O58,'Report - ALL (DASHBOARD)'!$W$3) -> 52.5290184 | U58: =INDEX('Compile Data'!$DB$123:$DW$204,$O58,'Report - ALL (DASHBOARD)'!$W$3) -> 53.25605392 | V58: =INDEX('Compile Data'!$DZ$123:$EU$204,$O58,'Report - ALL (DASHBOARD)'!$W$3) -> 53.34745789
A59: 1952 | B59: =INDEX('Compile Data'!$J$12:$AE$93,$A59-1921,'Report - ALL (DASHBOARD)'!$W$3) -> 50.35299683 | C59: =INDEX('Compile Data'!$AH$12:$BC$93,$A59-1921,'Report - ALL (DASHBOARD)'!$W$3) -> 50.7123642 | D59: =INDEX('Compile Data'!$BF$12:$CA$93,$A59-1921,'Report - ALL (DASHBOARD)'!$W$3) -> 50.3596344 | E59: =INDEX('Compile Data'!$CD$12:$CY$93,$A59-1921,'Report - ALL (DASHBOARD)'!$W$3) -> 50.3644104 | F59: =INDEX('Compile Data'!$DB$12:$DW$93,$A59-1921,'Report - ALL (DASHBOARD)'!$W$3) -> 50.68613434 | G59: =INDEX('Compile Data'!$DZ$12:$EU$93,$A59-1921,'Report - ALL (DASHBOARD)'!$W$3) -> 50.71849823 | O59: 31 | P59: 0.3703703704 | Q59: =INDEX('Compile Data'!$J$123:$AE$204,$O59,'Report - ALL (DASHBOARD)'!$W$3) -> 52.60756683 | R59: =INDEX('Compile Data'!$AH$123:$BC$204,$O59,'Report - ALL (DASHBOARD)'!$W$3) -> 53.37516403 | S59: =INDEX('Compile Data'!$BF$123:$CA$204,$O59,'Report - ALL (DASHBOARD)'!$W$3) -> 52.37314606 | T59: =INDEX('Compile Data'!$CD$123:$CY$204,$O59,'Report - ALL (DASHBOARD)'!$W$3) -> 52.39776611 | U59: =INDEX('Compile Data'!$DB$123:$DW$204,$O59,'Report - ALL (DASHBOARD)'!$W$3) -> 53.22943878 | V59: =INDEX('Compile Data'!$DZ$123:$EU$204,$O59,'Report - ALL (DASHBOARD)'!$W$3) -> 53.3066597
A60: 1953 | B60: =INDEX('Compile Data'!$J$12:$AE$93,$A60-1921,'Report - ALL (DASHBOARD)'!$W$3) -> 50.2575531 | C60: =INDEX('Compile Data'!$AH$12:$BC$93,$A60-1921,'Report - ALL (DASHBOARD)'!$W$3) -> 51.21176529 | D60: =INDEX('Compile Data'!$BF$12:$CA$93,$A60-1921,'Report - ALL (DASHBOARD)'!$W$3) -> 50.2709198 | E60: =INDEX('Compile Data'!$CD$12:$CY$93,$A60-1921,'Report - ALL (DASHBOARD)'!$W$3) -> 50.27375412 | F60: =INDEX('Compile Data'!$DB$12:$DW$93,$A60-1921,'Report - ALL (DASHBOARD)'!$W$3) -> 51.12135696 | G60: =INDEX('Compile Data'!$DZ$12:$EU$93,$A60-1921,'Report - ALL (DASHBOARD)'!$W$3) -> 51.14561844 | O60: 32 | P60: 0.3827160494 | Q60: =INDEX('Compile Data'!$J$123:$AE$204,$O60,'Report - ALL (DASHBOARD)'!$W$3) -> 52.48600006 | R60: =INDEX('Compile Data'!$AH$123:$BC$204,$O60,'Report - ALL (DASHBOARD)'!$W$3) -> 53.34860229 | S60: =INDEX('Compile Data'!$BF$123:$CA$204,$O60,'Report - ALL (DASHBOARD)'!$W$3) -> 52.34736633 | T60: =INDEX('Compile Data'!$CD$123:$CY$204,$O60,'Report - ALL (DASHBOARD)'!$W$3) -> 52.35584259 | U60: =INDEX('Compile Data'!$DB$123:$DW$204,$O60,'Report - ALL (DASHBOARD)'!$W$3) -> 53.12575531 | V60: =INDEX('Compile Data'!$DZ$123:$EU$204,$O60,'Report - ALL (DASHBOARD)'!$W$3) -> 53.29189301
A61: 1954 | B61: =INDEX('Compile Data'!$J$12:$AE$93,$A61-1921,'Report - ALL (DASHBOARD)'!$W$3) -> 50.80907059 | C61: =INDEX('Compile Data'!$AH$12:$BC$93,$A61-1921,'Report - ALL (DASHBOARD)'!$W$3) -> 50.78182602 | D61: =INDEX('Compile Data'!$BF$12:$CA$93,$A61-1921,'Report - ALL (DASHBOARD)'!$W$3) -> 50.69142151 | E61: =INDEX('Compile Data'!$CD$12:$CY$93,$A61-1921,'Report - ALL (DASHBOARD)'!$W$3) -> 50.54905319 | F61: =INDEX('Compile Data'!$DB$12:$DW$93,$A61-1921,'Report - ALL (DASHBOARD)'!$W$3) -> 51.0784111 | G61: =INDEX('Compile Data'!$DZ$12:$EU$93,$A61-1921,'Report - ALL (DASHBOARD)'!$W$3) -> 51.02433395 | O61: 33 | P61: =(O61-1)/81 -> 0.3950617284 | Q61: =INDEX('Compile Data'!$J$123:$AE$204,$O61,'Report - ALL (DASHBOARD)'!$W$3) -> 52.43929672 | R61: =INDEX('Compile Data'!$AH$123:$BC$204,$O61,'Report - ALL (DASHBOARD)'!$W$3) -> 53.3398056 | S61: =INDEX('Compile Data'!$BF$123:$CA$204,$O61,'Report - ALL (DASHBOARD)'!$W$3) -> 52.32866669 | T61: =INDEX('Compile Data'!$CD$123:$CY$204,$O61,'Report - ALL (DASHBOARD)'!$W$3) -> 52.35270309 | U61: =INDEX('Compile Data'!$DB$123:$DW$204,$O61,'Report - ALL (DASHBOARD)'!$W$3) -> 53.0643959 | V61: =INDEX('Compile Data'!$DZ$123:$EU$204,$O61,'Report - ALL (DASHBOARD)'!$W$3) -> 53.14786911
A62: 1955 | B62: =INDEX('Compile Data'!$J$12:$AE$93,$A62-1921,'Report - ALL (DASHBOARD)'!$W$3) -> 53.03466415 | C62: =INDEX('Compile Data'!$AH$12:$BC$93,$A62-1921,'Report - ALL (DASHBOARD)'!$W$3) -> 53.44794083 | D62: =INDEX('Compile Data'!$BF$12:$CA$93,$A62-1921,'Report - ALL (DASHBOARD)'!$W$3) -> 52.66753387 | E62: =INDEX('Compile Data'!$CD$12:$CY$93,$A62-1921,'Report - ALL (DASHBOARD)'!$W$3) -> 52.66504669 | F62: =INDEX('Compile Data'!$DB$12:$DW$93,$A62-1921,'Report - ALL (DASHBOARD)'!$W$3) -> 52.93719482 | G62: =INDEX('Compile Data'!$DZ$12:$EU$93,$A62-1921,'Report - ALL (DASHBOARD)'!$W$3) -> 52.97619247 | O62: 34 | P62: 0.4074074074 | Q62: =INDEX('Compile Data'!$J$123:$AE$204,$O62,'Report - ALL (DASHBOARD)'!$W$3) -> 52.36772537 | R62: =INDEX('Compile Data'!$AH$123:$BC$204,$O62,'Report - ALL (DASHBOARD)'!$W$3) -> 53.24163437 | S62: =INDEX('Compile Data'!$BF$123:$CA$204,$O62,'Report - ALL (DASHBOARD)'!$W$3) -> 52.3200531 | T62: =INDEX('Compile Data'!$CD$123:$CY$204,$O62,'Report - ALL (DASHBOARD)'!$W$3) -> 52.31959152 | U62: =INDEX('Compile Data'!$DB$123:$DW$204,$O62,'Report - ALL (DASHBOARD)'!$W$3) -> 52.93719482 | V62: =INDEX('Compile Data'!$DZ$123:$EU$204,$O62,'Report - ALL (DASHBOARD)'!$W$3) -> 53.07738495
A63: 1956 | B63: =INDEX('Compile Data'!$J$12:$AE$93,$A63-1921,'Report - ALL (DASHBOARD)'!$W$3) -> 50.07141876 | C63: =INDEX('Compile Data'!$AH$12:$BC$93,$A63-1921,'Report - ALL (DASHBOARD)'!$W$3) -> 51.00960922 | D63: =INDEX('Compile Data'!$BF$12:$CA$93,$A63-1921,'Report - ALL (DASHBOARD)'!$W$3) -> 50.07925797 | E63: =INDEX('Compile Data'!$CD$12:$CY$93,$A63-1921,'Report - ALL (DASHBOARD)'!$W$3) -> 50.0687561 | F63: =INDEX('Compile Data'!$DB$12:$DW$93,$A63-1921,'Report - ALL (DASHBOARD)'!$W$3) -> 51.00838089 | G63: =INDEX('Compile Data'!$DZ$12:$EU$93,$A63-1921,'Report - ALL (DASHBOARD)'!$W$3) -> 51.01156616 | O63: 35 | P63: 0.4197530864 | Q63: =INDEX('Compile Data'!$J$123:$AE$204,$O63,'Report - ALL (DASHBOARD)'!$W$3) -> 52.33513641 | R63: =INDEX('Compile Data'!$AH$123:$BC$204,$O63,'Report - ALL (DASHBOARD)'!$W$3) -> 53.06710815 | S63: =INDEX('Compile Data'!$BF$123:$CA$204,$O63,'Report - ALL (DASHBOARD)'!$W$3) -> 52.30241394 | T63: =INDEX('Compile Data'!$CD$123:$CY$204,$O63,'Report - ALL (DASHBOARD)'!$W$3) -> 52.30386734 | U63: =INDEX('Compile Data'!$DB$123:$DW$204,$O63,'Report - ALL (DASHBOARD)'!$W$3) -> 52.93327332 | V63: =INDEX('Compile Data'!$DZ$123:$EU$204,$O63,'Report - ALL (DASHBOARD)'!$W$3) -> 52.97619247
A64: 1957 | B64: =INDEX('Compile Data'!$J$12:$AE$93,$A64-1921,'Report - ALL (DASHBOARD)'!$W$3) -> 51.34958649 | C64: =INDEX('Compile Data'!$AH$12:$BC$93,$A64-1921,'Report - ALL (DASHBOARD)'!$W$3) -> 53.34860229 | D64: =INDEX('Compile Data'!$BF$12:$CA$93,$A64-1921,'Report - ALL (DASHBOARD)'!$W$3) -> 51.24829483 | E64: =INDEX('Compile Data'!$CD$12:$CY$93,$A64-1921,'Report - ALL (DASHBOARD)'!$W$3) -> 51.23656082 | F64: =INDEX('Compile Data'!$DB$12:$DW$93,$A64-1921,'Report - ALL (DASHBOARD)'!$W$3) -> 50.99547195 | G64: =INDEX('Compile Data'!$DZ$12:$EU$93,$A64-1921,'Report - ALL (DASHBOARD)'!$W$3) -> 51.3021965 | O64: 36 | P64: 0.4320987654 | Q64: =INDEX('Compile Data'!$J$123:$AE$204,$O64,'Report - ALL (DASHBOARD)'!$W$3) -> 52.32608414 | R64: =INDEX('Compile Data'!$AH$123:$BC$204,$O64,'Report - ALL (DASHBOARD)'!$W$3) -> 52.91239166 | S64: =INDEX('Compile Data'!$BF$123:$CA$204,$O64,'Report - ALL (DASHBOARD)'!$W$3) -> 52.29227066 | T64: =INDEX('Compile Data'!$CD$123:$CY$204,$O64,'Report - ALL (DASHBOARD)'!$W$3) -> 52.29560089 | U64: =INDEX('Compile Data'!$DB$123:$DW$204,$O64,'Report - ALL (DASHBOARD)'!$W$3) -> 52.81169128 | V64: =INDEX('Compile Data'!$DZ$123:$EU$204,$O64,'Report - ALL (DASHBOARD)'!$W$3) -> 52.90922546
A65: 1958 | B65: =INDEX('Compile Data'!$J$12:$AE$93,$A65-1921,'Report - ALL (DASHBOARD)'!$W$3) -> 50.28275299 | C65: =INDEX('Compile Data'!$AH$12:$BC$93,$A65-1921,'Report - ALL (DASHBOARD)'!$W$3) -> 50.68599319 | D65: =INDEX('Compile Data'!$BF$12:$CA$93,$A65-1921,'Report - ALL (DASHBOARD)'!$W$3) -> 50.2950592 | E65: =INDEX('Compile Data'!$CD$12:$CY$93,$A65-1921,'Report - ALL (DASHBOARD)'!$W$3) -> 50.29364395 | F65: =INDEX('Compile Data'!$DB$12:$DW$93,$A65-1921,'Report - ALL (DASHBOARD)'!$W$3) -> 50.75074005 | G65: =INDEX('Compile Data'!$DZ$12:$EU$93,$A65-1921,'Report - ALL (DASHBOARD)'!$W$3) -> 50.7520256 | O65: 37 | P65: 0.4444444444 | Q65: =INDEX('Compile Data'!$J$123:$AE$204,$O65,'Report - ALL (DASHBOARD)'!$W$3) -> 52.29706955 | R65: =INDEX('Compile Data'!$AH$123:$BC$204,$O65,'Report - ALL (DASHBOARD)'!$W$3) -> 52.91035843 | S65: =INDEX('Compile Data'!$BF$123:$CA$204,$O65,'Report - ALL (DASHBOARD)'!$W$3) -> 52.13994598 | T65: =INDEX('Compile Data'!$CD$123:$CY$204,$O65,'Report - ALL (DASHBOARD)'!$W$3) -> 52.1558075 | U65: =INDEX('Compile Data'!$DB$123:$DW$204,$O65,'Report - ALL (DASHBOARD)'!$W$3) -> 52.7748642 | V65: =INDEX('Compile Data'!$DZ$123:$EU$204,$O65,'Report - ALL (DASHBOARD)'!$W$3) -> 52.78379059
A66: 1959 | B66: =INDEX('Compile Data'!$J$12:$AE$93,$A66-1921,'Report - ALL (DASHBOARD)'!$W$3) -> 53.89011002 | C66: =INDEX('Compile Data'!$AH$12:$BC$93,$A66-1921,'Report - ALL (DASHBOARD)'!$W$3) -> 54.96362305 | D66: =INDEX('Compile Data'!$BF$12:$CA$93,$A66-1921,'Report - ALL (DASHBOARD)'!$W$3) -> 53.58084106 | E66: =INDEX('Compile Data'!$CD$12:$CY$93,$A66-1921,'Report - ALL (DASHBOARD)'!$W$3) -> 53.37161255 | F66: =INDEX('Compile Data'!$DB$12:$DW$93,$A66-1921,'Report - ALL (DASHBOARD)'!$W$3) -> 54.29164505 | G66: =INDEX('Compile Data'!$DZ$12:$EU$93,$A66-1921,'Report - ALL (DASHBOARD)'!$W$3) -> 54.30080795 | O66: 38 | P66: 0.4567901235 | Q66: =INDEX('Compile Data'!$J$123:$AE$204,$O66,'Report - ALL (DASHBOARD)'!$W$3) -> 52.22454453 | R66: =INDEX('Compile Data'!$AH$123:$BC$204,$O66,'Report - ALL (DASHBOARD)'!$W$3) -> 52.82086563 | S66: =INDEX('Compile Data'!$BF$123:$CA$204,$O66,'Report - ALL (DASHBOARD)'!$W$3) -> 52.11533737 | T66: =INDEX('Compile Data'!$CD$123:$CY$204,$O66,'Report - ALL (DASHBOARD)'!$W$3) -> 52.08397675 | U66: =INDEX('Compile Data'!$DB$123:$DW$204,$O66,'Report - ALL (DASHBOARD)'!$W$3) -> 52.70901871 | V66: =INDEX('Compile Data'!$DZ$123:$EU$204,$O66,'Report - ALL (DASHBOARD)'!$W$3) -> 52.71813583
A67: 1960 | B67: =INDEX('Compile Data'!$J$12:$AE$93,$A67-1921,'Report - ALL (DASHBOARD)'!$W$3) -> 52.36772537 | C67: =INDEX('Compile Data'!$AH$12:$BC$93,$A67-1921,'Report - ALL (DASHBOARD)'!$W$3) -> 54.22164154 | D67: =INDEX('Compile Data'!$BF$12:$CA$93,$A67-1921,'Report - ALL (DASHBOARD)'!$W$3) -> 52.11533737 | E67: =INDEX('Compile Data'!$CD$12:$CY$93,$A67-1921,'Report - ALL (DASHBOARD)'!$W$3) -> 52.00835037 | F67: =INDEX('Compile Data'!$DB$12:$DW$93,$A67-1921,'Report - ALL (DASHBOARD)'!$W$3) -> 53.67620087 | G67: =INDEX('Compile Data'!$DZ$12:$EU$93,$A67-1921,'Report - ALL (DASHBOARD)'!$W$3) -> 53.78660965 | O67: 39 | P67: 0.4691358025 | Q67: =INDEX('Compile Data'!$J$123:$AE$204,$O67,'Report - ALL (DASHBOARD)'!$W$3) -> 52.12436295 | R67: =INDEX('Compile Data'!$AH$123:$BC$204,$O67,'Report - ALL (DASHBOARD)'!$W$3) -> 52.80184174 | S67: =INDEX('Compile Data'!$BF$123:$CA$204,$O67,'Report - ALL (DASHBOARD)'!$W$3) -> 52.08003235 | T67: =INDEX('Compile Data'!$CD$123:$CY$204,$O67,'Report - ALL (DASHBOARD)'!$W$3) -> 52.0096283 | U67: =INDEX('Compile Data'!$DB$123:$DW$204,$O67,'Report - ALL (DASHBOARD)'!$W$3) -> 52.64422989 | V67: =INDEX('Compile Data'!$DZ$123:$EU$204,$O67,'Report - ALL (DASHBOARD)'!$W$3) -> 52.67110443
A68: 1961 | B68: =INDEX('Compile Data'!$J$12:$AE$93,$A68-1921,'Report - ALL (DASHBOARD)'!$W$3) -> 52.43929672 | C68: =INDEX('Compile Data'!$AH$12:$BC$93,$A68-1921,'Report - ALL (DASHBOARD)'!$W$3) -> 52.91239166 | D68: =INDEX('Compile Data'!$BF$12:$CA$93,$A68-1921,'Report - ALL (DASHBOARD)'!$W$3) -> 52.29227066 | E68: =INDEX('Compile Data'!$CD$12:$CY$93,$A68-1921,'Report - ALL (DASHBOARD)'!$W$3) -> 52.30386734 | F68: =INDEX('Compile Data'!$DB$12:$DW$93,$A68-1921,'Report - ALL (DASHBOARD)'!$W$3) -> 52.81169128 | G68: =INDEX('Compile Data'!$DZ$12:$EU$93,$A68-1921,'Report - ALL (DASHBOARD)'!$W$3) -> 52.90922546 | O68: 40 | P68: 0.4814814815 | Q68: =INDEX('Compile Data'!$J$123:$AE$204,$O68,'Report - ALL (DASHBOARD)'!$W$3) -> 52.09086227 | R68: =INDEX('Compile Data'!$AH$123:$BC$204,$O68,'Report - ALL (DASHBOARD)'!$W$3) -> 52.73778534 | S68: =INDEX('Compile Data'!$BF$123:$CA$204,$O68,'Report - ALL (DASHBOARD)'!$W$3) -> 52.06939316 | T68: =INDEX('Compile Data'!$CD$123:$CY$204,$O68,'Report - ALL (DASHBOARD)'!$W$3) -> 52.00835037 | U68: =INDEX('Compile Data'!$DB$123:$DW$204,$O68,'Report - ALL (DASHBOARD)'!$W$3) -> 52.46577454 | V68: =INDEX('Compile Data'!$DZ$123:$EU$204,$O68,'Report - ALL (DASHBOARD)'!$W$3) -> 52.49255753
A69: 1962 | B69: =INDEX('Compile Data'!$J$12:$AE$93,$A69-1921,'Report - ALL (DASHBOARD)'!$W$3) -> 52.02202988 | C69: =INDEX('Compile Data'!$AH$12:$BC$93,$A69-1921,'Report - ALL (DASHBOARD)'!$W$3) -> 53.24163437 | D69: =INDEX('Compile Data'!$BF$12:$CA$93,$A69-1921,'Report - ALL (DASHBOARD)'!$W$3) -> 51.85173416 | E69: =INDEX('Compile Data'!$CD$12:$CY$93,$A69-1921,'Report - ALL (DASHBOARD)'!$W$3) -> 51.93555069 | F69: =INDEX('Compile Data'!$DB$12:$DW$93,$A69-1921,'Report - ALL (DASHBOARD)'!$W$3) -> 53.30687714 | G69: =INDEX('Compile Data'!$DZ$12:$EU$93,$A69-1921,'Report - ALL (DASHBOARD)'!$W$3) -> 53.14786911 | O69: 41 | P69: 0.4938271605 | Q69: =INDEX('Compile Data'!$J$123:$AE$204,$O69,'Report - ALL (DASHBOARD)'!$W$3) -> 52.07677078 | R69: =INDEX('Compile Data'!$AH$123:$BC$204,$O69,'Report - ALL (DASHBOARD)'!$W$3) -> 52.49602509 | S69: =INDEX('Compile Data'!$BF$123:$CA$204,$O69,'Report - ALL (DASHBOARD)'!$W$3) -> 52.01309586 | T69: =INDEX('Compile Data'!$CD$123:$CY$204,$O69,'Report - ALL (DASHBOARD)'!$W$3) -> 51.97053528 | U69: =INDEX('Compile Data'!$DB$123:$DW$204,$O69,'Report - ALL (DASHBOARD)'!$W$3) -> 52.38796616 | V69: =INDEX('Compile Data'!$DZ$123:$EU$204,$O69,'Report - ALL (DASHBOARD)'!$W$3) -> 52.45159912
A70: 1963 | B70: =INDEX('Compile Data'!$J$12:$AE$93,$A70-1921,'Report - ALL (DASHBOARD)'!$W$3) -> 50.77045822 | C70: =INDEX('Compile Data'!$AH$12:$BC$93,$A70-1921,'Report - ALL (DASHBOARD)'!$W$3) -> 51.69600296 | D70: =INDEX('Compile Data'!$BF$12:$CA$93,$A70-1921,'Report - ALL (DASHBOARD)'!$W$3) -> 50.76569748 | E70: =INDEX('Compile Data'!$CD$12:$CY$93,$A70-1921,'Report - ALL (DASHBOARD)'!$W$3) -> 50.7624588 | F70: =INDEX('Compile Data'!$DB$12:$DW$93,$A70-1921,'Report - ALL (DASHBOARD)'!$W$3) -> 51.60227203 | G70: =INDEX('Compile Data'!$DZ$12:$EU$93,$A70-1921,'Report - ALL (DASHBOARD)'!$W$3) -> 51.63022614 | O70: 42 | P70: 0.5061728395 | Q70: =INDEX('Compile Data'!$J$123:$AE$204,$O70,'Report - ALL (DASHBOARD)'!$W$3) -> 52.02202988 | R70: =INDEX('Compile Data'!$AH$123:$BC$204,$O70,'Report - ALL (DASHBOARD)'!$W$3) -> 52.42867279 | S70: =INDEX('Compile Data'!$BF$123:$CA$204,$O70,'Report - ALL (DASHBOARD)'!$W$3) -> 51.85173416 | T70: =INDEX('Compile Data'!$CD$123:$CY$204,$O70,'Report - ALL (DASHBOARD)'!$W$3) -> 51.93555069 | U70: =INDEX('Compile Data'!$DB$123:$DW$204,$O70,'Report - ALL (DASHBOARD)'!$W$3) -> 52.38373566 | V70: =INDEX('Compile Data'!$DZ$123:$EU$204,$O70,'Report - ALL (DASHBOARD)'!$W$3) -> 52.41885376
A71: 1964 | B71: =INDEX('Compile Data'!$J$12:$AE$93,$A71-1921,'Report - ALL (DASHBOARD)'!$W$3) -> 52.48600006 | C71: =INDEX('Compile Data'!$AH$12:$BC$93,$A71-1921,'Report - ALL (DASHBOARD)'!$W$3) -> 53.5225029 | D71: =INDEX('Compile Data'!$BF$12:$CA$93,$A71-1921,'Report - ALL (DASHBOARD)'!$W$3) -> 52.06939316 | E71: =INDEX('Compile Data'!$CD$12:$CY$93,$A71-1921,'Report - ALL (DASHBOARD)'!$W$3) -> 52.5290184 | F71: =INDEX('Compile Data'!$DB$12:$DW$93,$A71-1921,'Report - ALL (DASHBOARD)'!$W$3) -> 53.42470932 | G71: =INDEX('Compile Data'!$DZ$12:$EU$93,$A71-1921,'Report - ALL (DASHBOARD)'!$W$3) -> 53.45572662 | O71: 43 | P71: 0.5185185185 | Q71: =INDEX('Compile Data'!$J$123:$AE$204,$O71,'Report - ALL (DASHBOARD)'!$W$3) -> 51.99155426 | R71: =INDEX('Compile Data'!$AH$123:$BC$204,$O71,'Report - ALL (DASHBOARD)'!$W$3) -> 52.36519623 | S71: =INDEX('Compile Data'!$BF$123:$CA$204,$O71,'Report - ALL (DASHBOARD)'!$W$3) -> 51.81990433 | T71: =INDEX('Compile Data'!$CD$123:$CY$204,$O71,'Report - ALL (DASHBOARD)'!$W$3) -> 51.8212738 | U71: =INDEX('Compile Data'!$DB$123:$DW$204,$O71,'Report - ALL (DASHBOARD)'!$W$3) -> 52.20515823 | V71: =INDEX('Compile Data'!$DZ$123:$EU$204,$O71,'Report - ALL (DASHBOARD)'!$W$3) -> 52.36960602
A72: 1965 | B72: =INDEX('Compile Data'!$J$12:$AE$93,$A72-1921,'Report - ALL (DASHBOARD)'!$W$3) -> 50.19544601 | C72: =INDEX('Compile Data'!$AH$12:$BC$93,$A72-1921,'Report - ALL (DASHBOARD)'!$W$3) -> 50.61986542 | D72: =INDEX('Compile Data'!$BF$12:$CA$93,$A72-1921,'Report - ALL (DASHBOARD)'!$W$3) -> 50.13992691 | E72: =INDEX('Compile Data'!$CD$12:$CY$93,$A72-1921,'Report - ALL (DASHBOARD)'!$W$3) -> 50.1293869 | F72: =INDEX('Compile Data'!$DB$12:$DW$93,$A72-1921,'Report - ALL (DASHBOARD)'!$W$3) -> 51.07645035 | G72: =INDEX('Compile Data'!$DZ$12:$EU$93,$A72-1921,'Report - ALL (DASHBOARD)'!$W$3) -> 50.73441696 | O72: 44 | P72: 0.5308641975 | Q72: =INDEX('Compile Data'!$J$123:$AE$204,$O72,'Report - ALL (DASHBOARD)'!$W$3) -> 51.86030197 | R72: =INDEX('Compile Data'!$AH$123:$BC$204,$O72,'Report - ALL (DASHBOARD)'!$W$3) -> 52.31272888 | S72: =INDEX('Compile Data'!$BF$123:$CA$204,$O72,'Report - ALL (DASHBOARD)'!$W$3) -> 51.79745483 | T72: =INDEX('Compile Data'!$CD$123:$CY$204,$O72,'Report - ALL (DASHBOARD)'!$W$3) -> 51.80405045 | U72: =INDEX('Compile Data'!$DB$123:$DW$204,$O72,'Report - ALL (DASHBOARD)'!$W$3) -> 52.16928482 | V72: =INDEX('Compile Data'!$DZ$123:$EU$204,$O72,'Report - ALL (DASHBOARD)'!$W$3) -> 52.18207169
A73: 1966 | B73: =INDEX('Compile Data'!$J$12:$AE$93,$A73-1921,'Report - ALL (DASHBOARD)'!$W$3) -> 51.24782562 | C73: =INDEX('Compile Data'!$AH$12:$BC$93,$A73-1921,'Report - ALL (DASHBOARD)'!$W$3) -> 52.82086563 | D73: =INDEX('Compile Data'!$BF$12:$CA$93,$A73-1921,'Report - ALL (DASHBOARD)'!$W$3) -> 51.2997551 | E73: =INDEX('Compile Data'!$CD$12:$CY$93,$A73-1921,'Report - ALL (DASHBOARD)'!$W$3) -> 51.29881287 | F73: =INDEX('Compile Data'!$DB$12:$DW$93,$A73-1921,'Report - ALL (DASHBOARD)'!$W$3) -> 52.64422989 | G73: =INDEX('Compile Data'!$DZ$12:$EU$93,$A73-1921,'Report - ALL (DASHBOARD)'!$W$3) -> 52.67110443 | O73: 45 | P73: 0.5432098765 | Q73: =INDEX('Compile Data'!$J$123:$AE$204,$O73,'Report - ALL (DASHBOARD)'!$W$3) -> 51.83347321 | R73: =INDEX('Compile Data'!$AH$123:$BC$204,$O73,'Report - ALL (DASHBOARD)'!$W$3) -> 52.14749146 | S73: =INDEX('Compile Data'!$BF$123:$CA$204,$O73,'Report - ALL (DASHBOARD)'!$W$3) -> 51.6214447 | T73: =INDEX('Compile Data'!$CD$123:$CY$204,$O73,'Report - ALL (DASHBOARD)'!$W$3) -> 51.46110535 | U73: =INDEX('Compile Data'!$DB$123:$DW$204,$O73,'Report - ALL (DASHBOARD)'!$W$3) -> 52.10926819 | V73: =INDEX('Compile Data'!$DZ$123:$EU$204,$O73,'Report - ALL (DASHBOARD)'!$W$3) -> 52.09081268
A74: 1967 | B74: =INDEX('Compile Data'!$J$12:$AE$93,$A74-1921,'Report - ALL (DASHBOARD)'!$W$3) -> 50.26847076 | C74: =INDEX('Compile Data'!$AH$12:$BC$93,$A74-1921,'Report - ALL (DASHBOARD)'!$W$3) -> 51.01515579 | D74: =INDEX('Compile Data'!$BF$12:$CA$93,$A74-1921,'Report - ALL (DASHBOARD)'!$W$3) -> 50.27622604 | E74: =INDEX('Compile Data'!$CD$12:$CY$93,$A74-1921,'Report - ALL (DASHBOARD)'!$W$3) -> 50.27629471 | F74: =INDEX('Compile Data'!$DB$12:$DW$93,$A74-1921,'Report - ALL (DASHBOARD)'!$W$3) -> 50.77047348 | G74: =INDEX('Compile Data'!$DZ$12:$EU$93,$A74-1921,'Report - ALL (DASHBOARD)'!$W$3) -> 50.78483582 | O74: 46 | P74: 0.5555555556 | Q74: =INDEX('Compile Data'!$J$123:$AE$204,$O74,'Report - ALL (DASHBOARD)'!$W$3) -> 51.79418182 | R74: =INDEX('Compile Data'!$AH$123:$BC$204,$O74,'Report - ALL (DASHBOARD)'!$W$3) -> 52.14218521 | S74: =INDEX('Compile Data'!$BF$123:$CA$204,$O74,'Report - ALL (DASHBOARD)'!$W$3) -> 51.46242523 | T74: =INDEX('Compile Data'!$CD$123:$CY$204,$O74,'Report - ALL (DASHBOARD)'!$W$3) -> 51.33957672 | U74: =INDEX('Compile Data'!$DB$123:$DW$204,$O74,'Report - ALL (DASHBOARD)'!$W$3) -> 51.88513184 | V74: =INDEX('Compile Data'!$DZ$123:$EU$204,$O74,'Report - ALL (DASHBOARD)'!$W$3) -> 51.89873123
A75: 1968 | B75: =INDEX('Compile Data'!$J$12:$AE$93,$A75-1921,'Report - ALL (DASHBOARD)'!$W$3) -> 52.78699493 | C75: =INDEX('Compile Data'!$AH$12:$BC$93,$A75-1921,'Report - ALL (DASHBOARD)'!$W$3) -> 52.49602509 | D75: =INDEX('Compile Data'!$BF$12:$CA$93,$A75-1921,'Report - ALL (DASHBOARD)'!$W$3) -> 52.53048706 | E75: =INDEX('Compile Data'!$CD$12:$CY$93,$A75-1921,'Report - ALL (DASHBOARD)'!$W$3) -> 52.53683472 | F75: =INDEX('Compile Data'!$DB$12:$DW$93,$A75-1921,'Report - ALL (DASHBOARD)'!$W$3) -> 52.20515823 | G75: =INDEX('Compile Data'!$DZ$12:$EU$93,$A75-1921,'Report - ALL (DASHBOARD)'!$W$3) -> 52.45159912 | O75: 47 | P75: 0.5679012346 | Q75: =INDEX('Compile Data'!$J$123:$AE$204,$O75,'Report - ALL (DASHBOARD)'!$W$3) -> 51.7443161 | R75: =INDEX('Compile Data'!$AH$123:$BC$204,$O75,'Report - ALL (DASHBOARD)'!$W$3) -> 52.08123779 | S75: =INDEX('Compile Data'!$BF$123:$CA$204,$O75,'Report - ALL (DASHBOARD)'!$W$3) -> 51.34886551 | T75: =INDEX('Compile Data'!$CD$123:$CY$204,$O75,'Report - ALL (DASHBOARD)'!$W$3) -> 51.29881287 | U75: =INDEX('Compile Data'!$DB$123:$DW$204,$O75,'Report - ALL (DASHBOARD)'!$W$3) -> 51.88079071 | V75: =INDEX('Compile Data'!$DZ$123:$EU$204,$O75,'Report - ALL (DASHBOARD)'!$W$3) -> 51.8893013
A76: 1969 | B76: =INDEX('Compile Data'!$J$12:$AE$93,$A76-1921,'Report - ALL (DASHBOARD)'!$W$3) -> 50.4421196 | C76: =INDEX('Compile Data'!$AH$12:$BC$93,$A76-1921,'Report - ALL (DASHBOARD)'!$W$3) -> 52.08123779 | D76: =INDEX('Compile Data'!$BF$12:$CA$93,$A76-1921,'Report - ALL (DASHBOARD)'!$W$3) -> 50.42825317 | E76: =INDEX('Compile Data'!$CD$12:$CY$93,$A76-1921,'Report - ALL (DASHBOARD)'!$W$3) -> 50.43223572 | F76: =INDEX('Compile Data'!$DB$12:$DW$93,$A76-1921,'Report - ALL (DASHBOARD)'!$W$3) -> 51.50905609 | G76: =INDEX('Compile Data'!$DZ$12:$EU$93,$A76-1921,'Report - ALL (DASHBOARD)'!$W$3) -> 51.50251007 | O76: 48 | P76: 0.5802469136 | Q76: =INDEX('Compile Data'!$J$123:$AE$204,$O76,'Report - ALL (DASHBOARD)'!$W$3) -> 51.524086 | R76: =INDEX('Compile Data'!$AH$123:$BC$204,$O76,'Report - ALL (DASHBOARD)'!$W$3) -> 52.05011749 | S76: =INDEX('Compile Data'!$BF$123:$CA$204,$O76,'Report - ALL (DASHBOARD)'!$W$3) -> 51.2997551 | T76: =INDEX('Compile Data'!$CD$123:$CY$204,$O76,'Report - ALL (DASHBOARD)'!$W$3) -> 51.26187897 | U76: =INDEX('Compile Data'!$DB$123:$DW$204,$O76,'Report - ALL (DASHBOARD)'!$W$3) -> 51.82458496 | V76: =INDEX('Compile Data'!$DZ$123:$EU$204,$O76,'Report - ALL (DASHBOARD)'!$W$3) -> 51.83583832
A77: 1970 | B77: =INDEX('Compile Data'!$J$12:$AE$93,$A77-1921,'Report - ALL (DASHBOARD)'!$W$3) -> 50.30679703 | C77: =INDEX('Compile Data'!$AH$12:$BC$93,$A77-1921,'Report - ALL (DASHBOARD)'!$W$3) -> 50.65196991 | D77: =INDEX('Compile Data'!$BF$12:$CA$93,$A77-1921,'Report - ALL (DASHBOARD)'!$W$3) -> 50.30466843 | E77: =INDEX('Compile Data'!$CD$12:$CY$93,$A77-1921,'Report - ALL (DASHBOARD)'!$W$3) -> 50.83620071 | F77: =INDEX('Compile Data'!$DB$12:$DW$93,$A77-1921,'Report - ALL (DASHBOARD)'!$W$3) -> 51.09449005 | G77: =INDEX('Compile Data'!$DZ$12:$EU$93,$A77-1921,'Report - ALL (DASHBOARD)'!$W$3) -> 50.60071182 | O77: 49 | P77: 0.5925925926 | Q77: =INDEX('Compile Data'!$J$123:$AE$204,$O77,'Report - ALL (DASHBOARD)'!$W$3) -> 51.34958649 | R77: =INDEX('Compile Data'!$AH$123:$BC$204,$O77,'Report - ALL (DASHBOARD)'!$W$3) -> 51.92146301 | S77: =INDEX('Compile Data'!$BF$123:$CA$204,$O77,'Report - ALL (DASHBOARD)'!$W$3) -> 51.24829483 | T77: =INDEX('Compile Data'!$CD$123:$CY$204,$O77,'Report - ALL (DASHBOARD)'!$W$3) -> 51.23656082 | U77: =INDEX('Compile Data'!$DB$123:$DW$204,$O77,'Report - ALL (DASHBOARD)'!$W$3) -> 51.77555084 | V77: =INDEX('Compile Data'!$DZ$123:$EU$204,$O77,'Report - ALL (DASHBOARD)'!$W$3) -> 51.82992172
A78: 1971 | B78: =INDEX('Compile Data'!$J$12:$AE$93,$A78-1921,'Report - ALL (DASHBOARD)'!$W$3) -> 50.11315918 | C78: =INDEX('Compile Data'!$AH$12:$BC$93,$A78-1921,'Report - ALL (DASHBOARD)'!$W$3) -> 51.13258743 | D78: =INDEX('Compile Data'!$BF$12:$CA$93,$A78-1921,'Report - ALL (DASHBOARD)'!$W$3) -> 50.10546112 | E78: =INDEX('Compile Data'!$CD$12:$CY$93,$A78-1921,'Report - ALL (DASHBOARD)'!$W$3) -> 50.12721252 | F78: =INDEX('Compile Data'!$DB$12:$DW$93,$A78-1921,'Report - ALL (DASHBOARD)'!$W$3) -> 51.06321335 | G78: =INDEX('Compile Data'!$DZ$12:$EU$93,$A78-1921,'Report - ALL (DASHBOARD)'!$W$3) -> 51.06168365 | O78: 50 | P78: 0.6049382716 | Q78: =INDEX('Compile Data'!$J$123:$AE$204,$O78,'Report - ALL (DASHBOARD)'!$W$3) -> 51.25930405 | R78: =INDEX('Compile Data'!$AH$123:$BC$204,$O78,'Report - ALL (DASHBOARD)'!$W$3) -> 51.91946411 | S78: =INDEX('Compile Data'!$BF$123:$CA$204,$O78,'Report - ALL (DASHBOARD)'!$W$3) -> 51.16837311 | T78: =INDEX('Compile Data'!$CD$123:$CY$204,$O78,'Report - ALL (DASHBOARD)'!$W$3) -> 51.14852905 | U78: =INDEX('Compile Data'!$DB$123:$DW$204,$O78,'Report - ALL (DASHBOARD)'!$W$3) -> 51.6829071 | V78: =INDEX('Compile Data'!$DZ$123:$EU$204,$O78,'Report - ALL (DASHBOARD)'!$W$3) -> 51.73855591
A79: 1972 | B79: =INDEX('Compile Data'!$J$12:$AE$93,$A79-1921,'Report - ALL (DASHBOARD)'!$W$3) -> 51.7443161 | C79: =INDEX('Compile Data'!$AH$12:$BC$93,$A79-1921,'Report - ALL (DASHBOARD)'!$W$3) -> 53.3398056 | D79: =INDEX('Compile Data'!$BF$12:$CA$93,$A79-1921,'Report - ALL (DASHBOARD)'!$W$3) -> 51.34886551 | E79: =INDEX('Compile Data'!$CD$12:$CY$93,$A79-1921,'Report - ALL (DASHBOARD)'!$W$3) -> 51.33957672 | F79: =INDEX('Compile Data'!$DB$12:$DW$93,$A79-1921,'Report - ALL (DASHBOARD)'!$W$3) -> 52.93327332 | G79: =INDEX('Compile Data'!$DZ$12:$EU$93,$A79-1921,'Report - ALL (DASHBOARD)'!$W$3) -> 53.3066597 | O79: 51 | P79: 0.6172839506 | Q79: =INDEX('Compile Data'!$J$123:$AE$204,$O79,'Report - ALL (DASHBOARD)'!$W$3) -> 51.24782562 | R79: =INDEX('Compile Data'!$AH$123:$BC$204,$O79,'Report - ALL (DASHBOARD)'!$W$3) -> 51.91805267 | S79: =INDEX('Compile Data'!$BF$123:$CA$204,$O79,'Report - ALL (DASHBOARD)'!$W$3) -> 51.13647461 | T79: =INDEX('Compile Data'!$CD$123:$CY$204,$O79,'Report - ALL (DASHBOARD)'!$W$3) -> 51.12360001 | U79: =INDEX('Compile Data'!$DB$123:$DW$204,$O79,'Report - ALL (DASHBOARD)'!$W$3) -> 51.64597321 | V79: =INDEX('Compile Data'!$DZ$123:$EU$204,$O79,'Report - ALL (DASHBOARD)'!$W$3) -> 51.71041107
A80: 1973 | B80: =INDEX('Compile Data'!$J$12:$AE$93,$A80-1921,'Report - ALL (DASHBOARD)'!$W$3) -> 50.70771027 | C80: =INDEX('Compile Data'!$AH$12:$BC$93,$A80-1921,'Report - ALL (DASHBOARD)'!$W$3) -> 50.8866539 | D80: =INDEX('Compile Data'!$BF$12:$CA$93,$A80-1921,'Report - ALL (DASHBOARD)'!$W$3) -> 50.75895691 | E80: =INDEX('Compile Data'!$CD$12:$CY$93,$A80-1921,'Report - ALL (DASHBOARD)'!$W$3) -> 50.74990845 | F80: =INDEX('Compile Data'!$DB$12:$DW$93,$A80-1921,'Report - ALL (DASHBOARD)'!$W$3) -> 51.5425148 | G80: =INDEX('Compile Data'!$DZ$12:$EU$93,$A80-1921,'Report - ALL (DASHBOARD)'!$W$3) -> 51.54991531 | O80: 52 | P80: 0.6296296296 | Q80: =INDEX('Compile Data'!$J$123:$AE$204,$O80,'Report - ALL (DASHBOARD)'!$W$3) -> 51.15143204 | R80: =INDEX('Compile Data'!$AH$123:$BC$204,$O80,'Report - ALL (DASHBOARD)'!$W$3) -> 51.91169357 | S80: =INDEX('Compile Data'!$BF$123:$CA$204,$O80,'Report - ALL (DASHBOARD)'!$W$3) -> 51.12520218 | T80: =INDEX('Compile Data'!$CD$123:$CY$204,$O80,'Report - ALL (DASHBOARD)'!$W$3) -> 51.10797882 | U80: =INDEX('Compile Data'!$DB$123:$DW$204,$O80,'Report - ALL (DASHBOARD)'!$W$3) -> 51.62987518 | V80: =INDEX('Compile Data'!$DZ$123:$EU$204,$O80,'Report - ALL (DASHBOARD)'!$W$3) -> 51.64812088
A81: 1974 | B81: =INDEX('Compile Data'!$J$12:$AE$93,$A81-1921,'Report - ALL (DASHBOARD)'!$W$3) -> 49.71268845 | C81: =INDEX('Compile Data'!$AH$12:$BC$93,$A81-1921,'Report - ALL (DASHBOARD)'!$W$3) -> 51.40625 | D81: =INDEX('Compile Data'!$BF$12:$CA$93,$A81-1921,'Report - ALL (DASHBOARD)'!$W$3) -> 49.69420624 | E81: =INDEX('Compile Data'!$CD$12:$CY$93,$A81-1921,'Report - ALL (DASHBOARD)'!$W$3) -> 49.68525314 | F81: =INDEX('Compile Data'!$DB$12:$DW$93,$A81-1921,'Report - ALL (DASHBOARD)'!$W$3) -> 51.46543121 | G81: =INDEX('Compile Data'!$DZ$12:$EU$93,$A81-1921,'Report - ALL (DASHBOARD)'!$W$3) -> 51.51931763 | O81: 53 | P81: 0.6419753086 | Q81: =INDEX('Compile Data'!$J$123:$AE$204,$O81,'Report - ALL (DASHBOARD)'!$W$3) -> 51.09087372 | R81: =INDEX('Compile Data'!$AH$123:$BC$204,$O81,'Report - ALL (DASHBOARD)'!$W$3) -> 51.85459137 | S81: =INDEX('Compile Data'!$BF$123:$CA$204,$O81,'Report - ALL (DASHBOARD)'!$W$3) -> 51.08049011 | T81: =INDEX('Compile Data'!$CD$123:$CY$204,$O81,'Report - ALL (DASHBOARD)'!$W$3) -> 51.08018494 | U81: =INDEX('Compile Data'!$DB$123:$DW$204,$O81,'Report - ALL (DASHBOARD)'!$W$3) -> 51.60227203 | V81: =INDEX('Compile Data'!$DZ$123:$EU$204,$O81,'Report - ALL (DASHBOARD)'!$W$3) -> 51.63022614
A82: 1975 | B82: =INDEX('Compile Data'!$J$12:$AE$93,$A82-1921,'Report - ALL (DASHBOARD)'!$W$3) -> 50.39580536 | C82: =INDEX('Compile Data'!$AH$12:$BC$93,$A82-1921,'Report - ALL (DASHBOARD)'!$W$3) -> 51.91946411 | D82: =INDEX('Compile Data'!$BF$12:$CA$93,$A82-1921,'Report - ALL (DASHBOARD)'!$W$3) -> 50.38834 | E82: =INDEX('Compile Data'!$CD$12:$CY$93,$A82-1921,'Report - ALL (DASHBOARD)'!$W$3) -> 50.38863373 | F82: =INDEX('Compile Data'!$DB$12:$DW$93,$A82-1921,'Report - ALL (DASHBOARD)'!$W$3) -> 51.64597321 | G82: =INDEX('Compile Data'!$DZ$12:$EU$93,$A82-1921,'Report - ALL (DASHBOARD)'!$W$3) -> 51.64812088 | O82: 54 | P82: 0.6543209877 | Q82: =INDEX('Compile Data'!$J$123:$AE$204,$O82,'Report - ALL (DASHBOARD)'!$W$3) -> 51.08818436 | R82: =INDEX('Compile Data'!$AH$123:$BC$204,$O82,'Report - ALL (DASHBOARD)'!$W$3) -> 51.85041809 | S82: =INDEX('Compile Data'!$BF$123:$CA$204,$O82,'Report - ALL (DASHBOARD)'!$W$3) -> 50.76569748 | T82: =INDEX('Compile Data'!$CD$123:$CY$204,$O82,'Report - ALL (DASHBOARD)'!$W$3) -> 50.83620071 | U82: =INDEX('Compile Data'!$DB$123:$DW$204,$O82,'Report - ALL (DASHBOARD)'!$W$3) -> 51.59440613 | V82: =INDEX('Compile Data'!$DZ$123:$EU$204,$O82,'Report - ALL (DASHBOARD)'!$W$3) -> 51.62786102
A83: 1976 | B83: =INDEX('Compile Data'!$J$12:$AE$93,$A83-1921,'Report - ALL (DASHBOARD)'!$W$3) -> 53.48656082 | C83: =INDEX('Compile Data'!$AH$12:$BC$93,$A83-1921,'Report - ALL (DASHBOARD)'!$W$3) -> 54.67933273 | D83: =INDEX('Compile Data'!$BF$12:$CA$93,$A83-1921,'Report - ALL (DASHBOARD)'!$W$3) -> 53.15063477 | E83: =INDEX('Compile Data'!$CD$12:$CY$93,$A83-1921,'Report - ALL (DASHBOARD)'!$W$3) -> 53.1305809 | F83: =INDEX('Compile Data'!$DB$12:$DW$93,$A83-1921,'Report - ALL (DASHBOARD)'!$W$3) -> 53.62811279 | G83: =INDEX('Compile Data'!$DZ$12:$EU$93,$A83-1921,'Report - ALL (DASHBOARD)'!$W$3) -> 53.49582291 | O83: 55 | P83: 0.6666666667 | Q83: =INDEX('Compile Data'!$J$123:$AE$204,$O83,'Report - ALL (DASHBOARD)'!$W$3) -> 51.08292389 | R83: =INDEX('Compile Data'!$AH$123:$BC$204,$O83,'Report - ALL (DASHBOARD)'!$W$3) -> 51.82283783 | S83: =INDEX('Compile Data'!$BF$123:$CA$204,$O83,'Report - ALL (DASHBOARD)'!$W$3) -> 50.75895691 | T83: =INDEX('Compile Data'!$CD$123:$CY$204,$O83,'Report - ALL (DASHBOARD)'!$W$3) -> 50.7624588 | U83: =INDEX('Compile Data'!$DB$123:$DW$204,$O83,'Report - ALL (DASHBOARD)'!$W$3) -> 51.5425148 | V83: =INDEX('Compile Data'!$DZ$123:$EU$204,$O83,'Report - ALL (DASHBOARD)'!$W$3) -> 51.54991531
A84: 1977 | B84: =INDEX('Compile Data'!$J$12:$AE$93,$A84-1921,'Report - ALL (DASHBOARD)'!$W$3) -> 65.31702423 | C84: =INDEX('Compile Data'!$AH$12:$BC$93,$A84-1921,'Report - ALL (DASHBOARD)'!$W$3) -> 63.52833557 | D84: =INDEX('Compile Data'!$BF$12:$CA$93,$A84-1921,'Report - ALL (DASHBOARD)'!$W$3) -> 62.16758347 | E84: =INDEX('Compile Data'!$CD$12:$CY$93,$A84-1921,'Report - ALL (DASHBOARD)'!$W$3) -> 62.18003845 | F84: =INDEX('Compile Data'!$DB$12:$DW$93,$A84-1921,'Report - ALL (DASHBOARD)'!$W$3) -> 58.54919434 | G84: =INDEX('Compile Data'!$DZ$12:$EU$93,$A84-1921,'Report - ALL (DASHBOARD)'!$W$3) -> 59.35928726 | O84: 56 | P84: 0.6790123457 | Q84: =INDEX('Compile Data'!$J$123:$AE$204,$O84,'Report - ALL (DASHBOARD)'!$W$3) -> 51.04671097 | R84: =INDEX('Compile Data'!$AH$123:$BC$204,$O84,'Report - ALL (DASHBOARD)'!$W$3) -> 51.81154633 | S84: =INDEX('Compile Data'!$BF$123:$CA$204,$O84,'Report - ALL (DASHBOARD)'!$W$3) -> 50.70626831 | T84: =INDEX('Compile Data'!$CD$123:$CY$204,$O84,'Report - ALL (DASHBOARD)'!$W$3) -> 50.74990845 | U84: =INDEX('Compile Data'!$DB$123:$DW$204,$O84,'Report - ALL (DASHBOARD)'!$W$3) -> 51.52721024 | V84: =INDEX('Compile Data'!$DZ$123:$EU$204,$O84,'Report - ALL (DASHBOARD)'!$W$3) -> 51.51931763
A85: 1978 | B85: =INDEX('Compile Data'!$J$12:$AE$93,$A85-1921,'Report - ALL (DASHBOARD)'!$W$3) -> 51.09087372 | C85: =INDEX('Compile Data'!$AH$12:$BC$93,$A85-1921,'Report - ALL (DASHBOARD)'!$W$3) -> 52.91035843 | D85: =INDEX('Compile Data'!$BF$12:$CA$93,$A85-1921,'Report - ALL (DASHBOARD)'!$W$3) -> 50.3637085 | E85: =INDEX('Compile Data'!$CD$12:$CY$93,$A85-1921,'Report - ALL (DASHBOARD)'!$W$3) -> 50.33861542 | F85: =INDEX('Compile Data'!$DB$12:$DW$93,$A85-1921,'Report - ALL (DASHBOARD)'!$W$3) -> 50.70477295 | G85: =INDEX('Compile Data'!$DZ$12:$EU$93,$A85-1921,'Report - ALL (DASHBOARD)'!$W$3) -> 51.33643723 | O85: 57 | P85: 0.6913580247 | Q85: =INDEX('Compile Data'!$J$123:$AE$204,$O85,'Report - ALL (DASHBOARD)'!$W$3) -> 50.80907059 | R85: =INDEX('Compile Data'!$AH$123:$BC$204,$O85,'Report - ALL (DASHBOARD)'!$W$3) -> 51.69600296 | S85: =INDEX('Compile Data'!$BF$123:$CA$204,$O85,'Report - ALL (DASHBOARD)'!$W$3) -> 50.701828 | T85: =INDEX('Compile Data'!$CD$123:$CY$204,$O85,'Report - ALL (DASHBOARD)'!$W$3) -> 50.70727158 | U85: =INDEX('Compile Data'!$DB$123:$DW$204,$O85,'Report - ALL (DASHBOARD)'!$W$3) -> 51.51517487 | V85: =INDEX('Compile Data'!$DZ$123:$EU$204,$O85,'Report - ALL (DASHBOARD)'!$W$3) -> 51.50251007
A86: 1979 | B86: =INDEX('Compile Data'!$J$12:$AE$93,$A86-1921,'Report - ALL (DASHBOARD)'!$W$3) -> 52.33513641 | C86: =INDEX('Compile Data'!$AH$12:$BC$93,$A86-1921,'Report - ALL (DASHBOARD)'!$W$3) -> 53.97024918 | D86: =INDEX('Compile Data'!$BF$12:$CA$93,$A86-1921,'Report - ALL (DASHBOARD)'!$W$3) -> 52.30241394 | E86: =INDEX('Compile Data'!$CD$12:$CY$93,$A86-1921,'Report - ALL (DASHBOARD)'!$W$3) -> 52.29560089 | F86: =INDEX('Compile Data'!$DB$12:$DW$93,$A86-1921,'Report - ALL (DASHBOARD)'!$W$3) -> 54.10974884 | G86: =INDEX('Compile Data'!$DZ$12:$EU$93,$A86-1921,'Report - ALL (DASHBOARD)'!$W$3) -> 54.09798431 | O86: 58 | P86: 0.7037037037 | Q86: =INDEX('Compile Data'!$J$123:$AE$204,$O86,'Report - ALL (DASHBOARD)'!$W$3) -> 50.77045822 | R86: =INDEX('Compile Data'!$AH$123:$BC$204,$O86,'Report - ALL (DASHBOARD)'!$W$3) -> 51.5195961 | S86: =INDEX('Compile Data'!$BF$123:$CA$204,$O86,'Report - ALL (DASHBOARD)'!$W$3) -> 50.69142151 | T86: =INDEX('Compile Data'!$CD$123:$CY$204,$O86,'Report - ALL (DASHBOARD)'!$W$3) -> 50.69851685 | U86: =INDEX('Compile Data'!$DB$123:$DW$204,$O86,'Report - ALL (DASHBOARD)'!$W$3) -> 51.50905609 | V86: =INDEX('Compile Data'!$DZ$123:$EU$204,$O86,'Report - ALL (DASHBOARD)'!$W$3) -> 51.49823761
A87: 1980 | B87: =INDEX('Compile Data'!$J$12:$AE$93,$A87-1921,'Report - ALL (DASHBOARD)'!$W$3) -> 52.07677078 | C87: =INDEX('Compile Data'!$AH$12:$BC$93,$A87-1921,'Report - ALL (DASHBOARD)'!$W$3) -> 51.5195961 | D87: =INDEX('Compile Data'!$BF$12:$CA$93,$A87-1921,'Report - ALL (DASHBOARD)'!$W$3) -> 50.65125656 | E87: =INDEX('Compile Data'!$CD$12:$CY$93,$A87-1921,'Report - ALL (DASHBOARD)'!$W$3) -> 50.65115738 | F87: =INDEX('Compile Data'!$DB$12:$DW$93,$A87-1921,'Report - ALL (DASHBOARD)'!$W$3) -> 51.23186874 | G87: =INDEX('Compile Data'!$DZ$12:$EU$93,$A87-1921,'Report - ALL (DASHBOARD)'!$W$3) -> 51.27684021 | O87: 59 | P87: 0.7160493827 | Q87: =INDEX('Compile Data'!$J$123:$AE$204,$O87,'Report - ALL (DASHBOARD)'!$W$3) -> 50.74880981 | R87: =INDEX('Compile Data'!$AH$123:$BC$204,$O87,'Report - ALL (DASHBOARD)'!$W$3) -> 51.51083374 | S87: =INDEX('Compile Data'!$BF$123:$CA$204,$O87,'Report - ALL (DASHBOARD)'!$W$3) -> 50.65125656 | T87: =INDEX('Compile Data'!$CD$123:$CY$204,$O87,'Report - ALL (DASHBOARD)'!$W$3) -> 50.65115738 | U87: =INDEX('Compile Data'!$DB$123:$DW$204,$O87,'Report - ALL (DASHBOARD)'!$W$3) -> 51.46543121 | V87: =INDEX('Compile Data'!$DZ$123:$EU$204,$O87,'Report - ALL (DASHBOARD)'!$W$3) -> 51.33643723
A88: 1981 | B88: =INDEX('Compile Data'!$J$12:$AE$93,$A88-1921,'Report - ALL (DASHBOARD)'!$W$3) -> 53.35100937 | C88: =INDEX('Compile Data'!$AH$12:$BC$93,$A88-1921,'Report - ALL (DASHBOARD)'!$W$3) -> 52.31272888 | D88: =INDEX('Compile Data'!$BF$12:$CA$93,$A88-1921,'Report - ALL (DASHBOARD)'!$W$3) -> 53.43098831 | E88: =INDEX('Compile Data'!$CD$12:$CY$93,$A88-1921,'Report - ALL (DASHBOARD)'!$W$3) -> 53.42854309 | F88: =INDEX('Compile Data'!$DB$12:$DW$93,$A88-1921,'Report - ALL (DASHBOARD)'!$W$3) -> 54.08521652 | G88: =INDEX('Compile Data'!$DZ$12:$EU$93,$A88-1921,'Report - ALL (DASHBOARD)'!$W$3) -> 54.07581329 | O88: 60 | P88: 0.7283950617 | Q88: =INDEX('Compile Data'!$J$123:$AE$204,$O88,'Report - ALL (DASHBOARD)'!$W$3) -> 50.72579193 | R88: =INDEX('Compile Data'!$AH$123:$BC$204,$O88,'Report - ALL (DASHBOARD)'!$W$3) -> 51.47898865 | S88: =INDEX('Compile Data'!$BF$123:$CA$204,$O88,'Report - ALL (DASHBOARD)'!$W$3) -> 50.56591415 | T88: =INDEX('Compile Data'!$CD$123:$CY$204,$O88,'Report - ALL (DASHBOARD)'!$W$3) -> 50.59544373 | U88: =INDEX('Compile Data'!$DB$123:$DW$204,$O88,'Report - ALL (DASHBOARD)'!$W$3) -> 51.23186874 | V88: =INDEX('Compile Data'!$DZ$123:$EU$204,$O88,'Report - ALL (DASHBOARD)'!$W$3) -> 51.31487274
A89: 1982 | B89: =INDEX('Compile Data'!$J$12:$AE$93,$A89-1921,'Report - ALL (DASHBOARD)'!$W$3) -> 50.02973175 | C89: =INDEX('Compile Data'!$AH$12:$BC$93,$A89-1921,'Report - ALL (DASHBOARD)'!$W$3) -> 51.81154633 | D89: =INDEX('Compile Data'!$BF$12:$CA$93,$A89-1921,'Report - ALL (DASHBOARD)'!$W$3) -> 50.01540375 | E89: =INDEX('Compile Data'!$CD$12:$CY$93,$A89-1921,'Report - ALL (DASHBOARD)'!$W$3) -> 50.0368309 | F89: =INDEX('Compile Data'!$DB$12:$DW$93,$A89-1921,'Report - ALL (DASHBOARD)'!$W$3) -> 52.10926819 | G89: =INDEX('Compile Data'!$DZ$12:$EU$93,$A89-1921,'Report - ALL (DASHBOARD)'!$W$3) -> 52.09081268 | O89: 61 | P89: 0.7407407407 | Q89: =INDEX('Compile Data'!$J$123:$AE$204,$O89,'Report - ALL (DASHBOARD)'!$W$3) -> 50.70771027 | R89: =INDEX('Compile Data'!$AH$123:$BC$204,$O89,'Report - ALL (DASHBOARD)'!$W$3) -> 51.40625 | S89: =INDEX('Compile Data'!$BF$123:$CA$204,$O89,'Report - ALL (DASHBOARD)'!$W$3) -> 50.42825317 | T89: =INDEX('Compile Data'!$CD$123:$CY$204,$O89,'Report - ALL (DASHBOARD)'!$W$3) -> 50.54905319 | U89: =INDEX('Compile Data'!$DB$123:$DW$204,$O89,'Report - ALL (DASHBOARD)'!$W$3) -> 51.17404556 | V89: =INDEX('Compile Data'!$DZ$123:$EU$204,$O89,'Report - ALL (DASHBOARD)'!$W$3) -> 51.3021965
A90: 1983 | B90: =INDEX('Compile Data'!$J$12:$AE$93,$A90-1921,'Report - ALL (DASHBOARD)'!$W$3) -> 51.08292389 | C90: =INDEX('Compile Data'!$AH$12:$BC$93,$A90-1921,'Report - ALL (DASHBOARD)'!$W$3) -> 50.72141266 | D90: =INDEX('Compile Data'!$BF$12:$CA$93,$A90-1921,'Report - ALL (DASHBOARD)'!$W$3) -> 51.08049011 | E90: =INDEX('Compile Data'!$CD$12:$CY$93,$A90-1921,'Report - ALL (DASHBOARD)'!$W$3) -> 51.08018494 | F90: =INDEX('Compile Data'!$DB$12:$DW$93,$A90-1921,'Report - ALL (DASHBOARD)'!$W$3) -> 50.71186066 | G90: =INDEX('Compile Data'!$DZ$12:$EU$93,$A90-1921,'Report - ALL (DASHBOARD)'!$W$3) -> 50.71097946 | O90: 62 | P90: 0.7530864198 | Q90: =INDEX('Compile Data'!$J$123:$AE$204,$O90,'Report - ALL (DASHBOARD)'!$W$3) -> 50.68167496 | R90: =INDEX('Compile Data'!$AH$123:$BC$204,$O90,'Report - ALL (DASHBOARD)'!$W$3) -> 51.3259697 | S90: =INDEX('Compile Data'!$BF$123:$CA$204,$O90,'Report - ALL (DASHBOARD)'!$W$3) -> 50.40996933 | T90: =INDEX('Compile Data'!$CD$123:$CY$204,$O90,'Report - ALL (DASHBOARD)'!$W$3) -> 50.43223572 | U90: =INDEX('Compile Data'!$DB$123:$DW$204,$O90,'Report - ALL (DASHBOARD)'!$W$3) -> 51.16209412 | V90: =INDEX('Compile Data'!$DZ$123:$EU$204,$O90,'Report - ALL (DASHBOARD)'!$W$3) -> 51.27684021
A91: 1984 | B91: =INDEX('Compile Data'!$J$12:$AE$93,$A91-1921,'Report - ALL (DASHBOARD)'!$W$3) -> 51.524086 | C91: =INDEX('Compile Data'!$AH$12:$BC$93,$A91-1921,'Report - ALL (DASHBOARD)'!$W$3) -> 51.10330963 | D91: =INDEX('Compile Data'!$BF$12:$CA$93,$A91-1921,'Report - ALL (DASHBOARD)'!$W$3) -> 51.46242523 | E91: =INDEX('Compile Data'!$CD$12:$CY$93,$A91-1921,'Report - ALL (DASHBOARD)'!$W$3) -> 51.46110535 | F91: =INDEX('Compile Data'!$DB$12:$DW$93,$A91-1921,'Report - ALL (DASHBOARD)'!$W$3) -> 51.16209412 | G91: =INDEX('Compile Data'!$DZ$12:$EU$93,$A91-1921,'Report - ALL (DASHBOARD)'!$W$3) -> 51.16872406 | O91: 63 | P91: 0.7654320988 | Q91: =INDEX('Compile Data'!$J$123:$AE$204,$O91,'Report - ALL (DASHBOARD)'!$W$3) -> 50.5837822 | R91: =INDEX('Compile Data'!$AH$123:$BC$204,$O91,'Report - ALL (DASHBOARD)'!$W$3) -> 51.30871582 | S91: =INDEX('Compile Data'!$BF$123:$CA$204,$O91,'Report - ALL (DASHBOARD)'!$W$3) -> 50.38834 | T91: =INDEX('Compile Data'!$CD$123:$CY$204,$O91,'Report - ALL (DASHBOARD)'!$W$3) -> 50.39599228 | U91: =INDEX('Compile Data'!$DB$123:$DW$204,$O91,'Report - ALL (DASHBOARD)'!$W$3) -> 51.12135696 | V91: =INDEX('Compile Data'!$DZ$123:$EU$204,$O91,'Report - ALL (DASHBOARD)'!$W$3) -> 51.16872406
A92: 1985 | B92: =INDEX('Compile Data'!$J$12:$AE$93,$A92-1921,'Report - ALL (DASHBOARD)'!$W$3) -> 53.32525635 | C92: =INDEX('Compile Data'!$AH$12:$BC$93,$A92-1921,'Report - ALL (DASHBOARD)'!$W$3) -> 54.19439697 | D92: =INDEX('Compile Data'!$BF$12:$CA$93,$A92-1921,'Report - ALL (DASHBOARD)'!$W$3) -> 52.98040009 | E92: =INDEX('Compile Data'!$CD$12:$CY$93,$A92-1921,'Report - ALL (DASHBOARD)'!$W$3) -> 53.00137711 | F92: =INDEX('Compile Data'!$DB$12:$DW$93,$A92-1921,'Report - ALL (DASHBOARD)'!$W$3) -> 53.92248154 | G92: =INDEX('Compile Data'!$DZ$12:$EU$93,$A92-1921,'Report - ALL (DASHBOARD)'!$W$3) -> 54.15075684 | O92: 64 | P92: 0.7777777778 | Q92: =INDEX('Compile Data'!$J$123:$AE$204,$O92,'Report - ALL (DASHBOARD)'!$W$3) -> 50.4421196 | R92: =INDEX('Compile Data'!$AH$123:$BC$204,$O92,'Report - ALL (DASHBOARD)'!$W$3) -> 51.28556061 | S92: =INDEX('Compile Data'!$BF$123:$CA$204,$O92,'Report - ALL (DASHBOARD)'!$W$3) -> 50.3637085 | T92: =INDEX('Compile Data'!$CD$123:$CY$204,$O92,'Report - ALL (DASHBOARD)'!$W$3) -> 50.38863373 | U92: =INDEX('Compile Data'!$DB$123:$DW$204,$O92,'Report - ALL (DASHBOARD)'!$W$3) -> 51.09449005 | V92: =INDEX('Compile Data'!$DZ$123:$EU$204,$O92,'Report - ALL (DASHBOARD)'!$W$3) -> 51.16572189
A93: 1986 | B93: =INDEX('Compile Data'!$J$12:$AE$93,$A93-1921,'Report - ALL (DASHBOARD)'!$W$3) -> 52.12436295 | C93: =INDEX('Compile Data'!$AH$12:$BC$93,$A93-1921,'Report - ALL (DASHBOARD)'!$W$3) -> 51.82283783 | D93: =INDEX('Compile Data'!$BF$12:$CA$93,$A93-1921,'Report - ALL (DASHBOARD)'!$W$3) -> 52.37314606 | E93: =INDEX('Compile Data'!$CD$12:$CY$93,$A93-1921,'Report - ALL (DASHBOARD)'!$W$3) -> 52.35270309 | F93: =INDEX('Compile Data'!$DB$12:$DW$93,$A93-1921,'Report - ALL (DASHBOARD)'!$W$3) -> 51.82458496 | G93: =INDEX('Compile Data'!$DZ$12:$EU$93,$A93-1921,'Report - ALL (DASHBOARD)'!$W$3) -> 51.82992172 | O93: 65 | P93: =(O93-1)/81 -> 0.7901234568 | Q93: =INDEX('Compile Data'!$J$123:$AE$204,$O93,'Report - ALL (DASHBOARD)'!$W$3) -> 50.39580536 | R93: =INDEX('Compile Data'!$AH$123:$BC$204,$O93,'Report - ALL (DASHBOARD)'!$W$3) -> 51.21176529 | S93: =INDEX('Compile Data'!$BF$123:$CA$204,$O93,'Report - ALL (DASHBOARD)'!$W$3) -> 50.3596344 | T93: =INDEX('Compile Data'!$CD$123:$CY$204,$O93,'Report - ALL (DASHBOARD)'!$W$3) -> 50.3644104 | U93: =INDEX('Compile Data'!$DB$123:$DW$204,$O93,'Report - ALL (DASHBOARD)'!$W$3) -> 51.0784111 | V93: =INDEX('Compile Data'!$DZ$123:$EU$204,$O93,'Report - ALL (DASHBOARD)'!$W$3) -> 51.14561844
A94: 1987 | B94: =INDEX('Compile Data'!$J$12:$AE$93,$A94-1921,'Report - ALL (DASHBOARD)'!$W$3) -> 52.22454453 | C94: =INDEX('Compile Data'!$AH$12:$BC$93,$A94-1921,'Report - ALL (DASHBOARD)'!$W$3) -> 53.38478851 | D94: =INDEX('Compile Data'!$BF$12:$CA$93,$A94-1921,'Report - ALL (DASHBOARD)'!$W$3) -> 52.13994598 | E94: =INDEX('Compile Data'!$CD$12:$CY$93,$A94-1921,'Report - ALL (DASHBOARD)'!$W$3) -> 51.97053528 | F94: =INDEX('Compile Data'!$DB$12:$DW$93,$A94-1921,'Report - ALL (DASHBOARD)'!$W$3) -> 53.25605392 | G94: =INDEX('Compile Data'!$DZ$12:$EU$93,$A94-1921,'Report - ALL (DASHBOARD)'!$W$3) -> 53.29189301 | O94: 66 | P94: 0.8024691358 | Q94: =INDEX('Compile Data'!$J$123:$AE$204,$O94,'Report - ALL (DASHBOARD)'!$W$3) -> 50.3908577 | R94: =INDEX('Compile Data'!$AH$123:$BC$204,$O94,'Report - ALL (DASHBOARD)'!$W$3) -> 51.13258743 | S94: =INDEX('Compile Data'!$BF$123:$CA$204,$O94,'Report - ALL (DASHBOARD)'!$W$3) -> 50.35111618 | T94: =INDEX('Compile Data'!$CD$123:$CY$204,$O94,'Report - ALL (DASHBOARD)'!$W$3) -> 50.34869766 | U94: =INDEX('Compile Data'!$DB$123:$DW$204,$O94,'Report - ALL (DASHBOARD)'!$W$3) -> 51.07645035 | V94: =INDEX('Compile Data'!$DZ$123:$EU$204,$O94,'Report - ALL (DASHBOARD)'!$W$3) -> 51.06168365
A95: =A94+1 -> 1988 | B95: =INDEX('Compile Data'!$J$12:$AE$93,$A95-1921,'Report - ALL (DASHBOARD)'!$W$3) -> 52.95948792 | C95: =INDEX('Compile Data'!$AH$12:$BC$93,$A95-1921,'Report - ALL (DASHBOARD)'!$W$3) -> 54.22189331 | D95: =INDEX('Compile Data'!$BF$12:$CA$93,$A95-1921,'Report - ALL (DASHBOARD)'!$W$3) -> 52.53428268 | E95: =INDEX('Compile Data'!$CD$12:$CY$93,$A95-1921,'Report - ALL (DASHBOARD)'!$W$3) -> 53.03200912 | F95: =INDEX('Compile Data'!$DB$12:$DW$93,$A95-1921,'Report - ALL (DASHBOARD)'!$W$3) -> 53.76350021 | G95: =INDEX('Compile Data'!$DZ$12:$EU$93,$A95-1921,'Report - ALL (DASHBOARD)'!$W$3) -> 53.76016998 | O95: 67 | P95: 0.8148148148 | Q95: =INDEX('Compile Data'!$J$123:$AE$204,$O95,'Report - ALL (DASHBOARD)'!$W$3) -> 50.37451553 | R95: =INDEX('Compile Data'!$AH$123:$BC$204,$O95,'Report - ALL (DASHBOARD)'!$W$3) -> 51.10330963 | S95: =INDEX('Compile Data'!$BF$123:$CA$204,$O95,'Report - ALL (DASHBOARD)'!$W$3) -> 50.30466843 | T95: =INDEX('Compile Data'!$CD$123:$CY$204,$O95,'Report - ALL (DASHBOARD)'!$W$3) -> 50.33861542 | U95: =INDEX('Compile Data'!$DB$123:$DW$204,$O95,'Report - ALL (DASHBOARD)'!$W$3) -> 51.06321335 | V95: =INDEX('Compile Data'!$DZ$123:$EU$204,$O95,'Report - ALL (DASHBOARD)'!$W$3) -> 51.02474976
A96: 1989 | B96: =INDEX('Compile Data'!$J$12:$AE$93,$A96-1921,'Report - ALL (DASHBOARD)'!$W$3) -> 53.99173355 | C96: =INDEX('Compile Data'!$AH$12:$BC$93,$A96-1921,'Report - ALL (DASHBOARD)'!$W$3) -> 55.12052155 | D96: =INDEX('Compile Data'!$BF$12:$CA$93,$A96-1921,'Report - ALL (DASHBOARD)'!$W$3) -> 53.94807434 | E96: =INDEX('Compile Data'!$CD$12:$CY$93,$A96-1921,'Report - ALL (DASHBOARD)'!$W$3) -> 54.05443573 | F96: =INDEX('Compile Data'!$DB$12:$DW$93,$A96-1921,'Report - ALL (DASHBOARD)'!$W$3) -> 55.28179932 | G96: =INDEX('Compile Data'!$DZ$12:$EU$93,$A96-1921,'Report - ALL (DASHBOARD)'!$W$3) -> 55.32283401 | O96: 68 | P96: 0.8271604938 | Q96: =INDEX('Compile Data'!$J$123:$AE$204,$O96,'Report - ALL (DASHBOARD)'!$W$3) -> 50.35299683 | R96: =INDEX('Compile Data'!$AH$123:$BC$204,$O96,'Report - ALL (DASHBOARD)'!$W$3) -> 51.03804016 | S96: =INDEX('Compile Data'!$BF$123:$CA$204,$O96,'Report - ALL (DASHBOARD)'!$W$3) -> 50.2950592 | T96: =INDEX('Compile Data'!$CD$123:$CY$204,$O96,'Report - ALL (DASHBOARD)'!$W$3) -> 50.29364395 | U96: =INDEX('Compile Data'!$DB$123:$DW$204,$O96,'Report - ALL (DASHBOARD)'!$W$3) -> 51.00838089 | V96: =INDEX('Compile Data'!$DZ$123:$EU$204,$O96,'Report - ALL (DASHBOARD)'!$W$3) -> 51.02433395
A97: 1990 | B97: =INDEX('Compile Data'!$J$12:$AE$93,$A97-1921,'Report - ALL (DASHBOARD)'!$W$3) -> 54.15291595 | C97: =INDEX('Compile Data'!$AH$12:$BC$93,$A97-1921,'Report - ALL (DASHBOARD)'!$W$3) -> 55.74361801 | D97: =INDEX('Compile Data'!$BF$12:$CA$93,$A97-1921,'Report - ALL (DASHBOARD)'!$W$3) -> 54.15697861 | E97: =INDEX('Compile Data'!$CD$12:$CY$93,$A97-1921,'Report - ALL (DASHBOARD)'!$W$3) -> 54.16012955 | F97: =INDEX('Compile Data'!$DB$12:$DW$93,$A97-1921,'Report - ALL (DASHBOARD)'!$W$3) -> 55.76023102 | G97: =INDEX('Compile Data'!$DZ$12:$EU$93,$A97-1921,'Report - ALL (DASHBOARD)'!$W$3) -> 55.74572372 | O97: 69 | P97: 0.8395061728 | Q97: =INDEX('Compile Data'!$J$123:$AE$204,$O97,'Report - ALL (DASHBOARD)'!$W$3) -> 50.34731674 | R97: =INDEX('Compile Data'!$AH$123:$BC$204,$O97,'Report - ALL (DASHBOARD)'!$W$3) -> 51.01515579 | S97: =INDEX('Compile Data'!$BF$123:$CA$204,$O97,'Report - ALL (DASHBOARD)'!$W$3) -> 50.27622604 | T97: =INDEX('Compile Data'!$CD$123:$CY$204,$O97,'Report - ALL (DASHBOARD)'!$W$3) -> 50.27629471 | U97: =INDEX('Compile Data'!$DB$123:$DW$204,$O97,'Report - ALL (DASHBOARD)'!$W$3) -> 51.00125885 | V97: =INDEX('Compile Data'!$DZ$123:$EU$204,$O97,'Report - ALL (DASHBOARD)'!$W$3) -> 51.01156616
A98: 1991 | B98: =INDEX('Compile Data'!$J$12:$AE$93,$A98-1921,'Report - ALL (DASHBOARD)'!$W$3) -> 55.68894196 | C98: =INDEX('Compile Data'!$AH$12:$BC$93,$A98-1921,'Report - ALL (DASHBOARD)'!$W$3) -> 56.42705154 | D98: =INDEX('Compile Data'!$BF$12:$CA$93,$A98-1921,'Report - ALL (DASHBOARD)'!$W$3) -> 55.85803223 | E98: =INDEX('Compile Data'!$CD$12:$CY$93,$A98-1921,'Report - ALL (DASHBOARD)'!$W$3) -> 55.88502884 | F98: =INDEX('Compile Data'!$DB$12:$DW$93,$A98-1921,'Report - ALL (DASHBOARD)'!$W$3) -> 56.47601318 | G98: =INDEX('Compile Data'!$DZ$12:$EU$93,$A98-1921,'Report - ALL (DASHBOARD)'!$W$3) -> 56.49671555 | O98: 70 | P98: 0.8518518519 | Q98: =INDEX('Compile Data'!$J$123:$AE$204,$O98,'Report - ALL (DASHBOARD)'!$W$3) -> 50.30679703 | R98: =INDEX('Compile Data'!$AH$123:$BC$204,$O98,'Report - ALL (DASHBOARD)'!$W$3) -> 51.00960922 | S98: =INDEX('Compile Data'!$BF$123:$CA$204,$O98,'Report - ALL (DASHBOARD)'!$W$3) -> 50.2709198 | T98: =INDEX('Compile Data'!$CD$123:$CY$204,$O98,'Report - ALL (DASHBOARD)'!$W$3) -> 50.27375412 | U98: =INDEX('Compile Data'!$DB$123:$DW$204,$O98,'Report - ALL (DASHBOARD)'!$W$3) -> 50.99547195 | V98: =INDEX('Compile Data'!$DZ$123:$EU$204,$O98,'Report - ALL (DASHBOARD)'!$W$3) -> 50.98510742
A99: 1992 | B99: =INDEX('Compile Data'!$J$12:$AE$93,$A99-1921,'Report - ALL (DASHBOARD)'!$W$3) -> 56.0083046 | C99: =INDEX('Compile Data'!$AH$12:$BC$93,$A99-1921,'Report - ALL (DASHBOARD)'!$W$3) -> 56.50163651 | D99: =INDEX('Compile Data'!$BF$12:$CA$93,$A99-1921,'Report - ALL (DASHBOARD)'!$W$3) -> 55.42884827 | E99: =INDEX('Compile Data'!$CD$12:$CY$93,$A99-1921,'Report - ALL (DASHBOARD)'!$W$3) -> 55.19777679 | F99: =INDEX('Compile Data'!$DB$12:$DW$93,$A99-1921,'Report - ALL (DASHBOARD)'!$W$3) -> 56.2161293 | G99: =INDEX('Compile Data'!$DZ$12:$EU$93,$A99-1921,'Report - ALL (DASHBOARD)'!$W$3) -> 56.26832581 | O99: 71 | P99: 0.8641975309 | Q99: =INDEX('Compile Data'!$J$123:$AE$204,$O99,'Report - ALL (DASHBOARD)'!$W$3) -> 50.28275299 | R99: =INDEX('Compile Data'!$AH$123:$BC$204,$O99,'Report - ALL (DASHBOARD)'!$W$3) -> 50.8866539 | S99: =INDEX('Compile Data'!$BF$123:$CA$204,$O99,'Report - ALL (DASHBOARD)'!$W$3) -> 50.25080109 | T99: =INDEX('Compile Data'!$CD$123:$CY$204,$O99,'Report - ALL (DASHBOARD)'!$W$3) -> 50.17681503 | U99: =INDEX('Compile Data'!$DB$123:$DW$204,$O99,'Report - ALL (DASHBOARD)'!$W$3) -> 50.9850235 | V99: =INDEX('Compile Data'!$DZ$123:$EU$204,$O99,'Report - ALL (DASHBOARD)'!$W$3) -> 50.96961975
A100: 1993 | B100: =INDEX('Compile Data'!$J$12:$AE$93,$A100-1921,'Report - ALL (DASHBOARD)'!$W$3) -> 50.5837822 | C100: =INDEX('Compile Data'!$AH$12:$BC$93,$A100-1921,'Report - ALL (DASHBOARD)'!$W$3) -> 50.80728149 | D100: =INDEX('Compile Data'!$BF$12:$CA$93,$A100-1921,'Report - ALL (DASHBOARD)'!$W$3) -> 50.56591415 | E100: =INDEX('Compile Data'!$CD$12:$CY$93,$A100-1921,'Report - ALL (DASHBOARD)'!$W$3) -> 50.59544373 | F100: =INDEX('Compile Data'!$DB$12:$DW$93,$A100-1921,'Report - ALL (DASHBOARD)'!$W$3) -> 50.61639786 | G100: =INDEX('Compile Data'!$DZ$12:$EU$93,$A100-1921,'Report - ALL (DASHBOARD)'!$W$3) -> 50.81822968 | O100: 72 | P100: 0.8765432099 | Q100: =INDEX('Compile Data'!$J$123:$AE$204,$O100,'Report - ALL (DASHBOARD)'!$W$3) -> 50.26847076 | R100: =INDEX('Compile Data'!$AH$123:$BC$204,$O100,'Report - ALL (DASHBOARD)'!$W$3) -> 50.80728149 | S100: =INDEX('Compile Data'!$BF$123:$CA$204,$O100,'Report - ALL (DASHBOARD)'!$W$3) -> 50.16563034 | T100: =INDEX('Compile Data'!$CD$123:$CY$204,$O100,'Report - ALL (DASHBOARD)'!$W$3) -> 50.15712357 | U100: =INDEX('Compile Data'!$DB$123:$DW$204,$O100,'Report - ALL (DASHBOARD)'!$W$3) -> 50.97653961 | V100: =INDEX('Compile Data'!$DZ$123:$EU$204,$O100,'Report - ALL (DASHBOARD)'!$W$3) -> 50.81822968
A101: 1994 | B101: =INDEX('Compile Data'!$J$12:$AE$93,$A101-1921,'Report - ALL (DASHBOARD)'!$W$3) -> 54.26488113 | C101: =INDEX('Compile Data'!$AH$12:$BC$93,$A101-1921,'Report - ALL (DASHBOARD)'!$W$3) -> 54.99808121 | D101: =INDEX('Compile Data'!$BF$12:$CA$93,$A101-1921,'Report - ALL (DASHBOARD)'!$W$3) -> 54.21175003 | E101: =INDEX('Compile Data'!$CD$12:$CY$93,$A101-1921,'Report - ALL (DASHBOARD)'!$W$3) -> 54.20741653 | F101: =INDEX('Compile Data'!$DB$12:$DW$93,$A101-1921,'Report - ALL (DASHBOARD)'!$W$3) -> 54.90950775 | G101: =INDEX('Compile Data'!$DZ$12:$EU$93,$A101-1921,'Report - ALL (DASHBOARD)'!$W$3) -> 54.96606827 | O101: 73 | P101: 0.8888888889 | Q101: =INDEX('Compile Data'!$J$123:$AE$204,$O101,'Report - ALL (DASHBOARD)'!$W$3) -> 50.2575531 | R101: =INDEX('Compile Data'!$AH$123:$BC$204,$O101,'Report - ALL (DASHBOARD)'!$W$3) -> 50.78182602 | S101: =INDEX('Compile Data'!$BF$123:$CA$204,$O101,'Report - ALL (DASHBOARD)'!$W$3) -> 50.13992691 | T101: =INDEX('Compile Data'!$CD$123:$CY$204,$O101,'Report - ALL (DASHBOARD)'!$W$3) -> 50.14468002 | U101: =INDEX('Compile Data'!$DB$123:$DW$204,$O101,'Report - ALL (DASHBOARD)'!$W$3) -> 50.77047348 | V101: =INDEX('Compile Data'!$DZ$123:$EU$204,$O101,'Report - ALL (DASHBOARD)'!$W$3) -> 50.78483582
A102: 1995 | B102: =INDEX('Compile Data'!$J$12:$AE$93,$A102-1921,'Report - ALL (DASHBOARD)'!$W$3) -> 52.32608414 | C102: =INDEX('Compile Data'!$AH$12:$BC$93,$A102-1921,'Report - ALL (DASHBOARD)'!$W$3) -> 51.85459137 | D102: =INDEX('Compile Data'!$BF$12:$CA$93,$A102-1921,'Report - ALL (DASHBOARD)'!$W$3) -> 52.3200531 | E102: =INDEX('Compile Data'!$CD$12:$CY$93,$A102-1921,'Report - ALL (DASHBOARD)'!$W$3) -> 52.31959152 | F102: =INDEX('Compile Data'!$DB$12:$DW$93,$A102-1921,'Report - ALL (DASHBOARD)'!$W$3) -> 51.88079071 | G102: =INDEX('Compile Data'!$DZ$12:$EU$93,$A102-1921,'Report - ALL (DASHBOARD)'!$W$3) -> 51.8893013 | O102: 74 | P102: 0.9012345679 | Q102: =INDEX('Compile Data'!$J$123:$AE$204,$O102,'Report - ALL (DASHBOARD)'!$W$3) -> 50.19544601 | R102: =INDEX('Compile Data'!$AH$123:$BC$204,$O102,'Report - ALL (DASHBOARD)'!$W$3) -> 50.73944473 | S102: =INDEX('Compile Data'!$BF$123:$CA$204,$O102,'Report - ALL (DASHBOARD)'!$W$3) -> 50.13928223 | T102: =INDEX('Compile Data'!$CD$123:$CY$204,$O102,'Report - ALL (DASHBOARD)'!$W$3) -> 50.1293869 | U102: =INDEX('Compile Data'!$DB$123:$DW$204,$O102,'Report - ALL (DASHBOARD)'!$W$3) -> 50.75074005 | V102: =INDEX('Compile Data'!$DZ$123:$EU$204,$O102,'Report - ALL (DASHBOARD)'!$W$3) -> 50.7520256
A103: 1996 | B103: =INDEX('Compile Data'!$J$12:$AE$93,$A103-1921,'Report - ALL (DASHBOARD)'!$W$3) -> 52.78435898 | C103: =INDEX('Compile Data'!$AH$12:$BC$93,$A103-1921,'Report - ALL (DASHBOARD)'!$W$3) -> 54.65264893 | D103: =INDEX('Compile Data'!$BF$12:$CA$93,$A103-1921,'Report - ALL (DASHBOARD)'!$W$3) -> 52.76912689 | E103: =INDEX('Compile Data'!$CD$12:$CY$93,$A103-1921,'Report - ALL (DASHBOARD)'!$W$3) -> 52.77866364 | F103: =INDEX('Compile Data'!$DB$12:$DW$93,$A103-1921,'Report - ALL (DASHBOARD)'!$W$3) -> 54.69169617 | G103: =INDEX('Compile Data'!$DZ$12:$EU$93,$A103-1921,'Report - ALL (DASHBOARD)'!$W$3) -> 54.69507217 | O103: 75 | P103: 0.9135802469 | Q103: =INDEX('Compile Data'!$J$123:$AE$204,$O103,'Report - ALL (DASHBOARD)'!$W$3) -> 50.15649033 | R103: =INDEX('Compile Data'!$AH$123:$BC$204,$O103,'Report - ALL (DASHBOARD)'!$W$3) -> 50.72141266 | S103: =INDEX('Compile Data'!$BF$123:$CA$204,$O103,'Report - ALL (DASHBOARD)'!$W$3) -> 50.10546112 | T103: =INDEX('Compile Data'!$CD$123:$CY$204,$O103,'Report - ALL (DASHBOARD)'!$W$3) -> 50.12721252 | U103: =INDEX('Compile Data'!$DB$123:$DW$204,$O103,'Report - ALL (DASHBOARD)'!$W$3) -> 50.7441864 | V103: =INDEX('Compile Data'!$DZ$123:$EU$204,$O103,'Report - ALL (DASHBOARD)'!$W$3) -> 50.74659729
A104: 1997 | B104: =INDEX('Compile Data'!$J$12:$AE$93,$A104-1921,'Report - ALL (DASHBOARD)'!$W$3) -> 51.15143204 | C104: =INDEX('Compile Data'!$AH$12:$BC$93,$A104-1921,'Report - ALL (DASHBOARD)'!$W$3) -> 51.3259697 | D104: =INDEX('Compile Data'!$BF$12:$CA$93,$A104-1921,'Report - ALL (DASHBOARD)'!$W$3) -> 51.16837311 | E104: =INDEX('Compile Data'!$CD$12:$CY$93,$A104-1921,'Report - ALL (DASHBOARD)'!$W$3) -> 51.12360001 | F104: =INDEX('Compile Data'!$DB$12:$DW$93,$A104-1921,'Report - ALL (DASHBOARD)'!$W$3) -> 51.17404556 | G104: =INDEX('Compile Data'!$DZ$12:$EU$93,$A104-1921,'Report - ALL (DASHBOARD)'!$W$3) -> 51.16572189 | O104: 76 | P104: 0.9259259259 | Q104: =INDEX('Compile Data'!$J$123:$AE$204,$O104,'Report - ALL (DASHBOARD)'!$W$3) -> 50.11315918 | R104: =INDEX('Compile Data'!$AH$123:$BC$204,$O104,'Report - ALL (DASHBOARD)'!$W$3) -> 50.7123642 | S104: =INDEX('Compile Data'!$BF$123:$CA$204,$O104,'Report - ALL (DASHBOARD)'!$W$3) -> 50.07925797 | T104: =INDEX('Compile Data'!$CD$123:$CY$204,$O104,'Report - ALL (DASHBOARD)'!$W$3) -> 50.0687561 | U104: =INDEX('Compile Data'!$DB$123:$DW$204,$O104,'Report - ALL (DASHBOARD)'!$W$3) -> 50.71186066 | V104: =INDEX('Compile Data'!$DZ$123:$EU$204,$O104,'Report - ALL (DASHBOARD)'!$W$3) -> 50.73441696
A105: 1998 | B105: =INDEX('Compile Data'!$J$12:$AE$93,$A105-1921,'Report - ALL (DASHBOARD)'!$W$3) -> 54.68373871 | C105: =INDEX('Compile Data'!$AH$12:$BC$93,$A105-1921,'Report - ALL (DASHBOARD)'!$W$3) -> 52.14749146 | D105: =INDEX('Compile Data'!$BF$12:$CA$93,$A105-1921,'Report - ALL (DASHBOARD)'!$W$3) -> 54.67821884 | E105: =INDEX('Compile Data'!$CD$12:$CY$93,$A105-1921,'Report - ALL (DASHBOARD)'!$W$3) -> 54.68080139 | F105: =INDEX('Compile Data'!$DB$12:$DW$93,$A105-1921,'Report - ALL (DASHBOARD)'!$W$3) -> 52.16928482 | G105: =INDEX('Compile Data'!$DZ$12:$EU$93,$A105-1921,'Report - ALL (DASHBOARD)'!$W$3) -> 52.18207169 | O105: 77 | P105: 0.9382716049 | Q105: =INDEX('Compile Data'!$J$123:$AE$204,$O105,'Report - ALL (DASHBOARD)'!$W$3) -> 50.09543991 | R105: =INDEX('Compile Data'!$AH$123:$BC$204,$O105,'Report - ALL (DASHBOARD)'!$W$3) -> 50.70679092 | S105: =INDEX('Compile Data'!$BF$123:$CA$204,$O105,'Report - ALL (DASHBOARD)'!$W$3) -> 50.06525803 | T105: =INDEX('Compile Data'!$CD$123:$CY$204,$O105,'Report - ALL (DASHBOARD)'!$W$3) -> 50.05495834 | U105: =INDEX('Compile Data'!$DB$123:$DW$204,$O105,'Report - ALL (DASHBOARD)'!$W$3) -> 50.70477295 | V105: =INDEX('Compile Data'!$DZ$123:$EU$204,$O105,'Report - ALL (DASHBOARD)'!$W$3) -> 50.71849823
A106: 1999 | B106: =INDEX('Compile Data'!$J$12:$AE$93,$A106-1921,'Report - ALL (DASHBOARD)'!$W$3) -> 50.72579193 | C106: =INDEX('Compile Data'!$AH$12:$BC$93,$A106-1921,'Report - ALL (DASHBOARD)'!$W$3) -> 51.91805267 | D106: =INDEX('Compile Data'!$BF$12:$CA$93,$A106-1921,'Report - ALL (DASHBOARD)'!$W$3) -> 50.70626831 | E106: =INDEX('Compile Data'!$CD$12:$CY$93,$A106-1921,'Report - ALL (DASHBOARD)'!$W$3) -> 50.70727158 | F106: =INDEX('Compile Data'!$DB$12:$DW$93,$A106-1921,'Report - ALL (DASHBOARD)'!$W$3) -> 51.88513184 | G106: =INDEX('Compile Data'!$DZ$12:$EU$93,$A106-1921,'Report - ALL (DASHBOARD)'!$W$3) -> 51.89873123 | O106: 78 | P106: 0.950617284 | Q106: =INDEX('Compile Data'!$J$123:$AE$204,$O106,'Report - ALL (DASHBOARD)'!$W$3) -> 50.07141876 | R106: =INDEX('Compile Data'!$AH$123:$BC$204,$O106,'Report - ALL (DASHBOARD)'!$W$3) -> 50.68599319 | S106: =INDEX('Compile Data'!$BF$123:$CA$204,$O106,'Report - ALL (DASHBOARD)'!$W$3) -> 50.05426788 | T106: =INDEX('Compile Data'!$CD$123:$CY$204,$O106,'Report - ALL (DASHBOARD)'!$W$3) -> 50.0368309 | U106: =INDEX('Compile Data'!$DB$123:$DW$204,$O106,'Report - ALL (DASHBOARD)'!$W$3) -> 50.68613434 | V106: =INDEX('Compile Data'!$DZ$123:$EU$204,$O106,'Report - ALL (DASHBOARD)'!$W$3) -> 50.71097946
A107: 2000 | B107: =INDEX('Compile Data'!$J$12:$AE$93,$A107-1921,'Report - ALL (DASHBOARD)'!$W$3) -> 52.92120361 | C107: =INDEX('Compile Data'!$AH$12:$BC$93,$A107-1921,'Report - ALL (DASHBOARD)'!$W$3) -> 53.97821426 | D107: =INDEX('Compile Data'!$BF$12:$CA$93,$A107-1921,'Report - ALL (DASHBOARD)'!$W$3) -> 52.38694382 | E107: =INDEX('Compile Data'!$CD$12:$CY$93,$A107-1921,'Report - ALL (DASHBOARD)'!$W$3) -> 52.39776611 | F107: =INDEX('Compile Data'!$DB$12:$DW$93,$A107-1921,'Report - ALL (DASHBOARD)'!$W$3) -> 53.22943878 | G107: =INDEX('Compile Data'!$DZ$12:$EU$93,$A107-1921,'Report - ALL (DASHBOARD)'!$W$3) -> 53.39443207 | O107: 79 | P107: 0.962962963 | Q107: =INDEX('Compile Data'!$J$123:$AE$204,$O107,'Report - ALL (DASHBOARD)'!$W$3) -> 50.05224228 | R107: =INDEX('Compile Data'!$AH$123:$BC$204,$O107,'Report - ALL (DASHBOARD)'!$W$3) -> 50.65196991 | S107: =INDEX('Compile Data'!$BF$123:$CA$204,$O107,'Report - ALL (DASHBOARD)'!$W$3) -> 50.024086 | T107: =INDEX('Compile Data'!$CD$123:$CY$204,$O107,'Report - ALL (DASHBOARD)'!$W$3) -> 50.03415298 | U107: =INDEX('Compile Data'!$DB$123:$DW$204,$O107,'Report - ALL (DASHBOARD)'!$W$3) -> 50.61639786 | V107: =INDEX('Compile Data'!$DZ$123:$EU$204,$O107,'Report - ALL (DASHBOARD)'!$W$3) -> 50.60071182
A108: 2001 | B108: =INDEX('Compile Data'!$J$12:$AE$93,$A108-1921,'Report - ALL (DASHBOARD)'!$W$3) -> 54.09262466 | C108: =INDEX('Compile Data'!$AH$12:$BC$93,$A108-1921,'Report - ALL (DASHBOARD)'!$W$3) -> 55.34955215 | D108: =INDEX('Compile Data'!$BF$12:$CA$93,$A108-1921,'Report - ALL (DASHBOARD)'!$W$3) -> 53.66935349 | E108: =INDEX('Compile Data'!$CD$12:$CY$93,$A108-1921,'Report - ALL (DASHBOARD)'!$W$3) -> 53.64888763 | F108: =INDEX('Compile Data'!$DB$12:$DW$93,$A108-1921,'Report - ALL (DASHBOARD)'!$W$3) -> 55.36207581 | G108: =INDEX('Compile Data'!$DZ$12:$EU$93,$A108-1921,'Report - ALL (DASHBOARD)'!$W$3) -> 55.53705215 | O108: 80 | P108: 0.975308642 | Q108: =INDEX('Compile Data'!$J$123:$AE$204,$O108,'Report - ALL (DASHBOARD)'!$W$3) -> 50.02973175 | R108: =INDEX('Compile Data'!$AH$123:$BC$204,$O108,'Report - ALL (DASHBOARD)'!$W$3) -> 50.61986542 | S108: =INDEX('Compile Data'!$BF$123:$CA$204,$O108,'Report - ALL (DASHBOARD)'!$W$3) -> 50.01540375 | T108: =INDEX('Compile Data'!$CD$123:$CY$204,$O108,'Report - ALL (DASHBOARD)'!$W$3) -> 49.96949768 | U108: =INDEX('Compile Data'!$DB$123:$DW$204,$O108,'Report - ALL (DASHBOARD)'!$W$3) -> 50.6052475 | V108: =INDEX('Compile Data'!$DZ$123:$EU$204,$O108,'Report - ALL (DASHBOARD)'!$W$3) -> 50.58571625
A109: 2002 | B109: =INDEX('Compile Data'!$J$12:$AE$93,$A109-1921,'Report - ALL (DASHBOARD)'!$W$3) -> 52.74786377 | C109: =INDEX('Compile Data'!$AH$12:$BC$93,$A109-1921,'Report - ALL (DASHBOARD)'!$W$3) -> 53.06710815 | D109: =INDEX('Compile Data'!$BF$12:$CA$93,$A109-1921,'Report - ALL (DASHBOARD)'!$W$3) -> 52.80158997 | E109: =INDEX('Compile Data'!$CD$12:$CY$93,$A109-1921,'Report - ALL (DASHBOARD)'!$W$3) -> 52.7875061 | F109: =INDEX('Compile Data'!$DB$12:$DW$93,$A109-1921,'Report - ALL (DASHBOARD)'!$W$3) -> 53.0643959 | G109: =INDEX('Compile Data'!$DZ$12:$EU$93,$A109-1921,'Report - ALL (DASHBOARD)'!$W$3) -> 53.07738495 | O109: 81 | P109: 0.987654321 | Q109: =INDEX('Compile Data'!$J$123:$AE$204,$O109,'Report - ALL (DASHBOARD)'!$W$3) -> 49.79504013 | R109: =INDEX('Compile Data'!$AH$123:$BC$204,$O109,'Report - ALL (DASHBOARD)'!$W$3) -> 50.42658234 | S109: =INDEX('Compile Data'!$BF$123:$CA$204,$O109,'Report - ALL (DASHBOARD)'!$W$3) -> 49.79946136 | T109: =INDEX('Compile Data'!$CD$123:$CY$204,$O109,'Report - ALL (DASHBOARD)'!$W$3) -> 49.79614258 | U109: =INDEX('Compile Data'!$DB$123:$DW$204,$O109,'Report - ALL (DASHBOARD)'!$W$3) -> 50.51353455 | V109: =INDEX('Compile Data'!$DZ$123:$EU$204,$O109,'Report - ALL (DASHBOARD)'!$W$3) -> 50.49804306
A110: 2003 | B110: =INDEX('Compile Data'!$J$12:$AE$93,$A110-1921,'Report - ALL (DASHBOARD)'!$W$3) -> 51.25930405 | C110: =INDEX('Compile Data'!$AH$12:$BC$93,$A110-1921,'Report - ALL (DASHBOARD)'!$W$3) -> 51.85041809 | D110: =INDEX('Compile Data'!$BF$12:$CA$93,$A110-1921,'Report - ALL (DASHBOARD)'!$W$3) -> 51.12520218 | E110: =INDEX('Compile Data'!$CD$12:$CY$93,$A110-1921,'Report - ALL (DASHBOARD)'!$W$3) -> 51.10797882 | F110: =INDEX('Compile Data'!$DB$12:$DW$93,$A110-1921,'Report - ALL (DASHBOARD)'!$W$3) -> 51.6829071 | G110: =INDEX('Compile Data'!$DZ$12:$EU$93,$A110-1921,'Report - ALL (DASHBOARD)'!$W$3) -> 51.73855591 | O110: 82 | P110: 1 | Q110: =INDEX('Compile Data'!$J$123:$AE$204,$O110,'Report - ALL (DASHBOARD)'!$W$3) -> 49.71268845 | R110: =INDEX('Compile Data'!$AH$123:$BC$204,$O110,'Report - ALL (DASHBOARD)'!$W$3) -> 50.40669632 | S110: =INDEX('Compile Data'!$BF$123:$CA$204,$O110,'Report - ALL (DASHBOARD)'!$W$3) -> 49.69420624 | T110: =INDEX('Compile Data'!$CD$123:$CY$204,$O110,'Report - ALL (DASHBOARD)'!$W$3) -> 49.68525314 | U110: =INDEX('Compile Data'!$DB$123:$DW$204,$O110,'Report - ALL (DASHBOARD)'!$W$3) -> 50.43830872 | V110: =INDEX('Compile Data'!$DZ$123:$EU$204,$O110,'Report - ALL (DASHBOARD)'!$W$3) -> 50.47889709

Sheet Compile Data
B1: =Control!$C$9 -> NAA 011221 | C1: =Control!$C$10 -> NAA 032822 2035CT | D1: =Control!$C$11 -> ALT3 020121 | E1: =Control!$C$12 -> ALT3BR 032321 | F1: =Control!$C$13 -> ALT3A 032922 2035CT | G1: =Control!$C$14 -> ALT3B 032922 2035CT | AA1: =$B$8 -> PER-AVER | AY1: =$C$8 -> PER-AVER | BW1: ='Compile Data'!$D$8 -> PER-AVER | CU1: ='Compile Data'!$E$8 -> PER-AVER | DS1: ='Compile Data'!$F$8 -> PER-AVER | EQ1: ='Compile Data'!$F$8 -> PER-AVER
A2: Index: | B2: ='Report - ALL (DASHBOARD)'!W1 -> 10 | C2: =B2 -> 10 | D2: 10 | E2: 10 | F2: 10 | G2: 10
A3: Convert? | B3: =IF('Report - ALL (DASHBOARD)'!W4,1,0) -> 0 | C3: 0 | D3: 0 | E3: 0 | F3: 0 | G3: 0
A4: Column: | B4: =VLOOKUP(B$2,Control!$A$39:$J$125,7) -> J | C4: J | D4: J | E4: J | F4: J | G4: J
A5: Title: | B5: =VLOOKUP(B$2,Control!$A$39:$J$125,10) -> Sacramento River Below Clear Creek Temperature | C5: =VLOOKUP(C$2,Control!$A$39:$J$125,10) -> Sacramento River Below Clear Creek Temperature | D5: =VLOOKUP(D$2,Control!$A$39:$J$125,10) -> Sacramento River Below Clear Creek Temperature | E5: =VLOOKUP(E$2,Control!$A$39:$J$111,10) -> Sacramento River Below Clear Creek Temperature | F5: =VLOOKUP(F$2,Control!$A$39:$J$111,10) -> Sacramento River Below Clear Creek Temperature | G5: =VLOOKUP(G$2,Control!$A$39:$J$111,10) -> Sacramento River Below Clear Creek Temperature
A6: Parameter: | B6: =INDIRECT(CONCATENATE("'",B$1,"'!",B$4,2)) -> BLW CLEAR CREEK | C6: BLW CLEAR CREEK | D6: BLW CLEAR CREEK | E6: BLW CLEAR CREEK | F6: BLW CLEAR CREEK | G6: BLW CLEAR CREEK
B7: =INDIRECT(CONCATENATE("'",B$1,"'!",B$4,3)) -> TEMP | C7: TEMP | D7: TEMP | E7: TEMP | F7: TEMP | G7: TEMP
A8: Type: | B8: =TRIM(VLOOKUP(B$2,Control!$A$39:$J$111,9)) -> PER-AVER | C8: =TRIM(VLOOKUP(C$2,Control!$A$39:$J$111,9)) -> PER-AVER | D8: =TRIM(VLOOKUP(D$2,Control!$A$39:$J$111,9)) -> PER-AVER | E8: =TRIM(VLOOKUP(E$2,Control!$A$39:$J$111,9)) -> PER-AVER | F8: =TRIM(VLOOKUP(F$2,Control!$A$39:$J$111,9)) -> PER-AVER | G8: =TRIM(VLOOKUP(G$2,Control!$A$39:$J$111,9)) -> PER-AVER | I8: =CONCATENATE(TRIM(B$1),": ",TRIM(B$5)," - ",TRIM(B$6)," ",TRIM(B$7)," (",TRIM(B$10),") ",TRIM(B$11)) -> NAA 011221: Sacramento River Below Clear Creek Temperature - BLW CLEAR CREEK TEMP (DEGF) | AG8: =CONCATENATE(TRIM(C$1),": ",TRIM(C$5)," - ",TRIM(C$6)," ",TRIM(C$7)," (",TRIM(C$10),") ",TRIM(C$11)) -> NAA 032822 2035CT: Sacramento River Below Clear Creek Temperature - BLW CLEAR CREEK TEMP (DEGF) | BE8: =CONCATENATE(TRIM('Compile Data'!D$1),": ",TRIM('Compile Data'!D$5)," - ",TRIM('Compile Data'!D$6)," ",TRIM('Compile Data'!D$7)," (",TRIM('Compile Data'!D$10),") ",TRIM('Compile Data'!D$11)) -> ALT3 020121: Sacramento River Below Clear Creek Temperature - BLW CLEAR CREEK TEMP (DEGF) | CC8: =CONCATENATE(TRIM('Compile Data'!E$1),": ",TRIM('Compile Data'!E$5)," - ",TRIM('Compile Data'!E$6)," ",TRIM('Compile Data'!E$7)," (",TRIM('Compile Data'!E$10),") ",TRIM('Compile Data'!E$11)) -> ALT3BR 032321: Sacramento River Below Clear Creek Temperature - BLW CLEAR CREEK TEMP (DEGF) | DA8: =CONCATENATE(TRIM('Compile Data'!F$1),": ",TRIM('Compile Data'!F$5)," - ",TRIM('Compile Data'!F$6)," ",TRIM('Compile Data'!F$7)," (",TRIM('Compile Data'!F$10),") ",TRIM('Compile Data'!F$11)) -> ALT3A 032922 2035CT: Sacramento River Below Clear Creek Temperature - BLW CLEAR CREEK TEMP (DEGF) | DY8: =CONCATENATE(TRIM('Compile Data'!G$1),": ",TRIM('Compile Data'!G$5)," - ",TRIM('Compile Data'!G$6)," ",TRIM('Compile Data'!G$7)," (",TRIM('Compile Data'!G$10),") ",TRIM('Compile Data'!G$11)) -> ALT3B 032922 2035CT: Sacramento River Below Clear Creek Temperature - BLW CLEAR CREEK TEMP (DEGF)
A9: Units-native: | B9: =TRIM(INDIRECT(CONCATENATE("'",B$1,"'!",B$4,11))) -> DEGF | C9: DEGF | D9: DEGF | E9: DEGF | F9: DEGF | G9: DEGF
A10: Units-shown: | B10: =IF(AND(B$3>0,B$9="CFS"),"TAF",B$9) -> DEGF | C10: DEGF | D10: DEGF | E10: DEGF | F10: DEGF | G10: DEGF | W10: Jan-Dec | X10: Mar-Feb | Y10: Oct-Sep | AA10: Oct-Jan | AB10: Dec-Feb | AC10: Mar-Jun | AD10: Jun-Sep | AE10: Sep-Nov | AU10: Jan-Dec | AV10: Mar-Feb | AW10: Oct-Sep | AY10: Oct-Jan | AZ10: Dec-Feb | BA10: Mar-Jun | BB10: Jun-Sep | BC10: Sep-Nov | BS10: Jan-Dec | BT10: Mar-Feb | BU10: Oct-Sep | BW10: Oct-Jan | BX10: Dec-Feb | BY10: Mar-Jun | BZ10: Jun-Sep | CA10: Sep-Nov | CQ10: Jan-Dec | CR10: Mar-Feb | CS10: Oct-Sep | CU10: Oct-Jan | CV10: Dec-Feb | CW10: Mar-Jun | CX10: Jun-Sep | CY10: Sep-Nov | DO10: Jan-Dec | DP10: Mar-Feb | DQ10: Oct-Sep | DS10: Oct-Jan | DT10: Dec-Feb | DU10: Mar-Jun | DV10: Jun-Sep | DW10: Sep-Nov | EM10: Jan-Dec | EN10: Mar-Feb | EO10: Oct-Sep | EQ10: Oct-Jan | ER10: Dec-Feb | ES10: Mar-Jun | ET10: Jun-Sep | EU10: Sep-Nov
A11: Date | B11: =IF(ISNUMBER(FIND("PRV",B$6)),"SHIFTED","") ->  | I11: YEAR | J11: OCT | K11: NOV | L11: DEC | M11: JAN | N11: FEB | O11: MAR | P11: APR | Q11: MAY | R11: JUN | S11: JUL | T11: AUG | U11: SEP | W11: =IF(AND($B$10="TAF",$B$8="PER-AVER"),"TOT","AVG") -> AVG | X11: =IF(AND($B$10="TAF",$B$8="PER-AVER"),"TOT","AVG") -> AVG | Y11: =IF(AND($B$10="TAF",$B$8="PER-AVER"),"TOT","AVG") -> AVG | AA11: =IF(AND($B$10="TAF",$B$8="PER-AVER"),"TOT","AVG") -> AVG | AB11: =IF(AND($B$10="TAF",$B$8="PER-AVER"),"TOT","AVG") -> AVG | AC11: =IF(AND($B$10="TAF",$B$8="PER-AVER"),"TOT","AVG") -> AVG | AD11: =IF(AND($B$10="TAF",$B$8="PER-AVER"),"TOT","AVG") -> AVG | AE11: =IF(AND($B$10="TAF",$B$8="PER-AVER"),"TOT","AVG") -> AVG | AG11: YEAR | AH11: OCT | AI11: NOV | AJ11: DEC | AK11: JAN | AL11: FEB | AM11: MAR | AN11: APR | AO11: MAY | AP11: JUN | AQ11: JUL | AR11: AUG | AS11: SEP | AU11: =IF(AND($C$10="TAF",$C$8="PER-AVER"),"TOT","AVG") -> AVG | AV11: =IF(AND($C$10="TAF",$C$8="PER-AVER"),"TOT","AVG") -> AVG | AW11: =IF(AND($C$10="TAF",$C$8="PER-AVER"),"TOT","AVG") -> AVG | AY11: =IF(AND($C$10="TAF",$C$8="PER-AVER"),"TOT","AVG") -> AVG | AZ11: =IF(AND($C$10="TAF",$C$8="PER-AVER"),"TOT","AVG") -> AVG | BA11: =IF(AND($C$10="TAF",$C$8="PER-AVER"),"TOT","AVG") -> AVG | BB11: =IF(AND($C$10="TAF",$C$8="PER-AVER"),"TOT","AVG") -> AVG | BC11: =IF(AND($C$10="TAF",$C$8="PER-AVER"),"TOT","AVG") -> AVG | BE11: YEAR | BF11: OCT | BG11: NOV | BH11: DEC | BI11: JAN | BJ11: FEB | BK11: MAR | BL11: APR | BM11: MAY | BN11: JUN | BO11: JUL | BP11: AUG | BQ11: SEP | BS11: =IF(AND('Compile Data'!$D$10="TAF",'Compile Data'!$D$8="PER-AVER"),"TOT","AVG") -> AVG | BT11: =IF(AND('Compile Data'!$D$10="TAF",'Compile Data'!$D$8="PER-AVER"),"TOT","AVG") -> AVG | BU11: =IF(AND('Compile Data'!$D$10="TAF",'Compile Data'!$D$8="PER-AVER"),"TOT","AVG") -> AVG | BW11: =IF(AND('Compile Data'!$D$10="TAF",'Compile Data'!$D$8="PER-AVER"),"TOT","AVG") -> AVG | BX11: =IF(AND('Compile Data'!$D$10="TAF",'Compile Data'!$D$8="PER-AVER"),"TOT","AVG") -> AVG | BY11: =IF(AND('Compile Data'!$D$10="TAF",'Compile Data'!$D$8="PER-AVER"),"TOT","AVG") -> AVG | BZ11: =IF(AND('Compile Data'!$D$10="TAF",'Compile Data'!$D$8="PER-AVER"),"TOT","AVG") -> AVG | CA11: =IF(AND('Compile Data'!$D$10="TAF",'Compile Data'!$D$8="PER-AVER"),"TOT","AVG") -> AVG | CC11: YEAR | CD11: OCT | CE11: NOV | CF11: DEC | CG11: JAN | CH11: FEB | CI11: MAR | CJ11: APR | CK11: MAY | CL11: JUN | CM11: JUL | CN11: AUG | CO11: SEP | CQ11: =IF(AND('Compile Data'!$E$10="TAF",'Compile Data'!$E$8="PER-AVER"),"TOT","AVG") -> AVG | CR11: =IF(AND('Compile Data'!$E$10="TAF",'Compile Data'!$E$8="PER-AVER"),"TOT","AVG") -> AVG | CS11: =IF(AND('Compile Data'!$E$10="TAF",'Compile Data'!$E$8="PER-AVER"),"TOT","AVG") -> AVG | CU11: =IF(AND('Compile Data'!$E$10="TAF",'Compile Data'!$E$8="PER-AVER"),"TOT","AVG") -> AVG | CV11: =IF(AND('Compile Data'!$E$10="TAF",'Compile Data'!$E$8="PER-AVER"),"TOT","AVG") -> AVG | CW11: =IF(AND('Compile Data'!$E$10="TAF",'Compile Data'!$E$8="PER-AVER"),"TOT","AVG") -> AVG | CX11: =IF(AND('Compile Data'!$E$10="TAF",'Compile Data'!$E$8="PER-AVER"),"TOT","AVG") -> AVG | CY11: =IF(AND('Compile Data'!$E$10="TAF",'Compile Data'!$E$8="PER-AVER"),"TOT","AVG") -> AVG | DA11: YEAR | DB11: OCT | DC11: NOV | DD11: DEC | DE11: JAN | DF11: FEB | DG11: MAR | DH11: APR | DI11: MAY | DJ11: JUN | DK11: JUL | DL11: AUG | DM11: SEP | DO11: =IF(AND('Compile Data'!$F$10="TAF",'Compile Data'!$F$8="PER-AVER"),"TOT","AVG") -> AVG | DP11: =IF(AND('Compile Data'!$F$10="TAF",'Compile Data'!$F$8="PER-AVER"),"TOT","AVG") -> AVG | DQ11: =IF(AND('Compile Data'!$F$10="TAF",'Compile Data'!$F$8="PER-AVER"),"TOT","AVG") -> AVG | DS11: =IF(AND('Compile Data'!$F$10="TAF",'Compile Data'!$F$8="PER-AVER"),"TOT","AVG") -> AVG | DT11: =IF(AND('Compile Data'!$F$10="TAF",'Compile Data'!$F$8="PER-AVER"),"TOT","AVG") -> AVG | DU11: =IF(AND('Compile Data'!$F$10="TAF",'Compile Data'!$F$8="PER-AVER"),"TOT","AVG") -> AVG | DV11: =IF(AND('Compile Data'!$F$10="TAF",'Compile Data'!$F$8="PER-AVER"),"TOT","AVG") -> AVG | DW11: =IF(AND('Compile Data'!$F$10="TAF",'Compile Data'!$F$8="PER-AVER"),"TOT","AVG") -> AVG | DY11: YEAR | DZ11: OCT | EA11: NOV | EB11: DEC | EC11: JAN | ED11: FEB | EE11: MAR | EF11: APR | EG11: MAY | EH11: JUN | EI11: JUL | EJ11: AUG | EK11: SEP | EM11: =IF(AND('Compile Data'!$F$10="TAF",'Compile Data'!$F$8="PER-AVER"),"TOT","AVG") -> AVG | EN11: =IF(AND('Compile Data'!$F$10="TAF",'Compile Data'!$F$8="PER-AVER"),"TOT","AVG") -> AVG | EO11: =IF(AND('Compile Data'!$F$10="TAF",'Compile Data'!$F$8="PER-AVER"),"TOT","AVG") -> AVG | EQ11: =IF(AND('Compile Data'!$F$10="TAF",'Compile Data'!$F$8="PER-AVER"),"TOT","AVG") -> AVG | ER11: =IF(AND('Compile Data'!$F$10="TAF",'Compile Data'!$F$8="PER-AVER"),"TOT","AVG") -> AVG | ES11: =IF(AND('Compile Data'!$F$10="TAF",'Compile Data'!$F$8="PER-AVER"),"TOT","AVG") -> AVG | ET11: =IF(AND('Compile Data'!$F$10="TAF",'Compile Data'!$F$8="PER-AVER"),"TOT","AVG") -> AVG | EU11: =IF(AND('Compile Data'!$F$10="TAF",'Compile Data'!$F$8="PER-AVER"),"TOT","AVG") -> AVG
A12: 1921-09-30 | I12: 1922 | J12: =NA() ->  | K12: =NA() ->  | L12: =NA() ->  | M12: =B16 -> 45.86698914 | N12: =B17 -> 45.62512207 | O12: =B18 -> 48.1643486 | P12: =B19 -> 51.29597473 | Q12: =B20 -> 51.0175209 | R12: =B21 -> 51.81781769 | S12: =B22 -> 51.83929825 | T12: =B23 -> 51.76369858 | U12: =B24 -> 51.04671097 | W12: =IF(W$11="AVG",AVERAGE(M12:U12,J13:L13),SUM(M12:U12,J13:L13)) -> 50.41826884 | X12: =IF(X$11="AVG",AVERAGE(O12:U12,J13:N13),SUM(O12:U12,J13:N13)) -> 50.70561155 | Y12: =NA() ->  | AA12: =NA() ->  | AB12: =NA() ->  | AC12: =IF(AC$11="AVG",IF(AA$1="INST-VAL",AVERAGE(N12:Q12,O12:R12),AVERAGE(O12:R12)),SUM(O12:R12)) -> 50.57391548 | AD12: =IF(AD$11="AVG",IF(AA$1="INST-VAL",AVERAGE(Q12:T12,R12:U12),AVERAGE(R12:U12)),SUM(R12:U12)) -> 51.61688137 | AE12: =IF(AE$11="AVG",IF(AA$1="INST-VAL",AVERAGE(T12:U12,J13,U12,J13:K13),AVERAGE(U12,J13:K13)),SUM(U12,J13:K13)) -> 52.17153295 | AG12: 1922 | AH12: =NA() ->  | AI12: =NA() ->  | AJ12: =NA() ->  | AK12: ='Compile Data'!C16 -> 46.31557083 | AL12: ='Compile Data'!C17 -> 46.17838287 | AM12: ='Compile Data'!C18 -> 48.96064758 | AN12: ='Compile Data'!C19 -> 51.33030701 | AO12: ='Compile Data'!C20 -> 52.65354538 | AP12: ='Compile Data'!C21 -> 52.19549942 | AQ12: ='Compile Data'!C22 -> 52.90038681 | AR12: ='Compile Data'!C23 -> 51.9318428 | AS12: ='Compile Data'!C24 -> 51.92146301 | AU12: =IF(AU$11="AVG",AVERAGE(AK12:AS12,AH13:AJ13),SUM(AK12:AS12,AH13:AJ13)) -> 50.98306115 | AV12: =IF(AV$11="AVG",AVERAGE(AM12:AS12,AH13:AL13),SUM(AM12:AS12,AH13:AL13)) -> 51.36028608 | AW12: =NA() ->  | AY12: =NA() ->  | AZ12: =NA() ->  | BA12: =IF(BA$11="AVG",IF(AY$1="INST-VAL",AVERAGE(AL12:AO12,AM12:AP12),AVERAGE(AM12:AP12)),SUM(AM12:AP12)) -> 51.28499985 | BB12: =IF(BB$11="AVG",IF(AY$1="INST-VAL",AVERAGE(AO12:AR12,AP12:AS12),AVERAGE(AP12:AS12)),SUM(AP12:AS12)) -> 52.23729801 | BC12: =IF(BC$11="AVG",IF(AY$1="INST-VAL",AVERAGE(AR12:AS12,AH13,AS12,AH13:AI13),AVERAGE(AS12,AH13:AI13)),SUM(AS12,AH13:AI13)) -> 52.49424998 | BE12: 1922 | BF12: =NA() ->  | BG12: =NA() ->  | BH12: =NA() ->  | BI12: ='Compile Data'!D16 -> 45.87252426 | BJ12: ='Compile Data'!D17 -> 45.63713455 | BK12: ='Compile Data'!D18 -> 48.23376465 | BL12: ='Compile Data'!D19 -> 51.05755615 | BM12: ='Compile Data'!D20 -> 51.0097084 | BN12: ='Compile Data'!D21 -> 51.954422 | BO12: ='Compile Data'!D22 -> 52.4151268 | BP12: ='Compile Data'!D23 -> 51.95953369 | BQ12: ='Compile Data'!D24 -> 50.16563034 | BS12: =IF(BS$11="AVG",AVERAGE(BI12:BQ12,BF13:BH13),SUM(BI12:BQ12,BF13:BH13)) -> 50.39777501 | BT12: =IF(BT$11="AVG",AVERAGE(BK12:BQ12,BF13:BJ13),SUM(BK12:BQ12,BF13:BJ13)) -> 50.69318199 | BU12: =NA() ->  | BW12: =NA() ->  | BX12: =NA() ->  | BY12: =IF(BY$11="AVG",IF(BW$1="INST-VAL",AVERAGE(BJ12:BM12,BK12:BN12),AVERAGE(BK12:BN12)),SUM(BK12:BN12)) -> 50.5638628 | BZ12: =IF(BZ$11="AVG",IF(BW$1="INST-VAL",AVERAGE(BM12:BP12,BN12:BQ12),AVERAGE(BN12:BQ12)),SUM(BN12:BQ12)) -> 51.62367821 | CA12: =IF(CA$11="AVG",IF(BW$1="INST-VAL",AVERAGE(BP12:BQ12,BF13,BQ12,BF13:BG13),AVERAGE(BQ12,BF13:BG13)),SUM(BQ12,BF13:BG13)) -> 51.82708232 | CC12: 1922 | CD12: =NA() ->  | CE12: =NA() ->  | CF12: =NA() ->  | CG12: ='Compile Data'!E16 -> 45.87261581 | CH12: ='Compile Data'!E17 -> 45.64303207 | CI12: ='Compile Data'!E18 -> 47.74803925 | CJ12: ='Compile Data'!E19 -> 51.40763855 | CK12: ='Compile Data'!E20 -> 51.0236702 | CL12: ='Compile Data'!E21 -> 51.95144653 | CM12: ='Compile Data'!E22 -> 52.40444565 | CN12: ='Compile Data'!E23 -> 51.95866394 | CO12: ='Compile Data'!E24 -> 50.15712357 | CQ12: =IF(CQ$11="AVG",AVERAGE(CG12:CO12,CD13:CF13),SUM(CG12:CO12,CD13:CF13)) -> 50.38786507 | CR12: =IF(CR$11="AVG",AVERAGE(CI12:CO12,CD13:CH13),SUM(CI12:CO12,CD13:CH13)) -> 50.68366909 | CS12: =NA() ->  | CU12: =NA() ->  | CV12: =NA() ->  | CW12: =IF(CW$11="AVG",IF(CU$1="INST-VAL",AVERAGE(CH12:CK12,CI12:CL12),AVERAGE(CI12:CL12)),SUM(CI12:CL12)) -> 50.53269863 | CX12: =IF(CX$11="AVG",IF(CU$1="INST-VAL",AVERAGE(CK12:CN12,CL12:CO12),AVERAGE(CL12:CO12)),SUM(CL12:CO12)) -> 51.61791992 | CY12: =IF(CY$11="AVG",IF(CU$1="INST-VAL",AVERAGE(CN12:CO12,CD13,CO12,CD13:CE13),AVERAGE(CO12,CD13:CE13)),SUM(CO12,CD13:CE13)) -> 51.82715352 | DA12: 1922 | DB12: =NA() ->  | DC12: =NA() ->  | DD12: =NA() ->  | DE12: ='Compile Data'!F16 -> 46.31827164 | DF12: ='Compile Data'!F17 -> 46.17562485 | DG12: ='Compile Data'!F18 -> 48.99189758 | DH12: ='Compile Data'!F19 -> 51.15528107 | DI12: ='Compile Data'!F20 -> 52.64852524 | DJ12: ='Compile Data'!F21 -> 52.34033966 | DK12: ='Compile Data'!F22 -> 53.47005844 | DL12: ='Compile Data'!F23 -> 52.40244675 | DM12: ='Compile Data'!F24 -> 50.9850235 | DO12: =IF(DO$11="AVG",AVERAGE(DE12:DM12,DB13:DD13),SUM(DE12:DM12,DB13:DD13)) -> 50.97050921 | DP12: =IF(DP$11="AVG",AVERAGE(DG12:DM12,DB13:DF13),SUM(DG12:DM12,DB13:DF13)) -> 51.34794871 | DQ12: =NA() ->  | DS12: =NA() ->  | DT12: =NA() ->  | DU12: =IF(DU$11="AVG",IF(DS$1="INST-VAL",AVERAGE(DF12:DI12,DG12:DJ12),AVERAGE(DG12:DJ12)),SUM(DG12:DJ12)) -> 51.28401089 | DV12: =IF(DV$11="AVG",IF(DS$1="INST-VAL",AVERAGE(DI12:DL12,DJ12:DM12),AVERAGE(DJ12:DM12)),SUM(DJ12:DM12)) -> 52.29946709 | DW12: =IF(DW$11="AVG",IF(DS$1="INST-VAL",AVERAGE(DL12:DM12,DB13,DM12,DB13:DC13),AVERAGE(DM12,DB13:DC13)),SUM(DM12,DB13:DC13)) -> 52.10001246 | DY12: 1922 | DZ12: =NA() ->  | EA12: =NA() ->  | EB12: =NA() ->  | EC12: ='Compile Data'!G16 -> 46.31838226 | ED12: ='Compile Data'!G17 -> 46.1761055 | EE12: ='Compile Data'!G18 -> 48.99396133 | EF12: ='Compile Data'!G19 -> 51.19488907 | EG12: ='Compile Data'!G20 -> 52.64738083 | EH12: ='Compile Data'!G21 -> 52.3392868 | EI12: ='Compile Data'!G22 -> 53.47435379 | EJ12: ='Compile Data'!G23 -> 52.4020462 | EK12: ='Compile Data'!G24 -> 50.98510742 | EM12: =IF(EM$11="AVG",AVERAGE(EC12:EK12,DZ13:EB13),SUM(EC12:EK12,DZ13:EB13)) -> 50.97372373 | EN12: =IF(EN$11="AVG",AVERAGE(EE12:EK12,DZ13:ED13),SUM(EE12:EK12,DZ13:ED13)) -> 51.35103957 | EO12: =NA() ->  | EQ12: =NA() ->  | ER12: =NA() ->  | ES12: =IF(ES$11="AVG",IF(EQ$1="INST-VAL",AVERAGE(ED12:EG12,EE12:EH12),AVERAGE(EE12:EH12)),SUM(EE12:EH12)) -> 51.29387951 | ET12: =IF(ET$11="AVG",IF(EQ$1="INST-VAL",AVERAGE(EG12:EJ12,EH12:EK12),AVERAGE(EH12:EK12)),SUM(EH12:EK12)) -> 52.30019855 | EU12: =IF(EU$11="AVG",IF(EQ$1="INST-VAL",AVERAGE(EJ12:EK12,DZ13,EK12,DZ13:EA13),AVERAGE(EK12,DZ13:EA13)),SUM(EK12,DZ13:EA13)) -> 52.09832509
A13: 1921-10-31 | I13: 1923 | J13: =B25 -> 51.89820862 | K13: =B26 -> 53.56967926 | L13: =B27 -> 51.11385727 | M13: =B28 -> 47.52082062 | N13: =B29 -> 47.41940308 | O13: =B30 -> 50.95542908 | P13: =B31 -> 53.18655396 | Q13: =B32 -> 51.91106415 | R13: =B33 -> 51.35770798 | S13: =B34 -> 51.78261185 | T13: =B35 -> 51.64431763 | U13: =B36 -> 52.60756683 | W13: 51.38943132 | X13: 51.65567271 | Y13: =IF(Y$11="AVG",AVERAGE(J13:U13),SUM(J13:U13)) -> 51.24726836 | AA13: =IF(AA$11="AVG",IF(AA$1="INST-VAL",AVERAGE(U12,J13:L13,J13:M13),AVERAGE(J13:M13)),SUM(J13:M13)) -> 51.02564144 | AB13: =IF(AB$11="AVG",IF(AA$1="INST-VAL",AVERAGE(K13:M13,L13:N13),AVERAGE(L13:N13)),SUM(L13:N13)) -> 48.68469365 | AC13: 51.85268879 | AD13: 51.84805107 | AE13: 52.97638321 | AG13: 1923 | AH13: ='Compile Data'!C25 -> 51.81914139 | AI13: ='Compile Data'!C26 -> 53.74214554 | AJ13: ='Compile Data'!C27 -> 51.84780121 | AK13: ='Compile Data'!C28 -> 48.32248688 | AL13: ='Compile Data'!C29 -> 48.69816589 | AM13: ='Compile Data'!C30 -> 51.75422287 | AN13: ='Compile Data'!C31 -> 54.13891602 | AO13: ='Compile Data'!C32 -> 52.84512711 | AP13: ='Compile Data'!C33 -> 51.99622345 | AQ13: ='Compile Data'!C34 -> 52.59567261 | AR13: ='Compile Data'!C35 -> 51.87748718 | AS13: ='Compile Data'!C36 -> 53.563591 | AU13: =IF(AU$11="AVG",AVERAGE(AK13:AS13,AH14:AJ14),SUM(AK13:AS13,AH14:AJ14)) -> 52.16668479 | AV13: =IF(AV$11="AVG",AVERAGE(AM13:AS13,AH14:AL14),SUM(AM13:AS13,AH14:AL14)) -> 52.54908562 | AW13: =IF(AW$11="AVG",AVERAGE(AH13:AS13),SUM(AH13:AS13)) -> 51.9334151 | AY13: =IF(AY$11="AVG",IF(AY$1="INST-VAL",AVERAGE(AS12,AH13:AJ13,AH13:AK13),AVERAGE(AH13:AK13)),SUM(AH13:AK13)) -> 51.43289375 | AZ13: =IF(AZ$11="AVG",IF(AY$1="INST-VAL",AVERAGE(AI13:AK13,AJ13:AL13),AVERAGE(AJ13:AL13)),SUM(AJ13:AL13)) -> 49.62281799 | BA13: =IF(BA$11="AVG",IF(AY$1="INST-VAL",AVERAGE(AL13:AO13,AM13:AP13),AVERAGE(AM13:AP13)),SUM(AM13:AP13)) -> 52.68362236 | BB13: =IF(BB$11="AVG",IF(AY$1="INST-VAL",AVERAGE(AO13:AR13,AP13:AS13),AVERAGE(AP13:AS13)),SUM(AP13:AS13)) -> 52.50824356 | BC13: =IF(BC$11="AVG",IF(AY$1="INST-VAL",AVERAGE(AR13:AS13,AH14,AS13,AH14:AI14),AVERAGE(AS13,AH14:AI14)),SUM(AS13,AH14:AI14)) -> 53.39891052 | BE13: 1923 | BF13: ='Compile Data'!D25 -> 51.74239731 | BG13: ='Compile Data'!D26 -> 53.5732193 | BH13: ='Compile Data'!D27 -> 51.15228271 | BI13: ='Compile Data'!D28 -> 47.54462051 | BJ13: ='Compile Data'!D29 -> 47.50992203 | BK13: ='Compile Data'!D30 -> 50.9511261 | BL13: ='Compile Data'!D31 -> 53.095047 | BM13: ='Compile Data'!D32 -> 52.02238083 | BN13: ='Compile Data'!D33 -> 51.86757278 | BO13: ='Compile Data'!D34 -> 51.6065712 | BP13: ='Compile Data'!D35 -> 51.77462769 | BQ13: ='Compile Data'!D36 -> 52.32866669 | BS13: =IF(BS$11="AVG",AVERAGE(BI13:BQ13,BF14:BH14),SUM(BI13:BQ13,BF14:BH14)) -> 51.40272776 | BT13: =IF(BT$11="AVG",AVERAGE(BK13:BQ13,BF14:BJ14),SUM(BK13:BQ13,BF14:BJ14)) -> 51.64991124 | BU13: =IF(BU$11="AVG",AVERAGE(BF13:BQ13),SUM(BF13:BQ13)) -> 51.26403618 | BW13: =IF(BW$11="AVG",IF(BW$1="INST-VAL",AVERAGE(BQ12,BF13:BH13,BF13:BI13),AVERAGE(BF13:BI13)),SUM(BF13:BI13)) -> 51.00312996 | BX13: =IF(BX$11="AVG",IF(BW$1="INST-VAL",AVERAGE(BG13:BI13,BH13:BJ13),AVERAGE(BH13:BJ13)),SUM(BH13:BJ13)) -> 48.73560842 | BY13: =IF(BY$11="AVG",IF(BW$1="INST-VAL",AVERAGE(BJ13:BM13,BK13:BN13),AVERAGE(BK13:BN13)),SUM(BK13:BN13)) -> 51.98403168 | BZ13: =IF(BZ$11="AVG",IF(BW$1="INST-VAL",AVERAGE(BM13:BP13,BN13:BQ13),AVERAGE(BN13:BQ13)),SUM(BN13:BQ13)) -> 51.89435959 | CA13: =IF(CA$11="AVG",IF(BW$1="INST-VAL",AVERAGE(BP13:BQ13,BF14,BQ13,BF14:BG14),AVERAGE(BQ13,BF14:BG14)),SUM(BQ13,BF14:BG14)) -> 52.8727328 | CC13: 1923 | CD13: ='Compile Data'!E25 -> 51.74543381 | CE13: ='Compile Data'!E26 -> 53.5789032 | CF13: ='Compile Data'!E27 -> 51.16336823 | CG13: ='Compile Data'!E28 -> 47.55764389 | CH13: ='Compile Data'!E29 -> 47.50765228 | CI13: ='Compile Data'!E30 -> 50.97745514 | CJ13: ='Compile Data'!E31 -> 53.09984589 | CK13: ='Compile Data'!E32 -> 52.09060669 | CL13: ='Compile Data'!E33 -> 51.91490173 | CM13: ='Compile Data'!E34 -> 51.94973373 | CN13: ='Compile Data'!E35 -> 51.70611191 | CO13: ='Compile Data'!E36 -> 52.1558075 | CQ13: =IF(CQ$11="AVG",AVERAGE(CG13:CO13,CD14:CF14),SUM(CG13:CO13,CD14:CF14)) -> 51.41780472 | CR13: =IF(CR$11="AVG",AVERAGE(CI13:CO13,CD14:CH14),SUM(CI13:CO13,CD14:CH14)) -> 51.66070875 | CS13: =IF(CS$11="AVG",AVERAGE(CD13:CO13),SUM(CD13:CO13)) -> 51.28728867 | CU13: =IF(CU$11="AVG",IF(CU$1="INST-VAL",AVERAGE(CO12,CD13:CF13,CD13:CG13),AVERAGE(CD13:CG13)),SUM(CD13:CG13)) -> 51.01133728 | CV13: =IF(CV$11="AVG",IF(CU$1="INST-VAL",AVERAGE(CE13:CG13,CF13:CH13),AVERAGE(CF13:CH13)),SUM(CF13:CH13)) -> 48.74288813 | CW13: =IF(CW$11="AVG",IF(CU$1="INST-VAL",AVERAGE(CH13:CK13,CI13:CL13),AVERAGE(CI13:CL13)),SUM(CI13:CL13)) -> 52.02070236 | CX13: =IF(CX$11="AVG",IF(CU$1="INST-VAL",AVERAGE(CK13:CN13,CL13:CO13),AVERAGE(CL13:CO13)),SUM(CL13:CO13)) -> 51.93163872 | CY13: =IF(CY$11="AVG",IF(CU$1="INST-VAL",AVERAGE(CN13:CO13,CD14,CO13,CD14:CE14),AVERAGE(CO13,CD14:CE14)),SUM(CO13,CD14:CE14)) -> 52.80693563 | DA13: 1923 | DB13: ='Compile Data'!F25 -> 51.51712799 | DC13: ='Compile Data'!F26 -> 53.79788589 | DD13: ='Compile Data'!F27 -> 51.84362793 | DE13: ='Compile Data'!F28 -> 48.32719421 | DF13: ='Compile Data'!F29 -> 48.69597626 | DG13: ='Compile Data'!F30 -> 51.82739258 | DH13: ='Compile Data'!F31 -> 54.1320343 | DI13: ='Compile Data'!F32 -> 52.86624146 | DJ13: ='Compile Data'!F33 -> 52.4695282 | DK13: ='Compile Data'!F34 -> 52.66236877 | DL13: ='Compile Data'!F35 -> 51.82362366 | DM13: ='Compile Data'!F36 -> 53.12575531 | DO13: =IF(DO$11="AVG",AVERAGE(DE13:DM13,DB14:DD14),SUM(DE13:DM13,DB14:DD14)) -> 52.16739909 | DP13: =IF(DP$11="AVG",AVERAGE(DG13:DM13,DB14:DF14),SUM(DG13:DM13,DB14:DF14)) -> 52.53734716 | DQ13: =IF(DQ$11="AVG",AVERAGE(DB13:DM13),SUM(DB13:DM13)) -> 51.92406305 | DS13: =IF(DS$11="AVG",IF(DS$1="INST-VAL",AVERAGE(DM12,DB13:DD13,DB13:DE13),AVERAGE(DB13:DE13)),SUM(DB13:DE13)) -> 51.37145901 | DT13: =IF(DT$11="AVG",IF(DS$1="INST-VAL",AVERAGE(DC13:DE13,DD13:DF13),AVERAGE(DD13:DF13)),SUM(DD13:DF13)) -> 49.62226613 | DU13: =IF(DU$11="AVG",IF(DS$1="INST-VAL",AVERAGE(DF13:DI13,DG13:DJ13),AVERAGE(DG13:DJ13)),SUM(DG13:DJ13)) -> 52.82379913 | DV13: =IF(DV$11="AVG",IF(DS$1="INST-VAL",AVERAGE(DI13:DL13,DJ13:DM13),AVERAGE(DJ13:DM13)),SUM(DJ13:DM13)) -> 52.52031898 | DW13: =IF(DW$11="AVG",IF(DS$1="INST-VAL",AVERAGE(DL13:DM13,DB14,DM13,DB14:DC14),AVERAGE(DM13,DB14:DC14)),SUM(DM13,DB14:DC14)) -> 53.24724325 | DY13: 1923 | DZ13: ='Compile Data'!G25 -> 51.51305771 | EA13: ='Compile Data'!G26 -> 53.79681015 | EB13: ='Compile Data'!G27 -> 51.84330368 | EC13: ='Compile Data'!G28 -> 48.32674408 | ED13: ='Compile Data'!G29 -> 48.69553375 | EE13: ='Compile Data'!G30 -> 51.80270386 | EF13: ='Compile Data'!G31 -> 54.13617706 | EG13: ='Compile Data'!G32 -> 52.8656044 | EH13: ='Compile Data'!G33 -> 52.18851089 | EI13: ='Compile Data'!G34 -> 52.52483368 | EJ13: ='Compile Data'!G35 -> 51.84710693 | EK13: ='Compile Data'!G36 -> 53.62162018 | EM13: 52.18268553 | EN13: 52.55900065 | EO13: =IF(EO$11="AVG",AVERAGE(DZ13:EK13),SUM(DZ13:EK13)) -> 51.9301672 | EQ13: =IF(EQ$11="AVG",IF(EQ$1="INST-VAL",AVERAGE(EK12,DZ13:EB13,DZ13:EC13),AVERAGE(DZ13:EC13)),SUM(DZ13:EC13)) -> 51.3699789 | ER13: =IF(ER$11="AVG",IF(EQ$1="INST-VAL",AVERAGE(EA13:EC13,EB13:ED13),AVERAGE(EB13:ED13)),SUM(EB13:ED13)) -> 49.6218605 | ES13: 52.74824905 | ET13: 52.54551792 | EU13: 53.4289945
A14: 1921-11-30 | I14: 1924 | J14: =B37 -> 52.01070023 | K14: =B38 -> 54.31088257 | L14: =B39 -> 51.96611786 | M14: =B40 -> 48.79593658 | N14: =B41 -> 49.33918381 | O14: =B42 -> 49.12997055 | P14: =B43 -> 51.1334877 | Q14: =B44 -> 53.98318863 | R14: =B45 -> 55.86037827 | S14: =B46 -> 52.36655426 | T14: =B47 -> 52.82830048 | U14: =B48 -> 55.4389267 | W14: 52.38552825 | X14: 52.05600007 | Y14: 52.26363564 | AA14: 51.77090931 | AB14: 50.03374608 | AC14: 52.52675629 | AD14: 54.12353992 | AE14: 55.22843933 | AG14: 1924 | AH14: ='Compile Data'!C37 -> 51.79390335 | AI14: ='Compile Data'!C38 -> 54.83923721 | AJ14: ='Compile Data'!C39 -> 53.57518387 | AK14: ='Compile Data'!C40 -> 50.56718063 | AL14: ='Compile Data'!C41 -> 51.0422821 | AM14: ='Compile Data'!C42 -> 50.60591125 | AN14: ='Compile Data'!C43 -> 52.5049324 | AO14: ='Compile Data'!C44 -> 55.05261612 | AP14: ='Compile Data'!C45 -> 56.31507492 | AQ14: ='Compile Data'!C46 -> 54.89387894 | AR14: ='Compile Data'!C47 -> 54.20701218 | AS14: ='Compile Data'!C48 -> 56.61598206 | AU14: 53.77260685 | AV14: 53.38666979 | AW14: 53.50109959 | AY14: 52.69387627 | AZ14: 51.72821554 | BA14: 53.61963367 | BB14: 55.50798702 | BC14: 56.38081614 | BE14: 1924 | BF14: ='Compile Data'!D37 -> 52.02483368 | BG14: ='Compile Data'!D38 -> 54.26469803 | BH14: ='Compile Data'!D39 -> 51.84266663 | BI14: ='Compile Data'!D40 -> 48.74963379 | BJ14: ='Compile Data'!D41 -> 49.27111053 | BK14: ='Compile Data'!D42 -> 48.99701309 | BL14: ='Compile Data'!D43 -> 51.05415726 | BM14: ='Compile Data'!D44 -> 53.13981628 | BN14: ='Compile Data'!D45 -> 55.50365448 | BO14: ='Compile Data'!D46 -> 52.33159256 | BP14: ='Compile Data'!D47 -> 52.79498291 | BQ14: ='Compile Data'!D48 -> 55.1446228 | BS14: 52.22963905 | BT14: 51.93938414 | BU14: 52.09323184 | BW14: 51.72045803 | BX14: 49.95447032 | BY14: 52.17366028 | BZ14: 53.94371319 | CA14: 54.94111379 | CC14: 1924 | CD14: ='Compile Data'!E37 -> 51.99596405 | CE14: ='Compile Data'!E38 -> 54.26903534 | CF14: ='Compile Data'!E39 -> 51.78889847 | CG14: ='Compile Data'!E40 -> 48.72446442 | CH14: ='Compile Data'!E41 -> 49.25568008 | CI14: ='Compile Data'!E42 -> 48.9393692 | CJ14: ='Compile Data'!E43 -> 51.0267067 | CK14: ='Compile Data'!E44 -> 52.72504807 | CL14: ='Compile Data'!E45 -> 55.16713333 | CM14: ='Compile Data'!E46 -> 52.3596077 | CN14: ='Compile Data'!E47 -> 52.79999542 | CO14: ='Compile Data'!E48 -> 54.91821671 | CQ14: 52.12936052 | CR14: 51.84697533 | CS14: 51.99750996 | CU14: 51.69459057 | CV14: 49.92301432 | CW14: 51.96456432 | CX14: 53.81123829 | CY14: 54.63443502 | DA14: 1924 | DB14: ='Compile Data'!F37 -> 51.76634598 | DC14: ='Compile Data'!F38 -> 54.84962845 | DD14: ='Compile Data'!F39 -> 53.46269989 | DE14: ='Compile Data'!F40 -> 50.49148178 | DF14: ='Compile Data'!F41 -> 50.97106552 | DG14: ='Compile Data'!F42 -> 50.36115265 | DH14: ='Compile Data'!F43 -> 52.84704971 | DI14: ='Compile Data'!F44 -> 54.08725357 | DJ14: ='Compile Data'!F45 -> 56.32480621 | DK14: ='Compile Data'!F46 -> 54.80561447 | DL14: ='Compile Data'!F47 -> 53.65229797 | DM14: ='Compile Data'!F48 -> 55.76199722 | DO14: 53.60160669 | DP14: 53.23709361 | DQ14: 53.28178279 | DS14: 52.64253902 | DT14: 51.64174906 | DU14: 53.40506554 | DV14: 55.13617897 | DW14: 55.89442571 | DY14: 1924 | DZ14: ='Compile Data'!G37 -> 51.81085205 | EA14: ='Compile Data'!G38 -> 54.85451126 | EB14: ='Compile Data'!G39 -> 53.51802826 | EC14: ='Compile Data'!G40 -> 50.52688217 | ED14: ='Compile Data'!G41 -> 51.01117706 | EE14: ='Compile Data'!G42 -> 50.47864151 | EF14: ='Compile Data'!G43 -> 52.90725708 | EG14: ='Compile Data'!G44 -> 54.16097641 | EH14: ='Compile Data'!G45 -> 56.50957489 | EI14: ='Compile Data'!G46 -> 54.84762955 | EJ14: ='Compile Data'!G47 -> 53.76407623 | EK14: ='Compile Data'!G48 -> 56.07395935 | EM14: 53.69465733 | EN14: 53.32274787 | EO14: 53.37196382 | EQ14: 52.67756844 | ER14: 51.6853625 | ES14: 53.51411247 | ET14: 55.29881001 | EU14: 56.18277105
A15: 1921-12-31 | I15: 1925 | J15: =B49 -> 56.28923035 | K15: =B50 -> 53.95716095 | L15: =B51 -> 49.50402069 | M15: =B52 -> 47.09355545 | N15: =B53 -> 47.08722687 | O15: =B54 -> 48.73402405 | P15: =B55 -> 51.41685867 | Q15: =B56 -> 52.55155945 | R15: =B57 -> 52.07055283 | S15: =B58 -> 51.39328003 | T15: =B59 -> 51.86101532 | U15: =B60 -> 51.08818436 | W15: 50.88186487 | X15: 50.99517695 | Y15: 51.08722242 | AA15: 51.71099186 | AB15: 47.89493434 | AC15: 51.19324875 | AD15: 51.60325813 | AE15: 52.36460368 | AG15: 1925 | AH15: ='Compile Data'!C49 -> 57.47806931 | AI15: ='Compile Data'!C50 -> 55.04839706 | AJ15: ='Compile Data'!C51 -> 50.93994522 | AK15: ='Compile Data'!C52 -> 48.7106781 | AL15: ='Compile Data'!C53 -> 48.26753998 | AM15: ='Compile Data'!C54 -> 49.84830856 | AN15: ='Compile Data'!C55 -> 52.89323425 | AO15: ='Compile Data'!C56 -> 53.19652557 | AP15: ='Compile Data'!C57 -> 52.32973099 | AQ15: ='Compile Data'!C58 -> 52.59524155 | AR15: ='Compile Data'!C59 -> 52.25299072 | AS15: ='Compile Data'!C60 -> 51.47898865 | AU15: 51.72709719 | AV15: 51.86696657 | AW15: 52.0866375 | AY15: 53.04427242 | AZ15: 49.30605443 | BA15: 52.06694984 | BB15: 52.16423798 | BC15: 52.58805847 | BE15: 1925 | BF15: ='Compile Data'!D49 -> 55.69806671 | BG15: ='Compile Data'!D50 -> 53.98065186 | BH15: ='Compile Data'!D51 -> 50.09036636 | BI15: ='Compile Data'!D52 -> 47.40655899 | BJ15: ='Compile Data'!D53 -> 47.1311264 | BK15: ='Compile Data'!D54 -> 48.80168152 | BL15: ='Compile Data'!D55 -> 51.7571106 | BM15: ='Compile Data'!D56 -> 52.74991226 | BN15: ='Compile Data'!D57 -> 52.36470032 | BO15: ='Compile Data'!D58 -> 51.31887436 | BP15: ='Compile Data'!D59 -> 51.86159515 | BQ15: ='Compile Data'!D60 -> 51.13647461 | BS15: 50.94734414 | BT15: 51.02987035 | BU15: 51.1914266 | BW15: 51.79391098 | BX15: 48.20935059 | BY15: 51.41835117 | BZ15: 51.67041111 | CA15: 52.27010854 | CC15: 1925 | CD15: ='Compile Data'!E49 -> 55.08066559 | CE15: ='Compile Data'!E50 -> 53.90442276 | CF15: ='Compile Data'!E51 -> 50.65101624 | CG15: ='Compile Data'!E52 -> 47.44158936 | CH15: ='Compile Data'!E53 -> 47.14993286 | CI15: ='Compile Data'!E54 -> 48.99266434 | CJ15: ='Compile Data'!E55 -> 52.15417099 | CK15: ='Compile Data'!E56 -> 52.39133072 | CL15: ='Compile Data'!E57 -> 52.21936417 | CM15: ='Compile Data'!E58 -> 51.26189804 | CN15: ='Compile Data'!E59 -> 51.81578827 | CO15: ='Compile Data'!E60 -> 51.14852905 | CQ15: 50.95609824 | CR15: 51.03612041 | CS15: 51.18428103 | CU15: 51.76942348 | CV15: 48.41417948 | CW15: 51.43938255 | CX15: 51.61139488 | CY15: 52.28701528 | DA15: 1925 | DB15: ='Compile Data'!F49 -> 56.88412476 | DC15: ='Compile Data'!F50 -> 55.03715515 | DD15: ='Compile Data'!F51 -> 51.99528122 | DE15: ='Compile Data'!F52 -> 48.80474472 | DF15: ='Compile Data'!F53 -> 48.28364563 | DG15: ='Compile Data'!F54 -> 50.53939438 | DH15: ='Compile Data'!F55 -> 53.1473465 | DI15: ='Compile Data'!F56 -> 53.19254303 | DJ15: ='Compile Data'!F57 -> 52.27257538 | DK15: ='Compile Data'!F58 -> 52.67176437 | DL15: ='Compile Data'!F59 -> 52.10564041 | DM15: ='Compile Data'!F60 -> 51.52721024 | DO15: 51.8018446 | DP15: 51.93792725 | DQ15: 52.20511882 | DS15: 53.18032646 | DT15: 49.69455719 | DU15: 52.28796482 | DV15: 52.1442976 | DW15: 52.60717519 | DY15: 1925 | DZ15: ='Compile Data'!G49 -> 57.34568024 | EA15: ='Compile Data'!G50 -> 55.12867355 | EB15: ='Compile Data'!G51 -> 51.58135986 | EC15: ='Compile Data'!G52 -> 48.77740479 | ED15: ='Compile Data'!G53 -> 48.29774094 | EE15: ='Compile Data'!G54 -> 50.12303543 | EF15: ='Compile Data'!G55 -> 53.13209534 | EG15: ='Compile Data'!G56 -> 53.29477692 | EH15: ='Compile Data'!G57 -> 52.2921524 | EI15: ='Compile Data'!G58 -> 52.65065002 | EJ15: ='Compile Data'!G59 -> 52.07884979 | EK15: ='Compile Data'!G60 -> 51.49823761 | EM15: 51.77169323 | EN15: 51.90877056 | EO15: 52.18338807 | EQ15: 53.20827961 | ER15: 49.55216853 | ES15: 52.21051502 | ET15: 52.12997246 | EU15: 52.58483378
A16: 1922-01-31 | B16: =INDIRECT(CONCATENATE("'",B$1,"'!",B$4,(YEAR($A16)-1921)*12+MONTH($A16)+3+IF(ISNUMBER(FIND("PRV",B$6)),1,0)))*IF(AND(B$3>0,TRIM(B$9)="CFS"),Conv_Flags!$C16,1) -> 45.86698914 | C16: =IF(INDIRECT(CONCATENATE("'",C$1,"'!",C$4,(YEAR($A16)-1921)*12+MONTH($A16)+3+IF(ISNUMBER(FIND("PRV",C$6)),1,0)))=-901,NA(),INDIRECT(CONCATENATE("'",C$1,"'!",C$4,(YEAR($A16)-1921)*12+MONTH($A16)+3+IF(ISNUMBER(FIND("PRV",C$6)),1,0)))*IF(AND(C$3>0,TRIM(C$9)="CFS"),Conv_Flags!$C16,1)) -> 46.31557083 | D16: =IF(INDIRECT(CONCATENATE("'",D$1,"'!",D$4,(YEAR($A16)-1921)*12+MONTH($A16)+3+IF(ISNUMBER(FIND("PRV",D$6)),1,0)))=-901,NA(),INDIRECT(CONCATENATE("'",D$1,"'!",D$4,(YEAR($A16)-1921)*12+MONTH($A16)+3+IF(ISNUMBER(FIND("PRV",D$6)),1,0)))*IF(AND(D$3>0,TRIM(D$9)="CFS"),Conv_Flags!$C16,1)) -> 45.87252426 | E16: =IF(INDIRECT(CONCATENATE("'",E$1,"'!",E$4,(YEAR($A16)-1921)*12+MONTH($A16)+3+IF(ISNUMBER(FIND("PRV",E$6)),1,0)))=-901,NA(),INDIRECT(CONCATENATE("'",E$1,"'!",E$4,(YEAR($A16)-1921)*12+MONTH($A16)+3+IF(ISNUMBER(FIND("PRV",E$6)),1,0)))*IF(AND(E$3>0,TRIM(E$9)="CFS"),Conv_Flags!$C16,1)) -> 45.87261581 | F16: =IF(INDIRECT(CONCATENATE("'",F$1,"'!",F$4,(YEAR($A16)-1921)*12+MONTH($A16)+3+IF(ISNUMBER(FIND("PRV",F$6)),1,0)))=-901,NA(),INDIRECT(CONCATENATE("'",F$1,"'!",F$4,(YEAR($A16)-1921)*12+MONTH($A16)+3+IF(ISNUMBER(FIND("PRV",F$6)),1,0)))*IF(AND(F$3>0,TRIM(F$9)="CFS"),Conv_Flags!$C16,1)) -> 46.31827164 | G16: =IF(INDIRECT(CONCATENATE("'",G$1,"'!",G$4,(YEAR($A16)-1921)*12+MONTH($A16)+3+IF(ISNUMBER(FIND("PRV",G$6)),1,0)))=-901,NA(),INDIRECT(CONCATENATE("'",G$1,"'!",G$4,(YEAR($A16)-1921)*12+MONTH($A16)+3+IF(ISNUMBER(FIND("PRV",G$6)),1,0)))*IF(AND(G$3>0,TRIM(G$9)="CFS"),Conv_Flags!$C16,1)) -> 46.31838226 | I16: 1926 | J16: =B61 -> 52.13686371 | K16: =B62 -> 53.86876297 | L16: =B63 -> 51.28049469 | M16: =B64 -> 48.02466965 | N16: =B65 -> 47.5158577 | O16: =B66 -> 50.25582886 | P16: =B67 -> 54.29219818 | Q16: =B68 -> 53.6000824 | R16: =B69 -> 52.60035324 | S16: =B70 -> 52.06718445 | T16: =B71 -> 52.72558594 | U16: =B72 -> 52.60937881 | W16: 51.70816676 | X16: 51.41801135 | Y16: 51.74810505 | AA16: 51.32769775 | AB16: 48.94034068 | AC16: 52.68711567 | AD16: 52.50062561 | AE16: 53.10413488 | AG16: 1926 | AH16: ='Compile Data'!C61 -> 51.98947144 | AI16: ='Compile Data'!C62 -> 54.29571533 | AJ16: ='Compile Data'!C63 -> 52.86674118 | AK16: ='Compile Data'!C64 -> 49.71291351 | AL16: ='Compile Data'!C65 -> 48.94373703 | AM16: ='Compile Data'!C66 -> 51.65496445 | AN16: ='Compile Data'!C67 -> 56.01726532 | AO16: ='Compile Data'!C68 -> 55.00450516 | AP16: ='Compile Data'!C69 -> 53.56876755 | AQ16: ='Compile Data'!C70 -> 53.24275208 | AR16: ='Compile Data'!C71 -> 53.04966736 | AS16: ='Compile Data'!C72 -> 53.69098663 | AU16: 52.89918995 | AV16: 52.55393442 | AW16: 52.83645725 | AY16: 52.21621037 | AZ16: 50.50779724 | BA16: 54.06137562 | BB16: 53.3880434 | BC16: 54.15946452 | BE16: 1926 | BF16: ='Compile Data'!D61 -> 52.02779388 | BG16: ='Compile Data'!D62 -> 53.64605713 | BH16: ='Compile Data'!D63 -> 51.16624451 | BI16: ='Compile Data'!D64 -> 47.97763062 | BJ16: ='Compile Data'!D65 -> 47.55036926 | BK16: ='Compile Data'!D66 -> 50.32403183 | BL16: ='Compile Data'!D67 -> 54.20606613 | BM16: ='Compile Data'!D68 -> 52.57427597 | BN16: ='Compile Data'!D69 -> 52.09063339 | BO16: ='Compile Data'!D70 -> 51.46297455 | BP16: ='Compile Data'!D71 -> 52.51927948 | BQ16: ='Compile Data'!D72 -> 52.55150604 | BS16: 51.5261488 | BT16: 51.26246293 | BU16: 51.5080719 | BW16: 51.20443153 | BX16: 48.89808146 | BY16: 52.29875183 | BZ16: 52.15609837 | CA16: 53.08445613 | CC16: 1926 | CD16: ='Compile Data'!E61 -> 52.01453018 | CE16: ='Compile Data'!E62 -> 53.6979866 | CF16: ='Compile Data'!E63 -> 51.18539429 | CG16: ='Compile Data'!E64 -> 47.99237061 | CH16: ='Compile Data'!E65 -> 47.55941772 | CI16: ='Compile Data'!E66 -> 50.31370163 | CJ16: ='Compile Data'!E67 -> 54.26186752 | CK16: ='Compile Data'!E68 -> 52.66679382 | CL16: ='Compile Data'!E69 -> 52.03919983 | CM16: ='Compile Data'!E70 -> 51.58451462 | CN16: ='Compile Data'!E71 -> 52.53409576 | CO16: ='Compile Data'!E72 -> 52.55936813 | CQ16: 51.52037684 | CR16: 51.256622 | CS16: 51.53410339 | CU16: 51.22257042 | CV16: 48.91239421 | CW16: 52.3203907 | CX16: 52.17929459 | CY16: 52.9844017 | DA16: 1926 | DB16: ='Compile Data'!F61 -> 52.04199982 | DC16: ='Compile Data'!F62 -> 54.25231552 | DD16: ='Compile Data'!F63 -> 52.78295517 | DE16: ='Compile Data'!F64 -> 49.70260239 | DF16: ='Compile Data'!F65 -> 49.01877975 | DG16: ='Compile Data'!F66 -> 51.57517624 | DH16: ='Compile Data'!F67 -> 55.88708115 | DI16: ='Compile Data'!F68 -> 54.10750198 | DJ16: ='Compile Data'!F69 -> 52.38673401 | DK16: ='Compile Data'!F70 -> 53.07207489 | DL16: ='Compile Data'!F71 -> 53.0316925 | DM16: ='Compile Data'!F72 -> 53.48620224 | DO16: 52.66820176 | DP16: 52.34548251 | DQ16: 52.61209297 | DS16: 52.19496822 | DT16: 50.50144577 | DU16: 53.48912334 | DV16: 52.99417591 | DW16: 53.81318919 | DY16: 1926 | DZ16: ='Compile Data'!G61 -> 51.98412704 | EA16: ='Compile Data'!G62 -> 54.27213669 | EB16: ='Compile Data'!G63 -> 52.85911179 | EC16: ='Compile Data'!G64 -> 49.7283287 | ED16: ='Compile Data'!G65 -> 48.991745 | EE16: ='Compile Data'!G66 -> 51.64241791 | EF16: ='Compile Data'!G67 -> 55.97094727 | EG16: ='Compile Data'!G68 -> 55.07299042 | EH16: ='Compile Data'!G69 -> 53.8681221 | EI16: ='Compile Data'!G70 -> 53.31095123 | EJ16: ='Compile Data'!G71 -> 53.04626465 | EK16: ='Compile Data'!G72 -> 53.73284149 | EM16: 52.98633003 | EN16: 52.62815475 | EO16: 52.87333202 | EQ16: 52.21092606 | ER16: 50.52639516 | ES16: 54.13861942 | ET16: 53.48954487 | EU16: 54.26512909
A17: 1922-02-28 | B17: =IF(INDIRECT(CONCATENATE("'",B$1,"'!",B$4,(YEAR($A17)-1921)*12+MONTH($A17)+3+IF(ISNUMBER(FIND("PRV",B$6)),1,0)))=-901,NA(),INDIRECT(CONCATENATE("'",B$1,"'!",B$4,(YEAR($A17)-1921)*12+MONTH($A17)+3+IF(ISNUMBER(FIND("PRV",B$6)),1,0)))*IF(AND(B$3>0,TRIM(B$9)="CFS"),Conv_Flags!$C17,1)) -> 45.62512207 | C17: =IF(INDIRECT(CONCATENATE("'",C$1,"'!",C$4,(YEAR($A17)-1921)*12+MONTH($A17)+3+IF(ISNUMBER(FIND("PRV",C$6)),1,0)))=-901,NA(),INDIRECT(CONCATENATE("'",C$1,"'!",C$4,(YEAR($A17)-1921)*12+MONTH($A17)+3+IF(ISNUMBER(FIND("PRV",C$6)),1,0)))*IF(AND(C$3>0,TRIM(C$9)="CFS"),Conv_Flags!$C17,1)) -> 46.17838287 | D17: =IF(INDIRECT(CONCATENATE("'",D$1,"'!",D$4,(YEAR($A17)-1921)*12+MONTH($A17)+3+IF(ISNUMBER(FIND("PRV",D$6)),1,0)))=-901,NA(),INDIRECT(CONCATENATE("'",D$1,"'!",D$4,(YEAR($A17)-1921)*12+MONTH($A17)+3+IF(ISNUMBER(FIND("PRV",D$6)),1,0)))*IF(AND(D$3>0,TRIM(D$9)="CFS"),Conv_Flags!$C17,1)) -> 45.63713455 | E17: =IF(INDIRECT(CONCATENATE("'",E$1,"'!",E$4,(YEAR($A17)-1921)*12+MONTH($A17)+3+IF(ISNUMBER(FIND("PRV",E$6)),1,0)))=-901,NA(),INDIRECT(CONCATENATE("'",E$1,"'!",E$4,(YEAR($A17)-1921)*12+MONTH($A17)+3+IF(ISNUMBER(FIND("PRV",E$6)),1,0)))*IF(AND(E$3>0,TRIM(E$9)="CFS"),Conv_Flags!$C17,1)) -> 45.64303207 | F17: =IF(INDIRECT(CONCATENATE("'",F$1,"'!",F$4,(YEAR($A17)-1921)*12+MONTH($A17)+3+IF(ISNUMBER(FIND("PRV",F$6)),1,0)))=-901,NA(),INDIRECT(CONCATENATE("'",F$1,"'!",F$4,(YEAR($A17)-1921)*12+MONTH($A17)+3+IF(ISNUMBER(FIND("PRV",F$6)),1,0)))*IF(AND(F$3>0,TRIM(F$9)="CFS"),Conv_Flags!$C17,1)) -> 46.17562485 | G17: =IF(INDIRECT(CONCATENATE("'",G$1,"'!",G$4,(YEAR($A17)-1921)*12+MONTH($A17)+3+IF(ISNUMBER(FIND("PRV",G$6)),1,0)))=-901,NA(),INDIRECT(CONCATENATE("'",G$1,"'!",G$4,(YEAR($A17)-1921)*12+MONTH($A17)+3+IF(ISNUMBER(FIND("PRV",G$6)),1,0)))*IF(AND(G$3>0,TRIM(G$9)="CFS"),Conv_Flags!$C17,1)) -> 46.1761055 | I17: 1927 | J17: =B73 -> 53.11463928 | K17: =B74 -> 53.58838654 | L17: =B75 -> 50.10383606 | M17: =B76 -> 46.8849678 | N17: =B77 -> 45.17369461 | O17: =B78 -> 47.82128143 | P17: =B79 -> 49.79927826 | Q17: =B80 -> 51.44459152 | R17: =B81 -> 51.85700989 | S17: =B82 -> 51.04845428 | T17: =B83 -> 51.18059921 | U17: =B84 -> 50.05224228 | W17: 50.05765279 | X17: 50.29454072 | Y17: 50.1724151 | AA17: 50.92295742 | AB17: 47.38749949 | AC17: 50.23054028 | AD17: 51.03457642 | AE17: 51.67980194 | AG17: 1927 | AH17: ='Compile Data'!C73 -> 54.0868721 | AI17: ='Compile Data'!C74 -> 54.70053482 | AJ17: ='Compile Data'!C75 -> 51.11731339 | AK17: ='Compile Data'!C76 -> 48.18961334 | AL17: ='Compile Data'!C77 -> 46.32397079 | AM17: ='Compile Data'!C78 -> 48.96888733 | AN17: ='Compile Data'!C79 -> 50.58004379 | AO17: ='Compile Data'!C80 -> 53.34836197 | AP17: ='Compile Data'!C81 -> 52.36968613 | AQ17: ='Compile Data'!C82 -> 51.912323 | AR17: ='Compile Data'!C83 -> 51.14317322 | AS17: ='Compile Data'!C84 -> 50.40669632 | AU17: 50.81258933 | AV17: 51.08147144 | AW17: 51.09562302 | AY17: 52.02358341 | AZ17: 48.54363251 | BA17: 51.3167448 | BB17: 51.45796967 | BC17: 51.73559443 | BE17: 1927 | BF17: ='Compile Data'!D73 -> 52.8793335 | BG17: ='Compile Data'!D74 -> 53.82252884 | BH17: ='Compile Data'!D75 -> 50.35515594 | BI17: ='Compile Data'!D76 -> 47.07066345 | BJ17: ='Compile Data'!D77 -> 45.29310608 | BK17: ='Compile Data'!D78 -> 47.85420227 | BL17: ='Compile Data'!D79 -> 49.81792068 | BM17: ='Compile Data'!D80 -> 51.47268295 | BN17: ='Compile Data'!D81 -> 51.90190506 | BO17: ='Compile Data'!D82 -> 51.04637146 | BP17: ='Compile Data'!D83 -> 51.1844101 | BQ17: ='Compile Data'!D84 -> 50.024086 | BS17: 50.10002359 | BT17: 50.31421439 | BU17: 50.22686386 | BW17: 51.03192043 | BX17: 47.57297516 | BY17: 50.26167774 | BZ17: 51.03919315 | CA17: 51.68888474 | CC17: 1927 | CD17: ='Compile Data'!E73 -> 52.5271225 | CE17: ='Compile Data'!E74 -> 53.86671448 | CF17: ='Compile Data'!E75 -> 50.33935547 | CG17: ='Compile Data'!E76 -> 47.07983398 | CH17: ='Compile Data'!E77 -> 45.30689621 | CI17: ='Compile Data'!E78 -> 47.85746002 | CJ17: ='Compile Data'!E79 -> 49.82320404 | CK17: ='Compile Data'!E80 -> 51.47217941 | CL17: ='Compile Data'!E81 -> 51.90582657 | CM17: ='Compile Data'!E82 -> 51.04317856 | CN17: ='Compile Data'!E83 -> 51.1831398 | CO17: ='Compile Data'!E84 -> 50.03415298 | CQ17: 50.1042223 | CR17: 50.31647237 | CS17: 50.20325534 | CU17: 50.95325661 | CV17: 47.57536189 | CW17: 50.26466751 | CX17: 51.04157448 | CY17: 51.69519424 | DA17: 1927 | DB17: ='Compile Data'!F73 -> 53.42403793 | DC17: ='Compile Data'!F74 -> 54.52932739 | DD17: ='Compile Data'!F75 -> 51.79721069 | DE17: ='Compile Data'!F76 -> 48.39657593 | DF17: ='Compile Data'!F77 -> 46.45217514 | DG17: ='Compile Data'!F78 -> 48.99035263 | DH17: ='Compile Data'!F79 -> 50.60576248 | DI17: ='Compile Data'!F80 -> 53.48118973 | DJ17: ='Compile Data'!F81 -> 52.26838684 | DK17: ='Compile Data'!F82 -> 51.8995018 | DL17: ='Compile Data'!F83 -> 51.22409058 | DM17: ='Compile Data'!F84 -> 50.43830872 | DO17: 50.8505853 | DP17: 51.09500504 | DQ17: 51.12557666 | DS17: 52.03678799 | DT17: 48.88198725 | DU17: 51.33642292 | DV17: 51.45757198 | DW17: 51.74444071 | DY17: 1927 | DZ17: ='Compile Data'!G73 -> 54.43761063 | EA17: ='Compile Data'!G74 -> 54.62493515 | EB17: ='Compile Data'!G75 -> 51.40880585 | EC17: ='Compile Data'!G76 -> 48.13082886 | ED17: ='Compile Data'!G77 -> 46.29114151 | EE17: ='Compile Data'!G78 -> 48.94313431 | EF17: ='Compile Data'!G79 -> 50.56079102 | EG17: ='Compile Data'!G80 -> 53.4828186 | EH17: ='Compile Data'!G81 -> 52.28650284 | EI17: ='Compile Data'!G82 -> 51.91106033 | EJ17: ='Compile Data'!G83 -> 51.17393494 | EK17: ='Compile Data'!G84 -> 50.47889709 | EM17: 50.8008248 | EN17: 51.07286231 | EO17: 51.14420509 | EQ17: 52.15054512 | ER17: 48.61025874 | ES17: 51.31831169 | ET17: 51.4625988 | EU17: 51.74730682
A18: 1922-03-31 | B18: =IF(INDIRECT(CONCATENATE("'",B$1,"'!",B$4,(YEAR($A18)-1921)*12+MONTH($A18)+3+IF(ISNUMBER(FIND("PRV",B$6)),1,0)))=-901,NA(),INDIRECT(CONCATENATE("'",B$1,"'!",B$4,(YEAR($A18)-1921)*12+MONTH($A18)+3+IF(ISNUMBER(FIND("PRV",B$6)),1,0)))*IF(AND(B$3>0,TRIM(B$9)="CFS"),Conv_Flags!$C18,1)) -> 48.1643486 | C18: =IF(INDIRECT(CONCATENATE("'",C$1,"'!",C$4,(YEAR($A18)-1921)*12+MONTH($A18)+3+IF(ISNUMBER(FIND("PRV",C$6)),1,0)))=-901,NA(),INDIRECT(CONCATENATE("'",C$1,"'!",C$4,(YEAR($A18)-1921)*12+MONTH($A18)+3+IF(ISNUMBER(FIND("PRV",C$6)),1,0)))*IF(AND(C$3>0,TRIM(C$9)="CFS"),Conv_Flags!$C18,1)) -> 48.96064758 | D18: =IF(INDIRECT(CONCATENATE("'",D$1,"'!",D$4,(YEAR($A18)-1921)*12+MONTH($A18)+3+IF(ISNUMBER(FIND("PRV",D$6)),1,0)))=-901,NA(),INDIRECT(CONCATENATE("'",D$1,"'!",D$4,(YEAR($A18)-1921)*12+MONTH($A18)+3+IF(ISNUMBER(FIND("PRV",D$6)),1,0)))*IF(AND(D$3>0,TRIM(D$9)="CFS"),Conv_Flags!$C18,1)) -> 48.23376465 | E18: =IF(INDIRECT(CONCATENATE("'",E$1,"'!",E$4,(YEAR($A18)-1921)*12+MONTH($A18)+3+IF(ISNUMBER(FIND("PRV",E$6)),1,0)))=-901,NA(),INDIRECT(CONCATENATE("'",E$1,"'!",E$4,(YEAR($A18)-1921)*12+MONTH($A18)+3+IF(ISNUMBER(FIND("PRV",E$6)),1,0)))*IF(AND(E$3>0,TRIM(E$9)="CFS"),Conv_Flags!$C18,1)) -> 47.74803925 | F18: =IF(INDIRECT(CONCATENATE("'",F$1,"'!",F$4,(YEAR($A18)-1921)*12+MONTH($A18)+3+IF(ISNUMBER(FIND("PRV",F$6)),1,0)))=-901,NA(),INDIRECT(CONCATENATE("'",F$1,"'!",F$4,(YEAR($A18)-1921)*12+MONTH($A18)+3+IF(ISNUMBER(FIND("PRV",F$6)),1,0)))*IF(AND(F$3>0,TRIM(F$9)="CFS"),Conv_Flags!$C18,1)) -> 48.99189758 | G18: =IF(INDIRECT(CONCATENATE("'",G$1,"'!",G$4,(YEAR($A18)-1921)*12+MONTH($A18)+3+IF(ISNUMBER(FIND("PRV",G$6)),1,0)))=-901,NA(),INDIRECT(CONCATENATE("'",G$1,"'!",G$4,(YEAR($A18)-1921)*12+MONTH($A18)+3+IF(ISNUMBER(FIND("PRV",G$6)),1,0)))*IF(AND(G$3>0,TRIM(G$9)="CFS"),Conv_Flags!$C18,1)) -> 48.99396133 | I18: 1928 | J18: =B85 -> 51.79351044 | K18: =B86 -> 53.19365311 | L18: =B87 -> 50.44255066 | M18: =B88 -> 47.65870285 | N18: =B89 -> 47.24261475 | O18: =B90 -> 47.76773834 | P18: =B91 -> 52.59886932 | Q18: =B92 -> 52.8963356 | R18: =B93 -> 51.41280365 | S18: =B94 -> 50.67932129 | T18: =B95 -> 50.84938431 | U18: =B96 -> 50.37451553 | W18: 50.66207027 | X18: 50.64707375 | Y18: 50.57583332 | AA18: 50.77210426 | AB18: 48.44795609 | AC18: 51.16893673 | AD18: 50.8290062 | AE18: 51.80907567 | AG18: 1928 | AH18: ='Compile Data'!C85 -> 51.91426468 | AI18: ='Compile Data'!C86 -> 52.8858223 | AJ18: ='Compile Data'!C87 -> 51.70822906 | AK18: ='Compile Data'!C88 -> 49.05364227 | AL18: ='Compile Data'!C89 -> 48.68652725 | AM18: ='Compile Data'!C90 -> 49.10564804 | AN18: ='Compile Data'!C91 -> 53.49286652 | AO18: ='Compile Data'!C92 -> 53.04582977 | AP18: ='Compile Data'!C93 -> 51.76794052 | AQ18: ='Compile Data'!C94 -> 51.93719864 | AR18: ='Compile Data'!C95 -> 51.13046646 | AS18: ='Compile Data'!C96 -> 52.05011749 | AU18: 51.86541049 | AV18: 51.81876723 | AW18: 51.39821275 | AY18: 51.39048958 | AZ18: 49.81613286 | BA18: 51.85307121 | BB18: 51.72143078 | BC18: 53.66572444 | BE18: 1928 | BF18: ='Compile Data'!D85 -> 51.81051254 | BG18: ='Compile Data'!D86 -> 53.23205566 | BH18: ='Compile Data'!D87 -> 50.49236679 | BI18: ='Compile Data'!D88 -> 47.68527985 | BJ18: ='Compile Data'!D89 -> 47.2487793 | BK18: ='Compile Data'!D90 -> 47.77664948 | BL18: ='Compile Data'!D91 -> 52.59608841 | BM18: ='Compile Data'!D92 -> 53.03712463 | BN18: ='Compile Data'!D93 -> 51.70141983 | BO18: ='Compile Data'!D94 -> 50.6685524 | BP18: ='Compile Data'!D95 -> 51.23691559 | BQ18: ='Compile Data'!D96 -> 50.05426788 | BS18: 50.66769282 | BT18: 50.65113799 | BU18: 50.62833436 | BW18: 50.80505371 | BX18: 48.47547531 | BY18: 51.27782059 | BZ18: 50.91528893 | CA18: 51.61639659 | CC18: 1928 | CD18: ='Compile Data'!E85 -> 51.81519318 | CE18: ='Compile Data'!E86 -> 53.23623657 | CF18: ='Compile Data'!E87 -> 50.49336624 | CG18: ='Compile Data'!E88 -> 47.68488693 | CH18: ='Compile Data'!E89 -> 47.24884415 | CI18: ='Compile Data'!E90 -> 47.77888107 | CJ18: ='Compile Data'!E91 -> 52.59690094 | CK18: ='Compile Data'!E92 -> 53.03721619 | CL18: ='Compile Data'!E93 -> 51.70147705 | CM18: ='Compile Data'!E94 -> 50.70534134 | CN18: ='Compile Data'!E95 -> 51.28078461 | CO18: ='Compile Data'!E96 -> 49.96949768 | CQ18: 50.66601054 | CR18: 50.65052223 | CS18: 50.62905216 | CU18: 50.80742073 | CV18: 48.47569911 | CW18: 51.27861881 | CX18: 50.91427517 | CY18: 51.58454768 | DA18: 1928 | DB18: ='Compile Data'!F85 -> 51.91846466 | DC18: ='Compile Data'!F86 -> 52.87654877 | DD18: ='Compile Data'!F87 -> 51.65566635 | DE18: ='Compile Data'!F88 -> 49.05656433 | DF18: ='Compile Data'!F89 -> 48.72522354 | DG18: ='Compile Data'!F90 -> 49.1267128 | DH18: ='Compile Data'!F91 -> 53.51173019 | DI18: ='Compile Data'!F92 -> 52.85288239 | DJ18: ='Compile Data'!F93 -> 51.93304443 | DK18: ='Compile Data'!F94 -> 51.96791077 | DL18: ='Compile Data'!F95 -> 51.70130539 | DM18: ='Compile Data'!F96 -> 51.59440613 | DO18: 51.68062051 | DP18: 51.64049911 | DQ18: 51.41003831 | DS18: 51.37681103 | DT18: 49.81248474 | DU18: 51.85609245 | DV18: 51.79916668 | DW18: 52.73449071 | DY18: 1928 | DZ18: ='Compile Data'!G85 -> 51.86495209 | EA18: ='Compile Data'!G86 -> 52.89807129 | EB18: ='Compile Data'!G87 -> 51.58776474 | EC18: ='Compile Data'!G88 -> 48.99852371 | ED18: ='Compile Data'!G89 -> 48.68789673 | EE18: ='Compile Data'!G90 -> 49.09802246 | EF18: ='Compile Data'!G91 -> 53.49760818 | EG18: ='Compile Data'!G92 -> 52.84650803 | EH18: ='Compile Data'!G93 -> 51.9210434 | EI18: ='Compile Data'!G94 -> 52.07878494 | EJ18: ='Compile Data'!G95 -> 51.29638672 | EK18: ='Compile Data'!G96 -> 51.62786102 | EM18: 51.6636556 | EN18: 51.62620831 | EO18: 51.36695194 | EQ18: 51.33732796 | ER18: 49.75806173 | ES18: 51.84079552 | ET18: 51.73101902 | EU18: 52.84071096
A19: 1922-04-30 | B19: =IF(INDIRECT(CONCATENATE("'",B$1,"'!",B$4,(YEAR($A19)-1921)*12+MONTH($A19)+3+IF(ISNUMBER(FIND("PRV",B$6)),1,0)))=-901,NA(),INDIRECT(CONCATENATE("'",B$1,"'!",B$4,(YEAR($A19)-1921)*12+MONTH($A19)+3+IF(ISNUMBER(FIND("PRV",B$6)),1,0)))*IF(AND(B$3>0,TRIM(B$9)="CFS"),Conv_Flags!$C19,1)) -> 51.29597473 | C19: =IF(INDIRECT(CONCATENATE("'",C$1,"'!",C$4,(YEAR($A19)-1921)*12+MONTH($A19)+3+IF(ISNUMBER(FIND("PRV",C$6)),1,0)))=-901,NA(),INDIRECT(CONCATENATE("'",C$1,"'!",C$4,(YEAR($A19)-1921)*12+MONTH($A19)+3+IF(ISNUMBER(FIND("PRV",C$6)),1,0)))*IF(AND(C$3>0,TRIM(C$9)="CFS"),Conv_Flags!$C19,1)) -> 51.33030701 | D19: =IF(INDIRECT(CONCATENATE("'",D$1,"'!",D$4,(YEAR($A19)-1921)*12+MONTH($A19)+3+IF(ISNUMBER(FIND("PRV",D$6)),1,0)))=-901,NA(),INDIRECT(CONCATENATE("'",D$1,"'!",D$4,(YEAR($A19)-1921)*12+MONTH($A19)+3+IF(ISNUMBER(FIND("PRV",D$6)),1,0)))*IF(AND(D$3>0,TRIM(D$9)="CFS"),Conv_Flags!$C19,1)) -> 51.05755615 | E19: =IF(INDIRECT(CONCATENATE("'",E$1,"'!",E$4,(YEAR($A19)-1921)*12+MONTH($A19)+3+IF(ISNUMBER(FIND("PRV",E$6)),1,0)))=-901,NA(),INDIRECT(CONCATENATE("'",E$1,"'!",E$4,(YEAR($A19)-1921)*12+MONTH($A19)+3+IF(ISNUMBER(FIND("PRV",E$6)),1,0)))*IF(AND(E$3>0,TRIM(E$9)="CFS"),Conv_Flags!$C19,1)) -> 51.40763855 | F19: =IF(INDIRECT(CONCATENATE("'",F$1,"'!",F$4,(YEAR($A19)-1921)*12+MONTH($A19)+3+IF(ISNUMBER(FIND("PRV",F$6)),1,0)))=-901,NA(),INDIRECT(CONCATENATE("'",F$1,"'!",F$4,(YEAR($A19)-1921)*12+MONTH($A19)+3+IF(ISNUMBER(FIND("PRV",F$6)),1,0)))*IF(AND(F$3>0,TRIM(F$9)="CFS"),Conv_Flags!$C19,1)) -> 51.15528107 | G19: =IF(INDIRECT(CONCATENATE("'",G$1,"'!",G$4,(YEAR($A19)-1921)*12+MONTH($A19)+3+IF(ISNUMBER(FIND("PRV",G$6)),1,0)))=-901,NA(),INDIRECT(CONCATENATE("'",G$1,"'!",G$4,(YEAR($A19)-1921)*12+MONTH($A19)+3+IF(ISNUMBER(FIND("PRV",G$6)),1,0)))*IF(AND(G$3>0,TRIM(G$9)="CFS"),Conv_Flags!$C19,1)) -> 51.19488907 | I19: 1929 | J19: =B97 -> 51.82100677 | K19: =B98 -> 53.23170471 | L19: =B99 -> 51.41184616 | M19: =B100 -> 47.10522461 | N19: =B101 -> 47.61613464 | O19: =B102 -> 49.17785645 | P19: =B103 -> 50.39559555 | Q19: =B104 -> 51.65690231 | R19: =B105 -> 54.39536285 | S19: =B106 -> 52.95488358 | T19: =B107 -> 53.00213623 | U19: =B108 -> 54.21083832 | W19: 51.84149742 | X19: 51.93534152 | Y19: 51.41495768 | AA19: 50.89244556 | AB19: 48.71106847 | AC19: 51.40642929 | AD19: 53.64080524 | AE19: 54.46713257 | AG19: 1929 | AH19: ='Compile Data'!C97 -> 53.83510971 | AI19: ='Compile Data'!C98 -> 55.11194611 | AJ19: ='Compile Data'!C99 -> 53.16763306 | AK19: ='Compile Data'!C100 -> 48.1930275 | AL19: ='Compile Data'!C101 -> 48.98742294 | AM19: ='Compile Data'!C102 -> 50.30817795 | AN19: ='Compile Data'!C103 -> 51.60562897 | AO19: ='Compile Data'!C104 -> 53.05954742 | AP19: ='Compile Data'!C105 -> 55.97043991 | AQ19: ='Compile Data'!C106 -> 54.87108994 | AR19: ='Compile Data'!C107 -> 53.70780563 | AS19: ='Compile Data'!C108 -> 55.04211426 | AU19: 53.06919289 | AV19: 53.12209638 | AW19: 52.82166195 | AY19: 52.57692909 | AZ19: 50.11602783 | BA19: 52.73594856 | BB19: 54.89786243 | BC19: 55.59204992 | BE19: 1929 | BF19: ='Compile Data'!D97 -> 51.66236877 | BG19: ='Compile Data'!D98 -> 53.1325531 | BH19: ='Compile Data'!D99 -> 51.21231461 | BI19: ='Compile Data'!D100 -> 47.14924622 | BJ19: ='Compile Data'!D101 -> 47.58615494 | BK19: ='Compile Data'!D102 -> 48.71934509 | BL19: ='Compile Data'!D103 -> 50.20241928 | BM19: ='Compile Data'!D104 -> 51.63117981 | BN19: ='Compile Data'!D105 -> 53.78837204 | BO19: ='Compile Data'!D106 -> 52.95069504 | BP19: ='Compile Data'!D107 -> 52.61627579 | BQ19: ='Compile Data'!D108 -> 53.71918869 | BS19: 51.63229624 | BT19: 51.73918406 | BU19: 51.19750945 | BW19: 50.78912067 | BX19: 48.64923859 | BY19: 51.08532906 | BZ19: 53.26863289 | CA19: 54.19037501 | CC19: 1929 | CD19: ='Compile Data'!E97 -> 51.66199493 | CE19: ='Compile Data'!E98 -> 53.12215042 | CF19: ='Compile Data'!E99 -> 51.20415115 | CG19: ='Compile Data'!E100 -> 47.1504097 | CH19: ='Compile Data'!E101 -> 47.5974617 | CI19: ='Compile Data'!E102 -> 48.69849777 | CJ19: ='Compile Data'!E103 -> 50.23213577 | CK19: ='Compile Data'!E104 -> 51.31721497 | CL19: ='Compile Data'!E105 -> 54.01040649 | CM19: ='Compile Data'!E106 -> 52.96011353 | CN19: ='Compile Data'!E107 -> 53.00827026 | CO19: ='Compile Data'!E108 -> 53.73774338 | CQ19: 51.68044535 | CR19: 51.77858098 | CS19: 51.22504584 | CU19: 50.78467655 | CV19: 48.65067418 | CW19: 51.06456375 | CX19: 53.42913342 | CY19: 54.24398422 | DA19: 1929 | DB19: ='Compile Data'!F97 -> 52.15665436 | DC19: ='Compile Data'!F98 -> 54.45241165 | DD19: ='Compile Data'!F99 -> 53.08860016 | DE19: ='Compile Data'!F100 -> 48.26285172 | DF19: ='Compile Data'!F101 -> 49.0374794 | DG19: ='Compile Data'!F102 -> 50.06925583 | DH19: ='Compile Data'!F103 -> 51.85979462 | DI19: ='Compile Data'!F104 -> 52.6228981 | DJ19: ='Compile Data'!F105 -> 55.46512604 | DK19: ='Compile Data'!F106 -> 55.00470734 | DL19: ='Compile Data'!F107 -> 53.1473465 | DM19: ='Compile Data'!F108 -> 54.29270554 | DO19: 52.79934374 | DP19: 52.90291405 | DQ19: 52.45498594 | DS19: 51.99012947 | DT19: 50.12964376 | DU19: 52.50426865 | DV19: 54.47747135 | DW19: 54.64845912 | DY19: 1929 | DZ19: ='Compile Data'!G97 -> 52.50526047 | EA19: ='Compile Data'!G98 -> 54.38901138 | EB19: ='Compile Data'!G99 -> 53.01696014 | EC19: ='Compile Data'!G100 -> 48.18261337 | ED19: ='Compile Data'!G101 -> 49.05443954 | EE19: ='Compile Data'!G102 -> 50.11770248 | EF19: ='Compile Data'!G103 -> 51.92636871 | EG19: ='Compile Data'!G104 -> 52.73862457 | EH19: ='Compile Data'!G105 -> 55.67951965 | EI19: ='Compile Data'!G106 -> 54.95095825 | EJ19: ='Compile Data'!G107 -> 53.17009735 | EK19: ='Compile Data'!G108 -> 54.31805038 | EM19: 52.84258715 | EN19: 52.94618543 | EO19: 52.50413386 | EQ19: 52.02346134 | ER19: 50.08467102 | ES19: 52.61555386 | ET19: 54.52965641 | EU19: 54.78846995
A20: 1922-05-31 | B20: =IF(INDIRECT(CONCATENATE("'",B$1,"'!",B$4,(YEAR($A20)-1921)*12+MONTH($A20)+3+IF(ISNUMBER(FIND("PRV",B$6)),1,0)))=-901,NA(),INDIRECT(CONCATENATE("'",B$1,"'!",B$4,(YEAR($A20)-1921)*12+MONTH($A20)+3+IF(ISNUMBER(FIND("PRV",B$6)),1,0)))*IF(AND(B$3>0,TRIM(B$9)="CFS"),Conv_Flags!$C20,1)) -> 51.0175209 | C20: =IF(INDIRECT(CONCATENATE("'",C$1,"'!",C$4,(YEAR($A20)-1921)*12+MONTH($A20)+3+IF(ISNUMBER(FIND("PRV",C$6)),1,0)))=-901,NA(),INDIRECT(CONCATENATE("'",C$1,"'!",C$4,(YEAR($A20)-1921)*12+MONTH($A20)+3+IF(ISNUMBER(FIND("PRV",C$6)),1,0)))*IF(AND(C$3>0,TRIM(C$9)="CFS"),Conv_Flags!$C20,1)) -> 52.65354538 | D20: =IF(INDIRECT(CONCATENATE("'",D$1,"'!",D$4,(YEAR($A20)-1921)*12+MONTH($A20)+3+IF(ISNUMBER(FIND("PRV",D$6)),1,0)))=-901,NA(),INDIRECT(CONCATENATE("'",D$1,"'!",D$4,(YEAR($A20)-1921)*12+MONTH($A20)+3+IF(ISNUMBER(FIND("PRV",D$6)),1,0)))*IF(AND(D$3>0,TRIM(D$9)="CFS"),Conv_Flags!$C20,1)) -> 51.0097084 | E20: =IF(INDIRECT(CONCATENATE("'",E$1,"'!",E$4,(YEAR($A20)-1921)*12+MONTH($A20)+3+IF(ISNUMBER(FIND("PRV",E$6)),1,0)))=-901,NA(),INDIRECT(CONCATENATE("'",E$1,"'!",E$4,(YEAR($A20)-1921)*12+MONTH($A20)+3+IF(ISNUMBER(FIND("PRV",E$6)),1,0)))*IF(AND(E$3>0,TRIM(E$9)="CFS"),Conv_Flags!$C20,1)) -> 51.0236702 | F20: =IF(INDIRECT(CONCATENATE("'",F$1,"'!",F$4,(YEAR($A20)-1921)*12+MONTH($A20)+3+IF(ISNUMBER(FIND("PRV",F$6)),1,0)))=-901,NA(),INDIRECT(CONCATENATE("'",F$1,"'!",F$4,(YEAR($A20)-1921)*12+MONTH($A20)+3+IF(ISNUMBER(FIND("PRV",F$6)),1,0)))*IF(AND(F$3>0,TRIM(F$9)="CFS"),Conv_Flags!$C20,1)) -> 52.64852524 | G20: =IF(INDIRECT(CONCATENATE("'",G$1,"'!",G$4,(YEAR($A20)-1921)*12+MONTH($A20)+3+IF(ISNUMBER(FIND("PRV",G$6)),1,0)))=-901,NA(),INDIRECT(CONCATENATE("'",G$1,"'!",G$4,(YEAR($A20)-1921)*12+MONTH($A20)+3+IF(ISNUMBER(FIND("PRV",G$6)),1,0)))*IF(AND(G$3>0,TRIM(G$9)="CFS"),Conv_Flags!$C20,1)) -> 52.64738083 | I20: 1930 | J20: =B109 -> 54.80302811 | K20: =B110 -> 54.38753128 | L20: =B111 -> 52.39247513 | M20: =B112 -> 47.74476624 | N20: =B113 -> 48.10272217 | O20: =B114 -> 49.05615616 | P20: =B115 -> 51.33700562 | Q20: =B116 -> 54.93151474 | R20: =B117 -> 52.19417572 | S20: =B118 -> 52.1660614 | T20: =B119 -> 52.37359619 | U20: =B120 -> 52.85365677 | W20: 51.71181266 | X20: 51.8251435 | Y20: 51.86189079 | AA20: 52.33195019 | AB20: 49.41332118 | AC20: 51.87971306 | AD20: 52.39687252 | AE20: 53.39431381 | AG20: 1930 | AH20: ='Compile Data'!C109 -> 54.93717194 | AI20: ='Compile Data'!C110 -> 56.79686356 | AJ20: ='Compile Data'!C111 -> 53.35102463 | AK20: ='Compile Data'!C112 -> 48.68955231 | AL20: ='Compile Data'!C113 -> 49.12574005 | AM20: ='Compile Data'!C114 -> 49.98633957 | AN20: ='Compile Data'!C115 -> 52.03009796 | AO20: ='Compile Data'!C116 -> 52.41624451 | AP20: ='Compile Data'!C117 -> 54.3445816 | AQ20: ='Compile Data'!C118 -> 54.49357224 | AR20: ='Compile Data'!C119 -> 53.20347595 | AS20: ='Compile Data'!C120 -> 54.17461777 | AU20: 52.66348743 | AV20: 52.85573324 | AW20: 52.79577351 | AY20: 53.44365311 | AZ20: 50.38877233 | BA20: 52.19431591 | BB20: 54.05406189 | BC20: 54.57248815 | BE20: 1930 | BF20: ='Compile Data'!D109 -> 54.46327591 | BG20: ='Compile Data'!D110 -> 54.38866043 | BH20: ='Compile Data'!D111 -> 52.3727417 | BI20: ='Compile Data'!D112 -> 47.84794998 | BJ20: ='Compile Data'!D113 -> 48.17010498 | BK20: ='Compile Data'!D114 -> 49.07904816 | BL20: ='Compile Data'!D115 -> 53.61777496 | BM20: ='Compile Data'!D116 -> 55.19537354 | BN20: ='Compile Data'!D117 -> 52.66168594 | BO20: ='Compile Data'!D118 -> 52.14299774 | BP20: ='Compile Data'!D119 -> 52.71884918 | BQ20: ='Compile Data'!D120 -> 53.022995 | BS20: 52.00427659 | BT20: 52.06570021 | BU20: 52.14012146 | BW20: 52.26815701 | BX20: 49.46359889 | BY20: 52.63847065 | BZ20: 52.63663197 | CA20: 53.49566015 | CC20: 1930 | CD20: ='Compile Data'!E109 -> 54.29191208 | CE20: ='Compile Data'!E110 -> 54.70229721 | CF20: ='Compile Data'!E111 -> 52.45888138 | CG20: ='Compile Data'!E112 -> 47.78830719 | CH20: ='Compile Data'!E113 -> 48.13719177 | CI20: ='Compile Data'!E114 -> 49.06064987 | CJ20: ='Compile Data'!E115 -> 53.93540192 | CK20: ='Compile Data'!E116 -> 55.43274689 | CL20: ='Compile Data'!E117 -> 52.79585648 | CM20: ='Compile Data'!E118 -> 52.20869827 | CN20: ='Compile Data'!E119 -> 52.6992569 | CO20: ='Compile Data'!E120 -> 53.07000351 | CQ20: 52.04206753 | CR20: 52.10705185 | CS20: 52.21510029 | CU20: 52.31034946 | CV20: 49.46146011 | CW20: 52.80616379 | CX20: 52.69345379 | CY20: 53.46053696 | DA20: 1930 | DB20: ='Compile Data'!F109 -> 54.43032455 | DC20: ='Compile Data'!F110 -> 55.22234726 | DD20: ='Compile Data'!F111 -> 54.17728806 | DE20: ='Compile Data'!F112 -> 49.16695786 | DF20: ='Compile Data'!F113 -> 49.37621689 | DG20: ='Compile Data'!F114 -> 50.08925247 | DH20: ='Compile Data'!F115 -> 55.15499115 | DI20: ='Compile Data'!F116 -> 55.42079544 | DJ20: ='Compile Data'!F117 -> 54.10419083 | DK20: ='Compile Data'!F118 -> 53.42505264 | DL20: ='Compile Data'!F119 -> 52.51657104 | DM20: ='Compile Data'!F120 -> 53.82074356 | DO20: 52.966561 | DP20: 53.10881042 | DQ20: 53.07539431 | DS20: 53.24922943 | DT20: 50.90682093 | DU20: 53.69230747 | DV20: 53.46663952 | DW20: 54.21156184 | DY20: 1930 | DZ20: ='Compile Data'!G109 -> 54.51128006 | EA20: ='Compile Data'!G110 -> 55.53607941 | EB20: ='Compile Data'!G111 -> 53.92531204 | EC20: ='Compile Data'!G112 -> 49.12918472 | ED20: ='Compile Data'!G113 -> 49.35104752 | EE20: ='Compile Data'!G114 -> 50.07810974 | EF20: ='Compile Data'!G115 -> 53.98247528 | EG20: ='Compile Data'!G116 -> 55.31710052 | EH20: ='Compile Data'!G117 -> 53.64883804 | EI20: ='Compile Data'!G118 -> 53.51047897 | EJ20: ='Compile Data'!G119 -> 52.60067368 | EK20: ='Compile Data'!G120 -> 53.85592651 | EM20: 52.84696515 | EN20: 53.00478395 | EO20: 52.95387554 | EQ20: 53.27546406 | ER20: 50.80184809 | ES20: 53.2566309 | ET20: 53.4039793 | EU20: 54.2397995
A21: 1922-06-30 | B21: =IF(INDIRECT(CONCATENATE("'",B$1,"'!",B$4,(YEAR($A21)-1921)*12+MONTH($A21)+3+IF(ISNUMBER(FIND("PRV",B$6)),1,0)))=-901,NA(),INDIRECT(CONCATENATE("'",B$1,"'!",B$4,(YEAR($A21)-1921)*12+MONTH($A21)+3+IF(ISNUMBER(FIND("PRV",B$6)),1,0)))*IF(AND(B$3>0,TRIM(B$9)="CFS"),Conv_Flags!$C21,1)) -> 51.81781769 | C21: =IF(INDIRECT(CONCATENATE("'",C$1,"'!",C$4,(YEAR($A21)-1921)*12+MONTH($A21)+3+IF(ISNUMBER(FIND("PRV",C$6)),1,0)))=-901,NA(),INDIRECT(CONCATENATE("'",C$1,"'!",C$4,(YEAR($A21)-1921)*12+MONTH($A21)+3+IF(ISNUMBER(FIND("PRV",C$6)),1,0)))*IF(AND(C$3>0,TRIM(C$9)="CFS"),Conv_Flags!$C21,1)) -> 52.19549942 | D21: =IF(INDIRECT(CONCATENATE("'",D$1,"'!",D$4,(YEAR($A21)-1921)*12+MONTH($A21)+3+IF(ISNUMBER(FIND("PRV",D$6)),1,0)))=-901,NA(),INDIRECT(CONCATENATE("'",D$1,"'!",D$4,(YEAR($A21)-1921)*12+MONTH($A21)+3+IF(ISNUMBER(FIND("PRV",D$6)),1,0)))*IF(AND(D$3>0,TRIM(D$9)="CFS"),Conv_Flags!$C21,1)) -> 51.954422 | E21: =IF(INDIRECT(CONCATENATE("'",E$1,"'!",E$4,(YEAR($A21)-1921)*12+MONTH($A21)+3+IF(ISNUMBER(FIND("PRV",E$6)),1,0)))=-901,NA(),INDIRECT(CONCATENATE("'",E$1,"'!",E$4,(YEAR($A21)-1921)*12+MONTH($A21)+3+IF(ISNUMBER(FIND("PRV",E$6)),1,0)))*IF(AND(E$3>0,TRIM(E$9)="CFS"),Conv_Flags!$C21,1)) -> 51.95144653 | F21: =IF(INDIRECT(CONCATENATE("'",F$1,"'!",F$4,(YEAR($A21)-1921)*12+MONTH($A21)+3+IF(ISNUMBER(FIND("PRV",F$6)),1,0)))=-901,NA(),INDIRECT(CONCATENATE("'",F$1,"'!",F$4,(YEAR($A21)-1921)*12+MONTH($A21)+3+IF(ISNUMBER(FIND("PRV",F$6)),1,0)))*IF(AND(F$3>0,TRIM(F$9)="CFS"),Conv_Flags!$C21,1)) -> 52.34033966 | G21: =IF(INDIRECT(CONCATENATE("'",G$1,"'!",G$4,(YEAR($A21)-1921)*12+MONTH($A21)+3+IF(ISNUMBER(FIND("PRV",G$6)),1,0)))=-901,NA(),INDIRECT(CONCATENATE("'",G$1,"'!",G$4,(YEAR($A21)-1921)*12+MONTH($A21)+3+IF(ISNUMBER(FIND("PRV",G$6)),1,0)))*IF(AND(G$3>0,TRIM(G$9)="CFS"),Conv_Flags!$C21,1)) -> 52.3392868 | I21: 1931 | J21: =B121 -> 53.09030533 | K21: =B122 -> 54.23897934 | L21: =B123 -> 52.45281219 | M21: =B124 -> 48.85168076 | N21: =B125 -> 48.35577774 | O21: =B126 -> 49.77164841 | P21: =B127 -> 52.02956772 | Q21: =B128 -> 54.44939041 | R21: =B129 -> 56.30656052 | S21: =B130 -> 52.6302948 | T21: =B131 -> 53.34380341 | U21: =B132 -> 54.91597366 | W21: 52.6579059 | X21: 52.07842827 | Y21: 52.53639952 | AA21: 52.1584444 | AB21: 49.8867569 | AC21: 53.13929176 | AD21: 54.2991581 | AE21: 55.45261765 | AG21: 1931 | AH21: ='Compile Data'!C121 -> 54.77742004 | AI21: ='Compile Data'!C122 -> 54.76542664 | AJ21: ='Compile Data'!C123 -> 53.95478058 | AK21: ='Compile Data'!C124 -> 50.44042969 | AL21: ='Compile Data'!C125 -> 49.68181229 | AM21: ='Compile Data'!C126 -> 51.01250458 | AN21: ='Compile Data'!C127 -> 53.65718842 | AO21: ='Compile Data'!C128 -> 56.13663101 | AP21: ='Compile Data'!C129 -> 56.5113678 | AQ21: ='Compile Data'!C130 -> 54.62809372 | AR21: ='Compile Data'!C131 -> 55.79713058 | AS21: ='Compile Data'!C132 -> 62.12125778 | AU21: 54.72749869 | AV21: 53.88853677 | AW21: 54.45700359 | AY21: 53.48451424 | AZ21: 51.35900752 | BA21: 54.32942295 | BB21: 57.26446247 | BC21: 59.8183136 | BE21: 1931 | BF21: ='Compile Data'!D121 -> 53.14233017 | BG21: ='Compile Data'!D122 -> 54.32165527 | BH21: ='Compile Data'!D123 -> 52.1305542 | BI21: ='Compile Data'!D124 -> 48.58081436 | BJ21: ='Compile Data'!D125 -> 48.17432404 | BK21: ='Compile Data'!D126 -> 49.76327515 | BL21: ='Compile Data'!D127 -> 51.08547211 | BM21: ='Compile Data'!D128 -> 54.13555908 | BN21: ='Compile Data'!D129 -> 56.25018692 | BO21: ='Compile Data'!D130 -> 52.62411499 | BP21: ='Compile Data'!D131 -> 53.24169922 | BQ21: ='Compile Data'!D132 -> 54.6126976 | BS21: 52.48522409 | BT21: 51.93754482 | BU21: 52.33855693 | BW21: 52.0438385 | BX21: 49.6285642 | BY21: 52.80862331 | BZ21: 54.18217468 | CA21: 55.38736979 | CC21: 1931 | CD21: ='Compile Data'!E121 -> 53.05931854 | CE21: ='Compile Data'!E122 -> 54.25228882 | CF21: ='Compile Data'!E123 -> 52.06509018 | CG21: ='Compile Data'!E124 -> 48.54572678 | CH21: ='Compile Data'!E125 -> 48.15958405 | CI21: ='Compile Data'!E126 -> 49.73884583 | CJ21: ='Compile Data'!E127 -> 51.04941177 | CK21: ='Compile Data'!E128 -> 53.20269394 | CL21: ='Compile Data'!E129 -> 56.197258 | CM21: ='Compile Data'!E130 -> 52.74055099 | CN21: ='Compile Data'!E131 -> 53.0813942 | CO21: ='Compile Data'!E132 -> 54.23544312 | CQ21: 52.2621603 | CR21: 51.77836132 | CS21: 52.19396718 | CU21: 51.98060608 | CV21: 49.59013367 | CW21: 52.54705238 | CX21: 54.06366158 | CY21: 54.84373983 | DA21: 1931 | DB21: ='Compile Data'!F121 -> 54.13975906 | DC21: ='Compile Data'!F122 -> 54.67418289 | DD21: ='Compile Data'!F123 -> 53.71001816 | DE21: ='Compile Data'!F124 -> 50.45064545 | DF21: ='Compile Data'!F125 -> 49.7995224 | DG21: ='Compile Data'!F126 -> 50.97139359 | DH21: ='Compile Data'!F127 -> 52.9173317 | DI21: ='Compile Data'!F128 -> 55.80752182 | DJ21: ='Compile Data'!F129 -> 56.71704865 | DK21: ='Compile Data'!F130 -> 55.45449448 | DL21: ='Compile Data'!F131 -> 54.39538956 | DM21: ='Compile Data'!F132 -> 57.75451279 | DO21: 54.15613588 | DP21: 53.47444121 | DQ21: 53.89931838 | DS21: 53.24365139 | DT21: 51.320062 | DU21: 54.10332394 | DV21: 56.08036137 | DW21: 57.72598139 | DY21: 1931 | DZ21: ='Compile Data'!G121 -> 54.1795845 | EA21: ='Compile Data'!G122 -> 54.68388748 | EB21: ='Compile Data'!G123 -> 53.82627487 | EC21: ='Compile Data'!G124 -> 50.52789307 | ED21: ='Compile Data'!G125 -> 49.8461647 | EE21: ='Compile Data'!G126 -> 51.05079651 | EF21: ='Compile Data'!G127 -> 53.07827377 | EG21: ='Compile Data'!G128 -> 55.89547348 | EH21: ='Compile Data'!G129 -> 56.77338791 | EI21: ='Compile Data'!G130 -> 55.54710388 | EJ21: ='Compile Data'!G131 -> 54.51556778 | EK21: ='Compile Data'!G132 -> 58.23719406 | EM21: 54.28756587 | EN21: 53.53634103 | EO21: 54.01346684 | EQ21: 53.30440998 | ER21: 51.40011088 | ES21: 54.19948292 | ET21: 56.26831341 | EU21: 58.05008952
A22: 1922-07-31 | B22: =IF(INDIRECT(CONCATENATE("'",B$1,"'!",B$4,(YEAR($A22)-1921)*12+MONTH($A22)+3+IF(ISNUMBER(FIND("PRV",B$6)),1,0)))=-901,NA(),INDIRECT(CONCATENATE("'",B$1,"'!",B$4,(YEAR($A22)-1921)*12+MONTH($A22)+3+IF(ISNUMBER(FIND("PRV",B$6)),1,0)))*IF(AND(B$3>0,TRIM(B$9)="CFS"),Conv_Flags!$C22,1)) -> 51.83929825 | C22: =IF(INDIRECT(CONCATENATE("'",C$1,"'!",C$4,(YEAR($A22)-1921)*12+MONTH($A22)+3+IF(ISNUMBER(FIND("PRV",C$6)),1,0)))=-901,NA(),INDIRECT(CONCATENATE("'",C$1,"'!",C$4,(YEAR($A22)-1921)*12+MONTH($A22)+3+IF(ISNUMBER(FIND("PRV",C$6)),1,0)))*IF(AND(C$3>0,TRIM(C$9)="CFS"),Conv_Flags!$C22,1)) -> 52.90038681 | D22: =IF(INDIRECT(CONCATENATE("'",D$1,"'!",D$4,(YEAR($A22)-1921)*12+MONTH($A22)+3+IF(ISNUMBER(FIND("PRV",D$6)),1,0)))=-901,NA(),INDIRECT(CONCATENATE("'",D$1,"'!",D$4,(YEAR($A22)-1921)*12+MONTH($A22)+3+IF(ISNUMBER(FIND("PRV",D$6)),1,0)))*IF(AND(D$3>0,TRIM(D$9)="CFS"),Conv_Flags!$C22,1)) -> 52.4151268 | E22: =IF(INDIRECT(CONCATENATE("'",E$1,"'!",E$4,(YEAR($A22)-1921)*12+MONTH($A22)+3+IF(ISNUMBER(FIND("PRV",E$6)),1,0)))=-901,NA(),INDIRECT(CONCATENATE("'",E$1,"'!",E$4,(YEAR($A22)-1921)*12+MONTH($A22)+3+IF(ISNUMBER(FIND("PRV",E$6)),1,0)))*IF(AND(E$3>0,TRIM(E$9)="CFS"),Conv_Flags!$C22,1)) -> 52.40444565 | F22: =IF(INDIRECT(CONCATENATE("'",F$1,"'!",F$4,(YEAR($A22)-1921)*12+MONTH($A22)+3+IF(ISNUMBER(FIND("PRV",F$6)),1,0)))=-901,NA(),INDIRECT(CONCATENATE("'",F$1,"'!",F$4,(YEAR($A22)-1921)*12+MONTH($A22)+3+IF(ISNUMBER(FIND("PRV",F$6)),1,0)))*IF(AND(F$3>0,TRIM(F$9)="CFS"),Conv_Flags!$C22,1)) -> 53.47005844 | G22: =IF(INDIRECT(CONCATENATE("'",G$1,"'!",G$4,(YEAR($A22)-1921)*12+MONTH($A22)+3+IF(ISNUMBER(FIND("PRV",G$6)),1,0)))=-901,NA(),INDIRECT(CONCATENATE("'",G$1,"'!",G$4,(YEAR($A22)-1921)*12+MONTH($A22)+3+IF(ISNUMBER(FIND("PRV",G$6)),1,0)))*IF(AND(G$3>0,TRIM(G$9)="CFS"),Conv_Flags!$C22,1)) -> 53.47435379 | I22: 1932 | J22: =B133 -> 56.67586899 | K22: =B134 -> 54.76601028 | L22: =B135 -> 49.79829407 | M22: =B136 -> 45.44993973 | N22: =B137 -> 44.80378723 | O22: =B138 -> 48.87576675 | P22: =B139 -> 52.02399445 | Q22: =B140 -> 54.97115326 | R22: =B141 -> 56.28049469 | S22: =B142 -> 53.50395203 | T22: =B143 -> 53.11159515 | U22: =B144 -> 54.84569168 | W22: 51.87568474 | X22: 52.13007259 | Y22: 52.09221236 | AA22: 51.67252827 | AB22: 46.68400701 | AC22: 53.03785229 | AD22: 54.43543339 | AE22: 54.52479299 | AG22: 1932 | AH22: ='Compile Data'!C133 -> 61.72666931 | AI22: ='Compile Data'!C134 -> 55.6070137 | AJ22: ='Compile Data'!C135 -> 49.40988541 | AK22: ='Compile Data'!C136 -> 45.35829163 | AL22: ='Compile Data'!C137 -> 44.69640732 | AM22: ='Compile Data'!C138 -> 49.15956497 | AN22: ='Compile Data'!C139 -> 53.17111206 | AO22: ='Compile Data'!C140 -> 55.36063766 | AP22: ='Compile Data'!C141 -> 56.75032043 | AQ22: ='Compile Data'!C142 -> 55.78414536 | AR22: ='Compile Data'!C143 -> 53.812397 | AS22: ='Compile Data'!C144 -> 54.07782745 | AU22: 52.5558567 | AV22: 53.00527509 | AW22: 52.90952269 | AY22: 53.02546501 | AZ22: 46.48819478 | BA22: 53.61040878 | BB22: 55.10617256 | BC22: 54.73249563 | BE22: 1932 | BF22: ='Compile Data'!D133 -> 56.75848389 | BG22: ='Compile Data'!D134 -> 54.79092789 | BH22: ='Compile Data'!D135 -> 49.80513382 | BI22: ='Compile Data'!D136 -> 45.4201088 | BJ22: ='Compile Data'!D137 -> 44.76287842 | BK22: ='Compile Data'!D138 -> 48.76981735 | BL22: ='Compile Data'!D139 -> 52.04750061 | BM22: ='Compile Data'!D140 -> 54.76224136 | BN22: ='Compile Data'!D141 -> 56.48313904 | BO22: ='Compile Data'!D142 -> 53.42588425 | BP22: ='Compile Data'!D143 -> 53.04656982 | BQ22: ='Compile Data'!D144 -> 54.80682373 | BS22: 51.87336032 | BT22: 52.12031237 | BU22: 52.07329241 | BW22: 51.6936636 | BX22: 46.66270701 | BY22: 53.01567459 | BZ22: 54.44060421 | CA22: 54.48578517 | CC22: 1932 | CD22: ='Compile Data'!E133 -> 55.6833725 | CE22: ='Compile Data'!E134 -> 54.61240387 | CF22: ='Compile Data'!E135 -> 49.89923859 | CG22: ='Compile Data'!E136 -> 45.64355469 | CH22: ='Compile Data'!E137 -> 45.25616837 | CI22: ='Compile Data'!E138 -> 48.98083496 | CJ22: ='Compile Data'!E139 -> 51.79185867 | CK22: ='Compile Data'!E140 -> 54.04972839 | CL22: ='Compile Data'!E141 -> 55.9409523 | CM22: ='Compile Data'!E142 -> 53.43193436 | CN22: ='Compile Data'!E143 -> 53.14094543 | CO22: ='Compile Data'!E144 -> 54.6702652 | CQ22: 51.75626342 | CR22: 51.94222641 | CS22: 51.92510478 | CU22: 51.45964241 | CV22: 46.93298721 | CW22: 52.69084358 | CX22: 54.29602432 | CY22: 54.31835047 | DA22: 1932 | DB22: ='Compile Data'!F133 -> 59.74091339 | DC22: ='Compile Data'!F134 -> 55.68251801 | DD22: ='Compile Data'!F135 -> 50.18233871 | DE22: ='Compile Data'!F136 -> 46.14514542 | DF22: ='Compile Data'!F137 -> 45.92468643 | DG22: ='Compile Data'!F138 -> 49.88100815 | DH22: ='Compile Data'!F139 -> 52.28420258 | DI22: ='Compile Data'!F140 -> 54.36320877 | DJ22: ='Compile Data'!F141 -> 56.04251862 | DK22: ='Compile Data'!F142 -> 55.66579819 | DL22: ='Compile Data'!F143 -> 53.42668152 | DM22: ='Compile Data'!F144 -> 53.98401642 | DO22: 52.36731656 | DP22: 52.77049065 | DQ22: 52.77691968 | DS22: 52.93772888 | DT22: 47.41739019 | DU22: 53.14273453 | DV22: 54.77975368 | DW22: 54.39411036 | DY22: 1932 | DZ22: ='Compile Data'!G133 -> 60.2081604 | EA22: ='Compile Data'!G134 -> 55.70491409 | EB22: ='Compile Data'!G135 -> 50.06586075 | EC22: ='Compile Data'!G136 -> 45.78761292 | ED22: ='Compile Data'!G137 -> 45.57174683 | EE22: ='Compile Data'!G138 -> 49.93115234 | EF22: ='Compile Data'!G139 -> 52.63400269 | EG22: ='Compile Data'!G140 -> 55.07046509 | EH22: ='Compile Data'!G141 -> 56.48972321 | EI22: ='Compile Data'!G142 -> 55.64632416 | EJ22: ='Compile Data'!G143 -> 53.18115616 | EK22: ='Compile Data'!G144 -> 54.36451721 | EM22: 52.48875205 | EN22: 52.84802246 | EO22: 52.88796965 | EQ22: 52.94163704 | ER22: 47.14174016 | ES22: 53.53133583 | ET22: 54.92043018 | EU22: 54.61621475
A23: 1922-08-31 | B23: =IF(INDIRECT(CONCATENATE("'",B$1,"'!",B$4,(YEAR($A23)-1921)*12+MONTH($A23)+3+IF(ISNUMBER(FIND("PRV",B$6)),1,0)))=-901,NA(),INDIRECT(CONCATENATE("'",B$1,"'!",B$4,(YEAR($A23)-1921)*12+MONTH($A23)+3+IF(ISNUMBER(FIND("PRV",B$6)),1,0)))*IF(AND(B$3>0,TRIM(B$9)="CFS"),Conv_Flags!$C23,1)) -> 51.76369858 | C23: =IF(INDIRECT(CONCATENATE("'",C$1,"'!",C$4,(YEAR($A23)-1921)*12+MONTH($A23)+3+IF(ISNUMBER(FIND("PRV",C$6)),1,0)))=-901,NA(),INDIRECT(CONCATENATE("'",C$1,"'!",C$4,(YEAR($A23)-1921)*12+MONTH($A23)+3+IF(ISNUMBER(FIND("PRV",C$6)),1,0)))*IF(AND(C$3>0,TRIM(C$9)="CFS"),Conv_Flags!$C23,1)) -> 51.9318428 | D23: =IF(INDIRECT(CONCATENATE("'",D$1,"'!",D$4,(YEAR($A23)-1921)*12+MONTH($A23)+3+IF(ISNUMBER(FIND("PRV",D$6)),1,0)))=-901,NA(),INDIRECT(CONCATENATE("'",D$1,"'!",D$4,(YEAR($A23)-1921)*12+MONTH($A23)+3+IF(ISNUMBER(FIND("PRV",D$6)),1,0)))*IF(AND(D$3>0,TRIM(D$9)="CFS"),Conv_Flags!$C23,1)) -> 51.95953369 | E23: =IF(INDIRECT(CONCATENATE("'",E$1,"'!",E$4,(YEAR($A23)-1921)*12+MONTH($A23)+3+IF(ISNUMBER(FIND("PRV",E$6)),1,0)))=-901,NA(),INDIRECT(CONCATENATE("'",E$1,"'!",E$4,(YEAR($A23)-1921)*12+MONTH($A23)+3+IF(ISNUMBER(FIND("PRV",E$6)),1,0)))*IF(AND(E$3>0,TRIM(E$9)="CFS"),Conv_Flags!$C23,1)) -> 51.95866394 | F23: =IF(INDIRECT(CONCATENATE("'",F$1,"'!",F$4,(YEAR($A23)-1921)*12+MONTH($A23)+3+IF(ISNUMBER(FIND("PRV",F$6)),1,0)))=-901,NA(),INDIRECT(CONCATENATE("'",F$1,"'!",F$4,(YEAR($A23)-1921)*12+MONTH($A23)+3+IF(ISNUMBER(FIND("PRV",F$6)),1,0)))*IF(AND(F$3>0,TRIM(F$9)="CFS"),Conv_Flags!$C23,1)) -> 52.40244675 | G23: =IF(INDIRECT(CONCATENATE("'",G$1,"'!",G$4,(YEAR($A23)-1921)*12+MONTH($A23)+3+IF(ISNUMBER(FIND("PRV",G$6)),1,0)))=-901,NA(),INDIRECT(CONCATENATE("'",G$1,"'!",G$4,(YEAR($A23)-1921)*12+MONTH($A23)+3+IF(ISNUMBER(FIND("PRV",G$6)),1,0)))*IF(AND(G$3>0,TRIM(G$9)="CFS"),Conv_Flags!$C23,1)) -> 52.4020462 | I23: 1933 | J23: =B145 -> 54.90002441 | K23: =B146 -> 53.82866287 | L23: =B147 -> 49.9131546 | M23: =B148 -> 47.06040955 | N23: =B149 -> 46.24597168 | O23: =B150 -> 48.98258972 | P23: =B151 -> 51.76052094 | Q23: =B152 -> 53.49240112 | R23: =B153 -> 56.18993378 | S23: =B154 -> 53.32850647 | T23: =B155 -> 52.4802475 | U23: =B156 -> 54.43056107 | W23: 52.22452418 | X23: 52.13566049 | Y23: 51.88441531 | AA23: 51.42556286 | AB23: 47.73984528 | AC23: 52.60636139 | AD23: 54.1073122 | AE23: 55.19284185 | AG23: 1933 | AH23: ='Compile Data'!C145 -> 55.10473633 | AI23: ='Compile Data'!C146 -> 55.0149231 | AJ23: ='Compile Data'!C147 -> 52.37991714 | AK23: ='Compile Data'!C148 -> 48.3600235 | AL23: ='Compile Data'!C149 -> 47.08769608 | AM23: ='Compile Data'!C150 -> 49.96587753 | AN23: ='Compile Data'!C151 -> 54.00072098 | AO23: ='Compile Data'!C152 -> 54.0649147 | AP23: ='Compile Data'!C153 -> 56.30258179 | AQ23: ='Compile Data'!C154 -> 55.49642563 | AR23: ='Compile Data'!C155 -> 53.91905212 | AS23: ='Compile Data'!C156 -> 55.73537827 | AU23: 53.6527071 | AV23: 53.47390556 | AW23: 53.11935393 | AY23: 52.71490002 | AZ23: 49.27587891 | BA23: 53.58352375 | BB23: 55.36335945 | BC23: 57.30048243 | BE23: 1933 | BF23: ='Compile Data'!D145 -> 54.62218857 | BG23: ='Compile Data'!D146 -> 54.0283432 | BH23: ='Compile Data'!D147 -> 50.30482864 | BI23: ='Compile Data'!D148 -> 47.04068756 | BJ23: ='Compile Data'!D149 -> 46.10572433 | BK23: ='Compile Data'!D150 -> 48.71163559 | BL23: ='Compile Data'!D151 -> 52.89203262 | BM23: ='Compile Data'!D152 -> 53.76021957 | BN23: ='Compile Data'!D153 -> 56.27370453 | BO23: ='Compile Data'!D154 -> 53.27667236 | BP23: ='Compile Data'!D155 -> 53.24068832 | BQ23: ='Compile Data'!D156 -> 54.79410172 | BS23: 52.31761551 | BT23: 52.20750078 | BU23: 52.08756892 | BW23: 51.49901199 | BX23: 47.81708018 | BY23: 52.90939808 | BZ23: 54.39629173 | CA23: 54.99591446 | CC23: 1933 | CD23: ='Compile Data'!E145 -> 54.6370163 | CE23: ='Compile Data'!E146 -> 53.64776993 | CF23: ='Compile Data'!E147 -> 49.88413239 | CG23: ='Compile Data'!E148 -> 46.94970703 | CH23: ='Compile Data'!E149 -> 46.18157196 | CI23: ='Compile Data'!E150 -> 49.05641556 | CJ23: ='Compile Data'!E151 -> 52.43051147 | CK23: ='Compile Data'!E152 -> 53.23262405 | CL23: ='Compile Data'!E153 -> 56.25831223 | CM23: ='Compile Data'!E154 -> 53.40800095 | CN23: ='Compile Data'!E155 -> 52.36583328 | CO23: ='Compile Data'!E156 -> 55.02626038 | CQ23: 52.21271261 | CR23: 52.13571644 | CS23: 51.92317963 | CU23: 51.27965641 | CV23: 47.67180379 | CW23: 52.74446583 | CX23: 54.26460171 | CY23: 55.05324809 | DA23: 1933 | DB23: ='Compile Data'!F145 -> 54.87168121 | DC23: ='Compile Data'!F146 -> 54.32663345 | DD23: ='Compile Data'!F147 -> 51.49221802 | DE23: ='Compile Data'!F148 -> 48.72496033 | DF23: ='Compile Data'!F149 -> 48.18296051 | DG23: ='Compile Data'!F150 -> 50.0390625 | DH23: ='Compile Data'!F151 -> 52.93500519 | DI23: ='Compile Data'!F152 -> 53.50811386 | DJ23: ='Compile Data'!F153 -> 56.24563599 | DK23: ='Compile Data'!F154 -> 55.64652634 | DL23: ='Compile Data'!F155 -> 53.95691681 | DM23: ='Compile Data'!F156 -> 54.44507599 | DO23: 53.18650405 | DP23: 53.0117979 | DQ23: 52.86456585 | DS23: 52.35387325 | DT23: 49.46671295 | DU23: 53.18195438 | DV23: 55.07353878 | DW23: 55.42427317 | DY23: 1933 | DZ23: ='Compile Data'!G145 -> 55.0810318 | EA23: ='Compile Data'!G146 -> 54.40309525 | EB23: ='Compile Data'!G147 -> 51.70419693 | EC23: ='Compile Data'!G148 -> 48.39269638 | ED23: ='Compile Data'!G149 -> 47.27790833 | EE23: ='Compile Data'!G150 -> 50.11165619 | EF23: ='Compile Data'!G151 -> 53.19717407 | EG23: ='Compile Data'!G152 -> 53.67071152 | EH23: ='Compile Data'!G153 -> 56.20996857 | EI23: ='Compile Data'!G154 -> 55.66918945 | EJ23: ='Compile Data'!G155 -> 53.95330811 | EK23: ='Compile Data'!G156 -> 54.6085434 | EM23: 53.26899433 | EN23: 53.16560014 | EO23: 52.85662333 | EQ23: 52.39525509 | ER23: 49.12493388 | ES23: 53.29737759 | ET23: 55.11025238 | EU23: 56.00293096
A24: 1922-09-30 | B24: =IF(INDIRECT(CONCATENATE("'",B$1,"'!",B$4,(YEAR($A24)-1921)*12+MONTH($A24)+3+IF(ISNUMBER(FIND("PRV",B$6)),1,0)))=-901,NA(),INDIRECT(CONCATENATE("'",B$1,"'!",B$4,(YEAR($A24)-1921)*12+MONTH($A24)+3+IF(ISNUMBER(FIND("PRV",B$6)),1,0)))*IF(AND(B$3>0,TRIM(B$9)="CFS"),Conv_Flags!$C24,1)) -> 51.04671097 | C24: =IF(INDIRECT(CONCATENATE("'",C$1,"'!",C$4,(YEAR($A24)-1921)*12+MONTH($A24)+3+IF(ISNUMBER(FIND("PRV",C$6)),1,0)))=-901,NA(),INDIRECT(CONCATENATE("'",C$1,"'!",C$4,(YEAR($A24)-1921)*12+MONTH($A24)+3+IF(ISNUMBER(FIND("PRV",C$6)),1,0)))*IF(AND(C$3>0,TRIM(C$9)="CFS"),Conv_Flags!$C24,1)) -> 51.92146301 | D24: =IF(INDIRECT(CONCATENATE("'",D$1,"'!",D$4,(YEAR($A24)-1921)*12+MONTH($A24)+3+IF(ISNUMBER(FIND("PRV",D$6)),1,0)))=-901,NA(),INDIRECT(CONCATENATE("'",D$1,"'!",D$4,(YEAR($A24)-1921)*12+MONTH($A24)+3+IF(ISNUMBER(FIND("PRV",D$6)),1,0)))*IF(AND(D$3>0,TRIM(D$9)="CFS"),Conv_Flags!$C24,1)) -> 50.16563034 | E24: =IF(INDIRECT(CONCATENATE("'",E$1,"'!",E$4,(YEAR($A24)-1921)*12+MONTH($A24)+3+IF(ISNUMBER(FIND("PRV",E$6)),1,0)))=-901,NA(),INDIRECT(CONCATENATE("'",E$1,"'!",E$4,(YEAR($A24)-1921)*12+MONTH($A24)+3+IF(ISNUMBER(FIND("PRV",E$6)),1,0)))*IF(AND(E$3>0,TRIM(E$9)="CFS"),Conv_Flags!$C24,1)) -> 50.15712357 | F24: =IF(INDIRECT(CONCATENATE("'",F$1,"'!",F$4,(YEAR($A24)-1921)*12+MONTH($A24)+3+IF(ISNUMBER(FIND("PRV",F$6)),1,0)))=-901,NA(),INDIRECT(CONCATENATE("'",F$1,"'!",F$4,(YEAR($A24)-1921)*12+MONTH($A24)+3+IF(ISNUMBER(FIND("PRV",F$6)),1,0)))*IF(AND(F$3>0,TRIM(F$9)="CFS"),Conv_Flags!$C24,1)) -> 50.9850235 | G24: =IF(INDIRECT(CONCATENATE("'",G$1,"'!",G$4,(YEAR($A24)-1921)*12+MONTH($A24)+3+IF(ISNUMBER(FIND("PRV",G$6)),1,0)))=-901,NA(),INDIRECT(CONCATENATE("'",G$1,"'!",G$4,(YEAR($A24)-1921)*12+MONTH($A24)+3+IF(ISNUMBER(FIND("PRV",G$6)),1,0)))*IF(AND(G$3>0,TRIM(G$9)="CFS"),Conv_Flags!$C24,1)) -> 50.98510742 | I24: 1934 | J24: =B157 -> 55.59714127 | K24: =B158 -> 55.55082321 | L24: =B159 -> 51.57518387 | M24: =B160 -> 46.23921967 | N24: =B161 -> 46.00079727 | O24: =B162 -> 49.86478424 | P24: =B163 -> 53.00112534 | Q24: =B164 -> 54.51847458 | R24: =B165 -> 56.0330658 | S24: =B166 -> 52.78859329 | T24: =B167 -> 52.22158051 | U24: =B168 -> 54.91272736 | W24: 52.37184842 | X24: 52.34130351 | Y24: 52.35862637 | AA24: 52.240592 | AB24: 47.93840027 | AC24: 53.35436249 | AD24: 53.98899174 | AE24: 55.76606369 | AG24: 1934 | AH24: ='Compile Data'!C157 -> 58.57986832 | AI24: ='Compile Data'!C158 -> 57.58620071 | AJ24: ='Compile Data'!C159 -> 52.73374557 | AK24: ='Compile Data'!C160 -> 46.85391617 | AL24: ='Compile Data'!C161 -> 46.44818497 | AM24: ='Compile Data'!C162 -> 50.99191666 | AN24: ='Compile Data'!C163 -> 55.11029816 | AO24: ='Compile Data'!C164 -> 55.35727692 | AP24: ='Compile Data'!C165 -> 55.20992279 | AQ24: ='Compile Data'!C166 -> 53.82978821 | AR24: ='Compile Data'!C167 -> 54.32598114 | AS24: ='Compile Data'!C168 -> 58.01482391 | AU24: 53.7166694 | AV24: 53.74424616 | AW24: 53.75349363 | AY24: 53.93843269 | AZ24: 48.67861557 | BA24: 54.16735363 | BB24: 55.34512901 | BC24: 58.33402888 | BE24: 1934 | BF24: ='Compile Data'!D157 -> 55.22089767 | BG24: ='Compile Data'!D158 -> 54.97274399 | BH24: ='Compile Data'!D159 -> 51.52227783 | BI24: ='Compile Data'!D160 -> 46.04961014 | BJ24: ='Compile Data'!D161 -> 45.77542496 | BK24: ='Compile Data'!D162 -> 49.85836029 | BL24: ='Compile Data'!D163 -> 53.33074951 | BM24: ='Compile Data'!D164 -> 54.82741165 | BN24: ='Compile Data'!D165 -> 56.01414871 | BO24: ='Compile Data'!D166 -> 52.78570938 | BP24: ='Compile Data'!D167 -> 52.28168488 | BQ24: ='Compile Data'!D168 -> 55.2407341 | BS24: 52.46576659 | BT24: 52.44636949 | BU24: 52.32331276 | BW24: 51.94138241 | BX24: 47.78243764 | BY24: 53.50766754 | BZ24: 54.08056927 | CA24: 56.15361404 | CC24: 1934 | CD24: ='Compile Data'!E157 -> 55.33972931 | CE24: ='Compile Data'!E158 -> 54.79375458 | CF24: ='Compile Data'!E159 -> 51.50983047 | CG24: ='Compile Data'!E160 -> 46.20907593 | CH24: ='Compile Data'!E161 -> 45.99824905 | CI24: ='Compile Data'!E162 -> 49.85228729 | CJ24: ='Compile Data'!E163 -> 52.97110367 | CK24: ='Compile Data'!E164 -> 54.55931473 | CL24: ='Compile Data'!E165 -> 56.0568924 | CM24: ='Compile Data'!E166 -> 52.87427902 | CN24: ='Compile Data'!E167 -> 52.26135254 | CO24: ='Compile Data'!E168 -> 54.5957222 | CQ24: 52.32236894 | CR24: 52.31455104 | CS24: 52.25179927 | CU24: 51.96309757 | CV24: 47.90571849 | CW24: 53.35989952 | CX24: 53.94706154 | CY24: 55.5194842 | DA24: 1934 | DB24: ='Compile Data'!F157 -> 55.33407974 | DC24: ='Compile Data'!F158 -> 56.49366379 | DD24: ='Compile Data'!F159 -> 52.72604752 | DE24: ='Compile Data'!F160 -> 47.44801712 | DF24: ='Compile Data'!F161 -> 47.36343002 | DG24: ='Compile Data'!F162 -> 50.95159149 | DH24: ='Compile Data'!F163 -> 54.01761627 | DI24: ='Compile Data'!F164 -> 55.02172852 | DJ24: ='Compile Data'!F165 -> 55.99583817 | DK24: ='Compile Data'!F166 -> 55.14062881 | DL24: ='Compile Data'!F167 -> 54.24765015 | DM24: ='Compile Data'!F168 -> 55.20277023 | DO24: 53.36133766 | DP24: 53.373305 | DQ24: 53.32858849 | DS24: 53.00045204 | DT24: 49.17916489 | DU24: 53.99669361 | DV24: 55.14672184 | DW24: 56.17425537 | DY24: 1934 | DZ24: ='Compile Data'!G157 -> 56.34632111 | EA24: ='Compile Data'!G158 -> 57.05392838 | EB24: ='Compile Data'!G159 -> 52.73652649 | EC24: ='Compile Data'!G160 -> 47.29296112 | ED24: ='Compile Data'!G161 -> 47.1369133 | EE24: ='Compile Data'!G162 -> 50.92804718 | EF24: ='Compile Data'!G163 -> 54.05239868 | EG24: ='Compile Data'!G164 -> 55.04802322 | EH24: ='Compile Data'!G165 -> 56.01675415 | EI24: ='Compile Data'!G166 -> 54.82973099 | EJ24: ='Compile Data'!G167 -> 54.25914001 | EK24: ='Compile Data'!G168 -> 55.3987236 | EM24: 53.35977332 | EN24: 53.38454851 | EO24: 53.42495569 | EQ24: 53.35743427 | ER24: 49.05546697 | ES24: 54.01130581 | ET24: 55.12608719 | EU24: 56.38791529
A25: 1922-10-31 | B25: =IF(INDIRECT(CONCATENATE("'",B$1,"'!",B$4,(YEAR($A25)-1921)*12+MONTH($A25)+3+IF(ISNUMBER(FIND("PRV",B$6)),1,0)))=-901,NA(),INDIRECT(CONCATENATE("'",B$1,"'!",B$4,(YEAR($A25)-1921)*12+MONTH($A25)+3+IF(ISNUMBER(FIND("PRV",B$6)),1,0)))*IF(AND(B$3>0,TRIM(B$9)="CFS"),Conv_Flags!$C25,1)) -> 51.89820862 | C25: =IF(INDIRECT(CONCATENATE("'",C$1,"'!",C$4,(YEAR($A25)-1921)*12+MONTH($A25)+3+IF(ISNUMBER(FIND("PRV",C$6)),1,0)))=-901,NA(),INDIRECT(CONCATENATE("'",C$1,"'!",C$4,(YEAR($A25)-1921)*12+MONTH($A25)+3+IF(ISNUMBER(FIND("PRV",C$6)),1,0)))*IF(AND(C$3>0,TRIM(C$9)="CFS"),Conv_Flags!$C25,1)) -> 51.81914139 | D25: =IF(INDIRECT(CONCATENATE("'",D$1,"'!",D$4,(YEAR($A25)-1921)*12+MONTH($A25)+3+IF(ISNUMBER(FIND("PRV",D$6)),1,0)))=-901,NA(),INDIRECT(CONCATENATE("'",D$1,"'!",D$4,(YEAR($A25)-1921)*12+MONTH($A25)+3+IF(ISNUMBER(FIND("PRV",D$6)),1,0)))*IF(AND(D$3>0,TRIM(D$9)="CFS"),Conv_Flags!$C25,1)) -> 51.74239731 | E25: =IF(INDIRECT(CONCATENATE("'",E$1,"'!",E$4,(YEAR($A25)-1921)*12+MONTH($A25)+3+IF(ISNUMBER(FIND("PRV",E$6)),1,0)))=-901,NA(),INDIRECT(CONCATENATE("'",E$1,"'!",E$4,(YEAR($A25)-1921)*12+MONTH($A25)+3+IF(ISNUMBER(FIND("PRV",E$6)),1,0)))*IF(AND(E$3>0,TRIM(E$9)="CFS"),Conv_Flags!$C25,1)) -> 51.74543381 | F25: =IF(INDIRECT(CONCATENATE("'",F$1,"'!",F$4,(YEAR($A25)-1921)*12+MONTH($A25)+3+IF(ISNUMBER(FIND("PRV",F$6)),1,0)))=-901,NA(),INDIRECT(CONCATENATE("'",F$1,"'!",F$4,(YEAR($A25)-1921)*12+MONTH($A25)+3+IF(ISNUMBER(FIND("PRV",F$6)),1,0)))*IF(AND(F$3>0,TRIM(F$9)="CFS"),Conv_Flags!$C25,1)) -> 51.51712799 | G25: =IF(INDIRECT(CONCATENATE("'",G$1,"'!",G$4,(YEAR($A25)-1921)*12+MONTH($A25)+3+IF(ISNUMBER(FIND("PRV",G$6)),1,0)))=-901,NA(),INDIRECT(CONCATENATE("'",G$1,"'!",G$4,(YEAR($A25)-1921)*12+MONTH($A25)+3+IF(ISNUMBER(FIND("PRV",G$6)),1,0)))*IF(AND(G$3>0,TRIM(G$9)="CFS"),Conv_Flags!$C25,1)) -> 51.51305771 | I25: 1935 | J25: =B169 -> 57.53469467 | K25: =B170 -> 54.85076904 | L25: =B171 -> 50.49634933 | M25: =B172 -> 46.97658157 | N25: =B173 -> 44.89689636 | O25: =B174 -> 46.81420898 | P25: =B175 -> 50.54099274 | Q25: =B176 -> 52.70032501 | R25: =B177 -> 53.28600311 | S25: =B178 -> 52.02583313 | T25: =B179 -> 52.12194061 | U25: =B180 -> 53.38204956 | W25: 51.02925809 | X25: 51.16274389 | Y25: 51.30222034 | AA25: 52.46459866 | AB25: 47.45660909 | AC25: 50.83538246 | AD25: 52.7039566 | AE25: 53.9076678 | AG25: 1935 | AH25: ='Compile Data'!C169 -> 60.83234406 | AI25: ='Compile Data'!C170 -> 56.15491867 | AJ25: ='Compile Data'!C171 -> 51.47066116 | AK25: ='Compile Data'!C172 -> 47.69065475 | AL25: ='Compile Data'!C173 -> 45.94236755 | AM25: ='Compile Data'!C174 -> 47.62847519 | AN25: ='Compile Data'!C175 -> 51.00435638 | AO25: ='Compile Data'!C176 -> 52.66443634 | AP25: ='Compile Data'!C177 -> 53.52799225 | AQ25: ='Compile Data'!C178 -> 54.2351799 | AR25: ='Compile Data'!C179 -> 53.02235413 | AS25: ='Compile Data'!C180 -> 53.69462204 | AU25: 51.72586568 | AV25: 51.87391694 | AW25: 52.32236354 | AY25: 54.03714466 | AZ25: 48.36789449 | BA25: 51.20631504 | BB25: 53.62003708 | BC25: 54.22049586 | BE25: 1935 | BF25: ='Compile Data'!D169 -> 58.41804123 | BG25: ='Compile Data'!D170 -> 54.8020668 | BH25: ='Compile Data'!D171 -> 50.20525742 | BI25: ='Compile Data'!D172 -> 46.81765747 | BJ25: ='Compile Data'!D173 -> 44.77461243 | BK25: ='Compile Data'!D174 -> 46.62952805 | BL25: ='Compile Data'!D175 -> 50.66968536 | BM25: ='Compile Data'!D176 -> 53.30841064 | BN25: ='Compile Data'!D177 -> 53.90861893 | BO25: ='Compile Data'!D178 -> 52.15681076 | BP25: ='Compile Data'!D179 -> 52.24650955 | BQ25: ='Compile Data'!D180 -> 53.33198547 | BS25: 51.10089429 | BT25: 51.24441306 | BU25: 51.43909868 | BW25: 52.56075573 | BX25: 47.26584244 | BY25: 51.12906075 | BZ25: 52.91098118 | CA25: 53.86087799 | CC25: 1935 | CD25: ='Compile Data'!E169 -> 57.14958191 | CE25: ='Compile Data'!E170 -> 54.8131485 | CF25: ='Compile Data'!E171 -> 50.52742004 | CG25: ='Compile Data'!E172 -> 47.01729584 | CH25: ='Compile Data'!E173 -> 45.09621429 | CI25: ='Compile Data'!E174 -> 46.76580429 | CJ25: ='Compile Data'!E175 -> 50.55195618 | CK25: ='Compile Data'!E176 -> 53.17750549 | CL25: ='Compile Data'!E177 -> 53.69747162 | CM25: ='Compile Data'!E178 -> 52.15538406 | CN25: ='Compile Data'!E179 -> 52.2963295 | CO25: ='Compile Data'!E180 -> 53.40000153 | CQ25: 51.12191995 | CR25: 51.22200584 | CS25: 51.38734277 | CU25: 52.37686157 | CV25: 47.54697673 | CW25: 51.04818439 | CX25: 52.88729668 | CY25: 53.87929789 | DA25: 1935 | DB25: ='Compile Data'!F169 -> 57.35776901 | DC25: ='Compile Data'!F170 -> 55.96222687 | DD25: ='Compile Data'!F171 -> 51.62678528 | DE25: ='Compile Data'!F172 -> 48.10920334 | DF25: ='Compile Data'!F173 -> 46.8458519 | DG25: ='Compile Data'!F174 -> 47.79130173 | DH25: ='Compile Data'!F175 -> 50.82752228 | DI25: ='Compile Data'!F176 -> 55.5651741 | DJ25: ='Compile Data'!F177 -> 55.42013168 | DK25: ='Compile Data'!F178 -> 53.16041183 | DL25: ='Compile Data'!F179 -> 52.52824783 | DM25: ='Compile Data'!F180 -> 53.25883484 | DO25: 51.98893833 | DP25: 52.02246189 | DQ25: 52.37112172 | DS25: 53.26399612 | DT25: 48.86061351 | DU25: 52.40103245 | DV25: 53.59190655 | DW25: 53.81196976 | DY25: 1935 | DZ25: ='Compile Data'!G169 -> 57.76079559 | EA25: ='Compile Data'!G170 -> 56.00422668 | EB25: ='Compile Data'!G171 -> 51.58956528 | EC25: ='Compile Data'!G172 -> 48.05341721 | ED25: ='Compile Data'!G173 -> 46.67375946 | EE25: ='Compile Data'!G174 -> 47.8245697 | EF25: ='Compile Data'!G175 -> 50.85253143 | EG25: ='Compile Data'!G176 -> 55.86156082 | EH25: ='Compile Data'!G177 -> 55.41553879 | EI25: ='Compile Data'!G178 -> 53.48799515 | EJ25: ='Compile Data'!G179 -> 52.93626022 | EK25: ='Compile Data'!G180 -> 53.75610352 | EM25: 52.14108435 | EN25: 52.17177931 | EO25: 52.51802699 | EQ25: 53.35200119 | ER25: 48.77224731 | ES25: 52.48855019 | ET25: 53.89897442 | EU25: 54.22579066
A26: 1922-11-30 | B26: =IF(INDIRECT(CONCATENATE("'",B$1,"'!",B$4,(YEAR($A26)-1921)*12+MONTH($A26)+3+IF(ISNUMBER(FIND("PRV",B$6)),1,0)))=-901,NA(),INDIRECT(CONCATENATE("'",B$1,"'!",B$4,(YEAR($A26)-1921)*12+MONTH($A26)+3+IF(ISNUMBER(FIND("PRV",B$6)),1,0)))*IF(AND(B$3>0,TRIM(B$9)="CFS"),Conv_Flags!$C26,1)) -> 53.56967926 | C26: =IF(INDIRECT(CONCATENATE("'",C$1,"'!",C$4,(YEAR($A26)-1921)*12+MONTH($A26)+3+IF(ISNUMBER(FIND("PRV",C$6)),1,0)))=-901,NA(),INDIRECT(CONCATENATE("'",C$1,"'!",C$4,(YEAR($A26)-1921)*12+MONTH($A26)+3+IF(ISNUMBER(FIND("PRV",C$6)),1,0)))*IF(AND(C$3>0,TRIM(C$9)="CFS"),Conv_Flags!$C26,1)) -> 53.74214554 | D26: =IF(INDIRECT(CONCATENATE("'",D$1,"'!",D$4,(YEAR($A26)-1921)*12+MONTH($A26)+3+IF(ISNUMBER(FIND("PRV",D$6)),1,0)))=-901,NA(),INDIRECT(CONCATENATE("'",D$1,"'!",D$4,(YEAR($A26)-1921)*12+MONTH($A26)+3+IF(ISNUMBER(FIND("PRV",D$6)),1,0)))*IF(AND(D$3>0,TRIM(D$9)="CFS"),Conv_Flags!$C26,1)) -> 53.5732193 | E26: =IF(INDIRECT(CONCATENATE("'",E$1,"'!",E$4,(YEAR($A26)-1921)*12+MONTH($A26)+3+IF(ISNUMBER(FIND("PRV",E$6)),1,0)))=-901,NA(),INDIRECT(CONCATENATE("'",E$1,"'!",E$4,(YEAR($A26)-1921)*12+MONTH($A26)+3+IF(ISNUMBER(FIND("PRV",E$6)),1,0)))*IF(AND(E$3>0,TRIM(E$9)="CFS"),Conv_Flags!$C26,1)) -> 53.5789032 | F26: =IF(INDIRECT(CONCATENATE("'",F$1,"'!",F$4,(YEAR($A26)-1921)*12+MONTH($A26)+3+IF(ISNUMBER(FIND("PRV",F$6)),1,0)))=-901,NA(),INDIRECT(CONCATENATE("'",F$1,"'!",F$4,(YEAR($A26)-1921)*12+MONTH($A26)+3+IF(ISNUMBER(FIND("PRV",F$6)),1,0)))*IF(AND(F$3>0,TRIM(F$9)="CFS"),Conv_Flags!$C26,1)) -> 53.79788589 | G26: =IF(INDIRECT(CONCATENATE("'",G$1,"'!",G$4,(YEAR($A26)-1921)*12+MONTH($A26)+3+IF(ISNUMBER(FIND("PRV",G$6)),1,0)))=-901,NA(),INDIRECT(CONCATENATE("'",G$1,"'!",G$4,(YEAR($A26)-1921)*12+MONTH($A26)+3+IF(ISNUMBER(FIND("PRV",G$6)),1,0)))*IF(AND(G$3>0,TRIM(G$9)="CFS"),Conv_Flags!$C26,1)) -> 53.79681015 | I26: 1936 | J26: =B181 -> 54.75600052 | K26: =B182 -> 53.58495331 | L26: =B183 -> 51.26531219 | M26: =B184 -> 47.84733582 | N26: =B185 -> 45.62797165 | O26: =B186 -> 49.24036789 | P26: =B187 -> 52.33794785 | Q26: =B188 -> 53.16083145 | R26: =B189 -> 52.4026947 | S26: =B190 -> 51.58068085 | T26: =B191 -> 51.84391403 | U26: =B192 -> 52.09086227 | W26: 51.10004965 | X26: 51.18483893 | Y26: 51.31157271 | AA26: 51.86340046 | AB26: 48.24687322 | AC26: 51.78546047 | AD26: 51.97953796 | AE26: 52.74728139 | AG26: 1936 | AH26: ='Compile Data'!C181 -> 54.89346313 | AI26: ='Compile Data'!C182 -> 54.0734024 | AJ26: ='Compile Data'!C183 -> 52.33308411 | AK26: ='Compile Data'!C184 -> 48.93836594 | AL26: ='Compile Data'!C185 -> 46.47127151 | AM26: ='Compile Data'!C186 -> 50.54392242 | AN26: ='Compile Data'!C187 -> 53.55222702 | AO26: ='Compile Data'!C188 -> 54.50260925 | AP26: ='Compile Data'!C189 -> 53.26586914 | AQ26: ='Compile Data'!C190 -> 52.68470764 | AR26: ='Compile Data'!C191 -> 52.51716995 | AS26: ='Compile Data'!C192 -> 51.51083374 | AU26: 51.94400946 | AV26: 52.11682383 | AW26: 52.10724386 | AY26: 52.5595789 | AZ26: 49.24757385 | BA26: 52.96615696 | BB26: 52.49464512 | BC26: 52.81740189 | BE26: 1936 | BF26: ='Compile Data'!D181 -> 54.68334579 | BG26: ='Compile Data'!D182 -> 53.5673027 | BH26: ='Compile Data'!D183 -> 51.11626434 | BI26: ='Compile Data'!D184 -> 47.78147888 | BJ26: ='Compile Data'!D185 -> 45.5330162 | BK26: ='Compile Data'!D186 -> 49.26343918 | BL26: ='Compile Data'!D187 -> 52.3181839 | BM26: ='Compile Data'!D188 -> 53.21481705 | BN26: ='Compile Data'!D189 -> 52.50059891 | BO26: ='Compile Data'!D190 -> 52.05545425 | BP26: ='Compile Data'!D191 -> 51.8816452 | BQ26: ='Compile Data'!D192 -> 52.08003235 | BS26: 51.10605208 | BT26: 51.18896739 | BU26: 51.3329649 | BW26: 51.78709793 | BX26: 48.14358648 | BY26: 51.82425976 | BZ26: 52.12943268 | CA26: 52.65722783 | CC26: 1936 | CD26: ='Compile Data'!E181 -> 54.69857788 | CE26: ='Compile Data'!E182 -> 53.53931427 | CF26: ='Compile Data'!E183 -> 51.06718445 | CG26: ='Compile Data'!E184 -> 47.77532959 | CH26: ='Compile Data'!E185 -> 45.53921127 | CI26: ='Compile Data'!E186 -> 49.31102753 | CJ26: ='Compile Data'!E187 -> 52.34704971 | CK26: ='Compile Data'!E188 -> 53.23425293 | CL26: ='Compile Data'!E189 -> 52.52230453 | CM26: ='Compile Data'!E190 -> 52.02812195 | CN26: ='Compile Data'!E191 -> 51.88269806 | CO26: ='Compile Data'!E192 -> 52.08397675 | CQ26: 51.11518319 | CR26: 51.20377477 | CS26: 51.33575408 | CU26: 51.77010155 | CV26: 48.12724177 | CW26: 51.85365868 | CX26: 52.12927532 | CY26: 52.65896225 | DA26: 1936 | DB26: ='Compile Data'!F181 -> 54.19223785 | DC26: ='Compile Data'!F182 -> 53.98483658 | DD26: ='Compile Data'!F183 -> 52.18350601 | DE26: ='Compile Data'!F184 -> 48.84700775 | DF26: ='Compile Data'!F185 -> 46.5103302 | DG26: ='Compile Data'!F186 -> 50.59663391 | DH26: ='Compile Data'!F187 -> 53.58263016 | DI26: ='Compile Data'!F188 -> 54.96781921 | DJ26: ='Compile Data'!F189 -> 53.40174866 | DK26: ='Compile Data'!F190 -> 52.55753708 | DL26: ='Compile Data'!F191 -> 52.50965118 | DM26: ='Compile Data'!F192 -> 51.77555084 | DO26: 52.01134555 | DP26: 52.19075298 | DQ26: 52.09245745 | DS26: 52.30189705 | DT26: 49.18028132 | DU26: 53.13720798 | DV26: 52.56112194 | DW26: 52.91577276 | DY26: 1936 | DZ26: ='Compile Data'!G181 -> 54.84578705 | EA26: ='Compile Data'!G182 -> 54.07548141 | EB26: ='Compile Data'!G183 -> 51.91000748 | EC26: ='Compile Data'!G184 -> 48.73244476 | ED26: ='Compile Data'!G185 -> 46.36307144 | EE26: ='Compile Data'!G186 -> 50.55123901 | EF26: ='Compile Data'!G187 -> 53.55010605 | EG26: ='Compile Data'!G188 -> 54.76403046 | EH26: ='Compile Data'!G189 -> 53.3989563 | EI26: ='Compile Data'!G190 -> 52.60523987 | EJ26: ='Compile Data'!G191 -> 52.51301193 | EK26: ='Compile Data'!G192 -> 51.71041107 | EM26: 51.96503226 | EN26: 52.15914694 | EO26: 52.08498224 | EQ26: 52.39093018 | ER26: 49.00184123 | ES26: 53.06608295 | ET26: 52.55690479 | EU26: 52.90989812
A27: 1922-12-31 | B27: =IF(INDIRECT(CONCATENATE("'",B$1,"'!",B$4,(YEAR($A27)-1921)*12+MONTH($A27)+3+IF(ISNUMBER(FIND("PRV",B$6)),1,0)))=-901,NA(),INDIRECT(CONCATENATE("'",B$1,"'!",B$4,(YEAR($A27)-1921)*12+MONTH($A27)+3+IF(ISNUMBER(FIND("PRV",B$6)),1,0)))*IF(AND(B$3>0,TRIM(B$9)="CFS"),Conv_Flags!$C27,1)) -> 51.11385727 | C27: =IF(INDIRECT(CONCATENATE("'",C$1,"'!",C$4,(YEAR($A27)-1921)*12+MONTH($A27)+3+IF(ISNUMBER(FIND("PRV",C$6)),1,0)))=-901,NA(),INDIRECT(CONCATENATE("'",C$1,"'!",C$4,(YEAR($A27)-1921)*12+MONTH($A27)+3+IF(ISNUMBER(FIND("PRV",C$6)),1,0)))*IF(AND(C$3>0,TRIM(C$9)="CFS"),Conv_Flags!$C27,1)) -> 51.84780121 | D27: =IF(INDIRECT(CONCATENATE("'",D$1,"'!",D$4,(YEAR($A27)-1921)*12+MONTH($A27)+3+IF(ISNUMBER(FIND("PRV",D$6)),1,0)))=-901,NA(),INDIRECT(CONCATENATE("'",D$1,"'!",D$4,(YEAR($A27)-1921)*12+MONTH($A27)+3+IF(ISNUMBER(FIND("PRV",D$6)),1,0)))*IF(AND(D$3>0,TRIM(D$9)="CFS"),Conv_Flags!$C27,1)) -> 51.15228271 | E27: =IF(INDIRECT(CONCATENATE("'",E$1,"'!",E$4,(YEAR($A27)-1921)*12+MONTH($A27)+3+IF(ISNUMBER(FIND("PRV",E$6)),1,0)))=-901,NA(),INDIRECT(CONCATENATE("'",E$1,"'!",E$4,(YEAR($A27)-1921)*12+MONTH($A27)+3+IF(ISNUMBER(FIND("PRV",E$6)),1,0)))*IF(AND(E$3>0,TRIM(E$9)="CFS"),Conv_Flags!$C27,1)) -> 51.16336823 | F27: =IF(INDIRECT(CONCATENATE("'",F$1,"'!",F$4,(YEAR($A27)-1921)*12+MONTH($A27)+3+IF(ISNUMBER(FIND("PRV",F$6)),1,0)))=-901,NA(),INDIRECT(CONCATENATE("'",F$1,"'!",F$4,(YEAR($A27)-1921)*12+MONTH($A27)+3+IF(ISNUMBER(FIND("PRV",F$6)),1,0)))*IF(AND(F$3>0,TRIM(F$9)="CFS"),Conv_Flags!$C27,1)) -> 51.84362793 | G27: =IF(INDIRECT(CONCATENATE("'",G$1,"'!",G$4,(YEAR($A27)-1921)*12+MONTH($A27)+3+IF(ISNUMBER(FIND("PRV",G$6)),1,0)))=-901,NA(),INDIRECT(CONCATENATE("'",G$1,"'!",G$4,(YEAR($A27)-1921)*12+MONTH($A27)+3+IF(ISNUMBER(FIND("PRV",G$6)),1,0)))*IF(AND(G$3>0,TRIM(G$9)="CFS"),Conv_Flags!$C27,1)) -> 51.84330368 | I27: 1937 | J27: =B193 -> 52.3026619 | K27: =B194 -> 53.84832001 | L27: =B195 -> 50.91700745 | M27: =B196 -> 47.71402359 | N27: =B197 -> 46.77875519 | O27: =B198 -> 48.41425705 | P27: =B199 -> 51.69201279 | Q27: =B200 -> 54.57238007 | R27: =B201 -> 53.25764084 | S27: =B202 -> 51.6715126 | T27: =B203 -> 52.20146942 | U27: =B204 -> 51.86030197 | W27: 51.15981293 | X27: 50.85484123 | Y27: 51.26919524 | AA27: 51.19550323 | AB27: 48.46992874 | AC27: 51.98407269 | AD27: 52.24773121 | AE27: 52.68344625 | AG27: 1937 | AH27: ='Compile Data'!C193 -> 52.57824707 | AI27: ='Compile Data'!C194 -> 54.36312485 | AJ27: ='Compile Data'!C195 -> 52.39976501 | AK27: ='Compile Data'!C196 -> 49.33186722 | AL27: ='Compile Data'!C197 -> 48.15154266 | AM27: ='Compile Data'!C198 -> 49.74134445 | AN27: ='Compile Data'!C199 -> 53.1901741 | AO27: ='Compile Data'!C200 -> 54.06254578 | AP27: ='Compile Data'!C201 -> 52.6129303 | AQ27: ='Compile Data'!C202 -> 52.51410294 | AR27: ='Compile Data'!C203 -> 52.2245636 | AS27: ='Compile Data'!C204 -> 52.80184174 | AU27: 51.88616371 | AV27: 51.53005727 | AW27: 51.99767081 | AY27: 52.16825104 | AZ27: 49.9610583 | BA27: 52.40174866 | BB27: 52.53835964 | BC27: 53.28232066 | BE27: 1937 | BF27: ='Compile Data'!D193 -> 52.24990082 | BG27: ='Compile Data'!D194 -> 53.64175034 | BH27: ='Compile Data'!D195 -> 50.75230789 | BI27: ='Compile Data'!D196 -> 47.59638596 | BJ27: ='Compile Data'!D197 -> 46.7130928 | BK27: ='Compile Data'!D198 -> 48.33771896 | BL27: ='Compile Data'!D199 -> 51.82617188 | BM27: ='Compile Data'!D200 -> 54.20241165 | BN27: ='Compile Data'!D201 -> 53.50746155 | BO27: ='Compile Data'!D202 -> 51.6416893 | BP27: ='Compile Data'!D203 -> 52.13338852 | BQ27: ='Compile Data'!D204 -> 51.79745483 | BS27: 51.12153594 | BT27: 50.822498 | BU27: 51.19997787 | BW27: 51.06008625 | BX27: 48.35392888 | BY27: 51.96844101 | BZ27: 52.26999855 | CA27: 52.67465719 | CC27: 1937 | CD27: ='Compile Data'!E193 -> 52.31994247 | CE27: ='Compile Data'!E194 -> 53.57296753 | CF27: ='Compile Data'!E195 -> 50.76531601 | CG27: ='Compile Data'!E196 -> 47.62672806 | CH27: ='Compile Data'!E197 -> 46.75091171 | CI27: ='Compile Data'!E198 -> 48.36784744 | CJ27: ='Compile Data'!E199 -> 51.8769722 | CK27: ='Compile Data'!E200 -> 54.15232849 | CL27: ='Compile Data'!E201 -> 53.46048737 | CM27: ='Compile Data'!E202 -> 51.5989151 | CN27: ='Compile Data'!E203 -> 52.12036133 | CO27: ='Compile Data'!E204 -> 51.80405045 | CQ27: 51.12519614 | CR27: 50.82171186 | CS27: 51.20140235 | CU27: 51.07123852 | CV27: 48.38098526 | CW27: 51.96440887 | CX27: 52.24595356 | CY27: 52.68261083 | DA27: 1937 | DB27: ='Compile Data'!F193 -> 52.62469864 | DC27: ='Compile Data'!F194 -> 54.34706879 | DD27: ='Compile Data'!F195 -> 52.41547012 | DE27: ='Compile Data'!F196 -> 49.34014893 | DF27: ='Compile Data'!F197 -> 48.17007828 | DG27: ='Compile Data'!F198 -> 49.75465012 | DH27: ='Compile Data'!F199 -> 53.30592728 | DI27: ='Compile Data'!F200 -> 54.08738708 | DJ27: ='Compile Data'!F201 -> 52.93126678 | DK27: ='Compile Data'!F202 -> 52.42194748 | DL27: ='Compile Data'!F203 -> 52.02447891 | DM27: ='Compile Data'!F204 -> 52.38796616 | DO27: 51.87318166 | DP27: 51.51995945 | DQ27: 51.98425738 | DS27: 52.18184662 | DT27: 49.97523244 | DU27: 52.51980782 | DV27: 52.44141483 | DW27: 53.14901988 | DY27: 1937 | DZ27: ='Compile Data'!G193 -> 52.65776062 | EA27: ='Compile Data'!G194 -> 54.36152267 | EB27: ='Compile Data'!G195 -> 52.37259293 | EC27: ='Compile Data'!G196 -> 49.2922287 | ED27: ='Compile Data'!G197 -> 48.13266373 | EE27: ='Compile Data'!G198 -> 49.72599411 | EF27: ='Compile Data'!G199 -> 53.30456924 | EG27: ='Compile Data'!G200 -> 54.11219025 | EH27: ='Compile Data'!G201 -> 52.76400757 | EI27: ='Compile Data'!G202 -> 52.47240829 | EJ27: ='Compile Data'!G203 -> 52.21375656 | EK27: ='Compile Data'!G204 -> 52.36960602 | EM27: 51.86510118 | EN27: 51.51169523 | EO27: 51.98160839 | EQ27: 52.17102623 | ER27: 49.93249512 | ES27: 52.47669029 | ET27: 52.45494461 | EU27: 53.13558833
A28: 1923-01-31 | B28: =IF(INDIRECT(CONCATENATE("'",B$1,"'!",B$4,(YEAR($A28)-1921)*12+MONTH($A28)+3+IF(ISNUMBER(FIND("PRV",B$6)),1,0)))=-901,NA(),INDIRECT(CONCATENATE("'",B$1,"'!",B$4,(YEAR($A28)-1921)*12+MONTH($A28)+3+IF(ISNUMBER(FIND("PRV",B$6)),1,0)))*IF(AND(B$3>0,TRIM(B$9)="CFS"),Conv_Flags!$C28,1)) -> 47.52082062 | C28: =IF(INDIRECT(CONCATENATE("'",C$1,"'!",C$4,(YEAR($A28)-1921)*12+MONTH($A28)+3+IF(ISNUMBER(FIND("PRV",C$6)),1,0)))=-901,NA(),INDIRECT(CONCATENATE("'",C$1,"'!",C$4,(YEAR($A28)-1921)*12+MONTH($A28)+3+IF(ISNUMBER(FIND("PRV",C$6)),1,0)))*IF(AND(C$3>0,TRIM(C$9)="CFS"),Conv_Flags!$C28,1)) -> 48.32248688 | D28: =IF(INDIRECT(CONCATENATE("'",D$1,"'!",D$4,(YEAR($A28)-1921)*12+MONTH($A28)+3+IF(ISNUMBER(FIND("PRV",D$6)),1,0)))=-901,NA(),INDIRECT(CONCATENATE("'",D$1,"'!",D$4,(YEAR($A28)-1921)*12+MONTH($A28)+3+IF(ISNUMBER(FIND("PRV",D$6)),1,0)))*IF(AND(D$3>0,TRIM(D$9)="CFS"),Conv_Flags!$C28,1)) -> 47.54462051 | E28: =IF(INDIRECT(CONCATENATE("'",E$1,"'!",E$4,(YEAR($A28)-1921)*12+MONTH($A28)+3+IF(ISNUMBER(FIND("PRV",E$6)),1,0)))=-901,NA(),INDIRECT(CONCATENATE("'",E$1,"'!",E$4,(YEAR($A28)-1921)*12+MONTH($A28)+3+IF(ISNUMBER(FIND("PRV",E$6)),1,0)))*IF(AND(E$3>0,TRIM(E$9)="CFS"),Conv_Flags!$C28,1)) -> 47.55764389 | F28: =IF(INDIRECT(CONCATENATE("'",F$1,"'!",F$4,(YEAR($A28)-1921)*12+MONTH($A28)+3+IF(ISNUMBER(FIND("PRV",F$6)),1,0)))=-901,NA(),INDIRECT(CONCATENATE("'",F$1,"'!",F$4,(YEAR($A28)-1921)*12+MONTH($A28)+3+IF(ISNUMBER(FIND("PRV",F$6)),1,0)))*IF(AND(F$3>0,TRIM(F$9)="CFS"),Conv_Flags!$C28,1)) -> 48.32719421 | G28: =IF(INDIRECT(CONCATENATE("'",G$1,"'!",G$4,(YEAR($A28)-1921)*12+MONTH($A28)+3+IF(ISNUMBER(FIND("PRV",G$6)),1,0)))=-901,NA(),INDIRECT(CONCATENATE("'",G$1,"'!",G$4,(YEAR($A28)-1921)*12+MONTH($A28)+3+IF(ISNUMBER(FIND("PRV",G$6)),1,0)))*IF(AND(G$3>0,TRIM(G$9)="CFS"),Conv_Flags!$C28,1)) -> 48.32674408 | I28: 1938 | J28: =B205 -> 52.6052742 | K28: =B206 -> 53.58476257 | L28: =B207 -> 49.56536484 | M28: =B208 -> 46.14678192 | N28: =B209 -> 44.68633652 | O28: =B210 -> 45.24442673 | P28: =B211 -> 49.83945084 | Q28: =B212 -> 52.30243683 | R28: =B213 -> 53.05410385 | S28: =B214 -> 51.85331345 | T28: =B215 -> 51.24132538 | U28: =B216 -> 50.15649033 | W28: 50.1600488 | X28: 50.68583711 | Y28: 50.02333895 | AA28: 50.47554588 | AB28: 46.79949443 | AC28: 50.11010456 | AD28: 51.57630825 | AE28: 51.70975367 | AG28: 1938 | AH28: ='Compile Data'!C205 -> 52.9775238 | AI28: ='Compile Data'!C206 -> 54.06759644 | AJ28: ='Compile Data'!C207 -> 50.95793152 | AK28: ='Compile Data'!C208 -> 47.40330124 | AL28: ='Compile Data'!C209 -> 45.80683136 | AM28: ='Compile Data'!C210 -> 46.16517258 | AN28: ='Compile Data'!C211 -> 50.44257736 | AO28: ='Compile Data'!C212 -> 54.95475769 | AP28: ='Compile Data'!C213 -> 55.58000565 | AQ28: ='Compile Data'!C214 -> 53.5157814 | AR28: ='Compile Data'!C215 -> 51.87530899 | AS28: ='Compile Data'!C216 -> 51.28556061 | AU28: 51.35294183 | AV28: 51.72774951 | AW28: 51.25269572 | AY28: 51.35158825 | AZ28: 48.05602137 | BA28: 51.78562832 | BB28: 53.06416416 | BC28: 52.70885086 | BE28: 1938 | BF28: ='Compile Data'!D205 -> 52.64312744 | BG28: ='Compile Data'!D206 -> 53.58338928 | BH28: ='Compile Data'!D207 -> 49.47613907 | BI28: ='Compile Data'!D208 -> 46.09273911 | BJ28: ='Compile Data'!D209 -> 44.62828445 | BK28: ='Compile Data'!D210 -> 45.21094131 | BL28: ='Compile Data'!D211 -> 49.83903503 | BM28: ='Compile Data'!D212 -> 52.3109169 | BN28: ='Compile Data'!D213 -> 53.05091476 | BO28: ='Compile Data'!D214 -> 51.8567543 | BP28: ='Compile Data'!D215 -> 51.24022293 | BQ28: ='Compile Data'!D216 -> 50.13928223 | BS28: 50.13781834 | BT28: 50.67225202 | BU28: 50.0059789 | BW28: 50.44884872 | BX28: 46.73238754 | BY28: 50.102952 | BZ28: 51.57179356 | CA28: 51.68803151 | CC28: 1938 | CD28: ='Compile Data'!E205 -> 52.62120056 | CE28: ='Compile Data'!E206 -> 53.62258148 | CF28: ='Compile Data'!E207 -> 49.49996948 | CG28: ='Compile Data'!E208 -> 46.10520554 | CH28: ='Compile Data'!E209 -> 44.63062286 | CI28: ='Compile Data'!E210 -> 45.21355057 | CJ28: ='Compile Data'!E211 -> 49.84234619 | CK28: ='Compile Data'!E212 -> 52.31812286 | CL28: ='Compile Data'!E213 -> 53.05334091 | CM28: ='Compile Data'!E214 -> 51.85385513 | CN28: ='Compile Data'!E215 -> 51.23913193 | CO28: ='Compile Data'!E216 -> 50.14468002 | CQ28: 50.14095084 | CR28: 50.67449697 | CS28: 50.01205063 | CU28: 50.46223927 | CV28: 46.74526596 | CW28: 50.10684013 | CX28: 51.572752 | CY28: 51.69297663 | DA28: 1938 | DB28: ='Compile Data'!F205 -> 52.9117775 | DC28: ='Compile Data'!F206 -> 54.14731598 | DD28: ='Compile Data'!F207 -> 50.99523544 | DE28: ='Compile Data'!F208 -> 47.45238495 | DF28: ='Compile Data'!F209 -> 45.81917572 | DG28: ='Compile Data'!F210 -> 46.17109299 | DH28: ='Compile Data'!F211 -> 50.43273926 | DI28: ='Compile Data'!F212 -> 54.95380783 | DJ28: ='Compile Data'!F213 -> 55.68844604 | DK28: ='Compile Data'!F214 -> 53.52554703 | DL28: ='Compile Data'!F215 -> 51.88133621 | DM28: ='Compile Data'!F216 -> 51.00125885 | DO28: 51.34807809 | DP28: 51.70886167 | DQ28: 51.24834315 | DS28: 51.37667847 | DT28: 48.08893204 | DU28: 51.81152153 | DV28: 53.02414703 | DW28: 52.61193466 | DY28: 1938 | DZ28: ='Compile Data'!G205 -> 52.90675735 | EA28: ='Compile Data'!G206 -> 54.13040161 | EB28: ='Compile Data'!G207 -> 50.95663071 | EC28: ='Compile Data'!G208 -> 47.39891434 | ED28: ='Compile Data'!G209 -> 45.78510666 | EE28: ='Compile Data'!G210 -> 46.1530838 | EF28: ='Compile Data'!G211 -> 50.4438858 | EG28: ='Compile Data'!G212 -> 54.95872116 | EH28: ='Compile Data'!G213 -> 55.6841011 | EI28: ='Compile Data'!G214 -> 53.52427673 | EJ28: ='Compile Data'!G215 -> 51.87547684 | EK28: ='Compile Data'!G216 -> 51.02474976 | EM28: 51.34133116 | EN28: 51.70893002 | EO28: 51.23684216 | EQ28: 51.348176 | ER28: 48.0468839 | ES28: 51.80994797 | ET28: 53.02715111 | EU28: 52.61669032
A29: 1923-02-28 | B29: =IF(INDIRECT(CONCATENATE("'",B$1,"'!",B$4,(YEAR($A29)-1921)*12+MONTH($A29)+3+IF(ISNUMBER(FIND("PRV",B$6)),1,0)))=-901,NA(),INDIRECT(CONCATENATE("'",B$1,"'!",B$4,(YEAR($A29)-1921)*12+MONTH($A29)+3+IF(ISNUMBER(FIND("PRV",B$6)),1,0)))*IF(AND(B$3>0,TRIM(B$9)="CFS"),Conv_Flags!$C29,1)) -> 47.41940308 | C29: =IF(INDIRECT(CONCATENATE("'",C$1,"'!",C$4,(YEAR($A29)-1921)*12+MONTH($A29)+3+IF(ISNUMBER(FIND("PRV",C$6)),1,0)))=-901,NA(),INDIRECT(CONCATENATE("'",C$1,"'!",C$4,(YEAR($A29)-1921)*12+MONTH($A29)+3+IF(ISNUMBER(FIND("PRV",C$6)),1,0)))*IF(AND(C$3>0,TRIM(C$9)="CFS"),Conv_Flags!$C29,1)) -> 48.69816589 | D29: =IF(INDIRECT(CONCATENATE("'",D$1,"'!",D$4,(YEAR($A29)-1921)*12+MONTH($A29)+3+IF(ISNUMBER(FIND("PRV",D$6)),1,0)))=-901,NA(),INDIRECT(CONCATENATE("'",D$1,"'!",D$4,(YEAR($A29)-1921)*12+MONTH($A29)+3+IF(ISNUMBER(FIND("PRV",D$6)),1,0)))*IF(AND(D$3>0,TRIM(D$9)="CFS"),Conv_Flags!$C29,1)) -> 47.50992203 | E29: =IF(INDIRECT(CONCATENATE("'",E$1,"'!",E$4,(YEAR($A29)-1921)*12+MONTH($A29)+3+IF(ISNUMBER(FIND("PRV",E$6)),1,0)))=-901,NA(),INDIRECT(CONCATENATE("'",E$1,"'!",E$4,(YEAR($A29)-1921)*12+MONTH($A29)+3+IF(ISNUMBER(FIND("PRV",E$6)),1,0)))*IF(AND(E$3>0,TRIM(E$9)="CFS"),Conv_Flags!$C29,1)) -> 47.50765228 | F29: =IF(INDIRECT(CONCATENATE("'",F$1,"'!",F$4,(YEAR($A29)-1921)*12+MONTH($A29)+3+IF(ISNUMBER(FIND("PRV",F$6)),1,0)))=-901,NA(),INDIRECT(CONCATENATE("'",F$1,"'!",F$4,(YEAR($A29)-1921)*12+MONTH($A29)+3+IF(ISNUMBER(FIND("PRV",F$6)),1,0)))*IF(AND(F$3>0,TRIM(F$9)="CFS"),Conv_Flags!$C29,1)) -> 48.69597626 | G29: =IF(INDIRECT(CONCATENATE("'",G$1,"'!",G$4,(YEAR($A29)-1921)*12+MONTH($A29)+3+IF(ISNUMBER(FIND("PRV",G$6)),1,0)))=-901,NA(),INDIRECT(CONCATENATE("'",G$1,"'!",G$4,(YEAR($A29)-1921)*12+MONTH($A29)+3+IF(ISNUMBER(FIND("PRV",G$6)),1,0)))*IF(AND(G$3>0,TRIM(G$9)="CFS"),Conv_Flags!$C29,1)) -> 48.69553375 | I29: 1939 | J29: =B217 -> 51.19479752 | K29: =B218 -> 53.77797318 | L29: =B219 -> 52.42314911 | M29: =B220 -> 49.18099976 | N29: =B221 -> 47.96157837 | O29: =B222 -> 49.90706253 | P29: =B223 -> 53.67718506 | Q29: =B224 -> 53.53192902 | R29: =B225 -> 51.77274323 | S29: =B226 -> 51.90148926 | T29: =B227 -> 52.23176193 | U29: =B228 -> 53.23913574 | W29: 51.83445072 | X29: 51.49990431 | Y29: 51.73331706 | AA29: 51.64422989 | AB29: 49.85524241 | AC29: 52.22222996 | AD29: 52.28628254 | AE29: 53.19449615 | AG29: 1939 | AH29: ='Compile Data'!C217 -> 52.74957657 | AI29: ='Compile Data'!C218 -> 54.09141541 | AJ29: ='Compile Data'!C219 -> 52.36501312 | AK29: ='Compile Data'!C220 -> 48.92544556 | AL29: ='Compile Data'!C221 -> 48.78237915 | AM29: ='Compile Data'!C222 -> 51.093647 | AN29: ='Compile Data'!C223 -> 54.04710388 | AO29: ='Compile Data'!C224 -> 53.45198441 | AP29: ='Compile Data'!C225 -> 52.60407257 | AQ29: ='Compile Data'!C226 -> 53.07043457 | AR29: ='Compile Data'!C227 -> 52.51807022 | AS29: ='Compile Data'!C228 -> 53.826828 | AU29: 52.5224158 | AV29: 52.34562047 | AW29: 52.29383087 | AY29: 52.03286266 | AZ29: 50.02427928 | BA29: 52.79920197 | BB29: 53.00485134 | BC29: 53.98001989 | BE29: 1939 | BF29: ='Compile Data'!D217 -> 51.19013214 | BG29: ='Compile Data'!D218 -> 53.73468018 | BH29: ='Compile Data'!D219 -> 52.35991669 | BI29: ='Compile Data'!D220 -> 49.1668663 | BJ29: ='Compile Data'!D221 -> 47.96736145 | BK29: ='Compile Data'!D222 -> 49.94842148 | BL29: ='Compile Data'!D223 -> 53.6367569 | BM29: ='Compile Data'!D224 -> 53.65657806 | BN29: ='Compile Data'!D225 -> 52.36550522 | BO29: ='Compile Data'!D226 -> 52.41616821 | BP29: ='Compile Data'!D227 -> 52.59512711 | BQ29: ='Compile Data'!D228 -> 53.14807129 | BS29: 51.94015471 | BT29: 51.58263175 | BU29: 51.84879875 | BW29: 51.61289883 | BX29: 49.83138148 | BY29: 52.40181541 | BZ29: 52.63121796 | CA29: 53.28525925 | CC29: 1939 | CD29: ='Compile Data'!E217 -> 51.19597244 | CE29: ='Compile Data'!E218 -> 53.73827744 | CF29: ='Compile Data'!E219 -> 52.35630417 | CG29: ='Compile Data'!E220 -> 49.16852188 | CH29: ='Compile Data'!E221 -> 47.96986008 | CI29: ='Compile Data'!E222 -> 49.94864273 | CJ29: ='Compile Data'!E223 -> 53.62622833 | CK29: ='Compile Data'!E224 -> 53.8212738 | CL29: ='Compile Data'!E225 -> 52.42948151 | CM29: ='Compile Data'!E226 -> 52.43638992 | CN29: ='Compile Data'!E227 -> 52.61894608 | CO29: ='Compile Data'!E228 -> 53.19334412 | CQ29: 51.96314653 | CR29: 51.60377089 | CS29: 51.87527021 | CU29: 51.61476898 | CV29: 49.83156204 | CW29: 52.45640659 | CX29: 52.66954041 | CY29: 53.30049388 | DA29: 1939 | DB29: ='Compile Data'!F217 -> 52.75881577 | DC29: ='Compile Data'!F218 -> 54.07572937 | DD29: ='Compile Data'!F219 -> 52.41660309 | DE29: ='Compile Data'!F220 -> 48.6965332 | DF29: ='Compile Data'!F221 -> 48.90443039 | DG29: ='Compile Data'!F222 -> 51.10176849 | DH29: ='Compile Data'!F223 -> 53.94766617 | DI29: ='Compile Data'!F224 -> 54.26191711 | DJ29: ='Compile Data'!F225 -> 52.94829178 | DK29: ='Compile Data'!F226 -> 53.07991791 | DL29: ='Compile Data'!F227 -> 52.34921646 | DM29: ='Compile Data'!F228 -> 53.62769318 | DO29: 52.53995355 | DP29: 52.36989752 | DQ29: 52.34738191 | DS29: 51.98692036 | DT29: 50.00585556 | DU29: 53.06491089 | DV29: 53.00127983 | DW29: 53.85948181 | DY29: 1939 | DZ29: ='Compile Data'!G217 -> 52.75104141 | EA29: ='Compile Data'!G218 -> 54.07427979 | EB29: ='Compile Data'!G219 -> 52.42233658 | EC29: ='Compile Data'!G220 -> 48.6953125 | ED29: ='Compile Data'!G221 -> 48.89989471 | EE29: ='Compile Data'!G222 -> 51.10549927 | EF29: ='Compile Data'!G223 -> 53.94808197 | EG29: ='Compile Data'!G224 -> 54.25624084 | EH29: ='Compile Data'!G225 -> 52.72626495 | EI29: ='Compile Data'!G226 -> 53.02542877 | EJ29: ='Compile Data'!G227 -> 52.37034988 | EK29: ='Compile Data'!G228 -> 53.70435333 | EM29: 52.54021358 | EN29: 52.37005679 | EO29: 52.33159033 | EQ29: 51.98574257 | ER29: 50.00584793 | ES29: 53.00902176 | ET29: 52.95659924 | EU29: 53.92204158
A30: 1923-03-31 | B30: =IF(INDIRECT(CONCATENATE("'",B$1,"'!",B$4,(YEAR($A30)-1921)*12+MONTH($A30)+3+IF(ISNUMBER(FIND("PRV",B$6)),1,0)))=-901,NA(),INDIRECT(CONCATENATE("'",B$1,"'!",B$4,(YEAR($A30)-1921)*12+MONTH($A30)+3+IF(ISNUMBER(FIND("PRV",B$6)),1,0)))*IF(AND(B$3>0,TRIM(B$9)="CFS"),Conv_Flags!$C30,1)) -> 50.95542908 | C30: =IF(INDIRECT(CONCATENATE("'",C$1,"'!",C$4,(YEAR($A30)-1921)*12+MONTH($A30)+3+IF(ISNUMBER(FIND("PRV",C$6)),1,0)))=-901,NA(),INDIRECT(CONCATENATE("'",C$1,"'!",C$4,(YEAR($A30)-1921)*12+MONTH($A30)+3+IF(ISNUMBER(FIND("PRV",C$6)),1,0)))*IF(AND(C$3>0,TRIM(C$9)="CFS"),Conv_Flags!$C30,1)) -> 51.75422287 | D30: =IF(INDIRECT(CONCATENATE("'",D$1,"'!",D$4,(YEAR($A30)-1921)*12+MONTH($A30)+3+IF(ISNUMBER(FIND("PRV",D$6)),1,0)))=-901,NA(),INDIRECT(CONCATENATE("'",D$1,"'!",D$4,(YEAR($A30)-1921)*12+MONTH($A30)+3+IF(ISNUMBER(FIND("PRV",D$6)),1,0)))*IF(AND(D$3>0,TRIM(D$9)="CFS"),Conv_Flags!$C30,1)) -> 50.9511261 | E30: =IF(INDIRECT(CONCATENATE("'",E$1,"'!",E$4,(YEAR($A30)-1921)*12+MONTH($A30)+3+IF(ISNUMBER(FIND("PRV",E$6)),1,0)))=-901,NA(),INDIRECT(CONCATENATE("'",E$1,"'!",E$4,(YEAR($A30)-1921)*12+MONTH($A30)+3+IF(ISNUMBER(FIND("PRV",E$6)),1,0)))*IF(AND(E$3>0,TRIM(E$9)="CFS"),Conv_Flags!$C30,1)) -> 50.97745514 | F30: =IF(INDIRECT(CONCATENATE("'",F$1,"'!",F$4,(YEAR($A30)-1921)*12+MONTH($A30)+3+IF(ISNUMBER(FIND("PRV",F$6)),1,0)))=-901,NA(),INDIRECT(CONCATENATE("'",F$1,"'!",F$4,(YEAR($A30)-1921)*12+MONTH($A30)+3+IF(ISNUMBER(FIND("PRV",F$6)),1,0)))*IF(AND(F$3>0,TRIM(F$9)="CFS"),Conv_Flags!$C30,1)) -> 51.82739258 | G30: =IF(INDIRECT(CONCATENATE("'",G$1,"'!",G$4,(YEAR($A30)-1921)*12+MONTH($A30)+3+IF(ISNUMBER(FIND("PRV",G$6)),1,0)))=-901,NA(),INDIRECT(CONCATENATE("'",G$1,"'!",G$4,(YEAR($A30)-1921)*12+MONTH($A30)+3+IF(ISNUMBER(FIND("PRV",G$6)),1,0)))*IF(AND(G$3>0,TRIM(G$9)="CFS"),Conv_Flags!$C30,1)) -> 51.80270386 | I30: 1940 | J30: =B229 -> 52.26704788 | K30: =B230 -> 54.07730484 | L30: =B231 -> 52.26517105 | M30: =B232 -> 47.74621582 | N30: =B233 -> 45.38180542 | O30: =B234 -> 46.29901886 | P30: =B235 -> 53.116436 | Q30: =B236 -> 54.31451416 | R30: =B237 -> 52.13272858 | S30: =B238 -> 50.62449265 | T30: =B239 -> 51.06420898 | U30: =B240 -> 50.3908577 | W30: 50.57657623 | X30: 50.42576885 | Y30: 50.80665016 | AA30: 51.5889349 | AB30: 48.46439743 | AC30: 51.4656744 | AD30: 51.05307198 | AE30: 52.0023791 | AG30: 1940 | AH30: ='Compile Data'!C229 -> 53.89301682 | AI30: ='Compile Data'!C230 -> 54.22021484 | AJ30: ='Compile Data'!C231 -> 53.83579254 | AK30: ='Compile Data'!C232 -> 49.17884445 | AL30: ='Compile Data'!C233 -> 46.40743637 | AM30: ='Compile Data'!C234 -> 47.19257736 | AN30: ='Compile Data'!C235 -> 54.23633194 | AO30: ='Compile Data'!C236 -> 54.75260544 | AP30: ='Compile Data'!C237 -> 53.00537491 | AQ30: ='Compile Data'!C238 -> 53.18933868 | AR30: ='Compile Data'!C239 -> 51.31718826 | AS30: ='Compile Data'!C240 -> 52.14218521 | AU30: 51.86385409 | AV30: 51.66167164 | AW30: 51.94757557 | AY30: 52.78196716 | AZ30: 49.80735779 | BA30: 52.29672241 | BB30: 52.41352177 | BC30: 53.80623118 | BE30: 1940 | BF30: ='Compile Data'!D229 -> 52.41780853 | BG30: ='Compile Data'!D230 -> 54.28989792 | BH30: ='Compile Data'!D231 -> 51.67329407 | BI30: ='Compile Data'!D232 -> 47.52431107 | BJ30: ='Compile Data'!D233 -> 45.31964111 | BK30: ='Compile Data'!D234 -> 46.27830124 | BL30: ='Compile Data'!D235 -> 53.12829971 | BM30: ='Compile Data'!D236 -> 54.56629562 | BN30: ='Compile Data'!D237 -> 52.89736938 | BO30: ='Compile Data'!D238 -> 50.63267517 | BP30: ='Compile Data'!D239 -> 51.27284622 | BQ30: ='Compile Data'!D240 -> 50.25080109 | BS30: 50.63842805 | BT30: 50.497962 | BU30: 50.85429509 | BW30: 51.4763279 | BX30: 48.17241542 | BY30: 51.71756649 | BZ30: 51.26342297 | CA30: 51.83201726 | CC30: 1940 | CD30: ='Compile Data'!E229 -> 52.46821976 | CE30: ='Compile Data'!E230 -> 54.23991776 | CF30: ='Compile Data'!E231 -> 51.63693237 | CG30: ='Compile Data'!E232 -> 47.50681305 | CH30: ='Compile Data'!E233 -> 45.31906128 | CI30: ='Compile Data'!E234 -> 46.28157806 | CJ30: ='Compile Data'!E235 -> 53.13065338 | CK30: ='Compile Data'!E236 -> 54.57223511 | CL30: ='Compile Data'!E237 -> 52.89876175 | CM30: ='Compile Data'!E238 -> 50.68321991 | CN30: ='Compile Data'!E239 -> 51.34779739 | CO30: ='Compile Data'!E240 -> 50.17681503 | CQ30: 50.64039421 | CR30: 50.50038115 | CS30: 50.85516707 | CU30: 51.46297073 | CV30: 48.1542689 | CW30: 51.72080708 | CX30: 51.27664852 | CY30: 51.78801473 | DA30: 1940 | DB30: ='Compile Data'!F229 -> 53.75027466 | DC30: ='Compile Data'!F230 -> 54.2004776 | DD30: ='Compile Data'!F231 -> 53.61125565 | DE30: ='Compile Data'!F232 -> 49.07117844 | DF30: ='Compile Data'!F233 -> 46.48911285 | DG30: ='Compile Data'!F234 -> 47.25455093 | DH30: ='Compile Data'!F235 -> 54.25759125 | DI30: ='Compile Data'!F236 -> 55.08023834 | DJ30: ='Compile Data'!F237 -> 53.49938583 | DK30: ='Compile Data'!F238 -> 53.15846252 | DL30: ='Compile Data'!F239 -> 51.43850708 | DM30: ='Compile Data'!F240 -> 51.62987518 | DO30: 51.83545081 | DP30: 51.64782683 | DQ30: 51.95340919 | DS30: 52.65829659 | DT30: 49.72384898 | DU30: 52.52294159 | DV30: 52.43155766 | DW30: 53.37405777 | DY30: 1940 | DZ30: ='Compile Data'!G229 -> 53.83717728 | EA30: ='Compile Data'!G230 -> 54.22459412 | EB30: ='Compile Data'!G231 -> 53.68936539 | EC30: ='Compile Data'!G232 -> 49.08942032 | ED30: ='Compile Data'!G233 -> 46.46390533 | EE30: ='Compile Data'!G234 -> 47.24119186 | EF30: ='Compile Data'!G235 -> 54.25924683 | EG30: ='Compile Data'!G236 -> 55.07234955 | EH30: ='Compile Data'!G237 -> 53.30524826 | EI30: ='Compile Data'!G238 -> 52.39601898 | EJ30: ='Compile Data'!G239 -> 51.23253632 | EK30: ='Compile Data'!G240 -> 51.83583832 | EM30: 51.7314469 | EN30: 51.5493838 | EO30: 51.88724105 | EQ30: 52.71013927 | ER30: 49.74756368 | ES30: 52.46950912 | ET30: 52.19241047 | EU30: 53.44800695
A31: 1923-04-30 | B31: =IF(INDIRECT(CONCATENATE("'",B$1,"'!",B$4,(YEAR($A31)-1921)*12+MONTH($A31)+3+IF(ISNUMBER(FIND("PRV",B$6)),1,0)))=-901,NA(),INDIRECT(CONCATENATE("'",B$1,"'!",B$4,(YEAR($A31)-1921)*12+MONTH($A31)+3+IF(ISNUMBER(FIND("PRV",B$6)),1,0)))*IF(AND(B$3>0,TRIM(B$9)="CFS"),Conv_Flags!$C31,1)) -> 53.18655396 | C31: =IF(INDIRECT(CONCATENATE("'",C$1,"'!",C$4,(YEAR($A31)-1921)*12+MONTH($A31)+3+IF(ISNUMBER(FIND("PRV",C$6)),1,0)))=-901,NA(),INDIRECT(CONCATENATE("'",C$1,"'!",C$4,(YEAR($A31)-1921)*12+MONTH($A31)+3+IF(ISNUMBER(FIND("PRV",C$6)),1,0)))*IF(AND(C$3>0,TRIM(C$9)="CFS"),Conv_Flags!$C31,1)) -> 54.13891602 | D31: =IF(INDIRECT(CONCATENATE("'",D$1,"'!",D$4,(YEAR($A31)-1921)*12+MONTH($A31)+3+IF(ISNUMBER(FIND("PRV",D$6)),1,0)))=-901,NA(),INDIRECT(CONCATENATE("'",D$1,"'!",D$4,(YEAR($A31)-1921)*12+MONTH($A31)+3+IF(ISNUMBER(FIND("PRV",D$6)),1,0)))*IF(AND(D$3>0,TRIM(D$9)="CFS"),Conv_Flags!$C31,1)) -> 53.095047 | E31: =IF(INDIRECT(CONCATENATE("'",E$1,"'!",E$4,(YEAR($A31)-1921)*12+MONTH($A31)+3+IF(ISNUMBER(FIND("PRV",E$6)),1,0)))=-901,NA(),INDIRECT(CONCATENATE("'",E$1,"'!",E$4,(YEAR($A31)-1921)*12+MONTH($A31)+3+IF(ISNUMBER(FIND("PRV",E$6)),1,0)))*IF(AND(E$3>0,TRIM(E$9)="CFS"),Conv_Flags!$C31,1)) -> 53.09984589 | F31: =IF(INDIRECT(CONCATENATE("'",F$1,"'!",F$4,(YEAR($A31)-1921)*12+MONTH($A31)+3+IF(ISNUMBER(FIND("PRV",F$6)),1,0)))=-901,NA(),INDIRECT(CONCATENATE("'",F$1,"'!",F$4,(YEAR($A31)-1921)*12+MONTH($A31)+3+IF(ISNUMBER(FIND("PRV",F$6)),1,0)))*IF(AND(F$3>0,TRIM(F$9)="CFS"),Conv_Flags!$C31,1)) -> 54.1320343 | G31: =IF(INDIRECT(CONCATENATE("'",G$1,"'!",G$4,(YEAR($A31)-1921)*12+MONTH($A31)+3+IF(ISNUMBER(FIND("PRV",G$6)),1,0)))=-901,NA(),INDIRECT(CONCATENATE("'",G$1,"'!",G$4,(YEAR($A31)-1921)*12+MONTH($A31)+3+IF(ISNUMBER(FIND("PRV",G$6)),1,0)))*IF(AND(G$3>0,TRIM(G$9)="CFS"),Conv_Flags!$C31,1)) -> 54.13617706 | I31: 1941 | J31: =B241 -> 51.9119072 | K31: =B242 -> 53.70437241 | L31: =B243 -> 50.23235703 | M31: =B244 -> 46.50419998 | N31: =B245 -> 44.81413269 | O31: =B246 -> 46.83950043 | P31: =B247 -> 49.70158005 | Q31: =B248 -> 50.15313721 | R31: =B249 -> 51.78616714 | S31: =B250 -> 51.18654633 | T31: =B251 -> 50.96180725 | U31: =B252 -> 50.09543991 | W31: 49.84980361 | X31: 49.85292085 | Y31: 49.8242623 | AA31: 50.58820915 | AB31: 47.18356323 | AC31: 49.62009621 | AD31: 51.00749016 | AE31: 51.76282628 | AG31: 1941 | AH31: ='Compile Data'!C241 -> 54.59944916 | AI31: ='Compile Data'!C242 -> 54.67705917 | AJ31: ='Compile Data'!C243 -> 51.66785812 | AK31: ='Compile Data'!C244 -> 47.44960785 | AL31: ='Compile Data'!C245 -> 45.71048355 | AM31: ='Compile Data'!C246 -> 47.79817581 | AN31: ='Compile Data'!C247 -> 50.81904984 | AO31: ='Compile Data'!C248 -> 52.81910706 | AP31: ='Compile Data'!C249 -> 52.78786469 | AQ31: ='Compile Data'!C250 -> 52.12504196 | AR31: ='Compile Data'!C251 -> 51.73157501 | AS31: ='Compile Data'!C252 -> 51.03804016 | AU31: 50.80389309 | AV31: 50.77216085 | AW31: 51.1019427 | AY31: 52.09849358 | AZ31: 48.27598317 | BA31: 51.05604935 | BB31: 51.92063046 | BC31: 52.27931849 | BE31: 1941 | BF31: ='Compile Data'!D241 -> 51.86653519 | BG31: ='Compile Data'!D242 -> 53.37871552 | BH31: ='Compile Data'!D243 -> 50.54534531 | BI31: ='Compile Data'!D244 -> 46.40680695 | BJ31: ='Compile Data'!D245 -> 44.75155258 | BK31: ='Compile Data'!D246 -> 46.81994629 | BL31: ='Compile Data'!D247 -> 49.68122864 | BM31: ='Compile Data'!D248 -> 50.1422348 | BN31: ='Compile Data'!D249 -> 51.78475952 | BO31: ='Compile Data'!D250 -> 51.19550705 | BP31: ='Compile Data'!D251 -> 50.95993423 | BQ31: ='Compile Data'!D252 -> 50.06525803 | BS31: 49.82767455 | BT31: 49.84361935 | BU31: 49.79981867 | BW31: 50.54935074 | BX31: 47.23456828 | BY31: 49.60704231 | BZ31: 51.00136471 | CA31: 51.75117111 | CC31: 1941 | CD31: ='Compile Data'!E241 -> 51.84138489 | CE31: ='Compile Data'!E242 -> 53.34584427 | CF31: ='Compile Data'!E243 -> 50.58056641 | CG31: ='Compile Data'!E244 -> 46.40024948 | CH31: ='Compile Data'!E245 -> 44.74546814 | CI31: ='Compile Data'!E246 -> 46.811203 | CJ31: ='Compile Data'!E247 -> 49.67015076 | CK31: ='Compile Data'!E248 -> 50.14570236 | CL31: ='Compile Data'!E249 -> 51.78367996 | CM31: ='Compile Data'!E250 -> 51.19921494 | CN31: ='Compile Data'!E251 -> 50.96945572 | CO31: ='Compile Data'!E252 -> 50.05495834 | CQ31: 49.82516448 | CR31: 49.84074116 | CS31: 49.79565652 | CU31: 50.54201126 | CV31: 47.24209468 | CW31: 49.60268402 | CX31: 51.00182724 | CY31: 51.7492307 | DA31: 1941 | DB31: ='Compile Data'!F241 -> 54.06721878 | DC31: ='Compile Data'!F242 -> 54.42507935 | DD31: ='Compile Data'!F243 -> 51.65420914 | DE31: ='Compile Data'!F244 -> 47.54944229 | DF31: ='Compile Data'!F245 -> 45.75936127 | DG31: ='Compile Data'!F246 -> 47.83321762 | DH31: ='Compile Data'!F247 -> 50.84461975 | DI31: ='Compile Data'!F248 -> 52.90340042 | DJ31: ='Compile Data'!F249 -> 52.87841797 | DK31: ='Compile Data'!F250 -> 52.14864349 | DL31: ='Compile Data'!F251 -> 51.77216339 | DM31: ='Compile Data'!F252 -> 50.97653961 | DO31: 50.8337752 | DP31: 50.79170926 | DQ31: 51.06769276 | DS31: 51.92398739 | DT31: 48.32100423 | DU31: 51.11491394 | DV31: 51.94394112 | DW31: 52.24534861 | DY31: 1941 | DZ31: ='Compile Data'!G241 -> 54.14141846 | EA31: ='Compile Data'!G242 -> 54.36676407 | EB31: ='Compile Data'!G243 -> 51.37342453 | EC31: ='Compile Data'!G244 -> 47.58245468 | ED31: ='Compile Data'!G245 -> 45.78611374 | EE31: ='Compile Data'!G246 -> 47.82183456 | EF31: ='Compile Data'!G247 -> 50.83301163 | EG31: ='Compile Data'!G248 -> 52.88835526 | EH31: ='Compile Data'!G249 -> 52.85680771 | EI31: ='Compile Data'!G250 -> 52.15136719 | EJ31: ='Compile Data'!G251 -> 51.74278259 | EK31: ='Compile Data'!G252 -> 50.96961975 | EM31: 50.83532651 | EN31: 50.79039192 | EO31: 51.04282951 | EQ31: 51.86601543 | ER31: 48.24733098 | ES31: 51.10000229 | ET31: 51.93014431 | EU31: 52.25391769
A32: 1923-05-31 | B32: =IF(INDIRECT(CONCATENATE("'",B$1,"'!",B$4,(YEAR($A32)-1921)*12+MONTH($A32)+3+IF(ISNUMBER(FIND("PRV",B$6)),1,0)))=-901,NA(),INDIRECT(CONCATENATE("'",B$1,"'!",B$4,(YEAR($A32)-1921)*12+MONTH($A32)+3+IF(ISNUMBER(FIND("PRV",B$6)),1,0)))*IF(AND(B$3>0,TRIM(B$9)="CFS"),Conv_Flags!$C32,1)) -> 51.91106415 | C32: =IF(INDIRECT(CONCATENATE("'",C$1,"'!",C$4,(YEAR($A32)-1921)*12+MONTH($A32)+3+IF(ISNUMBER(FIND("PRV",C$6)),1,0)))=-901,NA(),INDIRECT(CONCATENATE("'",C$1,"'!",C$4,(YEAR($A32)-1921)*12+MONTH($A32)+3+IF(ISNUMBER(FIND("PRV",C$6)),1,0)))*IF(AND(C$3>0,TRIM(C$9)="CFS"),Conv_Flags!$C32,1)) -> 52.84512711 | D32: =IF(INDIRECT(CONCATENATE("'",D$1,"'!",D$4,(YEAR($A32)-1921)*12+MONTH($A32)+3+IF(ISNUMBER(FIND("PRV",D$6)),1,0)))=-901,NA(),INDIRECT(CONCATENATE("'",D$1,"'!",D$4,(YEAR($A32)-1921)*12+MONTH($A32)+3+IF(ISNUMBER(FIND("PRV",D$6)),1,0)))*IF(AND(D$3>0,TRIM(D$9)="CFS"),Conv_Flags!$C32,1)) -> 52.02238083 | E32: =IF(INDIRECT(CONCATENATE("'",E$1,"'!",E$4,(YEAR($A32)-1921)*12+MONTH($A32)+3+IF(ISNUMBER(FIND("PRV",E$6)),1,0)))=-901,NA(),INDIRECT(CONCATENATE("'",E$1,"'!",E$4,(YEAR($A32)-1921)*12+MONTH($A32)+3+IF(ISNUMBER(FIND("PRV",E$6)),1,0)))*IF(AND(E$3>0,TRIM(E$9)="CFS"),Conv_Flags!$C32,1)) -> 52.09060669 | F32: =IF(INDIRECT(CONCATENATE("'",F$1,"'!",F$4,(YEAR($A32)-1921)*12+MONTH($A32)+3+IF(ISNUMBER(FIND("PRV",F$6)),1,0)))=-901,NA(),INDIRECT(CONCATENATE("'",F$1,"'!",F$4,(YEAR($A32)-1921)*12+MONTH($A32)+3+IF(ISNUMBER(FIND("PRV",F$6)),1,0)))*IF(AND(F$3>0,TRIM(F$9)="CFS"),Conv_Flags!$C32,1)) -> 52.86624146 | G32: =IF(INDIRECT(CONCATENATE("'",G$1,"'!",G$4,(YEAR($A32)-1921)*12+MONTH($A32)+3+IF(ISNUMBER(FIND("PRV",G$6)),1,0)))=-901,NA(),INDIRECT(CONCATENATE("'",G$1,"'!",G$4,(YEAR($A32)-1921)*12+MONTH($A32)+3+IF(ISNUMBER(FIND("PRV",G$6)),1,0)))*IF(AND(G$3>0,TRIM(G$9)="CFS"),Conv_Flags!$C32,1)) -> 52.8656044 | I32: 1942 | J32: =B253 -> 51.38028717 | K32: =B254 -> 53.81275177 | L32: =B255 -> 50.96209335 | M32: =B256 -> 46.55143738 | N32: =B257 -> 44.80430222 | O32: =B258 -> 47.7543602 | P32: =B259 -> 51.6022377 | Q32: =B260 -> 50.05508041 | R32: =B261 -> 51.95667267 | S32: =B262 -> 51.67213058 | T32: =B263 -> 51.38826752 | U32: =B264 -> 49.79504013 | W32: 50.12019507 | X32: 50.30850633 | Y32: 50.14455509 | AA32: 50.67664242 | AB32: 47.43927765 | AC32: 50.34208775 | AD32: 51.20302773 | AE32: 51.57131068 | AG32: 1942 | AH32: ='Compile Data'!C253 -> 51.58868027 | AI32: ='Compile Data'!C254 -> 54.21123505 | AJ32: ='Compile Data'!C255 -> 51.56785583 | AK32: ='Compile Data'!C256 -> 47.31930923 | AL32: ='Compile Data'!C257 -> 45.45999527 | AM32: ='Compile Data'!C258 -> 48.67959213 | AN32: ='Compile Data'!C259 -> 52.21286011 | AO32: ='Compile Data'!C260 -> 52.02630234 | AP32: ='Compile Data'!C261 -> 52.76637268 | AQ32: ='Compile Data'!C262 -> 52.43095398 | AR32: ='Compile Data'!C263 -> 51.86000061 | AS32: ='Compile Data'!C264 -> 50.70679092 | AU32: 50.94369698 | AV32: 51.13197327 | AW32: 50.9024957 | AY32: 51.1717701 | AZ32: 48.11572011 | BA32: 51.42128181 | BB32: 51.94102955 | BC32: 52.26142629 | BE32: 1942 | BF32: ='Compile Data'!D253 -> 51.371521 | BG32: ='Compile Data'!D254 -> 53.81673431 | BH32: ='Compile Data'!D255 -> 50.93661118 | BI32: ='Compile Data'!D256 -> 46.55092621 | BJ32: ='Compile Data'!D257 -> 44.7987709 | BK32: ='Compile Data'!D258 -> 47.74508667 | BL32: ='Compile Data'!D259 -> 51.63861084 | BM32: ='Compile Data'!D260 -> 50.04615402 | BN32: ='Compile Data'!D261 -> 51.96083832 | BO32: ='Compile Data'!D262 -> 51.67342377 | BP32: ='Compile Data'!D263 -> 51.39345551 | BQ32: ='Compile Data'!D264 -> 49.79946136 | BS32: 50.11935838 | BT32: 50.30929693 | BU32: 50.14429951 | BW32: 50.66894817 | BX32: 47.42876943 | BY32: 50.34767246 | BZ32: 51.20679474 | CA32: 51.55944443 | CC32: 1942 | CD32: ='Compile Data'!E253 -> 51.36384964 | CE32: ='Compile Data'!E254 -> 53.82888412 | CF32: ='Compile Data'!E255 -> 50.92915726 | CG32: ='Compile Data'!E256 -> 46.54049683 | CH32: ='Compile Data'!E257 -> 44.79214096 | CI32: ='Compile Data'!E258 -> 47.74820328 | CJ32: ='Compile Data'!E259 -> 51.63814926 | CK32: ='Compile Data'!E260 -> 50.04356766 | CL32: ='Compile Data'!E261 -> 51.96121979 | CM32: ='Compile Data'!E262 -> 51.66694641 | CN32: ='Compile Data'!E263 -> 51.41103745 | CO32: ='Compile Data'!E264 -> 49.79614258 | CQ32: 50.11914094 | CR32: 50.30831877 | CS32: 50.14331627 | CU32: 50.66559696 | CV32: 47.42059835 | CW32: 50.347785 | CX32: 51.20883656 | CY32: 51.56511943 | DA32: 1942 | DB32: ='Compile Data'!F253 -> 51.56615448 | DC32: ='Compile Data'!F254 -> 54.19335175 | DD32: ='Compile Data'!F255 -> 51.57999039 | DE32: ='Compile Data'!F256 -> 47.33398056 | DF32: ='Compile Data'!F257 -> 45.47003174 | DG32: ='Compile Data'!F258 -> 48.69601822 | DH32: ='Compile Data'!F259 -> 52.67053604 | DI32: ='Compile Data'!F260 -> 51.73013687 | DJ32: ='Compile Data'!F261 -> 52.87527847 | DK32: ='Compile Data'!F262 -> 52.44424057 | DL32: ='Compile Data'!F263 -> 51.86539459 | DM32: ='Compile Data'!F264 -> 50.6052475 | DO32: 50.96429634 | DP32: 51.15167936 | DQ32: 50.91919676 | DS32: 51.16836929 | DT32: 48.1280009 | DU32: 51.4929924 | DV32: 51.94754028 | DW32: 52.22319031 | DY32: 1942 | DZ32: ='Compile Data'!G253 -> 51.59263611 | EA32: ='Compile Data'!G254 -> 54.19949722 | EB32: ='Compile Data'!G255 -> 51.59943771 | EC32: ='Compile Data'!G256 -> 47.35068512 | ED32: ='Compile Data'!G257 -> 45.47866821 | EE32: ='Compile Data'!G258 -> 48.68490601 | EF32: ='Compile Data'!G259 -> 52.67019653 | EG32: ='Compile Data'!G260 -> 51.73047638 | EH32: ='Compile Data'!G261 -> 52.87715149 | EI32: ='Compile Data'!G262 -> 52.44539642 | EJ32: ='Compile Data'!G263 -> 51.86663055 | EK32: ='Compile Data'!G264 -> 50.58571625 | EM32: 50.96359475 | EN32: 51.14809132 | EO32: 50.92344983 | EQ32: 51.18556404 | ER32: 48.14293035 | ES32: 51.4906826 | ET32: 51.94372368 | EU32: 52.21227773
A33: 1923-06-30 | B33: =IF(INDIRECT(CONCATENATE("'",B$1,"'!",B$4,(YEAR($A33)-1921)*12+MONTH($A33)+3+IF(ISNUMBER(FIND("PRV",B$6)),1,0)))=-901,NA(),INDIRECT(CONCATENATE("'",B$1,"'!",B$4,(YEAR($A33)-1921)*12+MONTH($A33)+3+IF(ISNUMBER(FIND("PRV",B$6)),1,0)))*IF(AND(B$3>0,TRIM(B$9)="CFS"),Conv_Flags!$C33,1)) -> 51.35770798 | C33: =IF(INDIRECT(CONCATENATE("'",C$1,"'!",C$4,(YEAR($A33)-1921)*12+MONTH($A33)+3+IF(ISNUMBER(FIND("PRV",C$6)),1,0)))=-901,NA(),INDIRECT(CONCATENATE("'",C$1,"'!",C$4,(YEAR($A33)-1921)*12+MONTH($A33)+3+IF(ISNUMBER(FIND("PRV",C$6)),1,0)))*IF(AND(C$3>0,TRIM(C$9)="CFS"),Conv_Flags!$C33,1)) -> 51.99622345 | D33: =IF(INDIRECT(CONCATENATE("'",D$1,"'!",D$4,(YEAR($A33)-1921)*12+MONTH($A33)+3+IF(ISNUMBER(FIND("PRV",D$6)),1,0)))=-901,NA(),INDIRECT(CONCATENATE("'",D$1,"'!",D$4,(YEAR($A33)-1921)*12+MONTH($A33)+3+IF(ISNUMBER(FIND("PRV",D$6)),1,0)))*IF(AND(D$3>0,TRIM(D$9)="CFS"),Conv_Flags!$C33,1)) -> 51.86757278 | E33: =IF(INDIRECT(CONCATENATE("'",E$1,"'!",E$4,(YEAR($A33)-1921)*12+MONTH($A33)+3+IF(ISNUMBER(FIND("PRV",E$6)),1,0)))=-901,NA(),INDIRECT(CONCATENATE("'",E$1,"'!",E$4,(YEAR($A33)-1921)*12+MONTH($A33)+3+IF(ISNUMBER(FIND("PRV",E$6)),1,0)))*IF(AND(E$3>0,TRIM(E$9)="CFS"),Conv_Flags!$C33,1)) -> 51.91490173 | F33: =IF(INDIRECT(CONCATENATE("'",F$1,"'!",F$4,(YEAR($A33)-1921)*12+MONTH($A33)+3+IF(ISNUMBER(FIND("PRV",F$6)),1,0)))=-901,NA(),INDIRECT(CONCATENATE("'",F$1,"'!",F$4,(YEAR($A33)-1921)*12+MONTH($A33)+3+IF(ISNUMBER(FIND("PRV",F$6)),1,0)))*IF(AND(F$3>0,TRIM(F$9)="CFS"),Conv_Flags!$C33,1)) -> 52.4695282 | G33: =IF(INDIRECT(CONCATENATE("'",G$1,"'!",G$4,(YEAR($A33)-1921)*12+MONTH($A33)+3+IF(ISNUMBER(FIND("PRV",G$6)),1,0)))=-901,NA(),INDIRECT(CONCATENATE("'",G$1,"'!",G$4,(YEAR($A33)-1921)*12+MONTH($A33)+3+IF(ISNUMBER(FIND("PRV",G$6)),1,0)))*IF(AND(G$3>0,TRIM(G$9)="CFS"),Conv_Flags!$C33,1)) -> 52.18851089 | I33: 1943 | J33: =B265 -> 51.53977203 | K33: =B266 -> 53.37911987 | L33: =B267 -> 50.94392014 | M33: =B268 -> 47.51040268 | N33: =B269 -> 46.10507202 | O33: =B270 -> 47.170784 | P33: =B271 -> 51.30353546 | Q33: =B272 -> 51.70872116 | R33: =B273 -> 51.73434067 | S33: =B274 -> 50.55505371 | T33: =B275 -> 51.3705101 | U33: =B276 -> 50.34731674 | W33: 50.47276624 | X33: 50.67359352 | Y33: 50.30571238 | AA33: 50.84330368 | AB33: 48.18646495 | AC33: 50.47934532 | AD33: 51.00180531 | AE33: 52.11130651 | AG33: 1943 | AH33: ='Compile Data'!C265 -> 52.08420563 | AI33: ='Compile Data'!C266 -> 53.99328232 | AJ33: ='Compile Data'!C267 -> 51.78469849 | AK33: ='Compile Data'!C268 -> 48.05245209 | AL33: ='Compile Data'!C269 -> 46.98616791 | AM33: ='Compile Data'!C270 -> 48.18014145 | AN33: ='Compile Data'!C271 -> 52.71137238 | AO33: ='Compile Data'!C272 -> 52.91875076 | AP33: ='Compile Data'!C273 -> 52.16891098 | AQ33: ='Compile Data'!C274 -> 51.94513321 | AR33: ='Compile Data'!C275 -> 51.26581955 | AS33: ='Compile Data'!C276 -> 50.42658234 | AU33: 51.19380538 | AV33: 51.54806836 | AW33: 51.04312642 | AY33: 51.47865963 | AZ33: 48.94110616 | BA33: 51.49479389 | BB33: 51.45161152 | BC33: 52.16264089 | BE33: 1943 | BF33: ='Compile Data'!D265 -> 51.52423477 | BG33: ='Compile Data'!D266 -> 53.35463715 | BH33: ='Compile Data'!D267 -> 50.94670105 | BI33: ='Compile Data'!D268 -> 47.51334381 | BJ33: ='Compile Data'!D269 -> 46.11561584 | BK33: ='Compile Data'!D270 -> 47.17205811 | BL33: ='Compile Data'!D271 -> 51.30237198 | BM33: ='Compile Data'!D272 -> 51.70777512 | BN33: ='Compile Data'!D273 -> 51.83653259 | BO33: ='Compile Data'!D274 -> 50.55802536 | BP33: ='Compile Data'!D275 -> 51.36871719 | BQ33: ='Compile Data'!D276 -> 50.35111618 | BS33: 50.47629642 | BT33: 50.6745793 | BU33: 50.3125941 | BW33: 50.83472919 | BX33: 48.1918869 | BY33: 50.50468445 | BZ33: 51.02859783 | CA33: 52.0981013 | CC33: 1943 | CD33: ='Compile Data'!E265 -> 51.53237915 | CE33: ='Compile Data'!E266 -> 53.36683655 | CF33: ='Compile Data'!E267 -> 50.93257141 | CG33: ='Compile Data'!E268 -> 47.50060272 | CH33: ='Compile Data'!E269 -> 46.10216904 | CI33: ='Compile Data'!E270 -> 47.16756058 | CJ33: ='Compile Data'!E271 -> 51.30011749 | CK33: ='Compile Data'!E272 -> 51.70567703 | CL33: ='Compile Data'!E273 -> 51.83380508 | CM33: ='Compile Data'!E274 -> 50.55649185 | CN33: ='Compile Data'!E275 -> 51.36602783 | CO33: ='Compile Data'!E276 -> 50.34869766 | CQ33: 50.47241433 | CR33: 50.67279148 | CS33: 50.30941137 | CU33: 50.83309746 | CV33: 48.17844772 | CW33: 50.50179005 | CX33: 51.02625561 | CY33: 52.0966657 | DA33: 1943 | DB33: ='Compile Data'!F265 -> 52.06383133 | DC33: ='Compile Data'!F266 -> 54.0004921 | DD33: ='Compile Data'!F267 -> 51.8163681 | DE33: ='Compile Data'!F268 -> 48.06725693 | DF33: ='Compile Data'!F269 -> 46.98535156 | DG33: ='Compile Data'!F270 -> 48.18999481 | DH33: ='Compile Data'!F271 -> 52.71373749 | DI33: ='Compile Data'!F272 -> 52.552742 | DJ33: ='Compile Data'!F273 -> 52.20170593 | DK33: ='Compile Data'!F274 -> 52.05076599 | DL33: ='Compile Data'!F275 -> 51.41583252 | DM33: ='Compile Data'!F276 -> 50.51353455 | DO33: 51.1879069 | DP33: 51.5251255 | DQ33: 51.04763444 | DS33: 51.48698711 | DT33: 48.95632553 | DU33: 51.41454506 | DV33: 51.54545975 | DW33: 52.20226669 | DY33: 1943 | DZ33: ='Compile Data'!G265 -> 52.05310822 | EA33: ='Compile Data'!G266 -> 53.99800873 | EB33: ='Compile Data'!G267 -> 51.82219315 | EC33: ='Compile Data'!G268 -> 48.07152176 | ED33: ='Compile Data'!G269 -> 46.97179031 | EE33: ='Compile Data'!G270 -> 48.18688965 | EF33: ='Compile Data'!G271 -> 52.72024155 | EG33: ='Compile Data'!G272 -> 52.55037689 | EH33: ='Compile Data'!G273 -> 52.2028923 | EI33: ='Compile Data'!G274 -> 52.06465149 | EJ33: ='Compile Data'!G275 -> 51.37707901 | EK33: ='Compile Data'!G276 -> 50.49804306 | EM33: 51.18888251 | EN33: 51.53117752 | EO33: 51.04306634 | EQ33: 51.48620796 | ER33: 48.95516841 | ES33: 51.4151001 | ET33: 51.53566647 | EU33: 52.20179367
A34: 1923-07-31 | B34: =IF(INDIRECT(CONCATENATE("'",B$1,"'!",B$4,(YEAR($A34)-1921)*12+MONTH($A34)+3+IF(ISNUMBER(FIND("PRV",B$6)),1,0)))=-901,NA(),INDIRECT(CONCATENATE("'",B$1,"'!",B$4,(YEAR($A34)-1921)*12+MONTH($A34)+3+IF(ISNUMBER(FIND("PRV",B$6)),1,0)))*IF(AND(B$3>0,TRIM(B$9)="CFS"),Conv_Flags!$C34,1)) -> 51.78261185 | C34: =IF(INDIRECT(CONCATENATE("'",C$1,"'!",C$4,(YEAR($A34)-1921)*12+MONTH($A34)+3+IF(ISNUMBER(FIND("PRV",C$6)),1,0)))=-901,NA(),INDIRECT(CONCATENATE("'",C$1,"'!",C$4,(YEAR($A34)-1921)*12+MONTH($A34)+3+IF(ISNUMBER(FIND("PRV",C$6)),1,0)))*IF(AND(C$3>0,TRIM(C$9)="CFS"),Conv_Flags!$C34,1)) -> 52.59567261 | D34: =IF(INDIRECT(CONCATENATE("'",D$1,"'!",D$4,(YEAR($A34)-1921)*12+MONTH($A34)+3+IF(ISNUMBER(FIND("PRV",D$6)),1,0)))=-901,NA(),INDIRECT(CONCATENATE("'",D$1,"'!",D$4,(YEAR($A34)-1921)*12+MONTH($A34)+3+IF(ISNUMBER(FIND("PRV",D$6)),1,0)))*IF(AND(D$3>0,TRIM(D$9)="CFS"),Conv_Flags!$C34,1)) -> 51.6065712 | E34: =IF(INDIRECT(CONCATENATE("'",E$1,"'!",E$4,(YEAR($A34)-1921)*12+MONTH($A34)+3+IF(ISNUMBER(FIND("PRV",E$6)),1,0)))=-901,NA(),INDIRECT(CONCATENATE("'",E$1,"'!",E$4,(YEAR($A34)-1921)*12+MONTH($A34)+3+IF(ISNUMBER(FIND("PRV",E$6)),1,0)))*IF(AND(E$3>0,TRIM(E$9)="CFS"),Conv_Flags!$C34,1)) -> 51.94973373 | F34: =IF(INDIRECT(CONCATENATE("'",F$1,"'!",F$4,(YEAR($A34)-1921)*12+MONTH($A34)+3+IF(ISNUMBER(FIND("PRV",F$6)),1,0)))=-901,NA(),INDIRECT(CONCATENATE("'",F$1,"'!",F$4,(YEAR($A34)-1921)*12+MONTH($A34)+3+IF(ISNUMBER(FIND("PRV",F$6)),1,0)))*IF(AND(F$3>0,TRIM(F$9)="CFS"),Conv_Flags!$C34,1)) -> 52.66236877 | G34: =IF(INDIRECT(CONCATENATE("'",G$1,"'!",G$4,(YEAR($A34)-1921)*12+MONTH($A34)+3+IF(ISNUMBER(FIND("PRV",G$6)),1,0)))=-901,NA(),INDIRECT(CONCATENATE("'",G$1,"'!",G$4,(YEAR($A34)-1921)*12+MONTH($A34)+3+IF(ISNUMBER(FIND("PRV",G$6)),1,0)))*IF(AND(G$3>0,TRIM(G$9)="CFS"),Conv_Flags!$C34,1)) -> 52.52483368 | I34: 1944 | J34: =B277 -> 51.91664124 | K34: =B278 -> 54.06996155 | L34: =B279 -> 51.88085556 | M34: =B280 -> 48.73064804 | N34: =B281 -> 47.29475403 | O34: =B282 -> 49.00270462 | P34: =B283 -> 52.4175148 | Q34: =B284 -> 54.26779938 | R34: =B285 -> 51.84736633 | S34: =B286 -> 51.50880432 | T34: =B287 -> 52.10624313 | U34: =B288 -> 52.74274445 | W34: 51.33767955 | X34: 51.21732299 | Y34: 51.48216979 | AA34: 51.6495266 | AB34: 49.30208588 | AC34: 51.88384628 | AD34: 52.05128956 | AE34: 52.83399455 | AG34: 1944 | AH34: ='Compile Data'!C277 -> 51.88156891 | AI34: ='Compile Data'!C278 -> 54.17977142 | AJ34: ='Compile Data'!C279 -> 53.60899353 | AK34: ='Compile Data'!C280 -> 50.54673004 | AL34: ='Compile Data'!C281 -> 48.74304581 | AM34: ='Compile Data'!C282 -> 50.23624802 | AN34: ='Compile Data'!C283 -> 50.95030212 | AO34: ='Compile Data'!C284 -> 53.22929382 | AP34: ='Compile Data'!C285 -> 52.92479706 | AQ34: ='Compile Data'!C286 -> 53.26604843 | AR34: ='Compile Data'!C287 -> 52.34339142 | AS34: ='Compile Data'!C288 -> 53.9757843 | AU34: 52.19910908 | AV34: 52.0925951 | AW34: 52.15716457 | AY34: 52.55426598 | AZ34: 50.96625646 | BA34: 51.83516026 | BB34: 53.1275053 | BC34: 53.96147537 | BE34: 1944 | BF34: ='Compile Data'!D277 -> 51.92605591 | BG34: ='Compile Data'!D278 -> 54.01713181 | BH34: ='Compile Data'!D279 -> 51.8468132 | BI34: ='Compile Data'!D280 -> 48.71243286 | BJ34: ='Compile Data'!D281 -> 47.29592133 | BK34: ='Compile Data'!D282 -> 49.00801849 | BL34: ='Compile Data'!D283 -> 52.94470596 | BM34: ='Compile Data'!D284 -> 54.5994873 | BN34: ='Compile Data'!D285 -> 52.21578598 | BO34: ='Compile Data'!D286 -> 51.7650032 | BP34: ='Compile Data'!D287 -> 52.32735062 | BQ34: ='Compile Data'!D288 -> 52.76067352 | BS34: 51.4235719 | BT34: 51.28000132 | BU34: 51.61828168 | BW34: 51.62560844 | BX34: 49.2850558 | BY34: 52.19199944 | BZ34: 52.26720333 | CA34: 52.77699407 | CC34: 1944 | CD34: ='Compile Data'!E277 -> 51.92415237 | CE34: ='Compile Data'!E278 -> 54.01714706 | CF34: ='Compile Data'!E279 -> 51.84652328 | CG34: ='Compile Data'!E280 -> 48.71224213 | CH34: ='Compile Data'!E281 -> 47.29505539 | CI34: ='Compile Data'!E282 -> 49.00671768 | CJ34: ='Compile Data'!E283 -> 52.96192551 | CK34: ='Compile Data'!E284 -> 54.67961121 | CL34: ='Compile Data'!E285 -> 52.18582916 | CM34: ='Compile Data'!E286 -> 51.82227325 | CN34: ='Compile Data'!E287 -> 52.44520187 | CO34: ='Compile Data'!E288 -> 52.76528168 | CQ34: 51.43357436 | CR34: 51.28674984 | CS34: 51.63849672 | CU34: 51.62501621 | CV34: 49.28460693 | CW34: 52.20852089 | CX34: 52.30464649 | CY34: 52.76631546 | DA34: 1944 | DB34: ='Compile Data'!F277 -> 51.90696335 | DC34: ='Compile Data'!F278 -> 54.18630219 | DD34: ='Compile Data'!F279 -> 53.4706955 | DE34: ='Compile Data'!F280 -> 50.43938065 | DF34: ='Compile Data'!F281 -> 48.65985107 | DG34: ='Compile Data'!F282 -> 50.19615555 | DH34: ='Compile Data'!F283 -> 53.12405777 | DI34: ='Compile Data'!F284 -> 55.59913254 | DJ34: ='Compile Data'!F285 -> 52.81606674 | DK34: ='Compile Data'!F286 -> 53.46983337 | DL34: ='Compile Data'!F287 -> 52.6493454 | DM34: ='Compile Data'!F288 -> 53.90985489 | DO34: 52.50797908 | DP34: 52.33573691 | DQ34: 52.53563658 | DS34: 52.50083542 | DT34: 50.85664241 | DU34: 52.93385315 | DV34: 53.2112751 | DW34: 53.93629964 | DY34: 1944 | DZ34: ='Compile Data'!G277 -> 51.92203903 | EA34: ='Compile Data'!G278 -> 54.18529892 | EB34: ='Compile Data'!G279 -> 53.51576614 | EC34: ='Compile Data'!G280 -> 50.47516251 | ED34: ='Compile Data'!G281 -> 48.6756897 | EE34: ='Compile Data'!G282 -> 50.20405197 | EF34: ='Compile Data'!G283 -> 52.91431808 | EG34: ='Compile Data'!G284 -> 55.61013031 | EH34: ='Compile Data'!G285 -> 52.75590134 | EI34: ='Compile Data'!G286 -> 53.41191864 | EJ34: ='Compile Data'!G287 -> 52.30133057 | EK34: ='Compile Data'!G288 -> 53.71645355 | EM34: 52.49274762 | EN34: 52.32897154 | EO34: 52.47400506 | EQ34: 52.52456665 | ER34: 50.88887278 | ES34: 52.87110043 | ET34: 53.04640102 | EU34: 54.00143941
A35: 1923-08-31 | B35: =IF(INDIRECT(CONCATENATE("'",B$1,"'!",B$4,(YEAR($A35)-1921)*12+MONTH($A35)+3+IF(ISNUMBER(FIND("PRV",B$6)),1,0)))=-901,NA(),INDIRECT(CONCATENATE("'",B$1,"'!",B$4,(YEAR($A35)-1921)*12+MONTH($A35)+3+IF(ISNUMBER(FIND("PRV",B$6)),1,0)))*IF(AND(B$3>0,TRIM(B$9)="CFS"),Conv_Flags!$C35,1)) -> 51.64431763 | C35: =IF(INDIRECT(CONCATENATE("'",C$1,"'!",C$4,(YEAR($A35)-1921)*12+MONTH($A35)+3+IF(ISNUMBER(FIND("PRV",C$6)),1,0)))=-901,NA(),INDIRECT(CONCATENATE("'",C$1,"'!",C$4,(YEAR($A35)-1921)*12+MONTH($A35)+3+IF(ISNUMBER(FIND("PRV",C$6)),1,0)))*IF(AND(C$3>0,TRIM(C$9)="CFS"),Conv_Flags!$C35,1)) -> 51.87748718 | D35: =IF(INDIRECT(CONCATENATE("'",D$1,"'!",D$4,(YEAR($A35)-1921)*12+MONTH($A35)+3+IF(ISNUMBER(FIND("PRV",D$6)),1,0)))=-901,NA(),INDIRECT(CONCATENATE("'",D$1,"'!",D$4,(YEAR($A35)-1921)*12+MONTH($A35)+3+IF(ISNUMBER(FIND("PRV",D$6)),1,0)))*IF(AND(D$3>0,TRIM(D$9)="CFS"),Conv_Flags!$C35,1)) -> 51.77462769 | E35: =IF(INDIRECT(CONCATENATE("'",E$1,"'!",E$4,(YEAR($A35)-1921)*12+MONTH($A35)+3+IF(ISNUMBER(FIND("PRV",E$6)),1,0)))=-901,NA(),INDIRECT(CONCATENATE("'",E$1,"'!",E$4,(YEAR($A35)-1921)*12+MONTH($A35)+3+IF(ISNUMBER(FIND("PRV",E$6)),1,0)))*IF(AND(E$3>0,TRIM(E$9)="CFS"),Conv_Flags!$C35,1)) -> 51.70611191 | F35: =IF(INDIRECT(CONCATENATE("'",F$1,"'!",F$4,(YEAR($A35)-1921)*12+MONTH($A35)+3+IF(ISNUMBER(FIND("PRV",F$6)),1,0)))=-901,NA(),INDIRECT(CONCATENATE("'",F$1,"'!",F$4,(YEAR($A35)-1921)*12+MONTH($A35)+3+IF(ISNUMBER(FIND("PRV",F$6)),1,0)))*IF(AND(F$3>0,TRIM(F$9)="CFS"),Conv_Flags!$C35,1)) -> 51.82362366 | G35: =IF(INDIRECT(CONCATENATE("'",G$1,"'!",G$4,(YEAR($A35)-1921)*12+MONTH($A35)+3+IF(ISNUMBER(FIND("PRV",G$6)),1,0)))=-901,NA(),INDIRECT(CONCATENATE("'",G$1,"'!",G$4,(YEAR($A35)-1921)*12+MONTH($A35)+3+IF(ISNUMBER(FIND("PRV",G$6)),1,0)))*IF(AND(G$3>0,TRIM(G$9)="CFS"),Conv_Flags!$C35,1)) -> 51.84710693 | I35: 1945 | J35: =B289 -> 52.57577133 | K35: =B290 -> 53.18346786 | L35: =B291 -> 50.37433624 | M35: =B292 -> 47.6603775 | N35: =B293 -> 46.92074585 | O35: =B294 -> 48.12593079 | P35: =B295 -> 51.86552429 | Q35: =B296 -> 51.45039749 | R35: =B297 -> 51.8312149 | S35: =B298 -> 51.20487213 | T35: =B299 -> 51.74822235 | U35: =B300 -> 51.83347321 | W35: 50.50138092 | X35: 50.08882236 | Y35: 50.7311945 | AA35: 50.94848824 | AB35: 48.31848653 | AC35: 50.81826687 | AD35: 51.65444565 | AE35: 52.28099823 | AG35: 1945 | AH35: ='Compile Data'!C289 -> 54.12195969 | AI35: ='Compile Data'!C290 -> 53.78668213 | AJ35: ='Compile Data'!C291 -> 52.26502609 | AK35: ='Compile Data'!C292 -> 49.426754 | AL35: ='Compile Data'!C293 -> 48.58485413 | AM35: ='Compile Data'!C294 -> 49.35005188 | AN35: ='Compile Data'!C295 -> 52.98851013 | AO35: ='Compile Data'!C296 -> 52.88108444 | AP35: ='Compile Data'!C297 -> 52.03533936 | AQ35: ='Compile Data'!C298 -> 52.40655518 | AR35: ='Compile Data'!C299 -> 52.01353836 | AS35: ='Compile Data'!C300 -> 52.36519623 | AU35: 51.50341034 | AV35: 51.02300676 | AW35: 51.8521293 | AY35: 52.40010548 | AZ35: 50.09221141 | BA35: 51.81374645 | BB35: 52.20515728 | BC35: 52.78383509 | BE35: 1945 | BF35: ='Compile Data'!D289 -> 52.51205826 | BG35: ='Compile Data'!D290 -> 53.05825043 | BH35: ='Compile Data'!D291 -> 49.8831749 | BI35: ='Compile Data'!D292 -> 47.48815918 | BJ35: ='Compile Data'!D293 -> 46.79734802 | BK35: ='Compile Data'!D294 -> 48.1437645 | BL35: ='Compile Data'!D295 -> 51.87553024 | BM35: ='Compile Data'!D296 -> 51.44871521 | BN35: ='Compile Data'!D297 -> 52.51224518 | BO35: ='Compile Data'!D298 -> 51.18953705 | BP35: ='Compile Data'!D299 -> 51.74842072 | BQ35: ='Compile Data'!D300 -> 51.6214447 | BS35: 50.49574725 | BT35: 50.10444736 | BU35: 50.68988736 | BW35: 50.73541069 | BX35: 48.05622737 | BY35: 50.99506378 | BZ35: 51.76791191 | CA35: 52.1343867 | CC35: 1945 | CD35: ='Compile Data'!E289 -> 52.52309036 | CE35: ='Compile Data'!E290 -> 53.01057434 | CF35: ='Compile Data'!E291 -> 49.79508972 | CG35: ='Compile Data'!E292 -> 47.46958923 | CH35: ='Compile Data'!E293 -> 46.77581406 | CI35: ='Compile Data'!E294 -> 48.14450073 | CJ35: ='Compile Data'!E295 -> 51.87894058 | CK35: ='Compile Data'!E296 -> 51.44471359 | CL35: ='Compile Data'!E297 -> 52.51043701 | CM35: ='Compile Data'!E298 -> 51.30210876 | CN35: ='Compile Data'!E299 -> 51.74010086 | CO35: ='Compile Data'!E300 -> 51.26187897 | CQ35: 50.47318776 | CR35: 50.08877436 | CS35: 50.65473652 | CU35: 50.69958591 | CV35: 48.01349767 | CW35: 50.99464798 | CX35: 51.7036314 | CY35: 52.01868693 | DA35: 1945 | DB35: ='Compile Data'!F289 -> 54.10074997 | DC35: ='Compile Data'!F290 -> 53.79829407 | DD35: ='Compile Data'!F291 -> 51.33302689 | DE35: ='Compile Data'!F292 -> 48.8800354 | DF35: ='Compile Data'!F293 -> 48.15229034 | DG35: ='Compile Data'!F294 -> 49.26128006 | DH35: ='Compile Data'!F295 -> 52.82328033 | DI35: ='Compile Data'!F296 -> 53.04031372 | DJ35: ='Compile Data'!F297 -> 52.26679993 | DK35: ='Compile Data'!F298 -> 52.33880615 | DL35: ='Compile Data'!F299 -> 52.0289917 | DM35: ='Compile Data'!F300 -> 52.38373566 | DO35: 51.43327268 | DP35: 51.01724052 | DQ35: 51.70063368 | DS35: 52.02802658 | DT35: 49.45511754 | DU35: 51.84791851 | DV35: 52.25458336 | DW35: 52.86237971 | DY35: 1945 | DZ35: ='Compile Data'!G289 -> 54.39415741 | EA35: ='Compile Data'!G290 -> 53.89370728 | EB35: ='Compile Data'!G291 -> 51.56015015 | EC35: ='Compile Data'!G292 -> 48.98680115 | ED35: ='Compile Data'!G293 -> 48.1987381 | EE35: ='Compile Data'!G294 -> 49.28528595 | EF35: ='Compile Data'!G295 -> 52.85105133 | EG35: ='Compile Data'!G296 -> 53.04680252 | EH35: ='Compile Data'!G297 -> 52.06547546 | EI35: ='Compile Data'!G298 -> 52.37374878 | EJ35: ='Compile Data'!G299 -> 52.03007126 | EK35: ='Compile Data'!G300 -> 52.41885376 | EM35: 51.44610945 | EN35: 51.02418041 | EO35: 51.75873693 | EQ35: 52.20870399 | ER35: 49.58189646 | ES35: 51.81215382 | ET35: 52.22203732 | EU35: 52.87824631
A36: 1923-09-30 | B36: =IF(INDIRECT(CONCATENATE("'",B$1,"'!",B$4,(YEAR($A36)-1921)*12+MONTH($A36)+3+IF(ISNUMBER(FIND("PRV",B$6)),1,0)))=-901,NA(),INDIRECT(CONCATENATE("'",B$1,"'!",B$4,(YEAR($A36)-1921)*12+MONTH($A36)+3+IF(ISNUMBER(FIND("PRV",B$6)),1,0)))*IF(AND(B$3>0,TRIM(B$9)="CFS"),Conv_Flags!$C36,1)) -> 52.60756683 | C36: =IF(INDIRECT(CONCATENATE("'",C$1,"'!",C$4,(YEAR($A36)-1921)*12+MONTH($A36)+3+IF(ISNUMBER(FIND("PRV",C$6)),1,0)))=-901,NA(),INDIRECT(CONCATENATE("'",C$1,"'!",C$4,(YEAR($A36)-1921)*12+MONTH($A36)+3+IF(ISNUMBER(FIND("PRV",C$6)),1,0)))*IF(AND(C$3>0,TRIM(C$9)="CFS"),Conv_Flags!$C36,1)) -> 53.563591 | D36: =IF(INDIRECT(CONCATENATE("'",D$1,"'!",D$4,(YEAR($A36)-1921)*12+MONTH($A36)+3+IF(ISNUMBER(FIND("PRV",D$6)),1,0)))=-901,NA(),INDIRECT(CONCATENATE("'",D$1,"'!",D$4,(YEAR($A36)-1921)*12+MONTH($A36)+3+IF(ISNUMBER(FIND("PRV",D$6)),1,0)))*IF(AND(D$3>0,TRIM(D$9)="CFS"),Conv_Flags!$C36,1)) -> 52.32866669 | E36: =IF(INDIRECT(CONCATENATE("'",E$1,"'!",E$4,(YEAR($A36)-1921)*12+MONTH($A36)+3+IF(ISNUMBER(FIND("PRV",E$6)),1,0)))=-901,NA(),INDIRECT(CONCATENATE("'",E$1,"'!",E$4,(YEAR($A36)-1921)*12+MONTH($A36)+3+IF(ISNUMBER(FIND("PRV",E$6)),1,0)))*IF(AND(E$3>0,TRIM(E$9)="CFS"),Conv_Flags!$C36,1)) -> 52.1558075 | F36: =IF(INDIRECT(CONCATENATE("'",F$1,"'!",F$4,(YEAR($A36)-1921)*12+MONTH($A36)+3+IF(ISNUMBER(FIND("PRV",F$6)),1,0)))=-901,NA(),INDIRECT(CONCATENATE("'",F$1,"'!",F$4,(YEAR($A36)-1921)*12+MONTH($A36)+3+IF(ISNUMBER(FIND("PRV",F$6)),1,0)))*IF(AND(F$3>0,TRIM(F$9)="CFS"),Conv_Flags!$C36,1)) -> 53.12575531 | G36: =IF(INDIRECT(CONCATENATE("'",G$1,"'!",G$4,(YEAR($A36)-1921)*12+MONTH($A36)+3+IF(ISNUMBER(FIND("PRV",G$6)),1,0)))=-901,NA(),INDIRECT(CONCATENATE("'",G$1,"'!",G$4,(YEAR($A36)-1921)*12+MONTH($A36)+3+IF(ISNUMBER(FIND("PRV",G$6)),1,0)))*IF(AND(G$3>0,TRIM(G$9)="CFS"),Conv_Flags!$C36,1)) -> 53.62162018 | I36: 1946 | J36: =B301 -> 52.13167953 | K36: =B302 -> 52.87784195 | L36: =B303 -> 48.36629105 | M36: =B304 -> 44.91511536 | N36: =B305 -> 44.71530533 | O36: =B306 -> 48.11148071 | P36: =B307 -> 51.15390015 | Q36: =B308 -> 51.57892227 | R36: =B309 -> 51.22759247 | S36: =B310 -> 50.80492783 | T36: =B311 -> 51.44062042 | U36: =B312 -> 51.79418182 | W36: 49.94716899 | X36: 50.27871609 | Y36: 49.92648824 | AA36: 49.57273197 | AB36: 45.99890391 | AC36: 50.5179739 | AD36: 51.31683064 | AE36: 51.98482513 | AG36: 1946 | AH36: ='Compile Data'!C301 -> 52.39655685 | AI36: ='Compile Data'!C302 -> 53.5897522 | AJ36: ='Compile Data'!C303 -> 50.00273132 | AK36: ='Compile Data'!C304 -> 46.22951508 | AL36: ='Compile Data'!C305 -> 46.01725006 | AM36: ='Compile Data'!C306 -> 49.41397476 | AN36: ='Compile Data'!C307 -> 51.86879349 | AO36: ='Compile Data'!C308 -> 52.19609833 | AP36: ='Compile Data'!C309 -> 51.95601654 | AQ36: ='Compile Data'!C310 -> 51.96118164 | AR36: ='Compile Data'!C311 -> 51.77915955 | AS36: ='Compile Data'!C312 -> 51.30871582 | AU36: 50.72365093 | AV36: 51.12543456 | AW36: 50.72664547 | AY36: 50.55463886 | AZ36: 47.41649882 | BA36: 51.35872078 | BB36: 51.75126839 | BC36: 51.98293813 | BE36: 1946 | BF36: ='Compile Data'!D301 -> 51.96100616 | BG36: ='Compile Data'!D302 -> 52.82070923 | BH36: ='Compile Data'!D303 -> 48.34208679 | BI36: ='Compile Data'!D304 -> 44.89453125 | BJ36: ='Compile Data'!D305 -> 44.69537735 | BK36: ='Compile Data'!D306 -> 48.07723236 | BL36: ='Compile Data'!D307 -> 51.13278198 | BM36: ='Compile Data'!D308 -> 51.64282608 | BN36: ='Compile Data'!D309 -> 51.34327698 | BO36: ='Compile Data'!D310 -> 50.77888489 | BP36: ='Compile Data'!D311 -> 51.42998886 | BQ36: ='Compile Data'!D312 -> 51.81990433 | BS36: 49.9204464 | BT36: 50.25644811 | BU36: 49.91155052 | BW36: 49.50458336 | BX36: 45.9773318 | BY36: 50.54902935 | BZ36: 51.34301376 | CA36: 51.89837392 | CC36: 1946 | CD36: ='Compile Data'!E301 -> 51.95782471 | CE36: ='Compile Data'!E302 -> 52.83635712 | CF36: ='Compile Data'!E303 -> 48.35598755 | CG36: ='Compile Data'!E304 -> 44.91253281 | CH36: ='Compile Data'!E305 -> 44.71990967 | CI36: ='Compile Data'!E306 -> 48.11389923 | CJ36: ='Compile Data'!E307 -> 51.1540184 | CK36: ='Compile Data'!E308 -> 51.65817642 | CL36: ='Compile Data'!E309 -> 51.34440231 | CM36: ='Compile Data'!E310 -> 50.77623749 | CN36: ='Compile Data'!E311 -> 51.4288063 | CO36: ='Compile Data'!E312 -> 51.8212738 | CQ36: 49.92955812 | CR36: 50.26156425 | CS36: 49.92328548 | CU36: 49.51567554 | CV36: 45.99614334 | CW36: 50.56762409 | CX36: 51.34267998 | CY36: 51.89874395 | DA36: 1946 | DB36: ='Compile Data'!F301 -> 52.53477097 | DC36: ='Compile Data'!F302 -> 53.66863251 | DD36: ='Compile Data'!F303 -> 49.82033539 | DE36: ='Compile Data'!F304 -> 46.10454559 | DF36: ='Compile Data'!F305 -> 45.93539429 | DG36: ='Compile Data'!F306 -> 49.35033798 | DH36: ='Compile Data'!F307 -> 51.81698608 | DI36: ='Compile Data'!F308 -> 52.45798874 | DJ36: ='Compile Data'!F309 -> 51.9730072 | DK36: ='Compile Data'!F310 -> 51.96448517 | DL36: ='Compile Data'!F311 -> 51.77282715 | DM36: ='Compile Data'!F312 -> 51.51517487 | DO36: 50.68831126 | DP36: 51.09476757 | DQ36: 50.74287383 | DS36: 50.53207111 | DT36: 47.28675842 | DU36: 51.39958 | DV36: 51.8063736 | DW36: 51.99994659 | DY36: 1946 | DZ36: ='Compile Data'!G301 -> 52.55202103 | EA36: ='Compile Data'!G302 -> 53.66386414 | EB36: ='Compile Data'!G303 -> 49.88059998 | EC36: ='Compile Data'!G304 -> 46.14552689 | ED36: ='Compile Data'!G305 -> 45.97686386 | EE36: ='Compile Data'!G306 -> 49.38563919 | EF36: ='Compile Data'!G307 -> 51.84497833 | EG36: ='Compile Data'!G308 -> 52.36392212 | EH36: ='Compile Data'!G309 -> 51.93068314 | EI36: ='Compile Data'!G310 -> 51.98923492 | EJ36: ='Compile Data'!G311 -> 51.78157043 | EK36: ='Compile Data'!G312 -> 51.31487274 | EM36: 50.68367386 | EN36: 51.09141668 | EO36: 50.73581473 | EQ36: 50.56050301 | ER36: 47.33433024 | ES36: 51.38130569 | ET36: 51.75409031 | EU36: 51.91818746
A37: 1923-10-31 | B37: =IF(INDIRECT(CONCATENATE("'",B$1,"'!",B$4,(YEAR($A37)-1921)*12+MONTH($A37)+3+IF(ISNUMBER(FIND("PRV",B$6)),1,0)))=-901,NA(),INDIRECT(CONCATENATE("'",B$1,"'!",B$4,(YEAR($A37)-1921)*12+MONTH($A37)+3+IF(ISNUMBER(FIND("PRV",B$6)),1,0)))*IF(AND(B$3>0,TRIM(B$9)="CFS"),Conv_Flags!$C37,1)) -> 52.01070023 | C37: =IF(INDIRECT(CONCATENATE("'",C$1,"'!",C$4,(YEAR($A37)-1921)*12+MONTH($A37)+3+IF(ISNUMBER(FIND("PRV",C$6)),1,0)))=-901,NA(),INDIRECT(CONCATENATE("'",C$1,"'!",C$4,(YEAR($A37)-1921)*12+MONTH($A37)+3+IF(ISNUMBER(FIND("PRV",C$6)),1,0)))*IF(AND(C$3>0,TRIM(C$9)="CFS"),Conv_Flags!$C37,1)) -> 51.79390335 | D37: =IF(INDIRECT(CONCATENATE("'",D$1,"'!",D$4,(YEAR($A37)-1921)*12+MONTH($A37)+3+IF(ISNUMBER(FIND("PRV",D$6)),1,0)))=-901,NA(),INDIRECT(CONCATENATE("'",D$1,"'!",D$4,(YEAR($A37)-1921)*12+MONTH($A37)+3+IF(ISNUMBER(FIND("PRV",D$6)),1,0)))*IF(AND(D$3>0,TRIM(D$9)="CFS"),Conv_Flags!$C37,1)) -> 52.02483368 | E37: =IF(INDIRECT(CONCATENATE("'",E$1,"'!",E$4,(YEAR($A37)-1921)*12+MONTH($A37)+3+IF(ISNUMBER(FIND("PRV",E$6)),1,0)))=-901,NA(),INDIRECT(CONCATENATE("'",E$1,"'!",E$4,(YEAR($A37)-1921)*12+MONTH($A37)+3+IF(ISNUMBER(FIND("PRV",E$6)),1,0)))*IF(AND(E$3>0,TRIM(E$9)="CFS"),Conv_Flags!$C37,1)) -> 51.99596405 | F37: =IF(INDIRECT(CONCATENATE("'",F$1,"'!",F$4,(YEAR($A37)-1921)*12+MONTH($A37)+3+IF(ISNUMBER(FIND("PRV",F$6)),1,0)))=-901,NA(),INDIRECT(CONCATENATE("'",F$1,"'!",F$4,(YEAR($A37)-1921)*12+MONTH($A37)+3+IF(ISNUMBER(FIND("PRV",F$6)),1,0)))*IF(AND(F$3>0,TRIM(F$9)="CFS"),Conv_Flags!$C37,1)) -> 51.76634598 | G37: =IF(INDIRECT(CONCATENATE("'",G$1,"'!",G$4,(YEAR($A37)-1921)*12+MONTH($A37)+3+IF(ISNUMBER(FIND("PRV",G$6)),1,0)))=-901,NA(),INDIRECT(CONCATENATE("'",G$1,"'!",G$4,(YEAR($A37)-1921)*12+MONTH($A37)+3+IF(ISNUMBER(FIND("PRV",G$6)),1,0)))*IF(AND(G$3>0,TRIM(G$9)="CFS"),Conv_Flags!$C37,1)) -> 51.81085205 | I37: 1947 | J37: =B313 -> 51.71201324 | K37: =B314 -> 52.44828033 | L37: =B315 -> 49.4636879 | M37: =B316 -> 46.66556931 | N37: =B317 -> 46.9434166 | O37: =B318 -> 49.42915726 | P37: =B319 -> 54.31062698 | Q37: =B320 -> 52.67901611 | R37: =B321 -> 51.27440262 | S37: =B322 -> 51.1212883 | T37: =B323 -> 52.09680176 | U37: =B324 -> 52.8417511 | W37: 51.1694142 | X37: 51.16085593 | Y37: 50.91550096 | AA37: 50.0723877 | AB37: 47.69089127 | AC37: 51.92330074 | AD37: 51.83356094 | AE37: 52.91858673 | AG37: 1947 | AH37: ='Compile Data'!C313 -> 51.84424591 | AI37: ='Compile Data'!C314 -> 52.79585266 | AJ37: ='Compile Data'!C315 -> 51.31300735 | AK37: ='Compile Data'!C316 -> 48.46421432 | AL37: ='Compile Data'!C317 -> 48.60395432 | AM37: ='Compile Data'!C318 -> 50.84202194 | AN37: ='Compile Data'!C319 -> 55.81214905 | AO37: ='Compile Data'!C320 -> 53.79662704 | AP37: ='Compile Data'!C321 -> 52.01565552 | AQ37: ='Compile Data'!C322 -> 52.70013046 | AR37: ='Compile Data'!C323 -> 52.54821014 | AS37: ='Compile Data'!C324 -> 53.37516403 | AU37: 52.27149741 | AV37: 52.26075331 | AW37: 52.0092694 | AY37: 51.10433006 | AZ37: 49.460392 | BA37: 53.11661339 | BB37: 52.65979004 | BC37: 53.30315526 | BE37: 1947 | BF37: ='Compile Data'!D313 -> 51.68418503 | BG37: ='Compile Data'!D314 -> 52.19103241 | BH37: ='Compile Data'!D315 -> 49.35533524 | BI37: ='Compile Data'!D316 -> 46.67647171 | BJ37: ='Compile Data'!D317 -> 46.94545746 | BK37: ='Compile Data'!D318 -> 49.48760986 | BL37: ='Compile Data'!D319 -> 54.25359726 | BM37: ='Compile Data'!D320 -> 52.60747528 | BN37: ='Compile Data'!D321 -> 51.24050522 | BO37: ='Compile Data'!D322 -> 51.13486862 | BP37: ='Compile Data'!D323 -> 52.04981995 | BQ37: ='Compile Data'!D324 -> 52.82455444 | BS37: 51.15656726 | BT37: 51.14616871 | BU37: 50.87090937 | BW37: 49.9767561 | BX37: 47.65908813 | BY37: 51.89729691 | BZ37: 51.81243706 | CA37: 52.92045339 | CC37: 1947 | CD37: ='Compile Data'!E313 -> 51.68513107 | CE37: ='Compile Data'!E314 -> 52.18982697 | CF37: ='Compile Data'!E315 -> 49.35048294 | CG37: ='Compile Data'!E316 -> 46.6791687 | CH37: ='Compile Data'!E317 -> 46.93734741 | CI37: ='Compile Data'!E318 -> 49.50568008 | CJ37: ='Compile Data'!E319 -> 54.23976135 | CK37: ='Compile Data'!E320 -> 52.6551857 | CL37: ='Compile Data'!E321 -> 51.21118546 | CM37: ='Compile Data'!E322 -> 51.14464569 | CN37: ='Compile Data'!E323 -> 52.07368088 | CO37: ='Compile Data'!E324 -> 52.85452271 | CQ37: 51.15474383 | CR37: 51.14872615 | CS37: 50.87721825 | CU37: 49.97615242 | CV37: 47.65566635 | CW37: 51.90295315 | CX37: 51.82100868 | CY37: 52.90063349 | DA37: 1947 | DB37: ='Compile Data'!F313 -> 51.81092072 | DC37: ='Compile Data'!F314 -> 52.6737442 | DD37: ='Compile Data'!F315 -> 50.88432312 | DE37: ='Compile Data'!F316 -> 48.37043381 | DF37: ='Compile Data'!F317 -> 48.54698181 | DG37: ='Compile Data'!F318 -> 50.96414185 | DH37: ='Compile Data'!F319 -> 55.6269455 | DI37: ='Compile Data'!F320 -> 53.73403168 | DJ37: ='Compile Data'!F321 -> 51.95850754 | DK37: ='Compile Data'!F322 -> 52.74557877 | DL37: ='Compile Data'!F323 -> 52.4836998 | DM37: ='Compile Data'!F324 -> 53.26255035 | DO37: 52.22178332 | DP37: 52.21329784 | DQ37: 51.92182159 | DS37: 50.93485546 | DT37: 49.26724625 | DU37: 53.07090664 | DV37: 52.61258411 | DW37: 53.24595769 | DY37: 1947 | DZ37: ='Compile Data'!G313 -> 51.83538055 | EA37: ='Compile Data'!G314 -> 52.60430908 | EB37: ='Compile Data'!G315 -> 51.03110504 | EC37: ='Compile Data'!G316 -> 48.42578125 | ED37: ='Compile Data'!G317 -> 48.58952332 | EE37: ='Compile Data'!G318 -> 50.91062546 | EF37: ='Compile Data'!G319 -> 55.76053619 | EG37: ='Compile Data'!G320 -> 53.63487244 | EH37: ='Compile Data'!G321 -> 51.97929382 | EI37: ='Compile Data'!G322 -> 52.77639389 | EJ37: ='Compile Data'!G323 -> 52.51538849 | EK37: ='Compile Data'!G324 -> 53.34745789 | EM37: 52.25789293 | EN37: 52.24583753 | EO37: 51.95088895 | EQ37: 50.97414398 | ER37: 49.3488032 | ES37: 53.07133198 | ET37: 52.65463352 | EU37: 53.32887777
A38: 1923-11-30 | B38: =IF(INDIRECT(CONCATENATE("'",B$1,"'!",B$4,(YEAR($A38)-1921)*12+MONTH($A38)+3+IF(ISNUMBER(FIND("PRV",B$6)),1,0)))=-901,NA(),INDIRECT(CONCATENATE("'",B$1,"'!",B$4,(YEAR($A38)-1921)*12+MONTH($A38)+3+IF(ISNUMBER(FIND("PRV",B$6)),1,0)))*IF(AND(B$3>0,TRIM(B$9)="CFS"),Conv_Flags!$C38,1)) -> 54.31088257 | C38: =IF(INDIRECT(CONCATENATE("'",C$1,"'!",C$4,(YEAR($A38)-1921)*12+MONTH($A38)+3+IF(ISNUMBER(FIND("PRV",C$6)),1,0)))=-901,NA(),INDIRECT(CONCATENATE("'",C$1,"'!",C$4,(YEAR($A38)-1921)*12+MONTH($A38)+3+IF(ISNUMBER(FIND("PRV",C$6)),1,0)))*IF(AND(C$3>0,TRIM(C$9)="CFS"),Conv_Flags!$C38,1)) -> 54.83923721 | D38: =IF(INDIRECT(CONCATENATE("'",D$1,"'!",D$4,(YEAR($A38)-1921)*12+MONTH($A38)+3+IF(ISNUMBER(FIND("PRV",D$6)),1,0)))=-901,NA(),INDIRECT(CONCATENATE("'",D$1,"'!",D$4,(YEAR($A38)-1921)*12+MONTH($A38)+3+IF(ISNUMBER(FIND("PRV",D$6)),1,0)))*IF(AND(D$3>0,TRIM(D$9)="CFS"),Conv_Flags!$C38,1)) -> 54.26469803 | E38: =IF(INDIRECT(CONCATENATE("'",E$1,"'!",E$4,(YEAR($A38)-1921)*12+MONTH($A38)+3+IF(ISNUMBER(FIND("PRV",E$6)),1,0)))=-901,NA(),INDIRECT(CONCATENATE("'",E$1,"'!",E$4,(YEAR($A38)-1921)*12+MONTH($A38)+3+IF(ISNUMBER(FIND("PRV",E$6)),1,0)))*IF(AND(E$3>0,TRIM(E$9)="CFS"),Conv_Flags!$C38,1)) -> 54.26903534 | F38: =IF(INDIRECT(CONCATENATE("'",F$1,"'!",F$4,(YEAR($A38)-1921)*12+MONTH($A38)+3+IF(ISNUMBER(FIND("PRV",F$6)),1,0)))=-901,NA(),INDIRECT(CONCATENATE("'",F$1,"'!",F$4,(YEAR($A38)-1921)*12+MONTH($A38)+3+IF(ISNUMBER(FIND("PRV",F$6)),1,0)))*IF(AND(F$3>0,TRIM(F$9)="CFS"),Conv_Flags!$C38,1)) -> 54.84962845 | G38: =IF(INDIRECT(CONCATENATE("'",G$1,"'!",G$4,(YEAR($A38)-1921)*12+MONTH($A38)+3+IF(ISNUMBER(FIND("PRV",G$6)),1,0)))=-901,NA(),INDIRECT(CONCATENATE("'",G$1,"'!",G$4,(YEAR($A38)-1921)*12+MONTH($A38)+3+IF(ISNUMBER(FIND("PRV",G$6)),1,0)))*IF(AND(G$3>0,TRIM(G$9)="CFS"),Conv_Flags!$C38,1)) -> 54.85451126 | I38: 1948 | J38: =B325 -> 52.56122208 | K38: =B326 -> 53.35278702 | L38: =B327 -> 50.7569313 | M38: =B328 -> 47.50243759 | N38: =B329 -> 46.00384903 | O38: =B330 -> 47.54524612 | P38: =B331 -> 50.09928513 | Q38: =B332 -> 50.14082718 | R38: =B333 -> 51.80893326 | S38: =B334 -> 51.17169952 | T38: =B335 -> 51.73566437 | U38: =B336 -> 50.74880981 | W38: 50.29040941 | X38: 50.40528647 | Y38: 50.28564103 | AA38: 51.0433445 | AB38: 48.08773931 | AC38: 49.89857292 | AD38: 51.36627674 | AE38: 52.18552653 | AG38: 1948 | AH38: ='Compile Data'!C325 -> 52.86161041 | AI38: ='Compile Data'!C326 -> 53.67269135 | AJ38: ='Compile Data'!C327 -> 52.56554031 | AK38: ='Compile Data'!C328 -> 49.3306427 | AL38: ='Compile Data'!C329 -> 47.6085968 | AM38: ='Compile Data'!C330 -> 48.94228363 | AN38: ='Compile Data'!C331 -> 50.49072647 | AO38: ='Compile Data'!C332 -> 51.63879395 | AP38: ='Compile Data'!C333 -> 53.15764618 | AQ38: ='Compile Data'!C334 -> 52.36397552 | AR38: ='Compile Data'!C335 -> 51.90830612 | AS38: ='Compile Data'!C336 -> 51.91169357 | AU38: 51.32597001 | AV38: 51.41106606 | AW38: 51.37104225 | AY38: 52.10762119 | AZ38: 49.83492661 | BA38: 51.05736256 | BB38: 52.33540535 | BC38: 52.69385274 | BE38: 1948 | BF38: ='Compile Data'!D325 -> 52.56420135 | BG38: ='Compile Data'!D326 -> 53.37260437 | BH38: ='Compile Data'!D327 -> 50.72164154 | BI38: ='Compile Data'!D328 -> 47.48918915 | BJ38: ='Compile Data'!D329 -> 46.00795746 | BK38: ='Compile Data'!D330 -> 47.54844284 | BL38: ='Compile Data'!D331 -> 50.01687622 | BM38: ='Compile Data'!D332 -> 50.14490509 | BN38: ='Compile Data'!D333 -> 51.80619049 | BO38: ='Compile Data'!D334 -> 51.32083893 | BP38: ='Compile Data'!D335 -> 51.72971725 | BQ38: ='Compile Data'!D336 -> 50.40996933 | BS38: 50.26992321 | BT38: 50.3910977 | BU38: 50.2610445 | BW38: 51.0369091 | BX38: 48.07292938 | BY38: 49.87910366 | BZ38: 51.316679 | CA38: 52.06644567 | CC38: 1948 | CD38: ='Compile Data'!E325 -> 52.56333542 | CE38: ='Compile Data'!E326 -> 53.28404236 | CF38: ='Compile Data'!E327 -> 50.70837021 | CG38: ='Compile Data'!E328 -> 47.50034714 | CH38: ='Compile Data'!E329 -> 46.04395676 | CI38: ='Compile Data'!E330 -> 47.55849457 | CJ38: ='Compile Data'!E331 -> 49.92117691 | CK38: ='Compile Data'!E332 -> 50.13344193 | CL38: ='Compile Data'!E333 -> 51.81111526 | CM38: ='Compile Data'!E334 -> 51.37630844 | CN38: ='Compile Data'!E335 -> 51.6715889 | CO38: ='Compile Data'!E336 -> 50.39599228 | CQ38: 50.26454226 | CR38: 50.38046392 | CS38: 50.24734751 | CU38: 51.01402378 | CV38: 48.0842247 | CW38: 49.85605717 | CX38: 51.31375122 | CY38: 52.06349182 | DA38: 1948 | DB38: ='Compile Data'!F325 -> 52.74058151 | DC38: ='Compile Data'!F326 -> 53.73474121 | DD38: ='Compile Data'!F327 -> 52.49320602 | DE38: ='Compile Data'!F328 -> 49.27349472 | DF38: ='Compile Data'!F329 -> 47.54209518 | DG38: ='Compile Data'!F330 -> 48.95213318 | DH38: ='Compile Data'!F331 -> 50.44127274 | DI38: ='Compile Data'!F332 -> 51.63575745 | DJ38: ='Compile Data'!F333 -> 53.14577866 | DK38: ='Compile Data'!F334 -> 52.17788315 | DL38: ='Compile Data'!F335 -> 51.84231186 | DM38: ='Compile Data'!F336 -> 52.70901871 | DO38: 51.34879589 | DP38: 51.44151243 | DQ38: 51.39068953 | DS38: 52.06050587 | DT38: 49.76959864 | DU38: 51.0437355 | DV38: 52.46874809 | DW38: 52.92020543 | DY38: 1948 | DZ38: ='Compile Data'!G325 -> 52.90031433 | EA38: ='Compile Data'!G326 -> 53.73886108 | EB38: ='Compile Data'!G327 -> 52.51566696 | EC38: ='Compile Data'!G328 -> 49.30942535 | ED38: ='Compile Data'!G329 -> 47.56121445 | EE38: ='Compile Data'!G330 -> 48.93618011 | EF38: ='Compile Data'!G331 -> 50.47723007 | EG38: ='Compile Data'!G332 -> 51.64395905 | EH38: ='Compile Data'!G333 -> 53.15260315 | EI38: ='Compile Data'!G334 -> 52.1678772 | EJ38: ='Compile Data'!G335 -> 51.82437897 | EK38: ='Compile Data'!G336 -> 52.71813583 | EM38: 51.35783037 | EN38: 51.44764487 | EO38: 51.41215388 | EQ38: 52.11606693 | ER38: 49.79543559 | ES38: 51.0524931 | ET38: 52.46574879 | EU38: 52.93416595
A39: 1923-12-31 | B39: =IF(INDIRECT(CONCATENATE("'",B$1,"'!",B$4,(YEAR($A39)-1921)*12+MONTH($A39)+3+IF(ISNUMBER(FIND("PRV",B$6)),1,0)))=-901,NA(),INDIRECT(CONCATENATE("'",B$1,"'!",B$4,(YEAR($A39)-1921)*12+MONTH($A39)+3+IF(ISNUMBER(FIND("PRV",B$6)),1,0)))*IF(AND(B$3>0,TRIM(B$9)="CFS"),Conv_Flags!$C39,1)) -> 51.96611786 | C39: =IF(INDIRECT(CONCATENATE("'",C$1,"'!",C$4,(YEAR($A39)-1921)*12+MONTH($A39)+3+IF(ISNUMBER(FIND("PRV",C$6)),1,0)))=-901,NA(),INDIRECT(CONCATENATE("'",C$1,"'!",C$4,(YEAR($A39)-1921)*12+MONTH($A39)+3+IF(ISNUMBER(FIND("PRV",C$6)),1,0)))*IF(AND(C$3>0,TRIM(C$9)="CFS"),Conv_Flags!$C39,1)) -> 53.57518387 | D39: =IF(INDIRECT(CONCATENATE("'",D$1,"'!",D$4,(YEAR($A39)-1921)*12+MONTH($A39)+3+IF(ISNUMBER(FIND("PRV",D$6)),1,0)))=-901,NA(),INDIRECT(CONCATENATE("'",D$1,"'!",D$4,(YEAR($A39)-1921)*12+MONTH($A39)+3+IF(ISNUMBER(FIND("PRV",D$6)),1,0)))*IF(AND(D$3>0,TRIM(D$9)="CFS"),Conv_Flags!$C39,1)) -> 51.84266663 | E39: =IF(INDIRECT(CONCATENATE("'",E$1,"'!",E$4,(YEAR($A39)-1921)*12+MONTH($A39)+3+IF(ISNUMBER(FIND("PRV",E$6)),1,0)))=-901,NA(),INDIRECT(CONCATENATE("'",E$1,"'!",E$4,(YEAR($A39)-1921)*12+MONTH($A39)+3+IF(ISNUMBER(FIND("PRV",E$6)),1,0)))*IF(AND(E$3>0,TRIM(E$9)="CFS"),Conv_Flags!$C39,1)) -> 51.78889847 | F39: =IF(INDIRECT(CONCATENATE("'",F$1,"'!",F$4,(YEAR($A39)-1921)*12+MONTH($A39)+3+IF(ISNUMBER(FIND("PRV",F$6)),1,0)))=-901,NA(),INDIRECT(CONCATENATE("'",F$1,"'!",F$4,(YEAR($A39)-1921)*12+MONTH($A39)+3+IF(ISNUMBER(FIND("PRV",F$6)),1,0)))*IF(AND(F$3>0,TRIM(F$9)="CFS"),Conv_Flags!$C39,1)) -> 53.46269989 | G39: =IF(INDIRECT(CONCATENATE("'",G$1,"'!",G$4,(YEAR($A39)-1921)*12+MONTH($A39)+3+IF(ISNUMBER(FIND("PRV",G$6)),1,0)))=-901,NA(),INDIRECT(CONCATENATE("'",G$1,"'!",G$4,(YEAR($A39)-1921)*12+MONTH($A39)+3+IF(ISNUMBER(FIND("PRV",G$6)),1,0)))*IF(AND(G$3>0,TRIM(G$9)="CFS"),Conv_Flags!$C39,1)) -> 53.51802826 | I39: 1949 | J39: =B337 -> 51.9510498 | K39: =B338 -> 53.85671997 | L39: =B339 -> 50.92039108 | M39: =B340 -> 47.74245453 | N39: =B341 -> 47.14235687 | O39: =B342 -> 47.1979866 | P39: =B343 -> 53.30413055 | Q39: =B344 -> 52.4693222 | R39: =B345 -> 51.75101852 | S39: =B346 -> 50.98401642 | T39: =B347 -> 51.76266098 | U39: =B348 -> 51.99155426 | W39: 50.83863544 | X39: 50.71099091 | Y39: 50.92280515 | AA39: 51.11765385 | AB39: 48.60173416 | AC39: 51.18061447 | AD39: 51.62231255 | AE39: 52.41654078 | AG39: 1949 | AH39: ='Compile Data'!C337 -> 52.06174088 | AI39: ='Compile Data'!C338 -> 54.10812378 | AJ39: ='Compile Data'!C339 -> 52.38911057 | AK39: ='Compile Data'!C340 -> 49.35972977 | AL39: ='Compile Data'!C341 -> 48.60066223 | AM39: ='Compile Data'!C342 -> 48.28121567 | AN39: ='Compile Data'!C343 -> 54.45902252 | AO39: ='Compile Data'!C344 -> 53.12247086 | AP39: ='Compile Data'!C345 -> 52.47977448 | AQ39: ='Compile Data'!C346 -> 52.47591019 | AR39: ='Compile Data'!C347 -> 51.88574982 | AS39: ='Compile Data'!C348 -> 52.42867279 | AU39: 51.7160937 | AV39: 51.60453796 | AW39: 51.80434863 | AY39: 51.97967625 | AZ39: 50.11650085 | BA39: 52.08562088 | BB39: 52.31752682 | BC39: 52.71356455 | BE39: 1949 | BF39: ='Compile Data'!D337 -> 51.95446396 | BG39: ='Compile Data'!D338 -> 53.83490372 | BH39: ='Compile Data'!D339 -> 50.97562408 | BI39: ='Compile Data'!D340 -> 47.7823143 | BJ39: ='Compile Data'!D341 -> 47.16892624 | BK39: ='Compile Data'!D342 -> 47.21029282 | BL39: ='Compile Data'!D343 -> 53.30794907 | BM39: ='Compile Data'!D344 -> 52.69114685 | BN39: ='Compile Data'!D345 -> 51.75713348 | BO39: ='Compile Data'!D346 -> 51.0417366 | BP39: ='Compile Data'!D347 -> 51.80393219 | BQ39: ='Compile Data'!D348 -> 52.01309586 | BS39: 50.86785475 | BT39: 50.73654238 | BU39: 50.96179326 | BW39: 51.13682652 | BX39: 48.64228821 | BY39: 51.24163055 | BZ39: 51.65397453 | CA39: 52.41725667 | CC39: 1949 | CD39: ='Compile Data'!E337 -> 51.95248032 | CE39: ='Compile Data'!E338 -> 53.84200287 | CF39: ='Compile Data'!E339 -> 50.96760178 | CG39: ='Compile Data'!E340 -> 47.77257156 | CH39: ='Compile Data'!E341 -> 47.16279221 | CI39: ='Compile Data'!E342 -> 47.20550156 | CJ39: ='Compile Data'!E343 -> 53.32248688 | CK39: ='Compile Data'!E344 -> 52.69348907 | CL39: ='Compile Data'!E345 -> 51.7550354 | CM39: ='Compile Data'!E346 -> 51.04840469 | CN39: ='Compile Data'!E347 -> 51.79486847 | CO39: ='Compile Data'!E348 -> 52.0096283 | CQ39: 50.87153149 | CR39: 50.73845514 | CS39: 50.96057192 | CU39: 51.13366413 | CV39: 48.63432185 | CW39: 51.24412823 | CX39: 51.65198421 | CY39: 52.43730418 | DA39: 1949 | DB39: ='Compile Data'!F337 -> 51.94375229 | DC39: ='Compile Data'!F338 -> 54.10784531 | DD39: ='Compile Data'!F339 -> 52.41420746 | DE39: ='Compile Data'!F340 -> 49.34097672 | DF39: ='Compile Data'!F341 -> 48.58721161 | DG39: ='Compile Data'!F342 -> 48.27734756 | DH39: ='Compile Data'!F343 -> 54.45635223 | DI39: ='Compile Data'!F344 -> 53.43035889 | DJ39: ='Compile Data'!F345 -> 52.44511414 | DK39: ='Compile Data'!F346 -> 52.52489853 | DL39: ='Compile Data'!F347 -> 51.96671295 | DM39: ='Compile Data'!F348 -> 52.46577454 | DO39: 51.76366742 | DP39: 51.63105329 | DQ39: 51.83004602 | DS39: 51.95169544 | DT39: 50.11413193 | DU39: 52.15229321 | DV39: 52.35062504 | DW39: 52.7059199 | DY39: 1949 | DZ39: ='Compile Data'!G337 -> 51.96771622 | EA39: ='Compile Data'!G338 -> 54.11664581 | EB39: ='Compile Data'!G339 -> 52.41859818 | EC39: ='Compile Data'!G340 -> 49.35239792 | ED39: ='Compile Data'!G341 -> 48.59601593 | EE39: ='Compile Data'!G342 -> 48.28810501 | EF39: ='Compile Data'!G343 -> 54.46237946 | EG39: ='Compile Data'!G344 -> 53.30721283 | EH39: ='Compile Data'!G345 -> 52.45422745 | EI39: ='Compile Data'!G346 -> 52.50867462 | EJ39: ='Compile Data'!G347 -> 51.95779419 | EK39: ='Compile Data'!G348 -> 52.49255753 | EM39: 51.76480675 | EN39: 51.63252354 | EO39: 51.82686043 | EQ39: 51.96383953 | ER39: 50.12233734 | ES39: 52.12798119 | ET39: 52.35331345 | EU39: 52.72727966
A40: 1924-01-31 | B40: =IF(INDIRECT(CONCATENATE("'",B$1,"'!",B$4,(YEAR($A40)-1921)*12+MONTH($A40)+3+IF(ISNUMBER(FIND("PRV",B$6)),1,0)))=-901,NA(),INDIRECT(CONCATENATE("'",B$1,"'!",B$4,(YEAR($A40)-1921)*12+MONTH($A40)+3+IF(ISNUMBER(FIND("PRV",B$6)),1,0)))*IF(AND(B$3>0,TRIM(B$9)="CFS"),Conv_Flags!$C40,1)) -> 48.79593658 | C40: =IF(INDIRECT(CONCATENATE("'",C$1,"'!",C$4,(YEAR($A40)-1921)*12+MONTH($A40)+3+IF(ISNUMBER(FIND("PRV",C$6)),1,0)))=-901,NA(),INDIRECT(CONCATENATE("'",C$1,"'!",C$4,(YEAR($A40)-1921)*12+MONTH($A40)+3+IF(ISNUMBER(FIND("PRV",C$6)),1,0)))*IF(AND(C$3>0,TRIM(C$9)="CFS"),Conv_Flags!$C40,1)) -> 50.56718063 | D40: =IF(INDIRECT(CONCATENATE("'",D$1,"'!",D$4,(YEAR($A40)-1921)*12+MONTH($A40)+3+IF(ISNUMBER(FIND("PRV",D$6)),1,0)))=-901,NA(),INDIRECT(CONCATENATE("'",D$1,"'!",D$4,(YEAR($A40)-1921)*12+MONTH($A40)+3+IF(ISNUMBER(FIND("PRV",D$6)),1,0)))*IF(AND(D$3>0,TRIM(D$9)="CFS"),Conv_Flags!$C40,1)) -> 48.74963379 | E40: =IF(INDIRECT(CONCATENATE("'",E$1,"'!",E$4,(YEAR($A40)-1921)*12+MONTH($A40)+3+IF(ISNUMBER(FIND("PRV",E$6)),1,0)))=-901,NA(),INDIRECT(CONCATENATE("'",E$1,"'!",E$4,(YEAR($A40)-1921)*12+MONTH($A40)+3+IF(ISNUMBER(FIND("PRV",E$6)),1,0)))*IF(AND(E$3>0,TRIM(E$9)="CFS"),Conv_Flags!$C40,1)) -> 48.72446442 | F40: =IF(INDIRECT(CONCATENATE("'",F$1,"'!",F$4,(YEAR($A40)-1921)*12+MONTH($A40)+3+IF(ISNUMBER(FIND("PRV",F$6)),1,0)))=-901,NA(),INDIRECT(CONCATENATE("'",F$1,"'!",F$4,(YEAR($A40)-1921)*12+MONTH($A40)+3+IF(ISNUMBER(FIND("PRV",F$6)),1,0)))*IF(AND(F$3>0,TRIM(F$9)="CFS"),Conv_Flags!$C40,1)) -> 50.49148178 | G40: =IF(INDIRECT(CONCATENATE("'",G$1,"'!",G$4,(YEAR($A40)-1921)*12+MONTH($A40)+3+IF(ISNUMBER(FIND("PRV",G$6)),1,0)))=-901,NA(),INDIRECT(CONCATENATE("'",G$1,"'!",G$4,(YEAR($A40)-1921)*12+MONTH($A40)+3+IF(ISNUMBER(FIND("PRV",G$6)),1,0)))*IF(AND(G$3>0,TRIM(G$9)="CFS"),Conv_Flags!$C40,1)) -> 50.52688217 | I40: 1950 | J40: =B349 -> 51.81285477 | K40: =B350 -> 53.44521332 | L40: =B351 -> 50.4600563 | M40: =B352 -> 47.02527237 | N40: =B353 -> 46.32780457 | O40: =B354 -> 48.99300766 | P40: =B355 -> 53.43845749 | Q40: =B356 -> 52.54849625 | R40: =B357 -> 52.19537735 | S40: =B358 -> 51.89678192 | T40: =B359 -> 51.98492432 | U40: =B360 -> 52.29706955 | W40: 50.99428368 | X40: 50.79145622 | Y40: 51.03544299 | AA40: 50.68584919 | AB40: 47.93771108 | AC40: 51.79383469 | AD40: 52.09353828 | AE40: 52.65030034 | AG40: 1950 | AH40: ='Compile Data'!C349 -> 51.80169678 | AI40: ='Compile Data'!C350 -> 53.9103241 | AJ40: ='Compile Data'!C351 -> 51.7878952 | AK40: ='Compile Data'!C352 -> 48.80390167 | AL40: ='Compile Data'!C353 -> 47.8178215 | AM40: ='Compile Data'!C354 -> 50.42358017 | AN40: ='Compile Data'!C355 -> 52.76357269 | AO40: ='Compile Data'!C356 -> 53.20453262 | AP40: ='Compile Data'!C357 -> 52.73025513 | AQ40: ='Compile Data'!C358 -> 52.64200592 | AR40: ='Compile Data'!C359 -> 52.11875916 | AS40: ='Compile Data'!C360 -> 52.73778534 | AU40: 51.76689847 | AV40: 51.49568939 | AW40: 51.72851086 | AY40: 51.57595444 | AZ40: 49.46987279 | BA40: 52.28048515 | BB40: 52.55720139 | BC40: 53.2146225 | BE40: 1950 | BF40: ='Compile Data'!D349 -> 51.82878494 | BG40: ='Compile Data'!D350 -> 53.40988922 | BH40: ='Compile Data'!D351 -> 50.39905548 | BI40: ='Compile Data'!D352 -> 47.01853561 | BJ40: ='Compile Data'!D353 -> 46.35695648 | BK40: ='Compile Data'!D354 -> 49.11728287 | BL40: ='Compile Data'!D355 -> 53.35861969 | BM40: ='Compile Data'!D356 -> 52.58644104 | BN40: ='Compile Data'!D357 -> 52.23783493 | BO40: ='Compile Data'!D358 -> 51.84886169 | BP40: ='Compile Data'!D359 -> 51.96450043 | BQ40: ='Compile Data'!D360 -> 52.34736633 | BS40: 50.99674702 | BT40: 50.79134846 | BU40: 51.03951073 | BW40: 50.66406631 | BX40: 47.92484919 | BY40: 51.82504463 | BZ40: 52.09964085 | CA40: 52.63345846 | CC40: 1950 | CD40: ='Compile Data'!E349 -> 51.85379791 | CE40: ='Compile Data'!E350 -> 53.44848633 | CF40: ='Compile Data'!E351 -> 50.39131546 | CG40: ='Compile Data'!E352 -> 47.009655 | CH40: ='Compile Data'!E353 -> 46.32879257 | CI40: ='Compile Data'!E354 -> 49.08176041 | CJ40: ='Compile Data'!E355 -> 53.36205673 | CK40: ='Compile Data'!E356 -> 52.58687973 | CL40: ='Compile Data'!E357 -> 52.24505997 | CM40: ='Compile Data'!E358 -> 51.89449692 | CN40: ='Compile Data'!E359 -> 51.96609879 | CO40: ='Compile Data'!E360 -> 52.35584259 | CQ40: 50.99652863 | CR40: 50.7932539 | CS40: 51.04368687 | CU40: 50.67581367 | CV40: 47.90992101 | CW40: 51.81893921 | CX40: 52.11537457 | CY40: 52.64446767 | DA40: 1950 | DB40: ='Compile Data'!F349 -> 51.80249023 | DC40: ='Compile Data'!F350 -> 53.84949493 | DD40: ='Compile Data'!F351 -> 52.01727676 | DE40: ='Compile Data'!F352 -> 48.54965973 | DF40: ='Compile Data'!F353 -> 47.78715897 | DG40: ='Compile Data'!F354 -> 50.40963745 | DH40: ='Compile Data'!F355 -> 52.87533951 | DI40: ='Compile Data'!F356 -> 53.45188141 | DJ40: ='Compile Data'!F357 -> 52.77886581 | DK40: ='Compile Data'!F358 -> 52.45966339 | DL40: ='Compile Data'!F359 -> 52.09169388 | DM40: ='Compile Data'!F360 -> 52.7748642 | DO40: 51.75793362 | DP40: 51.50605806 | DQ40: 51.73733552 | DS40: 51.55473042 | DT40: 49.45136515 | DU40: 52.37893105 | DV40: 52.52627182 | DW40: 53.2265536 | DY40: 1950 | DZ40: ='Compile Data'!G349 -> 51.79911041 | EA40: ='Compile Data'!G350 -> 53.89017105 | EB40: ='Compile Data'!G351 -> 52.06903458 | EC40: ='Compile Data'!G352 -> 48.5643959 | ED40: ='Compile Data'!G353 -> 47.79661942 | EE40: ='Compile Data'!G354 -> 50.40283966 | EF40: ='Compile Data'!G355 -> 52.99072647 | EG40: ='Compile Data'!G356 -> 53.38146591 | EH40: ='Compile Data'!G357 -> 52.76125336 | EI40: ='Compile Data'!G358 -> 52.48827362 | EJ40: ='Compile Data'!G359 -> 52.10635376 | EK40: ='Compile Data'!G360 -> 52.78379059 | EM40: 51.77102439 | EN40: 51.52046172 | EO40: 51.75283623 | EQ40: 51.58067799 | ER40: 49.4766833 | ES40: 52.38407135 | ET40: 52.53491783 | EU40: 53.24265162
A41: 1924-02-29 | B41: =IF(INDIRECT(CONCATENATE("'",B$1,"'!",B$4,(YEAR($A41)-1921)*12+MONTH($A41)+3+IF(ISNUMBER(FIND("PRV",B$6)),1,0)))=-901,NA(),INDIRECT(CONCATENATE("'",B$1,"'!",B$4,(YEAR($A41)-1921)*12+MONTH($A41)+3+IF(ISNUMBER(FIND("PRV",B$6)),1,0)))*IF(AND(B$3>0,TRIM(B$9)="CFS"),Conv_Flags!$C41,1)) -> 49.33918381 | C41: =IF(INDIRECT(CONCATENATE("'",C$1,"'!",C$4,(YEAR($A41)-1921)*12+MONTH($A41)+3+IF(ISNUMBER(FIND("PRV",C$6)),1,0)))=-901,NA(),INDIRECT(CONCATENATE("'",C$1,"'!",C$4,(YEAR($A41)-1921)*12+MONTH($A41)+3+IF(ISNUMBER(FIND("PRV",C$6)),1,0)))*IF(AND(C$3>0,TRIM(C$9)="CFS"),Conv_Flags!$C41,1)) -> 51.0422821 | D41: =IF(INDIRECT(CONCATENATE("'",D$1,"'!",D$4,(YEAR($A41)-1921)*12+MONTH($A41)+3+IF(ISNUMBER(FIND("PRV",D$6)),1,0)))=-901,NA(),INDIRECT(CONCATENATE("'",D$1,"'!",D$4,(YEAR($A41)-1921)*12+MONTH($A41)+3+IF(ISNUMBER(FIND("PRV",D$6)),1,0)))*IF(AND(D$3>0,TRIM(D$9)="CFS"),Conv_Flags!$C41,1)) -> 49.27111053 | E41: =IF(INDIRECT(CONCATENATE("'",E$1,"'!",E$4,(YEAR($A41)-1921)*12+MONTH($A41)+3+IF(ISNUMBER(FIND("PRV",E$6)),1,0)))=-901,NA(),INDIRECT(CONCATENATE("'",E$1,"'!",E$4,(YEAR($A41)-1921)*12+MONTH($A41)+3+IF(ISNUMBER(FIND("PRV",E$6)),1,0)))*IF(AND(E$3>0,TRIM(E$9)="CFS"),Conv_Flags!$C41,1)) -> 49.25568008 | F41: =IF(INDIRECT(CONCATENATE("'",F$1,"'!",F$4,(YEAR($A41)-1921)*12+MONTH($A41)+3+IF(ISNUMBER(FIND("PRV",F$6)),1,0)))=-901,NA(),INDIRECT(CONCATENATE("'",F$1,"'!",F$4,(YEAR($A41)-1921)*12+MONTH($A41)+3+IF(ISNUMBER(FIND("PRV",F$6)),1,0)))*IF(AND(F$3>0,TRIM(F$9)="CFS"),Conv_Flags!$C41,1)) -> 50.97106552 | G41: =IF(INDIRECT(CONCATENATE("'",G$1,"'!",G$4,(YEAR($A41)-1921)*12+MONTH($A41)+3+IF(ISNUMBER(FIND("PRV",G$6)),1,0)))=-901,NA(),INDIRECT(CONCATENATE("'",G$1,"'!",G$4,(YEAR($A41)-1921)*12+MONTH($A41)+3+IF(ISNUMBER(FIND("PRV",G$6)),1,0)))*IF(AND(G$3>0,TRIM(G$9)="CFS"),Conv_Flags!$C41,1)) -> 51.01117706 | I41: 1951 | J41: =B361 -> 51.90904999 | K41: =B362 -> 53.74478149 | L41: =B363 -> 49.57038116 | M41: =B364 -> 45.8777504 | N41: =B365 -> 45.04139709 | O41: =B366 -> 47.77741623 | P41: =B367 -> 51.74075317 | Q41: =B368 -> 52.15086746 | R41: =B369 -> 51.50754929 | S41: =B370 -> 50.57893753 | T41: =B371 -> 51.13892746 | U41: =B372 -> 50.68167496 | W41: 49.99083742 | X41: 49.91041056 | Y41: 50.14329052 | AA41: 50.27549076 | AB41: 46.82984289 | AC41: 50.79414654 | AD41: 50.97677231 | AE41: 51.71175385 | AG41: 1951 | AH41: ='Compile Data'!C361 -> 52.48522186 | AI41: ='Compile Data'!C362 -> 54.42086029 | AJ41: ='Compile Data'!C363 -> 51.05448532 | AK41: ='Compile Data'!C364 -> 47.16225815 | AL41: ='Compile Data'!C365 -> 46.20495605 | AM41: ='Compile Data'!C366 -> 48.96752548 | AN41: ='Compile Data'!C367 -> 52.81739044 | AO41: ='Compile Data'!C368 -> 53.60282135 | AP41: ='Compile Data'!C369 -> 51.65707016 | AQ41: ='Compile Data'!C370 -> 51.88008118 | AR41: ='Compile Data'!C371 -> 51.3429451 | AS41: ='Compile Data'!C372 -> 50.73944473 | AU41: 50.87051805 | AV41: 50.74761645 | AW41: 51.02792168 | AY41: 51.28070641 | AZ41: 48.14056651 | BA41: 51.76120186 | BB41: 51.40488529 | BC41: 52.03233846 | BE41: 1951 | BF41: ='Compile Data'!D361 -> 51.80496979 | BG41: ='Compile Data'!D362 -> 53.74803925 | BH41: ='Compile Data'!D363 -> 49.57155609 | BI41: ='Compile Data'!D364 -> 45.8796463 | BJ41: ='Compile Data'!D365 -> 45.03106308 | BK41: ='Compile Data'!D366 -> 47.76511765 | BL41: ='Compile Data'!D367 -> 51.73386002 | BM41: ='Compile Data'!D368 -> 52.1537323 | BN41: ='Compile Data'!D369 -> 51.85540009 | BO41: ='Compile Data'!D370 -> 50.56119919 | BP41: ='Compile Data'!D371 -> 51.25871277 | BQ41: ='Compile Data'!D372 -> 50.701828 | BS41: 49.99794928 | BT41: 49.91630459 | BU41: 50.17209371 | BW41: 50.25105286 | BX41: 46.82742182 | BY41: 50.87702751 | BZ41: 51.09428501 | CA41: 51.63731639 | CC41: 1951 | CD41: ='Compile Data'!E361 -> 51.82619476 | CE41: ='Compile Data'!E362 -> 53.75136566 | CF41: ='Compile Data'!E363 -> 49.55014038 | CG41: ='Compile Data'!E364 -> 45.86903381 | CH41: ='Compile Data'!E365 -> 45.03011703 | CI41: ='Compile Data'!E366 -> 47.78782272 | CJ41: ='Compile Data'!E367 -> 51.75265503 | CK41: ='Compile Data'!E368 -> 52.16032028 | CL41: ='Compile Data'!E369 -> 51.8452301 | CM41: ='Compile Data'!E370 -> 50.55249405 | CN41: ='Compile Data'!E371 -> 51.26201248 | CO41: ='Compile Data'!E372 -> 50.69851685 | CQ41: 49.99893824 | CR41: 49.91833655 | CS41: 50.17382526 | CU41: 50.24918365 | CV41: 46.81643041 | CW41: 50.88650703 | CX41: 51.08956337 | CY41: 51.63411585 | DA41: 1951 | DB41: ='Compile Data'!F361 -> 52.47423172 | DC41: ='Compile Data'!F362 -> 54.43056488 | DD41: ='Compile Data'!F363 -> 51.01164246 | DE41: ='Compile Data'!F364 -> 47.13420868 | DF41: ='Compile Data'!F365 -> 46.1801033 | DG41: ='Compile Data'!F366 -> 48.93867874 | DH41: ='Compile Data'!F367 -> 52.84044647 | DI41: ='Compile Data'!F368 -> 53.83802414 | DJ41: ='Compile Data'!F369 -> 51.64082336 | DK41: ='Compile Data'!F370 -> 51.86855698 | DL41: ='Compile Data'!F371 -> 51.30480194 | DM41: ='Compile Data'!F372 -> 50.7441864 | DO41: 50.8793122 | DP41: 50.75981712 | DQ41: 51.03385576 | DS41: 51.26266193 | DT41: 48.10865148 | DU41: 51.81449318 | DV41: 51.38959217 | DW41: 52.03042857 | DY41: 1951 | DZ41: ='Compile Data'!G361 -> 52.52141953 | EA41: ='Compile Data'!G362 -> 54.42274475 | EB41: ='Compile Data'!G363 -> 51.03240967 | EC41: ='Compile Data'!G364 -> 47.14730453 | ED41: ='Compile Data'!G365 -> 46.20695877 | EE41: ='Compile Data'!G366 -> 48.93983841 | EF41: ='Compile Data'!G367 -> 52.84822464 | EG41: ='Compile Data'!G368 -> 53.84638596 | EH41: ='Compile Data'!G369 -> 51.6295433 | EI41: ='Compile Data'!G370 -> 51.87715149 | EJ41: ='Compile Data'!G371 -> 51.30776215 | EK41: ='Compile Data'!G372 -> 50.74659729 | EM41: 50.88298416 | EN41: 50.7608525 | EO41: 51.04386171 | EQ41: 51.28096962 | ER41: 48.12889099 | ES41: 51.81599808 | ET41: 51.39026356 | EU41: 52.02469889
